Workbook

Sheet IRCalibration
B8: Zero curve | F8: Short rate | G8: DF | H8: Fwd Rate | I8: beta(t) | J8: B(.) | K8: Fwd Start Swap
B9: =3/12 -> 0.25 | C9: 0.008 | E9: 0 | F9: =Cubic_SPline($B$9:$B$17,$C$9:$C$17,E9) -> 0.007500000298 | G9: =EXP(-F9*E9) -> 1 | H9: =F9 -> 0.007500000298 | I9: =H9+(IRVol*(1-EXP(-MeanRvs*E9))/MeanRvs/SQRT(2))^2 -> 0.007500000298 | J9: =(1-EXP(-MeanRvs*E9))/MeanRvs -> 0 | K9: =(SUM(G10:$G$49)*0.25*ParSwapRate-(G9-$G$49)) -> 0
B10: =6/12 -> 0.5 | C10: 0.0085 | E10: =E9+0.25 -> 0.25 | F10: 0.00800000038 | G10: 0.9980019986 | H10: =-(LN(G10)-LN(G9))/(E10-E9) -> 0.00800000038 | I10: =H10+(IRVol*(1-EXP(-MeanRvs*E10))/MeanRvs/SQRT(2))^2 -> 0.008003048382 | J10: 0.2469008797 | K10: =(SUM(G11:$G$49)*0.25*ParSwapRate-(G10-$G$49)) -> -0.00171317063
B11: 1 | C11: 0.0092 | E11: 0.5 | F11: 0.008500000462 | G11: 0.9957590182 | H11: 0.009000000544 | I11: 0.009011893389 | J11: 0.487705755 | K11: =(SUM(G12:$G$49)*0.25*ParSwapRate-(G11-$G$49)) -> -0.003173021604
B12: 2 | C12: 0.01 | E12: 0.75 | F12: 0.008895893624 | G12: 0.9933502876 | H12: 0.009687679948 | I12: 0.009713784967 | J12: 0.7225651367 | K12: =(SUM(G13:$G$49)*0.25*ParSwapRate-(G12-$G$49)) -> -0.004458165186
B13: 3 | C13: 0.0106 | E13: 1 | F13: 0.009200000204 | G13: 0.9908421903 | H13: 0.01011231994 | I13: 0.01015759953 | J13: 0.9516258196 | K13: =(SUM(G14:$G$49)*0.25*ParSwapRate-(G13-$G$49)) -> -0.005634615458
B14: 5 | C14: 0.0119 | E14: 1.25 | F14: 0.009448636587 | G14: 0.9882586779 | H14: 0.01044318212 | I14: 0.01051221701 | J14: 1.175030974 | K14: =(SUM(G15:$G$49)*0.25*ParSwapRate-(G14-$G$49)) -> -0.006726043604
B15: 7 | C15: 0.0132 | E15: 1.5 | F15: 0.009657674228 | G15: 0.9856179133 | H15: 0.01070286244 | I15: 0.01079987378 | J15: 1.392920236 | K15: =(SUM(G16:$G$49)*0.25*ParSwapRate-(G15-$G$49)) -> -0.007750399552
B16: 10 | C16: 0.015 | E16: 1.75 | F16: 0.009837874984 | G16: 0.9829310721 | H16: 0.01091907952 | I16: 0.01104794976 | J16: 1.605429792 | K16: =(SUM(G17:$G$49)*0.25*ParSwapRate-(G16-$G$49)) -> -0.00871868764
B17: 20 | C17: 0.02 | E17: 2 | F17: 0.009999999776 | G17: 0.9801986737 | H17: 0.01113487332 | I17: 0.01129916602 | J17: 1.812692469 | K17: =(SUM(G18:$G$49)*0.25*ParSwapRate-(G17-$G$49)) -> -0.009631257857
E18: 2.25 | F18: 0.01015351347 | G18: 0.977413575 | H18: 0.01138162301 | I18: 0.01158460158 | J18: 2.014837812 | K18: =(SUM(G19:$G$49)*0.25*ParSwapRate-(G18-$G$49)) -> -0.01048077107
B19: Parameters | E19: 2.5 | F19: 0.01030269575 | G19: 0.9745721358 | H19: 0.01164533631 | I19: 0.01188998177 | J19: 2.211992169 | K19: =(SUM(G20:$G$49)*0.25*ParSwapRate-(G19-$G$49)) -> -0.01126337754
B20: a | C20: 0.1 | E20: 2.75 | F20: 0.01045053003 | G20: 0.9716700785 | H20: 0.01192887276 | I20: 0.01221790058 | J20: 2.404278768 | K20: =(SUM(G21:$G$49)*0.25*ParSwapRate-(G20-$G$49)) -> -0.01197457436
B21: vol | C21: 0.01 | E21: 3 | F21: 0.01059999969 | G21: 0.9687003037 | H21: 0.01224416597 | I21: 0.01258004195 | J21: 2.591817793 | K21: =(SUM(G22:$G$49)*0.25*ParSwapRate-(G21-$G$49)) -> -0.01260701027
E22: 3.25 | F22: 0.0107534774 | G22: 0.965654855 | H22: 0.0125952099 | I22: 0.01298016525 | J22: 2.774726464 | K22: =(SUM(G23:$G$49)*0.25*ParSwapRate-(G22-$G$49)) -> -0.01315244754
B23: Par Swap Rate | C23: =(1-G49)/SUM(G10:G49)/0.25 -> 0.01487440732 | E23: 3.5 | F23: 0.01091089356 | G23: 0.9625318452 | H23: 0.01295730366 | I23: 0.01339334929 | J23: 2.953119103 | K23: =(SUM(G24:$G$49)*0.25*ParSwapRate-(G23-$G$49)) -> -0.01360871038
E24: 3.75 | F24: 0.01107156831 | G24: 0.9593317016 | H24: 0.01332101476 | I24: 0.01380995473 | J24: 3.127107212 | K24: =(SUM(G25:$G$49)*0.25*ParSwapRate-(G24-$G$49)) -> -0.01397593937
E25: 4 | F25: 0.01123482037 | G25: 0.9560555303 | H25: 0.01368360136 | I25: 0.01422704572 | J25: 3.29679954 | K25: =(SUM(G26:$G$49)*0.25*ParSwapRate-(G25-$G$49)) -> -0.014254958
E26: 4.25 | F26: 0.01139996989 | G26: 0.9527050953 | H26: 0.01404236217 | I26: 0.01464173897 | J26: 3.462302149 | K26: =(SUM(G27:$G$49)*0.25*ParSwapRate-(G26-$G$49)) -> -0.01444725385
E27: 4.5 | F27: 0.01156633676 | G27: 0.9492828109 | H27: 0.0143945735 | I27: 0.01505114028 | J27: 3.623718484 | K27: =(SUM(G28:$G$49)*0.25*ParSwapRate-(G27-$G$49)) -> -0.01455497425
E28: 4.75 | F28: 0.01173324029 | G28: 0.9457917313 | H28: 0.01473750391 | I28: 0.01545235846 | J28: 3.781149435 | K28: =(SUM(G29:$G$49)*0.25*ParSwapRate-(G28-$G$49)) -> -0.0145809175
E29: 5 | F29: 0.01190000027 | G29: 0.9422355323 | H29: 0.01506843996 | I29: 0.01584253057 | J29: 3.934693403 | K29: =(SUM(G30:$G$49)*0.25*ParSwapRate-(G29-$G$49)) -> -0.0145285173
E30: 5.25 | F30: 0.01206603936 | G30: 0.9386179922 | H30: 0.01538682101 | I30: 0.01622095611 | J30: 4.084446356 | K30: =(SUM(G31:$G$49)*0.25*ParSwapRate-(G30-$G$49)) -> -0.01440132378
E31: 5.5 | F31: 0.01223119212 | G31: 0.9349412773 | H31: 0.01569940022 | I31: 0.01659425753 | J31: 4.230501896 | K31: =(SUM(G32:$G$49)*0.25*ParSwapRate-(G31-$G$49)) -> -0.01420128324
E32: 5.75 | F32: 0.01239539614 | G32: 0.9312071462 | H32: 0.01600788456 | I32: 0.01696401972 | J32: 4.372951312 | K32: =(SUM(G33:$G$49)*0.25*ParSwapRate-(G32-$G$49)) -> -0.01392994076
E33: 6 | F33: 0.01255858898 | G33: 0.9274174104 | H33: 0.01631202431 | I33: 0.01732987901 | J33: 4.511883639 | K33: =(SUM(G34:$G$49)*0.25*ParSwapRate-(G33-$G$49)) -> -0.01358890097
E34: 6.25 | F34: 0.01272070821 | G34: 0.9235739319 | H34: 0.01661156974 | I34: 0.01769147944 | J34: 4.647385715 | K34: =(SUM(G35:$G$49)*0.25*ParSwapRate-(G34-$G$49)) -> -0.01317982624
E35: 6.5 | F35: 0.0128816914 | G35: 0.9196786218 | H35: 0.01690627112 | I35: 0.01804847232 | J35: 4.779542232 | K35: =(SUM(G36:$G$49)*0.25*ParSwapRate-(G35-$G$49)) -> -0.01270443471
E36: 6.75 | F36: 0.01304147612 | G36: 0.9157334375 | H36: 0.01719587873 | I36: 0.01840051582 | J36: 4.908435794 | K36: =(SUM(G37:$G$49)*0.25*ParSwapRate-(G36-$G$49)) -> -0.01216449843
E37: 7 | F37: 0.01319999993 | G37: 0.9117403809 | H37: 0.01748014284 | I37: 0.01874727462 | J37: 5.034146962 | K37: =(SUM(G38:$G$49)*0.25*ParSwapRate-(G37-$G$49)) -> -0.01156184131
E38: 7.25 | F38: 0.01335721128 | G38: 0.9077014248 | H38: 0.01775912903 | I38: 0.01908873478 | J38: 5.15675431 | K38: =(SUM(G39:$G$49)*0.25*ParSwapRate-(G38-$G$49)) -> -0.0108982654
E39: 7.5 | F39: 0.0135131021 | G39: 0.9036182788 | H39: 0.01803393604 | I39: 0.01942592131 | J39: 5.276334473 | K39: =(SUM(G40:$G$49)*0.25*ParSwapRate-(G39-$G$49)) -> -0.01017531594
E40: 7.75 | F40: 0.01366767521 | G40: 0.8994925726 | H40: 0.01830486844 | I40: 0.0197590705 | J40: 5.39296219 | K40: =(SUM(G41:$G$49)*0.25*ParSwapRate-(G40-$G$49)) -> -0.0093944645
E41: 8 | F41: 0.01382093341 | G41: 0.8953259229 | H41: 0.01857193771 | I41: 0.02008813065 | J41: 5.506710359 | K41: =(SUM(G42:$G$49)*0.25*ParSwapRate-(G41-$G$49)) -> -0.008557175439
E42: 8.25 | F42: 0.01397287906 | G42: 0.8911199361 | H42: 0.01883513962 | I42: 0.02041303924 | J42: 5.617650075 | K42: =(SUM(G43:$G$49)*0.25*ParSwapRate-(G42-$G$49)) -> -0.007664908788
E43: 8.5 | F43: 0.01412351634 | G43: 0.8868761903 | H43: 0.01909454687 | I43: 0.02073381517 | J43: 5.725850681 | K43: =(SUM(G44:$G$49)*0.25*ParSwapRate-(G43-$G$49)) -> -0.006719102473
E44: 8.75 | F44: 0.01427284669 | G44: 0.8825962698 | H44: 0.01935007853 | I44: 0.02105032805 | J44: 5.831379803 | K44: =(SUM(G45:$G$49)*0.25*ParSwapRate-(G44-$G$49)) -> -0.005721206042
E45: 9 | F45: 0.01442087338 | G45: 0.8782817295 | H45: 0.01960180731 | I45: 0.02136260515 | J45: 5.934303403 | K45: =(SUM(G46:$G$49)*0.25*ParSwapRate-(G45-$G$49)) -> -0.004672645817
E46: 9.25 | F46: 0.0145675992 | G46: 0.8739341122 | H46: 0.01984972904 | I46: 0.02167060068 | J46: 6.034685809 | K46: =(SUM(G47:$G$49)*0.25*ParSwapRate-(G46-$G$49)) -> -0.003574841519
E47: 9.5 | F47: 0.01471302699 | G47: 0.8695549444 | H47: 0.02009385501 | I47: 0.02197428788 | J47: 6.132589765 | K47: =(SUM(G48:$G$49)*0.25*ParSwapRate-(G47-$G$49)) -> -0.002429202295
E48: 9.75 | F48: 0.01485715954 | G48: 0.8651457358 | H48: 0.02033419643 | I48: 0.02227364326 | J48: 6.228076464 | K48: =(SUM(G49:$G$49)*0.25*ParSwapRate-(G48-$G$49)) -> -0.001237126258
E49: 10 | F49: 0.01499999966 | G49: 0.8607079793 | H49: 0.02057076456 | I49: 0.02256864657 | J49: 6.321205588 | K49: 0

Sheet 19.1
B9: Trade Details
B10: Product Type | C10: SWAP | E10: =ExposureSimulation(IRCalibration!B9:C17,Rate,IRVol,MeanRvs,StartTime,EndTime,PayRec,"Q","Q","NO",0,0,0,0,Simulations,Seed,PD,LGD,CVAWeight,,"SWAP") -> 0 | F10: 0.001176118016 | G10: 0.001176118016 | H10: 0.001176118016 | I10: 0.001176118016 | J10: 0.001176118016 | K10: 0.001176118016 | L10: 0.001176118016 | M10: 0.001176118016 | N10: 0.001176118016 | O10: 0.001176118016 | P10: 0.001176118016 | Q10: 0.001176118016 | R10: 0.001176118016 | S10: 0.001176118016 | T10: 0.001176118016 | U10: 0.001176118016 | V10: 0.001176118016 | W10: 0.001176118016 | X10: 0.001176118016 | Y10: 0.001176118016 | Z10: 0.001176118016 | AA10: 0.001176118016 | AB10: 0.001176118016 | AC10: 0.001176118016 | AD10: 0.001176118016 | AE10: 0.001176118016 | AF10: 0.001176118016 | AG10: 0.001176118016 | AH10: 0.001176118016 | AI10: 0.001176118016 | AJ10: 0.001176118016 | AK10: 0.001176118016 | AL10: 0.001176118016 | AM10: 0.001176118016 | AN10: 0.001176118016 | AO10: 0.001176118016 | AP10: 0.001176118016 | AQ10: 0.001176118016 | AR10: 0.001176118016 | AS10: 0.001176118016 | AT10: 0.001176118016 | AU10: 0.001176118016 | AV10: 0.001176118016 | AW10: 0.001176118016 | AX10: 0.001176118016 | AY10: 0.001176118016 | AZ10: 0.001176118016 | BA10: 0.001176118016 | BB10: 0.001176118016 | BC10: 0.001176118016 | BD10: 0.001176118016 | BE10: 0.001176118016 | BF10: 0.001176118016 | BG10: 0.001176118016 | BH10: 0.001176118016 | BI10: 0.001176118016 | BJ10: 0.001176118016 | BK10: 0.001176118016 | BL10: 0.001176118016 | BM10: 0.001176118016 | BN10: 0.001176118016 | BO10: 0.001176118016 | BP10: 0.001176118016 | BQ10: 0.001176118016 | BR10: 0.001176118016 | BS10: 0.001176118016 | BT10: 0.001176118016 | BU10: 0.001176118016 | BV10: 0.001176118016 | BW10: 0.001176118016 | BX10: 0.001176118016 | BY10: 0.001176118016 | BZ10: 0.001176118016 | CA10: 0.001176118016 | CB10: 0.001176118016 | CC10: 0.001176118016 | CD10: 0.001176118016 | CE10: 0.001176118016 | CF10: 0.001176118016 | CG10: 0.001176118016 | CH10: 0.001176118016 | CI10: 0.001176118016 | CJ10: 0.001176118016 | CK10: 0.001176118016 | CL10: 0.001176118016 | CM10: 0.001176118016 | CN10: 0.001176118016 | CO10: 0.001176118016 | CP10: 0.001176118016 | CQ10: 0.001176118016 | CR10: 0.001176118016 | CS10: 0.001176118016 | CT10: 0.001176118016 | CU10: 0.001176118016 | CV10: 0.001176118016 | CW10: 0.001176118016 | CX10: 0.001176118016 | CY10: 0.001176118016 | CZ10: 0.001176118016 | DA10: 0.001176118016 | DB10: 0.001176118016 | DC10: 0.001176118016 | DD10: 0.001176118016 | DE10: 0.001176118016 | DF10: 0.001176118016 | DG10: 0.001176118016 | DH10: 0.001176118016 | DI10: 0.001176118016 | DJ10: 0.001176118016 | DK10: 0.001176118016 | DL10: 0.001176118016 | DM10: 0.001176118016 | DN10: 0.001176118016 | DO10: 0.001176118016 | DP10: 0.001176118016 | DQ10: 0.001176118016 | DR10: 0.001176118016 | DS10: 0.001176118016 | DT10: 0.001176118016 | DU10: 0.001176118016 | DV10: 0.001176118016 | DW10: 0.001176118016 | DX10: 0.001176118016 | DY10: 0.001176118016 | DZ10: 0.001176118016 | EA10: 0.001176118016 | EB10: 0.001176118016 | EC10: 0.001176118016 | ED10: 0.001176118016 | EE10: 0.001176118016 | EF10: 0.001176118016 | EG10: 0.001176118016 | EH10: 0.001176118016 | EI10: 0.001176118016 | EJ10: 0.001176118016 | EK10: 0.001176118016 | EL10: 0.001176118016 | EM10: 0.001176118016 | EN10: 0.001176118016 | EO10: 0.001176118016 | EP10: 0.001176118016 | EQ10: 0.001176118016 | ER10: 0.001176118016 | ES10: 0.001176118016 | ET10: 0.001176118016 | EU10: 0.001176118016 | EV10: 0.001176118016 | EW10: 0.001176118016 | EX10: 0.001176118016 | EY10: 0.001176118016 | EZ10: 0.001176118016 | FA10: 0.001176118016 | FB10: 0.001176118016 | FC10: 0.001176118016 | FD10: 0.001176118016 | FE10: 0.001176118016 | FF10: 0.001176118016 | FG10: 0.001176118016 | FH10: 0.001176118016 | FI10: 0.001176118016 | FJ10: 0.001176118016 | FK10: 0.001176118016 | FL10: 0.001176118016 | FM10: 0.001176118016 | FN10: 0.001176118016 | FO10: 0.001176118016 | FP10: 0.001176118016 | FQ10: 0.001176118016 | FR10: 0.001176118016 | FS10: 0.001176118016 | FT10: 0.001176118016 | FU10: 0.001176118016 | FV10: 0.001176118016 | FW10: 0.001176118016 | FX10: 0.001176118016 | FY10: 0.001176118016 | FZ10: 0.001176118016 | GA10: 0.001176118016 | GB10: 0.001176118016 | GC10: 0.001176118016 | GD10: 0.001176118016 | GE10: 0.001176118016 | GF10: 0.001176118016 | GG10: 0.001176118016 | GH10: 0.001176118016 | GI10: 0.001176118016 | GJ10: 0.001176118016 | GK10: 0.001176118016 | GL10: 0.001176118016 | GM10: 0.001176118016 | GN10: 0.001176118016 | GO10: 0.001176118016 | GP10: 0.001176118016 | GQ10: 0.001176118016 | GR10: 0.001176118016 | GS10: 0.001176118016 | GT10: 0.001176118016 | GU10: 0.001176118016 | GV10: 0.001176118016 | GW10: 0.001176118016 | GX10: 0.001176118016 | GY10: 0.001176118016 | GZ10: 0.001176118016 | HA10: 0.001176118016 | HB10: 0.001176118016 | HC10: 0.001176118016 | HD10: 0.001176118016 | HE10: 0.001176118016 | HF10: 0.001176118016 | HG10: 0.001176118016 | HH10: 0.001176118016 | HI10: 0.001176118016 | HJ10: 0.001176118016 | HK10: 0.001176118016 | HL10: 0.001176118016 | HM10: 0.001176118016 | HN10: 0.001176118016 | HO10: 0.001176118016 | HP10: 0.001176118016 | HQ10: 0.001176118016 | HR10: 0.001176118016 | HS10: 0.001176118016 | HT10: 0.001176118016 | HU10: 0.001176118016 | HV10: 0.001176118016 | HW10: 0.001176118016 | HX10: 0.001176118016 | HY10: 0.001176118016 | HZ10: 0.001176118016 | IA10: 0.001176118016 | IB10: 0.001176118016 | IC10: 0.001176118016 | ID10: 0.001176118016 | IE10: 0.001176118016 | IF10: 0.001176118016 | IG10: 0.001176118016 | IH10: 0.001176118016 | II10: 0.001176118016 | IJ10: 0.001176118016 | IK10: 0.001176118016 | IL10: 0.001176118016 | IM10: 0.001176118016 | IN10: 0.001176118016 | IO10: 0.001176118016 | IP10: 0.001176118016 | IQ10: 0.001176118016 | IR10: 0.001176118016 | IS10: 0.001176118016 | IT10: 0.001176118016 | IU10: 0.001176118016 | IV10: 0.001176118016 | IW10: 0 | IX10: 0.001176118016 | IY10: 0.001176118016 | IZ10: 0.001176118016 | JA10: 0.01122410316 | JB10: 0.01122410316 | JC10: 0.01122410316 | JD10: 0.01122410316 | JE10: 0.01122410316 | JF10: 0.01122410316 | JG10: 0.01122410316 | JH10: 0.01122410316 | JI10: 0.01122410316 | JJ10: 0.01122410316 | JK10: 0.01122410316 | JL10: 0.01122410316 | JM10: 0.01122410316 | JN10: 0.01122410316 | JO10: 0.01122410316 | JP10: 0.01122410316 | JQ10: 0.01122410316 | JR10: 0.01122410316 | JS10: 0.01122410316 | JT10: 0.01122410316 | JU10: 0.01122410316 | JV10: 0.01122410316 | JW10: 0.01122410316 | JX10: 0.01122410316 | JY10: 0.01122410316 | JZ10: 0.01122410316 | KA10: 0.01122410316 | KB10: 0.01122410316 | KC10: 0.01122410316 | KD10: 0.01122410316 | KE10: 0.01122410316 | KF10: 0.01122410316 | KG10: 0.01122410316 | KH10: 0.01122410316 | KI10: 0.01122410316 | KJ10: 0.01122410316 | KK10: 0.01122410316 | KL10: 0.01122410316 | KM10: 0.01122410316 | KN10: 0.01122410316 | KO10: 0.01122410316 | KP10: 0.01122410316 | KQ10: 0.01122410316 | KR10: 0.01122410316 | KS10: 0.01122410316 | KT10: 0.01122410316 | KU10: 0.01122410316 | KV10: 0.01122410316 | KW10: 0.01122410316 | KX10: 0.01122410316 | KY10: 0.01122410316 | KZ10: 0.01122410316 | LA10: 0.01122410316 | LB10: 0.01122410316 | LC10: 0.01122410316 | LD10: 0.01122410316 | LE10: 0.01122410316 | LF10: 0.01122410316 | LG10: 0.01122410316 | LH10: 0.01122410316 | LI10: 0.01122410316 | LJ10: 0.01122410316 | LK10: 0.01122410316 | LL10: 0.01122410316 | LM10: 0.01122410316 | LN10: 0.01122410316 | LO10: 0.01122410316 | LP10: 0.01122410316 | LQ10: 0.01122410316 | LR10: 0.01122410316 | LS10: 0.01122410316 | LT10: 0.01122410316 | LU10: 0.01122410316 | LV10: 0.01122410316 | LW10: 0.01122410316 | LX10: 0.01122410316 | LY10: 0.01122410316 | LZ10: 0.01122410316 | MA10: 0.01122410316 | MB10: 0.01122410316 | MC10: 0.01122410316 | MD10: 0.01122410316 | ME10: 0.01122410316 | MF10: 0.01122410316 | MG10: 0.01122410316 | MH10: 0.01122410316 | MI10: 0.01122410316 | MJ10: 0.01122410316 | MK10: 0.01122410316 | ML10: 0.01122410316 | MM10: 0.01122410316 | MN10: 0.01122410316 | MO10: 0.01122410316 | MP10: 0.01122410316 | MQ10: 0.01122410316 | MR10: 0.01122410316 | MS10: 0.01122410316 | MT10: 0.01122410316 | MU10: 0.01122410316 | MV10: 0.01122410316 | MW10: 0.01122410316 | MX10: 0.01122410316 | MY10: 0.01122410316 | MZ10: 0.01122410316 | NA10: 0.01122410316 | NB10: 0.01122410316 | NC10: 0.01122410316 | ND10: 0.01122410316 | NE10: 0.01122410316 | NF10: 0.01122410316 | NG10: 0.01122410316 | NH10: 0.01122410316 | NI10: 0.01122410316 | NJ10: 0.01122410316 | NK10: 0.01122410316 | NL10: 0.01122410316 | NM10: 0.01122410316 | NN10: 0.01122410316 | NO10: 0.01122410316 | NP10: 0.01122410316 | NQ10: 0.01122410316 | NR10: 0.01122410316 | NS10: 0.01122410316 | NT10: 0.01122410316 | NU10: 0.01122410316 | NV10: 0.01122410316 | NW10: 0.01122410316 | NX10: 0.01122410316 | NY10: 0.01122410316 | NZ10: 0.01122410316 | OA10: 0.01122410316 | OB10: 0.01122410316 | OC10: 0.01122410316 | OD10: 0.01122410316 | OE10: 0.01122410316 | OF10: 0.01122410316 | OG10: 0.01122410316 | OH10: 0.01122410316 | OI10: 0.01122410316 | OJ10: 0.01122410316 | OK10: 0.01122410316 | OL10: 0.01122410316 | OM10: 0.01122410316 | ON10: 0.01122410316 | OO10: 0.01122410316 | OP10: 0.01122410316 | OQ10: 0.01122410316 | OR10: 0.01122410316 | OS10: 0.01122410316 | OT10: 0.01122410316 | OU10: 0.01122410316 | OV10: 0.01122410316 | OW10: 0.01122410316 | OX10: 0.01122410316 | OY10: 0.01122410316 | OZ10: 0.01122410316 | PA10: 0.01122410316 | PB10: 0.01122410316 | PC10: 0.01122410316 | PD10: 0.01122410316 | PE10: 0.01122410316 | PF10: 0.01122410316 | PG10: 0.01122410316 | PH10: 0.01122410316 | PI10: 0.01122410316 | PJ10: 0.01122410316 | PK10: 0.01122410316 | PL10: 0.01122410316 | PM10: 0.01122410316 | PN10: 0.01122410316 | PO10: 0.01122410316 | PP10: 0.01122410316 | PQ10: 0.01122410316 | PR10: 0.01122410316 | PS10: 0.01122410316 | PT10: 0.01122410316 | PU10: 0.01122410316 | PV10: 0.01122410316 | PW10: 0.01122410316 | PX10: 0.01122410316 | PY10: 0.01122410316 | PZ10: 0.01122410316 | QA10: 0.01122410316 | QB10: 0.01122410316 | QC10: 0.01122410316 | QD10: 0.01122410316 | QE10: 0.01122410316 | QF10: 0.01122410316 | QG10: 0.01122410316 | QH10: 0.01122410316 | QI10: 0.01122410316 | QJ10: 0.01122410316 | QK10: 0.01122410316 | QL10: 0.01122410316 | QM10: 0.01122410316 | QN10: 0.01122410316 | QO10: 0.01122410316 | QP10: 0.01122410316 | QQ10: 0.01122410316 | QR10: 0.01122410316 | QS10: 0.01122410316 | QT10: 0.01122410316 | QU10: 0.01122410316 | QV10: 0.01122410316 | QW10: 0.01122410316 | QX10: 0.01122410316 | QY10: 0.01122410316 | QZ10: 0.01122410316 | RA10: 0.01122410316 | RB10: 0.01122410316 | RC10: 0.01122410316 | RD10: 0.01122410316 | RE10: 0.01122410316 | RF10: 0.01122410316 | RG10: 0.01122410316 | RH10: 0.01122410316 | RI10: 0.01122410316 | RJ10: 0.01122410316 | RK10: 0.01122410316 | RL10: 0.01122410316 | RM10: 0.01122410316 | RN10: 0.01122410316 | RO10: 0.01122410316 | RP10: 0.01122410316 | RQ10: 0.01122410316 | RR10: 0.01122410316 | RS10: 0.01122410316 | RT10: 0.01122410316 | RU10: 0.01122410316 | RV10: 0.01122410316 | RW10: 0.01122410316 | RX10: 0.01122410316 | RY10: 0.01122410316 | RZ10: 0.01122410316 | SA10: 0.01122410316 | SB10: 0.01122410316 | SC10: 0.01122410316 | SD10: 0.01122410316 | SE10: 0.01122410316 | SF10: 0.01122410316 | SG10: 0.01122410316 | SH10: 0.01122410316 | SI10: 0.01122410316 | SJ10: 0.01122410316 | SK10: 0.01122410316 | SL10: 0.01122410316 | SM10: 0.01122410316 | SN10: 0.01122410316 | SO10: 0.01122410316 | SP10: 0.01122410316 | SQ10: 0.01122410316 | SR10: 0.01122410316
B11: Pay/Rec | C11: REC | E11: 0.25 | F11: 0.03670443882 | G11: -0.03732080627 | H11: 0.005527861997 | I11: -0.007592548669 | J11: -0.009001551031 | K11: 0.006959414475 | L11: -0.03281305439 | M11: 0.03184220387 | N11: -0.01803213207 | O11: 0.01624109193 | P11: -0.04479522498 | Q11: 0.04487742027 | R11: -0.005600199734 | S11: 0.003511182639 | T11: 0.004265239098 | U11: -0.006346179968 | V11: -0.01081382216 | W11: 0.008807236192 | X11: -0.01875191248 | Y11: 0.01698891775 | Z11: -0.009068063495 | AA11: 0.007027101267 | AB11: -0.002867583892 | AC11: 0.0007594955336 | AD11: -0.008867562123 | AE11: 0.006823090003 | AF11: -0.01352959651 | AG11: 0.01159016523 | AH11: 0.09441314363 | AI11: -0.08751136442 | AJ11: -0.009049351658 | AK11: 0.007008058055 | AL11: 0.02209800181 | AM11: -0.02363871789 | AN11: 0.0133258711 | AO11: -0.01521518976 | AP11: -0.06428468187 | AQ11: 0.06686246352 | AR11: -0.02068387939 | AS11: 0.01900210109 | AT11: 0.005418331248 | AU11: -0.007484563131 | AV11: -0.05596942916 | AW11: 0.05736068537 | AX11: 0.007926421726 | AY11: -0.009950857176 | AZ11: -0.007317505369 | BA11: 0.005248934228 | BB11: 0.03096001193 | BC11: -0.03199022173 | BD11: -0.04450427033 | BE11: 0.04455665276 | BF11: 0.05262136156 | BG11: -0.05176098758 | BH11: 0.02056771642 | BI11: -0.02218059813 | BJ11: 0.02333792429 | BK11: -0.02481668657 | BL11: 0.00321322855 | BM11: -0.005305099807 | BN11: -0.0144693953 | BO11: 0.01255710438 | BP11: -0.02690829621 | BQ11: 0.0255476284 | BR11: 0.02434254875 | BS11: -0.02576883792 | BT11: 0.01992677355 | BU11: -0.02156846548 | BV11: 0.04187412692 | BW11: -0.0420634415 | BX11: -0.01886579881 | BY11: 0.01710735139 | BZ11: -0.01026970749 | CA11: 0.008251671777 | CB11: 0.03364466548 | CC11: -0.03448948657 | CD11: -0.03594875013 | CE11: 0.03521921769 | CF11: -0.005999738173 | CG11: 0.003914893 | CH11: 0.0165870005 | CI11: -0.01836521152 | CJ11: -0.009284108938 | CK11: 0.007247029603 | CL11: 0.0009767503622 | CM11: -0.003083928741 | CN11: 0.04071784893 | CO11: -0.04100712658 | CP11: -0.002043853821 | CQ11: -6.675880284e-05 | CR11: 0.02622218044 | CS11: -0.02754484494 | CT11: -0.03526681914 | CU11: 0.03448276212 | CV11: -0.01144476944 | CW11: 0.009452296513 | CX11: 0.0140406925 | CY11: -0.01590754569 | CZ11: 0.02978335233 | DA11: -0.03089034793 | DB11: 0.01177297642 | DC11: -0.01370742653 | DD11: 0.04287317993 | DE11: -0.04297407403 | DF11: -0.01865586356 | DG11: 0.0168890571 | DH11: 0.04976731747 | DI11: -0.04920673152 | DJ11: 0.02278351869 | DK11: -0.0242903666 | DL11: 0.04563549411 | DM11: -0.04548207088 | DN11: -0.07699100056 | DO11: 0.08174539439 | DP11: 0.04190922852 | DQ11: -0.04209546862 | DR11: -0.05938965417 | DS11: 0.06124663534 | DT11: -0.02552138707 | DU11: 0.02408125445 | DV11: 0.01680363988 | DW11: -0.01857369046 | DX11: 0.03005215514 | DY11: -0.03114185027 | DZ11: -0.02938138005 | EA11: 0.02817378423 | EB11: 0.005744312742 | EC11: -0.007805870424 | ED11: -0.008074368411 | EE11: 0.006016893483 | EF11: -0.02883977603 | EG11: 0.02759740653 | EH11: 0.009794523584 | EI11: -0.01177915239 | EJ11: 0.02659862287 | EK11: -0.02789968338 | EL11: 0.0258089616 | EM11: -0.02715501437 | EN11: 0.003024963612 | EO11: -0.005118539738 | EP11: -0.01651126559 | EQ11: 0.01466489913 | ER11: 0.0328100161 | ES11: -0.03371398766 | ET11: -0.02696725404 | EU11: 0.02561006558 | EV11: -0.02708270944 | EW11: 0.02573235847 | EX11: -0.0002738116812 | EY11: -0.001837200794 | EZ11: -0.06330088595 | FA11: 0.06572862905 | FB11: 0.01343369177 | FC11: -0.01531968997 | FD11: 0.008966650621 | FE11: -0.01096983061 | FF11: -0.05372519826 | FG11: 0.05482759908 | FH11: 0.05024774528 | FI11: -0.04963775077 | FJ11: 0.0205377107 | FK11: -0.02215195983 | FL11: -0.009913789765 | FM11: 0.007888625162 | FN11: 0.00491897651 | FO11: -0.006991927862 | FP11: -0.01951175578 | FQ11: 0.01777966923 | FR11: -0.006985467677 | FS11: 0.004912431802 | FT11: -0.0007299401477 | FU11: -0.001381623626 | FV11: -0.04735944786 | FW11: 0.0477136721 | FX11: -0.03392591368 | FY11: 0.03303796098 | FZ11: -0.01686661113 | GA11: 0.01503269454 | GB11: 0.03173389174 | GC11: -0.03271211258 | GD11: -0.0034944273 | GE11: 0.001389258457 | GF11: 0.01985074511 | GG11: -0.02149579892 | GH11: 0.02497803934 | GI11: -0.02637008694 | GJ11: -0.009864660199 | GK11: 0.007838533931 | GL11: -0.01968059333 | GM11: 0.01795555647 | GN11: 0.01894648797 | GO11: -0.02063062148 | GP11: 0.04802884774 | GQ11: -0.04764346378 | GR11: -0.001660131153 | GS11: -0.000451149546 | GT11: -0.03363239608 | GU11: 0.03272228642 | GV11: 0.004676415666 | GW11: -0.006752438332 | GX11: 0.01575902621 | GY11: -0.01756753317 | GZ11: 0.04110451878 | HA11: -0.04136065168 | HB11: -0.06928379857 | HC11: 0.07266467531 | HD11: -0.02256260701 | HE11: 0.02096814935 | HF11: -0.01627973692 | HG11: 0.01442541479 | HH11: 0.03364714901 | HI11: -0.03449179207 | HJ11: -0.03484337852 | HK11: 0.03402603796 | HL11: -0.00640326864 | HM11: 0.004322996731 | HN11: -0.04149389663 | HO11: 0.04125033715 | HP11: 0.002790016838 | HQ11: -0.004885613427 | HR11: -0.04376825338 | HS11: 0.0437461739 | HT11: 0.01821453688 | HU11: -0.01992907799 | HV11: -0.003955955742 | HW11: 0.00185348927 | HX11: -0.02023159868 | HY11: 0.01853002951 | HZ11: 0.04518105008 | IA11: -0.04507045598 | IB11: 0.02946236262 | IC11: -0.0305898303 | ID11: -0.001388497573 | IE11: -0.000723061255 | IF11: -0.004505429871 | IG11: 0.002406793179 | IH11: 0.02942562092 | II11: -0.03055541892 | IJ11: 0.03266172473 | IK11: -0.03357606286 | IL11: -0.008135863355 | IM11: 0.006079346185 | IN11: 0.01281697382 | IO11: -0.01472163734 | IP11: 0.01458146065 | IQ11: -0.01643061246 | IR11: 0.03592638551 | IS11: -0.03660256951 | IT11: 0.008415019717 | IU11: -0.01042975677 | IV11: 0.01124369344 | IW11: -0.01184562771 | IX11: -0.0006019342649 | IY11: 0 | IZ11: 0 | JA11: 0.020553661 | JB11: 0.006538116614 | JC11: 0.01204249121 | JD11: 0.009548685783 | JE11: 0.009376864214 | JF11: 0.0124333034 | JG11: 0.006920092698 | JH11: 0.01922627642 | JI11: 0.008350439685 | JJ11: 0.01496719072 | JK11: 0.005954204673 | JL11: 0.02278487558 | JM11: 0.009797329558 | JN11: 0.01149194006 | JO11: 0.01169779661 | JP11: 0.009703442276 | JQ11: 0.009160649858 | JR11: 0.01293775661 | JS11: 0.008273924337 | JT11: 0.01517134631 | JU11: 0.009368834374 | JV11: 0.01245178182 | JW11: 0.01014949552 | JX11: 0.01074073263 | JY11: 0.009393062334 | JZ11: 0.01239608697 | KA11: 0.008846453699 | KB11: 0.01369749306 | KC11: 0.03630807135 | KD11: 0.003551159497 | KE11: 0.009371092661 | KF11: 0.01244658304 | KG11: 0.01656612041 | KH11: 0.007773783997 | KI11: 0.01417133877 | KJ11: 0.008657197765 | KK11: 0.004683940957 | KL11: 0.02878676722 | KM11: 0.008072214514 | KN11: 0.01572094306 | KO11: 0.01201258944 | KP11: 0.009561990411 | KQ11: 0.005184966863 | KR11: 0.02619279266 | KS11: 0.01269729527 | KT11: 0.009262942322 | KU11: 0.009582611693 | KV11: 0.01196634425 | KW11: 0.01898543903 | KX11: 0.006992382696 | KY11: 0.005975840106 | KZ11: 0.02269730642 | LA11: 0.02489896269 | LB11: 0.005461022938 | LC11: 0.01614835426 | LD11: 0.007919551022 | LE11: 0.01690461783 | LF11: 0.007658116894 | LG11: 0.01141059893 | LH11: 0.009834733693 | LI11: 0.008740399663 | LJ11: 0.01396146634 | LK11: 0.007457250641 | LL11: 0.01750786453 | LM11: 0.01717887916 | LN11: 0.0075659686 | LO11: 0.01597337758 | LP11: 0.00798161239 | LQ11: 0.02196497993 | LR11: 0.006160756862 | LS11: 0.008261886282 | LT11: 0.01520367856 | LU11: 0.009225007203 | LV11: 0.01278608816 | LW11: 0.01971834638 | LX11: 0.006775291297 | LY11: 0.006651909978 | LZ11: 0.02014819733 | MA11: 0.009746926233 | MB11: 0.01160215252 | MC11: 0.01506162336 | MD11: 0.00831493897 | ME11: 0.009342801925 | MF11: 0.012511822 | MG11: 0.01080004294 | MH11: 0.01012113486 | MI11: 0.02164931736 | MJ11: 0.006242708532 | MK11: 0.01025824469 | ML11: 0.01052428281 | MM11: 0.01769201646 | MN11: 0.007397246122 | MO11: 0.006709262523 | MP11: 0.0199471458 | MQ11: 0.00908661571 | MR11: 0.01311385734 | MS11: 0.0143664842 | MT11: 0.008580709191 | MU11: 0.01866421231 | MV11: 0.007090285226 | MW11: 0.0137474003 | MX11: 0.008826281911 | MY11: 0.02223772026 | MZ11: 0.006091047658 | NA11: 0.008284091439 | NB11: 0.01514408447 | NC11: 0.02411981192 | ND11: 0.005636456168 | NE11: 0.01675326574 | NF11: 0.00770956828 | NG11: 0.02299182887 | NH11: 0.005903469518 | NI11: 0.004020085655 | NJ11: 0.03284979031 | NK11: 0.02197456263 | NL11: 0.00615829048 | NM11: 0.004971988634 | NN11: 0.02725365255 | NO11: 0.007589801967 | NP11: 0.01710754611 | NQ11: 0.01512076567 | NR11: 0.008292800287 | NS11: 0.01873759517 | NT11: 0.007067768951 | NU11: 0.007227009182 | NV11: 0.01822480206 | NW11: 0.01210158202 | NX11: 0.00952246027 | NY11: 0.009489559371 | NZ11: 0.01217599625 | OA11: 0.007276771387 | OB11: 0.01806745161 | OC11: 0.01320728494 | OD11: 0.009047636568 | OE11: 0.01779478481 | OF11: 0.007364022064 | OG11: 0.01757920819 | OH11: 0.007433931952 | OI11: 0.01135920282 | OJ11: 0.009858457838 | OK11: 0.008514598003 | OL11: 0.01453689189 | OM11: 0.01949048805 | ON11: 0.006841864214 | OO11: 0.007451671092 | OP11: 0.0175249098 | OQ11: 0.007440757781 | OR11: 0.01755829562 | OS11: 0.01049608552 | OT11: 0.01028571864 | OU11: 0.004740299328 | OV11: 0.02847723171 | OW11: 0.01420077369 | OX11: 0.008645606825 | OY11: 0.01298127657 | OZ11: 0.009142284981 | PA11: 0.005330207759 | PB11: 0.025501263 | PC11: 0.02425096816 | PD11: 0.00560642279 | PE11: 0.01614016273 | PF11: 0.007922443021 | PG11: 0.009267363085 | PH11: 0.01268697685 | PI11: 0.01187626617 | PJ11: 0.009622935149 | PK11: 0.00819395881 | PL11: 0.01538722056 | PM11: 0.009623737064 | PN11: 0.01187447947 | PO11: 0.01043424728 | PP11: 0.01034655959 | PQ11: 0.00576719107 | PR11: 0.02355916908 | PS11: 0.006823601528 | PT11: 0.01955271675 | PU11: 0.008475938404 | PV11: 0.01463729962 | PW11: 0.01919670733 | PX11: 0.006928917437 | PY11: 0.01006755125 | PZ11: 0.01091265718 | QA11: 0.01595262191 | QB11: 0.007989014099 | QC11: 0.01735236736 | QD11: 0.007508392226 | QE11: 0.009273225848 | QF11: 0.012673302 | QG11: 0.008176302373 | QH11: 0.01543523758 | QI11: 0.01570576074 | QJ11: 0.008077704231 | QK11: 0.02364521167 | QL11: 0.005746876217 | QM11: 0.01030932101 | QN11: 0.01047199792 | QO11: 0.006848909412 | QP11: 0.01946653795 | QQ11: 0.01181004734 | QR11: 0.009652710547 | QS11: 0.01483558733 | QT11: 0.008400227558 | QU11: 0.02175487779 | QV11: 0.006215149784 | QW11: 0.004408953378 | QX11: 0.0303707644 | QY11: 0.007881081939 | QZ11: 0.01625767198 | RA11: 0.008539887728 | RB11: 0.01447151294 | RC11: 0.01971902438 | RD11: 0.006775094427 | RE11: 0.006745144087 | RF11: 0.01982246063 | RG11: 0.009696296369 | RH11: 0.01171356437 | RI11: 0.006204797164 | RJ11: 0.02179468604 | RK11: 0.01129506262 | RL11: 0.009888162767 | RM11: 0.006030954735 | RN11: 0.02247604661 | RO11: 0.01550593893 | RP11: 0.008150390361 | RQ11: 0.01000766246 | RR11: 0.01103939166 | RS11: 0.008118961455 | RT11: 0.01559206806 | RU11: 0.02286776617 | RV11: 0.005933817214 | RW11: 0.01857658248 | RX11: 0.007117290959 | RY11: 0.01034563879 | RZ11: 0.01043517702 | SA11: 0.009936849768 | SB11: 0.011190443 | SC11: 0.01856655204 | SD11: 0.007120390359 | SE11: 0.01945000468 | SF11: 0.006853778191 | SG11: 0.00948204086 | SH11: 0.01219304576 | SI11: 0.0140324104 | SJ11: 0.008712164697 | SK11: 0.01451411328 | SL11: 0.008523398656 | SM11: 0.02034125334 | SN11: 0.006597419421 | SO11: 0.01283068196 | SP11: 0.01230873675 | SQ11: 0.01045156262 | SR11: 0
B12: Rate | C12: 0.015 | E12: 0.5 | F12: 0.03103732273 | G12: -0.03569216996 | H12: 0.01443765499 | I12: -0.02008267387 | J12: -0.03484616154 | K12: 0.0300413928 | L12: -0.02282600583 | M12: 0.01734255434 | N12: -0.008377086165 | O12: 0.002435506912 | P12: -0.008656784502 | Q12: 0.002732644344 | R12: 0.03599270535 | S12: -0.04038936901 | T12: -0.03653642389 | U12: 0.03182073758 | V12: 0.02365184436 | W12: -0.02889808306 | X12: -0.03462957236 | Y12: 0.02983699735 | Z12: -0.03216184112 | AA12: 0.02716600403 | AB12: 0.03860709417 | AC12: -0.04277882031 | AD12: 0.006993099946 | AE12: -0.01287308742 | AF12: -0.004515523057 | AG12: -0.001461858561 | AH12: 0.07646803464 | AI12: -0.07553344573 | AJ12: -0.03847573511 | AK12: 0.0339577522 | AL12: 0.02157061712 | AM12: -0.02686145171 | AN12: 0.01609815094 | AO12: -0.02166550064 | AP12: -0.07600669614 | AQ12: 0.07685106076 | AR12: 0.01449696642 | AS12: -0.02017817476 | AT12: -0.0165729401 | AU12: 0.01078917715 | AV12: -0.05348829525 | AW12: 0.0507364854 | AX12: -0.03355226335 | AY12: 0.028606536 | AZ12: -0.03530222183 | BA12: 0.03052673209 | BB12: 0.04828443921 | BC12: -0.05140754784 | BD12: -0.05979817201 | BE12: 0.05783220517 | BF12: 0.06701749977 | BG12: -0.06772514559 | BH12: -0.007545103777 | BI12: 0.001578012179 | BJ12: 0.03015129568 | BK12: -0.03490520546 | BL12: 0.002558834516 | BM12: -0.008504821276 | BN12: 0.03537673332 | BO12: -0.03984999555 | BP12: -0.03567217117 | BQ12: 0.03098379046 | BR12: 0.0373561807 | BS12: -0.04154618038 | BT12: 0.02146115491 | BU12: -0.0267621028 | BV12: 0.05334011089 | BW12: -0.05585771429 | BX12: -0.02307862822 | BY12: 0.01758181768 | BZ12: -0.004706131245 | CA12: -0.001270851351 | CB12: 0.06122948511 | CC12: -0.0628143863 | CD12: 0.03464508976 | CE12: -0.03924203884 | CF12: -0.01434515011 | CG12: 0.008511729699 | CH12: 0.02503099135 | CI12: -0.03013661657 | CJ12: -0.01632026737 | CK12: 0.01054618815 | CL12: -0.0006930234491 | CM12: -0.005282381748 | CN12: 0.08577872552 | CO12: -0.08361070482 | CP12: -0.03397314364 | CQ12: 0.02908471175 | CR12: 0.04816995945 | CS12: -0.05132366915 | CT12: -0.01279751067 | CU12: 0.006952404237 | CV12: -0.08397450057 | CW12: 0.08597529613 | CX12: -0.01492987685 | CY12: 0.009091186797 | CZ12: 0.06608322085 | DA12: -0.06703737854 | DB12: -0.006235963999 | DC12: 0.0002624244175 | DD12: 0.01803069395 | DE12: -0.02346381562 | DF12: -0.01121576079 | DG12: 0.005321781805 | DH12: 0.02154330909 | DI12: -0.02678208114 | DJ12: -0.007535885141 | DK12: 0.001567872586 | DL12: -0.03208191469 | DM12: 0.02694078354 | DN12: -0.04486476586 | DO12: 0.04120602932 | DP12: 0.05481136928 | DQ12: -0.0571561267 | DR12: -0.07357659991 | DS12: 0.07393398087 | DT12: 0.009642582898 | DU12: -0.01547771949 | DV12: 0.02011401343 | DW12: -0.02549063144 | DX12: -0.004091866176 | DY12: -0.001891263212 | DZ12: -0.04166986583 | EA12: 0.03750453766 | EB12: 0.01213065261 | EC12: -0.01785686884 | ED12: -0.02057674441 | EE12: 0.01495212342 | EF12: -0.03689645471 | EG12: 0.03231188805 | EH12: 0.02088326844 | EI12: -0.02623418643 | EJ12: 0.04264361782 | EK12: -0.0463501769 | EL12: -0.02365636157 | EM12: 0.01810585639 | EN12: -0.01986640088 | EO12: 0.01419716488 | EP12: -0.09531522228 | EQ12: 0.09988712104 | ER12: 0.02189815806 | ES12: -0.02715011597 | ET12: 0.0249823883 | EU12: -0.03019111153 | EV12: -0.05515226601 | EW12: 0.05246659396 | EX12: -0.02441130738 | EY12: 0.01894384672 | EZ12: -0.0008804043517 | FA12: -0.005107915245 | FB12: 0.06214789975 | FC12: -0.06371174089 | FD12: 0.05383204548 | FE12: -0.05643419613 | FF12: 0.003300412829 | FG12: -0.009267824166 | FH12: 0.004583381377 | FI12: -0.01047062238 | FJ12: 0.03443048731 | FK12: -0.0388717327 | FL12: 0.007179209566 | FM12: -0.01305617395 | FN12: 0.02549291179 | FO12: -0.03059734133 | FP12: -0.0521960598 | FQ12: 0.04910837517 | FR12: -0.005630267648 | FS12: -0.0003422969147 | FT12: 0.01981148346 | FU12: -0.02523584086 | FV12: -0.05196306671 | FW12: 0.04897958465 | FX12: -0.02753818996 | FY12: 0.02230951796 | FZ12: 0.03381427219 | GA12: -0.03841450296 | GB12: 0.04213983527 | GC12: -0.04587624791 | GD12: 0.01622040141 | GE12: -0.02180925344 | GF12: 0.008533460915 | GG12: -0.01435113641 | GH12: 0.005849674695 | GI12: -0.01172719346 | GJ12: 0.0659945712 | GK12: -0.06716829701 | GL12: 0.01284970979 | GM12: -0.0185855387 | GN12: 0.07064633453 | GO12: -0.07101147586 | GP12: 0.03695179006 | GQ12: -0.04110317822 | GR12: 0.004675190103 | GS12: -0.01059321607 | GT12: 0.01782895858 | GU12: -0.02340274236 | GV12: -0.01805616096 | GW12: 0.01232026232 | GX12: 0.02362231731 | GY12: -0.02881244119 | GZ12: 0.0106367647 | HA12: -0.01637061849 | HB12: -0.09791877728 | HC12: 0.1036590869 | HD12: 0.02029111457 | HE12: -0.02573451869 | HF12: -0.05290656349 | HG12: 0.04988896039 | HH12: 0.07734373966 | HI12: -0.07661083282 | HJ12: -0.01832317938 | HK12: 0.01265039143 | HL12: -0.01030534061 | HM12: 0.004386341933 | HN12: -0.05420759832 | HO12: 0.05147410752 | HP12: -0.001022880089 | HQ12: -0.004953817137 | HR12: -0.1262715182 | HS12: 0.1401562395 | HT12: 0.02026414599 | HU12: -0.02563055087 | HV12: 0.003659218397 | HW12: -0.009594261764 | HX12: -0.0229183192 | HY12: 0.01741642909 | HZ12: 0.03316638098 | IA12: -0.03763666446 | IB12: 0.03884472807 | IC12: -0.04288965779 | ID12: 0.04390875163 | IE12: -0.04759606928 | IF12: -0.04937238849 | IG12: 0.04589286808 | IH12: 0.0617088697 | II12: -0.06325170276 | IJ12: 0.06735801528 | IK12: -0.06811982808 | IL12: 0.03014540175 | IM12: -0.03498351293 | IN12: 0.04363880783 | IO12: -0.04729961744 | IP12: -0.009550496094 | IQ12: 0.003607679731 | IR12: 0.02719131268 | IS12: -0.03211625373 | IT12: 0.02038961013 | IU12: -0.02576821223 | IV12: 0.01489527753 | IW12: -0.01698374887 | IX12: -0.002088471347 | IY12: 0 | IZ12: 0 | JA12: 0.01851805491 | JB12: 0.006384373435 | JC12: 0.01405329326 | JD12: 0.007812779904 | JE12: 0.006454111151 | JF12: 0.0182501827 | JG12: 0.007538805518 | JH12: 0.01483461511 | JI12: 0.009106435489 | JJ12: 0.01082511234 | JK12: 0.009073011202 | JL12: 0.01090503249 | JM12: 0.01985088896 | JN12: 0.006011738438 | JO12: 0.006315592634 | JP12: 0.0187287676 | JQ12: 0.01653160548 | JR12: 0.006968253125 | JS12: 0.006472097077 | JT12: 0.01819520708 | JU12: 0.006680888077 | JV12: 0.01747679821 | JW12: 0.02055407309 | JX12: 0.005831310648 | JY12: 0.01205095415 | JZ12: 0.008584559118 | KA12: 0.009581399048 | KB12: 0.009975424764 | KC12: 0.03073741399 | KD12: 0.00387745798 | KE12: 0.006160620082 | KF12: 0.01930355386 | KG12: 0.01597182418 | KH12: 0.007154285878 | KI12: 0.01449991175 | KJ12: 0.007653432283 | KK12: 0.003855247075 | KL12: 0.03084043535 | KM12: 0.01406924607 | KN12: 0.007803065997 | KO12: 0.00817885426 | KP12: 0.01307197337 | KQ12: 0.005092354366 | KR12: 0.02381647821 | KS12: 0.006562367012 | KT12: 0.01786425367 | KU12: 0.006416415624 | KV12: 0.01838072292 | KW12: 0.02315695887 | KX12: 0.005227448119 | KY12: 0.004705788821 | KZ12: 0.02572499217 | LA12: 0.02819553265 | LB12: 0.00426585688 | LC12: 0.009206628412 | LD12: 0.01059447462 | LE12: 0.01827974294 | LF12: 0.006449217425 | LG12: 0.01085828339 | LH12: 0.009091154901 | LI12: 0.01968521286 | LJ12: 0.00605330208 | LK12: 0.006386012525 | LL12: 0.0185036565 | LM12: 0.02021761874 | LN12: 0.005923639207 | LO12: 0.01594238246 | LP12: 0.007163496017 | LQ12: 0.02451676736 | LR12: 0.004943203866 | LS12: 0.007514097012 | LT12: 0.01489896904 | LU12: 0.009557353048 | LV12: 0.01000063001 | LW12: 0.02663874812 | LX12: 0.004532652424 | LY12: 0.01948842494 | LZ12: 0.006100525648 | MA12: 0.008420641883 | MB12: 0.01245941533 | MC12: 0.01690255041 | MD12: 0.006857667291 | ME12: 0.008205903147 | MF12: 0.01300661737 | MG12: 0.01007728768 | MH12: 0.009485042077 | MI12: 0.03324168193 | MJ12: 0.003517728941 | MK12: 0.006526939716 | ML12: 0.01799286714 | MM12: 0.0231261676 | MN12: 0.005232976374 | MO12: 0.008593065443 | MP12: 0.01204000835 | MQ12: 0.003502459817 | MR12: 0.03329455292 | MS12: 0.008356454796 | MT12: 0.01261527012 | MU12: 0.02794424252 | MV12: 0.004302133626 | MW12: 0.009366643708 | MX12: 0.01024062502 | MY12: 0.01501970191 | MZ12: 0.007476588976 | NA12: 0.008773157026 | NB12: 0.01160142484 | NC12: 0.01596447922 | ND12: 0.007161642906 | NE12: 0.009207745072 | NF12: 0.0105917474 | NG12: 0.00668777091 | NH12: 0.01741622135 | NI12: 0.005678625162 | NJ12: 0.0212531007 | NK12: 0.02491248721 | NL12: 0.004863531935 | NM12: 0.003970867453 | NN12: 0.03005583733 | NO12: 0.01276357744 | NP12: 0.008296787312 | NQ12: 0.01558004596 | NR12: 0.007282496426 | NS12: 0.009635073287 | NT12: 0.00991900382 | NU12: 0.005914303233 | NV12: 0.02025752186 | NW12: 0.01343278591 | NX12: 0.008042864293 | NY12: 0.007762664069 | NZ12: 0.01419166825 | OA12: 0.006286505644 | OB12: 0.01886087084 | OC12: 0.01578695011 | OD12: 0.0072126502 | OE12: 0.02163976447 | OF12: 0.005572564278 | OG12: 0.007457914664 | OH12: 0.01503991812 | OI12: 0.007834825844 | OJ12: 0.01398860937 | OK12: 0.003063282243 | OL12: 0.03703637375 | OM12: 0.01605992186 | ON12: 0.007127597236 | OO12: 0.01688947779 | OP12: 0.006852845111 | OQ12: 0.00498709788 | OR12: 0.0242818202 | OS12: 0.00738517497 | OT12: 0.01526530981 | OU12: 0.01005236143 | OV12: 0.009506874095 | OW12: 0.02688577129 | OX12: 0.004482529262 | OY12: 0.0246490815 | OZ12: 0.004907652701 | PA12: 0.01105774343 | PB12: 0.009000440785 | PC12: 0.01140281954 | PD12: 0.008859374615 | PE12: 0.01943070397 | PF12: 0.006129485602 | PG12: 0.01210101148 | PH12: 0.008563989278 | PI12: 0.01702679173 | PJ12: 0.006817013198 | PK12: 0.00517579305 | PL12: 0.0233785704 | PM12: 0.009441666444 | PN12: 0.01012411732 | PO12: 0.0154986754 | PP12: 0.007306596674 | PQ12: 0.005190997421 | PR12: 0.02334393001 | PS12: 0.007091885769 | PT12: 0.01617056407 | PU12: 0.01926496248 | PV12: 0.006165449641 | PW12: 0.02150426362 | PX12: 0.005606166038 | PY12: 0.01453279309 | PZ12: 0.007639132958 | QA12: 0.01246526031 | QB12: 0.008419982108 | QC12: 0.01174341057 | QD12: 0.00871449449 | QE12: 0.02792039869 | QF12: 0.004295201459 | QG12: 0.01362618851 | QH12: 0.007966756773 | QI12: 0.02917156919 | QJ12: 0.004097230897 | QK12: 0.02010885103 | QL12: 0.005957209683 | QM12: 0.01142751305 | QN12: 0.008845128364 | QO12: 0.01496544177 | QP12: 0.007482522679 | QQ12: 0.008021972265 | QR12: 0.01348378465 | QS12: 0.01652366368 | QT12: 0.006975970431 | QU12: 0.01303097947 | QV12: 0.008200505436 | QW12: 0.002971882834 | QX12: 0.03805090781 | QY12: 0.0156276803 | QZ12: 0.007259507233 | RA12: 0.005129730862 | RB12: 0.02358852201 | RC12: 0.03097294968 | RD12: 0.003827105156 | RE12: 0.007994070836 | RF12: 0.01357257846 | RG12: 0.008878619914 | RH12: 0.01134982245 | RI12: 0.005046554965 | RJ12: 0.02401487417 | RK12: 0.01003345196 | RL12: 0.00952620128 | RM12: 0.002164592191 | RN12: 0.04786743488 | RO12: 0.01562042665 | RP12: 0.007269297884 | RQ12: 0.01115425026 | RR12: 0.008961922625 | RS12: 0.007529766478 | RT12: 0.01485448498 | RU12: 0.01909070117 | RV12: 0.006227159007 | RW12: 0.02061798876 | RX12: 0.005823085817 | RY12: 0.02198004362 | RZ12: 0.005485278642 | SA12: 0.005363417288 | SB12: 0.02251370533 | SC12: 0.02676768672 | SD12: 0.004508147244 | SE12: 0.02828712006 | SF12: 0.004245195341 | SG12: 0.01827815767 | SH12: 0.006442733271 | SI12: 0.02190743767 | SJ12: 0.005505910836 | SK12: 0.008967076657 | SL12: 0.01114038807 | SM12: 0.0174836054 | SN12: 0.006684812881 | SO12: 0.01565417235 | SP12: 0.01249319618 | SQ12: 0.009893204328 | SR12: 0
B13: Start | C13: 0 | E13: 0.75 | F13: 0.07242096797 | G13: -0.07541830488 | H13: -0.007746317639 | I13: -0.001711386779 | J13: -0.03706073839 | K13: 0.02891479834 | L13: -0.06045398483 | M13: 0.05491902547 | N13: 0.0007733734401 | O13: -0.01021226872 | P13: 0.007971180779 | Q13: -0.01731133264 | R13: 0.01197740394 | S13: -0.02108883067 | T13: -0.06052283017 | U13: 0.05487450189 | V13: 0.02038772884 | W13: -0.02913721181 | X13: -1.792561322e-05 | Y13: -0.009439564439 | Z13: -0.03584345904 | AA13: 0.02759509831 | AB13: 0.03122040971 | AC13: -0.03919591707 | AD13: 0.008085124648 | AE13: -0.01736558983 | AF13: 0.04930194969 | AG13: -0.05578501998 | AH13: 0.0752820289 | AI13: -0.07724532356 | AJ13: -0.04227063679 | AK13: 0.03458466475 | AL13: -0.02337407123 | AM13: 0.01422566927 | AN13: 0.03801825183 | AO13: -0.0454407475 | AP13: -0.04079188675 | AQ13: 0.03329795819 | AR13: 0.05963640262 | AS13: -0.0648427358 | AT13: -0.03269653203 | AU13: 0.02414371389 | AV13: -0.0594641463 | AW13: 0.05408683935 | AX13: -0.01084617047 | AY13: 0.00143823552 | AZ13: -0.02096422254 | BA13: 0.01185565845 | BB13: -0.03040699888 | BC13: 0.02150538374 | BD13: -0.04339785866 | BE13: 0.03602995579 | BF13: 0.03886242909 | BG13: -0.04590566472 | BH13: 0.001624921738 | BI13: -0.01103317164 | BJ13: -0.01900039066 | BK13: 0.009695534838 | BL13: -0.02059827961 | BM13: 0.01140554411 | BN13: 0.08267548408 | BO13: -0.08429068052 | BP13: -0.03782539584 | BQ13: 0.02979850814 | BR13: 0.06204450544 | BS13: -0.06659100095 | BT13: 0.03128014269 | BU13: -0.039234492 | BV13: 0.04470367757 | BW13: -0.05122911419 | BX13: 0.02233915046 | BY13: -0.0311021043 | BZ13: -0.03345018773 | CA13: 0.02495644798 | CB13: 0.02166457678 | CC13: -0.03016955528 | CD13: 0.06762987064 | CE13: -0.07173263026 | CF13: 0.03118559274 | CG13: -0.03932705333 | CH13: 0.00997757119 | CI13: -0.01914830602 | CJ13: -0.006146928537 | CK13: -0.003309680904 | CL13: 0.003964649281 | CM13: -0.01334035714 | CN13: 0.08443917981 | CO13: -0.08507666954 | CP13: -0.004124963161 | CQ13: -0.005337846041 | CR13: 0.05591388057 | CS13: -0.0612089566 | CT13: -0.03817806692 | CU13: 0.03013411926 | CV13: -0.08901880935 | CW13: 0.08901038973 | CX13: -0.005165345011 | CY13: -0.004296051848 | CZ13: 0.008387664025 | DA13: -0.01755448773 | DB13: -0.03054235615 | DC13: 0.02181526088 | DD13: 0.01218984792 | DE13: -0.02125123117 | DF13: -0.03842829131 | DG13: 0.03034753147 | DH13: 0.006151531164 | DI13: -0.01541625219 | DJ13: 0.004154116195 | DK13: -0.01351522944 | DL13: -0.02487260373 | DM13: 0.0158409721 | DN13: -0.01388559344 | DO13: 0.004616239683 | DP13: 0.0643803196 | DQ13: -0.06842388469 | DR13: -0.07457735033 | DS13: 0.07186546517 | DT13: -0.02929463745 | DU13: 0.02054340604 | DV13: -0.007703078849 | DW13: -0.001759097142 | DX13: -0.005741572232 | DY13: -0.003721351407 | DZ13: -0.05892587845 | EA13: 0.05326264185 | EB13: -0.001621822967 | EC13: -0.007823211538 | ED13: -0.06154623164 | EE13: 0.05601755708 | EF13: -0.08551510358 | EG13: 0.08446216259 | EH13: -0.0607944235 | EI13: 0.05484361966 | EJ13: 0.07213701376 | EK13: -0.07516930407 | EL13: -0.04476495151 | EM13: 0.03713331381 | EN13: 0.001863494144 | EO13: -0.01128482094 | EP13: -0.1015011125 | EQ13: 0.1047375445 | ER13: 0.04715982016 | ES13: -0.05357480276 | ET13: 0.01767997195 | EU13: -0.02659765326 | EV13: -0.06219595421 | EW13: 0.05706568522 | EX13: -0.01231215187 | EY13: 0.002928603104 | EZ13: 0.032124186 | FA13: -0.04033239007 | FB13: 0.09385314043 | FC13: -0.09308067955 | FD13: 0.0511936798 | FE13: -0.05711748637 | FF13: -0.0123391748 | FG13: 0.002973752645 | FH13: -0.003361978906 | FI13: -0.006090704043 | FJ13: -0.0099676488 | FK13: 0.0005100831558 | FL13: 0.01952130935 | FM13: -0.02834832004 | FN13: -0.02664888905 | FO13: 0.01766306263 | FP13: 0.0007093274244 | FQ13: -0.01017090926 | FR13: -0.009129434196 | FS13: -0.0003073429959 | FT13: 0.01013267802 | FU13: -0.01932557721 | FV13: -0.07023125255 | FW13: 0.06649433553 | FX13: -0.02760947655 | FY13: 0.01886047031 | FZ13: 0.03201516629 | GA13: -0.03998388701 | GB13: 0.06766203273 | GC13: -0.07134630119 | GD13: 0.01127901077 | GE13: -0.02044015477 | GF13: -0.002762542749 | GG13: -0.006689257243 | GH13: 0.03543273007 | GI13: -0.04307921565 | GJ13: 0.09718704124 | GK13: -0.09591230244 | GL13: 0.00806369717 | GM13: -0.01735021907 | GN13: 0.03332892765 | GO13: -0.0409764668 | GP13: 0.02648942672 | GQ13: -0.0346897644 | GR13: 0.001673509684 | GS13: -0.01108620592 | GT13: 0.009289932349 | GU13: -0.01855227992 | GV13: -0.02763134504 | GW13: 0.01878305034 | GX13: 0.01060846212 | GY13: -0.01975927717 | GZ13: 0.02589246568 | HA13: -0.03421653486 | HB13: -0.06649440802 | HC13: 0.06257684289 | HD13: 0.0004631128765 | HE13: -0.009894300191 | HF13: -0.1060344187 | HG13: 0.1100200477 | HH13: 0.1071198968 | HI13: -0.1033963505 | HJ13: -0.06051092483 | HK13: 0.05497035815 | HL13: -0.01139900485 | HM13: 0.001994331455 | HN13: -0.06626013349 | HO13: 0.06183817538 | HP13: 0.00196470087 | HQ13: -0.01137381621 | HR13: -0.1303386126 | HS13: 0.1435154571 | HT13: 0.02840653092 | HU13: -0.03658571179 | HV13: 0.004393991993 | HW13: -0.01376163298 | HX13: -0.03197610408 | HY13: 0.02345636174 | HZ13: 0.02664013424 | IA13: -0.03484581736 | IB13: 0.03337312717 | IC13: -0.04107862238 | ID13: 0.01947445236 | IE13: -0.02821454276 | IF13: -0.07715976646 | IG13: 0.07435240756 | IH13: 0.07900784526 | II13: -0.08080312252 | IJ13: 0.1174848846 | IK13: -0.1115469138 | IL13: 0.005024144348 | IM13: -0.01436040103 | IN13: 0.06406273409 | IO13: -0.06835634713 | IP13: 0.03452555948 | IQ13: -0.04233037913 | IR13: 0.03798428605 | IS13: -0.0452975949 | IT13: -0.01115095915 | IU13: 0.001716944806 | IV13: 0.01711746662 | IW13: -0.02055413795 | IX13: -0.003436671331 | IY13: 0 | IZ13: 0 | JA13: 0.02899164549 | JB13: 0.003673166333 | JC13: 0.008836794521 | JD13: 0.009584533231 | JE13: 0.005989867375 | JF13: 0.01746754473 | JG13: 0.004430673623 | JH13: 0.02435565592 | JI13: 0.01001332344 | JJ13: 0.008549182142 | JK13: 0.01191990951 | JL13: 0.007775148919 | JM13: 0.01298109508 | JN13: 0.007393940138 | JO13: 0.004426806861 | JP13: 0.02434386232 | JQ13: 0.015208858 | JR13: 0.006646720468 | JS13: 0.009806095159 | JT13: 0.008638226872 | JU13: 0.006086041968 | JV13: 0.01711797693 | JW13: 0.01807826496 | JX13: 0.005825131792 | JY13: 0.01195009145 | JZ13: 0.007769527803 | KA13: 0.0228677808 | KB13: 0.00470193423 | KC13: 0.02974949558 | KD13: 0.003591236938 | KE13: 0.005596506534 | KF13: 0.01896940326 | KG13: 0.007173039348 | KH13: 0.01357662524 | KI13: 0.01987890653 | KJ13: 0.005371004129 | KK13: 0.005705216471 | KL13: 0.01862857491 | KM13: 0.025605215 | KN13: 0.00419158581 | KO13: 0.006342508609 | KP13: 0.01620375942 | KQ13: 0.004486688913 | KR13: 0.02413522289 | KS13: 0.008476857004 | KT13: 0.01018943496 | KU13: 0.007406192238 | KV13: 0.01294884661 | KW13: 0.006536426784 | KX13: 0.01550490722 | KY13: 0.005515157945 | KZ13: 0.01935223814 | LA13: 0.02010251582 | LB13: 0.005338777609 | LC13: 0.0102388852 | LD13: 0.008455644836 | LE13: 0.007602171593 | LF13: 0.01237666381 | LG13: 0.007442298941 | LH13: 0.01282961839 | LI13: 0.03170790569 | LJ13: 0.00329449966 | LK13: 0.005930297314 | LL13: 0.01770162557 | LM13: 0.0262430836 | LN13: 0.004100420434 | LO13: 0.01809408728 | LP13: 0.005822201273 | LQ13: 0.02164977076 | LR13: 0.004984543131 | LS13: 0.01572575892 | LT13: 0.00647688589 | LU13: 0.006280040993 | LV13: 0.01641903992 | LW13: 0.01554707496 | LX13: 0.006556900443 | LY13: 0.02772255908 | LZ13: 0.003845063986 | MA13: 0.01806904249 | MB13: 0.005815175972 | MC13: 0.0124513708 | MD13: 0.007587219766 | ME13: 0.009028780003 | MF13: 0.009380239778 | MG13: 0.01085864227 | MH13: 0.008198504975 | MI13: 0.03217508097 | MJ13: 0.00326320146 | MK13: 0.009277797931 | ML13: 0.009127568714 | MM13: 0.0246191774 | MN13: 0.004388475881 | MO13: 0.005903039752 | MP13: 0.01779052368 | MQ13: 0.003111397291 | MR13: 0.03338592266 | MS13: 0.009148777832 | MT13: 0.009256450025 | MU13: 0.01203022938 | MV13: 0.007749991418 | MW13: 0.006524786372 | MX13: 0.01558698881 | MY13: 0.01303736815 | MZ13: 0.007378004548 | NA13: 0.005883782731 | NB13: 0.01784705323 | NC13: 0.01143791292 | ND13: 0.0079742183 | NE13: 0.01090882907 | NF13: 0.008179355689 | NG13: 0.007032021842 | NH13: 0.01400449358 | NI13: 0.008138955519 | NJ13: 0.01103123833 | NK13: 0.02686180407 | NL13: 0.004007243587 | NM13: 0.003711598656 | NN13: 0.02884450153 | NO13: 0.006632938385 | NP13: 0.01525009444 | NQ13: 0.008841927771 | NR13: 0.009578367723 | NS13: 0.009078132379 | NT13: 0.009328364735 | NU13: 0.004517481893 | NV13: 0.02391690592 | NW13: 0.009596118625 | NX13: 0.008827673546 | NY13: 0.004369770281 | NZ13: 0.02464663968 | OA13: 0.003245894396 | OB13: 0.03218116875 | OC13: 0.004411589401 | OD13: 0.0243356821 | OE13: 0.02891643048 | OF13: 0.003684498032 | OG13: 0.005418228927 | OH13: 0.01964450035 | OI13: 0.01030207928 | OJ13: 0.008427187964 | OK13: 0.00268323654 | OL13: 0.03755179885 | OM13: 0.02230036434 | ON13: 0.004836754485 | OO13: 0.01449161574 | OP13: 0.006873354749 | OQ13: 0.004333987697 | OR13: 0.02492427235 | OS13: 0.00831206265 | OT13: 0.01058420991 | OU13: 0.01831766109 | OV13: 0.005739463441 | OW13: 0.03466869123 | OX13: 0.002963639054 | OY13: 0.02336887038 | OZ13: 0.00462267681 | PA13: 0.008309056952 | PB13: 0.01059616932 | PC13: 0.00937363287 | PD13: 0.009035608457 | PE13: 0.008577266233 | PF13: 0.009943581978 | PG13: 0.01497935709 | PH13: 0.006716250594 | PI13: 0.006868701256 | PJ13: 0.01448713673 | PK13: 0.009996358654 | PL13: 0.008553923667 | PM13: 0.008674240594 | PN13: 0.009767852233 | PO13: 0.01249245617 | PP13: 0.007569341789 | PQ13: 0.00391771017 | PR13: 0.02742177368 | PS13: 0.006782078795 | PT13: 0.01480431121 | PU13: 0.01828878349 | PV13: 0.005765587205 | PW13: 0.02773107832 | PX13: 0.003863609158 | PY13: 0.0127961017 | PZ13: 0.007457958777 | QA13: 0.009449654959 | QB13: 0.008963192717 | QC13: 0.01919404244 | QD13: 0.005538021774 | QE13: 0.03555178917 | QF13: 0.002865571065 | QG13: 0.01194441565 | QH13: 0.007771119795 | QI13: 0.01863677823 | QJ13: 0.005691522188 | QK13: 0.0168251019 | QL13: 0.006178738656 | QM13: 0.01025175539 | QN13: 0.008449639201 | QO13: 0.01226922608 | QP13: 0.007647660061 | QQ13: 0.006780120473 | QR13: 0.01478380388 | QS13: 0.0126184839 | QT13: 0.007525791625 | QU13: 0.0166669763 | QV13: 0.006217202495 | QW13: 0.004105398496 | QX13: 0.02638409143 | QY13: 0.009931140289 | QZ13: 0.008585706152 | RA13: 0.002545632679 | RB13: 0.03895105094 | RC13: 0.03818284654 | RD13: 0.002624626173 | RE13: 0.004427475265 | RF13: 0.02436925313 | RG13: 0.008414309302 | RH13: 0.01033673603 | RI13: 0.004117500609 | RJ13: 0.02618843001 | RK13: 0.01032888736 | RL13: 0.008417148506 | RM13: 0.001941996612 | RN13: 0.0478234586 | RO13: 0.01733291268 | RP13: 0.006027200716 | RQ13: 0.0109723684 | RR13: 0.008152453819 | RS13: 0.006402849599 | RT13: 0.01602169064 | RU13: 0.01686502195 | RV13: 0.006166111262 | RW13: 0.01864848599 | RX13: 0.00568395851 | RY13: 0.01496694541 | RZ13: 0.006728118576 | SA13: 0.003595026281 | SB13: 0.02950325349 | SC13: 0.03073640579 | SD13: 0.003437674317 | SE13: 0.04092836896 | SF13: 0.002389845408 | SG13: 0.01113928586 | SH13: 0.008087471551 | SI13: 0.02677768066 | SJ13: 0.004010634045 | SK13: 0.0189537472 | SL13: 0.005592162354 | SM13: 0.01986990952 | SN13: 0.005380969891 | SO13: 0.008442312621 | SP13: 0.01244251878 | SQ13: 0.009364205311 | SR13: 0
B14: End | C14: 10 | E14: 1 | F14: 0.0552068247 | G14: -0.06325423946 | H14: 0.006635292423 | I14: -0.01910940232 | J14: -0.05411963228 | K14: 0.04444659911 | L14: -0.04613412084 | M14: 0.0357033873 | N14: 0.05756766698 | O14: -0.06610571104 | P14: 0.01176455957 | Q14: -0.02414612333 | R14: 0.01082936726 | S14: -0.02311600604 | T14: -0.06011534269 | U14: 0.05129706222 | V14: 0.002587351452 | W14: -0.01514865545 | X14: 0.01624850658 | Y14: -0.02846362962 | Z14: -0.03035236517 | AA14: 0.01848129679 | AB14: 0.03470608303 | AC14: -0.04535052746 | AD14: -0.0261832153 | AE14: 0.01392113268 | AF14: 0.03736027798 | AG14: -0.04788145248 | AH14: 0.05984422501 | AI14: -0.0667493424 | AJ14: -0.05259902353 | AK14: 0.04278394107 | AL14: -0.007782993767 | AM14: -0.004899133723 | AN14: -0.007828070077 | AO14: -0.004860182764 | AP14: -0.05442103432 | AQ14: 0.04526864168 | AR14: 0.07988459463 | AS14: -0.08464204864 | AT14: -0.007720182242 | AU14: -0.004954257324 | AV14: -0.1240895523 | AW14: 0.131209253 | AX14: -0.01993530521 | AY14: 0.007497103407 | AZ14: -0.0258185812 | BA14: 0.01366591895 | BB14: -0.05031337927 | BC14: 0.03966046855 | BD14: -0.0579947711 | BE14: 0.0491614861 | BF14: 0.06073986367 | BG14: -0.06793133845 | BH14: -0.004412495905 | BI14: -0.00826051253 | BJ14: 0.002310934973 | BK14: -0.01487877246 | BL14: 0.02382396586 | BM14: -0.03554575967 | BN14: 0.09713553322 | BO14: -0.09833171975 | BP14: -0.002515194614 | BQ14: -0.01018075979 | BR14: 0.04227525285 | BS14: -0.05196383314 | BT14: 0.02643194139 | BU14: -0.03774640413 | BV14: 0.07420195963 | BW14: -0.07939016201 | BX14: 0.009933449144 | BY14: -0.02234104905 | BZ14: -0.04631344059 | CA14: 0.03563755833 | CB14: -0.004511280054 | CC14: -0.008146469191 | CD14: 0.06076544792 | CE14: -0.0684173269 | CF14: 0.06411295077 | CG14: -0.07158319032 | CH14: -0.01680457748 | CI14: 0.004191038898 | CJ14: -0.02587400254 | CK14: 0.01366591336 | CL14: 0.04610215836 | CM14: -0.05584736637 | CN14: 0.08066238055 | CO14: -0.08430309496 | CP14: -0.03511248883 | CQ14: 0.02346356501 | CR14: 0.0677219406 | CS14: -0.07400675967 | CT14: -0.04972185499 | CU14: 0.03955577414 | CV14: -0.07727660396 | CW14: 0.07196448806 | CX14: -0.01421723964 | CY14: 0.001604061869 | CZ14: 0.007328705081 | DA14: -0.01967807354 | DB14: -0.04431675715 | DC14: 0.03336609083 | DD14: 0.02852246852 | DE14: -0.03967687565 | DF14: -0.03291486177 | DG14: 0.02118850879 | DH14: 0.04110109519 | DI14: -0.05109139326 | DJ14: -0.006626423261 | DK14: -0.006055135149 | DL14: -0.04351790818 | DM14: 0.03245368854 | DN14: -0.0232293156 | DO14: 0.01106996403 | DP14: 0.06368577205 | DQ14: -0.07042600442 | DR14: -0.06994446187 | DS14: 0.06338902134 | DT14: -0.0372863802 | DU14: 0.0258107121 | DV14: -0.03458099745 | DW14: 0.0227163011 | DX14: 0.02065577787 | DY14: -0.0324895078 | DZ14: -0.03996393246 | EA14: 0.02897606574 | EB14: 0.03082726092 | EC14: -0.0419619516 | ED14: -0.08764126884 | EE14: 0.08370806316 | EF14: -0.08469553872 | EG14: 0.08064491795 | EH14: -0.093358646 | EI14: 0.09018556293 | EJ14: 0.06291155817 | EK14: -0.06986725037 | EL14: -0.02234145631 | EM14: 0.01000209295 | EN14: 0.01468032876 | EO14: -0.02689401367 | EP14: -0.1022875875 | EQ14: 0.1032131866 | ER14: 0.07922873548 | ES14: -0.08379081822 | ET14: -0.001221705568 | EU14: -0.01141958605 | EV14: -0.08233746022 | EW14: 0.07772024547 | EX14: -0.02147519579 | EY14: 0.009091422755 | EZ14: -0.02647497938 | FA14: 0.01429784514 | FB14: 0.05393701515 | FC14: -0.06202472603 | FD14: 0.01969430229 | FE14: -0.0313842234 | FF14: -0.01555770859 | FG14: 0.003016889443 | FH14: -0.03620108495 | FI14: 0.02438326778 | FJ14: -0.01779667083 | FK14: 0.005209759585 | FL14: 0.01155684499 | FM14: -0.02385058793 | FN14: -0.06182710353 | FO14: 0.05272130229 | FP14: 0.0163674473 | FQ14: -0.02861266206 | FR14: 0.04493728287 | FS14: -0.05491460062 | FT14: -0.01412713027 | FU14: 0.001487867134 | FV14: -0.1002659969 | FW14: 0.1001304388 | FX14: 0.01603439837 | FY14: -0.02832822973 | FZ14: 0.03278912112 | GA14: -0.0436605924 | GB14: 0.05884014792 | GC14: -0.06638165485 | GD14: -0.003622428757 | GE14: -0.009042613646 | GF14: -0.004012893527 | GG14: -0.008655236245 | GH14: 0.02227915319 | GI14: -0.03390393262 | GJ14: 0.08666661237 | GK14: -0.08956538619 | GL14: -0.0008088893829 | GM14: -0.01183348991 | GN14: 0.06922085574 | GO14: -0.07531574365 | GP14: -0.01642482357 | GQ14: 0.003753395438 | GR14: -0.01367942831 | GS14: 0.001049839183 | GT14: 0.04585792523 | GU14: -0.05567506929 | GV14: 0.01556407442 | GW14: -0.02778743283 | GX14: -0.03168343113 | GY14: 0.01960080221 | GZ14: 0.04871567401 | HA14: -0.05785862235 | HB14: -0.06606081982 | HC14: 0.05899551474 | HD14: -0.03146619602 | HE14: 0.01948901893 | HF14: -0.1016900853 | HG14: 0.1020333009 | HH14: 0.07934584266 | HI14: -0.08318343935 | HJ14: -0.05929797366 | HK14: 0.0504705492 | HL14: -0.005055919354 | HM14: -0.007625401386 | HN14: -0.06748580303 | HO14: 0.06020051616 | HP14: -0.01037842222 | HQ14: -0.002288850021 | HR14: -0.1266178011 | HS14: 0.1366194598 | HT14: 0.01159537658 | HU14: -0.02381311147 | HV14: -0.0001465526168 | HW14: -0.01248520306 | HX14: -0.04921589549 | HY14: 0.03894701616 | HZ14: 0.0006909212606 | IA14: -0.01325017773 | IB14: 0.04188705645 | IC14: -0.05170020042 | ID14: -0.02883221372 | IE14: 0.01658418236 | IF14: -0.07748424291 | IG14: 0.0718015428 | IH14: 0.01299359072 | II14: -0.0249868423 | IJ14: 0.08935458233 | IK14: -0.09131135508 | IL14: -0.01775364168 | IM14: 0.00518284944 | IN14: 0.1001897332 | IO14: -0.1006276389 | IP14: 0.07123997713 | IQ14: -0.07749221823 | IR14: 0.02179284893 | IS14: -0.03337102544 | IT14: -0.04066896899 | IU14: 0.02926364622 | IV14: 0.01850463566 | IW14: -0.02318670338 | IX14: -0.004682067718 | IY14: 0 | IZ14: 0 | JA14: 0.02384405229 | JB14: 0.00404839443 | JC14: 0.01117901101 | JD14: 0.007272297704 | JE14: 0.004557547407 | JF14: 0.02103832031 | JG14: 0.005061438602 | JH14: 0.01875852527 | JI14: 0.0244596426 | JJ14: 0.003902796842 | JK14: 0.01251646892 | JL14: 0.006792050303 | JM14: 0.01227261725 | JN14: 0.006887441584 | JO14: 0.004215794466 | JP14: 0.02282458057 | JQ14: 0.01012350922 | JR14: 0.007675343917 | JS14: 0.01368565942 | JT14: 0.006407371951 | JU14: 0.006246510976 | JV14: 0.01426786012 | JW14: 0.01849847789 | JX14: 0.005114102022 | JY14: 0.006607550833 | JZ14: 0.01307879599 | KA14: 0.01919056 | KB14: 0.004946138193 | KC14: 0.02505325578 | KD14: 0.003870758362 | KE14: 0.00464905321 | KF14: 0.02060478174 | KG14: 0.008489198331 | KH14: 0.008832243614 | KI14: 0.008483949179 | KJ14: 0.008836975662 | KK14: 0.004539648463 | KL14: 0.02125266815 | KM14: 0.03027878803 | KN14: 0.003090105713 | KO14: 0.008496518467 | KP14: 0.008825551351 | KQ14: 0.001943418427 | KR14: 0.04366170773 | KS14: 0.007191127473 | KT14: 0.01140372848 | KU14: 0.006640176905 | KV14: 0.01301224894 | KW14: 0.004790451483 | KX14: 0.01979033536 | KY14: 0.004333281751 | KZ14: 0.02226772847 | LA14: 0.02528679382 | LB14: 0.003812695653 | LC14: 0.008891555888 | LD14: 0.008433764758 | LE14: 0.01005143354 | LF14: 0.007703657653 | LG14: 0.01566096265 | LH14: 0.005826238388 | LI14: 0.03477697532 | LJ14: 0.002615885071 | LK14: 0.009126832494 | LL14: 0.008214677956 | LM14: 0.02047214114 | LN14: 0.004687879043 | LO14: 0.01634099303 | LP14: 0.005657477803 | LQ14: 0.02879703929 | LR14: 0.003298599996 | LS14: 0.01203900634 | LT14: 0.006960148562 | LU14: 0.005049470886 | LV14: 0.01874136035 | LW14: 0.00887948209 | LX14: 0.008446968868 | LY14: 0.02529346492 | LZ14: 0.003789110293 | MA14: 0.02616632727 | MB14: 0.003639476994 | MC14: 0.007504020678 | MD14: 0.01054167119 | ME14: 0.006635206899 | MF14: 0.01301224748 | MG14: 0.02147000787 | MH14: 0.004455998731 | MI14: 0.03048159593 | MJ14: 0.003103086679 | MK14: 0.005860103656 | ML14: 0.01556698802 | MM14: 0.02710737242 | MN14: 0.003529489133 | MO14: 0.004827815577 | MP14: 0.01976303626 | MQ14: 0.003387101315 | MR14: 0.02821361792 | MS14: 0.007773529627 | MT14: 0.009867116168 | MU14: 0.01135981856 | MV14: 0.007216304323 | MW14: 0.005184501292 | MX14: 0.01814907453 | MY14: 0.01688609859 | MZ14: 0.005513805078 | NA14: 0.006035188303 | NB14: 0.01497376644 | NC14: 0.02016597918 | ND14: 0.004741793351 | NE14: 0.008625059252 | NF14: 0.008693011539 | NG14: 0.005239630149 | NH14: 0.01791116536 | NI14: 0.006876879038 | NJ14: 0.01233535293 | NK14: 0.02605494029 | NL14: 0.003693374721 | NM14: 0.003716071627 | NN14: 0.02597756246 | NO14: 0.005692311872 | NP14: 0.01617900731 | NQ14: 0.005901937575 | NR14: 0.01537213874 | NS14: 0.0148348567 | NT14: 0.006069725164 | NU14: 0.005492782649 | NV14: 0.0170043742 | NW14: 0.01748707389 | NX14: 0.005348858291 | NY14: 0.0029779889 | NZ14: 0.03127575857 | OA14: 0.003088063032 | OB14: 0.03047704255 | OC14: 0.002777344122 | OD14: 0.03296476853 | OE14: 0.0258530638 | OF14: 0.003719725685 | OG14: 0.006960110138 | OH14: 0.01205690523 | OI14: 0.01327675659 | OJ14: 0.006544444673 | OK14: 0.002495537644 | OL14: 0.03636172521 | OM14: 0.03010777256 | ON14: 0.003122827214 | OO14: 0.009290975934 | OP14: 0.008076534202 | OQ14: 0.003179639008 | OR14: 0.02971443335 | OS14: 0.007042354768 | OT14: 0.01181944771 | OU14: 0.00658156875 | OV14: 0.01317702388 | OW14: 0.02351294907 | OX14: 0.00411305811 | OY14: 0.01458415166 | OZ14: 0.006160471225 | PA14: 0.00763264007 | PB14: 0.01023551137 | PC14: 0.005775419393 | PD14: 0.01580680078 | PE14: 0.007403328553 | PF14: 0.0108073029 | PG14: 0.01246230729 | PH14: 0.006819272112 | PI14: 0.004123559753 | PJ14: 0.02319595159 | PK14: 0.01371667325 | PL14: 0.006394518453 | PM14: 0.02116626624 | PN14: 0.004510506278 | PO14: 0.007783098994 | PP14: 0.009836818357 | PQ14: 0.002556173921 | PR14: 0.03555789784 | PS14: 0.01362983064 | PT14: 0.006419073782 | PU14: 0.01799862951 | PV14: 0.005229736547 | PW14: 0.02479144238 | PX14: 0.003889024317 | PY14: 0.008988744645 | PZ14: 0.008343796827 | QA14: 0.008940573413 | QB14: 0.008388230959 | QC14: 0.01525815229 | QD14: 0.005955698591 | QE14: 0.03204720114 | QF14: 0.002908593652 | QG14: 0.009344012175 | QH14: 0.00803092844 | QI14: 0.02749821499 | QJ14: 0.003471675204 | QK14: 0.007542948128 | QL14: 0.01042755553 | QM14: 0.007830829264 | QN14: 0.009722602441 | QO14: 0.02140632401 | QP14: 0.004466011684 | QQ14: 0.01350719353 | QR14: 0.006466041393 | QS14: 0.006135761996 | QT14: 0.01455977149 | QU14: 0.02215148284 | QV14: 0.004340949146 | QW14: 0.003905042614 | QX14: 0.02483195432 | QY14: 0.006153691086 | QZ14: 0.01453062396 | RA14: 0.002513274015 | RB14: 0.03605406967 | RC14: 0.03013830829 | RD14: 0.00314642377 | RE14: 0.004260651817 | RF14: 0.02260906706 | RG14: 0.008813223099 | RH14: 0.008507576956 | RI14: 0.003834464549 | RJ14: 0.0251461588 | RK14: 0.008192469816 | RL14: 0.009155334267 | RM14: 0.001890009879 | RN14: 0.04507242076 | RO14: 0.01247235441 | RP14: 0.006822732408 | RQ14: 0.009429769988 | RR14: 0.007959671412 | RS14: 0.004860030334 | RT14: 0.01960430244 | RU14: 0.009629014487 | RV14: 0.007876883849 | RW14: 0.02037091881 | RX14: 0.004704098898 | RY14: 0.00637563343 | RZ14: 0.01377318698 | SA14: 0.003378285922 | SB14: 0.02817112989 | SC14: 0.01283693915 | SD14: 0.006715245903 | SE14: 0.03274809009 | SF14: 0.002847281932 | SG14: 0.007407665833 | SH14: 0.01080028608 | SI14: 0.03557335885 | SJ14: 0.002545195296 | SK14: 0.02802470148 | SL14: 0.003377947857 | SM14: 0.01513134831 | SN14: 0.005998385692 | SO14: 0.005441519603 | SP14: 0.0122529027 | SQ14: 0.008858648403 | SR14: 0
B15: Simulations | C15: 1000 | E15: 1.25 | F15: 0.04393954134 | G15: -0.05594854942 | H15: 0.01486935503 | I15: -0.02993190198 | J15: -0.06513249798 | K15: 0.05404732356 | L15: -0.02720404013 | M15: 0.01221328115 | N15: 0.04427552668 | O15: -0.05690454626 | P15: 0.03764236914 | Q15: -0.05120449679 | R15: -0.02223734925 | S15: 0.006695866061 | T15: -0.06107668485 | U15: 0.04949417627 | V15: -0.07513293435 | W15: 0.06455845261 | X15: 0.01413829229 | Y15: -0.02934154047 | Z15: -0.02990617972 | AA15: 0.01496607481 | AB15: -0.03573367468 | AC15: 0.02064303985 | AD15: -0.05873486134 | AE15: 0.04613219335 | AF15: 0.08319987794 | AG15: -0.08992676457 | AH15: 0.06324854502 | AI15: -0.07202450847 | AJ15: -0.09239175129 | AK15: 0.08664450952 | AL15: -0.02306003147 | AM15: 0.007598651138 | AN15: 0.000912359989 | AO15: -0.01646012239 | AP15: -0.0902929729 | AQ15: 0.08488955622 | AR15: 0.06926234346 | AS15: -0.07798026806 | AT15: -0.007703777067 | AU15: -0.007984780718 | AV15: -0.1223735138 | AW15: 0.1271668011 | AX15: -0.02479056918 | AY15: 0.009494067722 | AZ15: -0.05613355838 | BA15: 0.04354289422 | BB15: -0.0672899199 | BC15: 0.05577333506 | BD15: -0.09400003324 | BE15: 0.0892226165 | BF15: 0.002722482901 | BG15: -0.01808096023 | BH15: -0.03384421202 | BI15: 0.0188722654 | BJ15: 0.01183406904 | BK15: -0.02701599179 | BL15: 0.03639671376 | BM15: -0.04991975662 | BN15: 0.08152665311 | BO15: -0.0877019643 | BP15: -0.04745406028 | BQ15: 0.03392844908 | BR15: 0.008597014305 | BS15: -0.02374055858 | BT15: 0.00863206981 | BU15: -0.02386398214 | BV15: 0.06720166961 | BW15: -0.0758023474 | BX15: 0.01750646193 | BY15: -0.03248567573 | BZ15: -0.02069150246 | CA15: 0.005286034709 | CB15: -0.09200821078 | CC15: 0.08397330073 | CD15: 0.05257710319 | CE15: -0.06378592168 | CF15: 0.07379420547 | CG15: -0.08211310867 | CH15: -0.03824519042 | CI15: 0.0234862125 | CJ15: 0.01458330436 | CK15: -0.02980751463 | CL15: 0.03000367156 | CM15: -0.04395530821 | CN15: 0.08548279015 | CO15: -0.09031227545 | CP15: -0.0600663574 | CQ15: 0.04791665234 | CR15: 0.102488736 | CS15: -0.1044100604 | CT15: -0.1080747018 | CU15: 0.106309219 | CV15: -0.05728127119 | CW15: 0.04573243607 | CX15: 0.01107615973 | CY15: -0.02638341623 | CZ15: -0.02724166602 | DA15: 0.01176613977 | DB15: -0.06499624811 | DC15: 0.05351421416 | DD15: 0.001711869736 | DE15: -0.0172045171 | DF15: -0.04878336314 | DG15: 0.0353949334 | DH15: 0.001817856592 | DI15: -0.01729377117 | DJ15: -0.01883803782 | DK15: 0.003259458926 | DL15: -0.06695109603 | DM15: 0.0556875261 | DN15: 0.01281157204 | DO15: -0.02829582374 | DP15: 0.05210280949 | DQ15: -0.0629300958 | DR15: -0.07580689362 | DS15: 0.06756667074 | DT15: -0.01093845508 | DU15: -0.004719765394 | DV15: -0.05863919467 | DW15: 0.04596135379 | DX15: 0.0076047367 | DY15: -0.02295836191 | DZ15: -0.01270287948 | EA15: -0.00288887999 | EB15: -0.006550277965 | EC15: -0.009128868994 | ED15: -0.07738741914 | EE15: 0.06874323243 | EF15: -0.06248346015 | EG15: 0.05158580892 | EH15: -0.09022047763 | EI15: 0.08386260749 | EJ15: 0.04356837689 | EK15: -0.05558680545 | EL15: -0.001129364462 | EM15: -0.01454004969 | EN15: 0.02612513522 | EO15: -0.04053191399 | EP15: -0.1055989495 | EQ15: 0.1052178016 | ER15: 0.07367016693 | ES15: -0.08136991927 | ET15: -0.05049835119 | EU15: 0.03681866259 | EV15: -0.1115123633 | EW15: 0.1118326955 | EX15: -0.0317142716 | EY15: 0.01677543788 | EZ15: 0.009576429798 | FA15: -0.02500056976 | FB15: 0.03687509608 | FC15: -0.04960197387 | FD15: 0.04067320631 | FE15: -0.05330068762 | FF15: -0.024171454 | FG15: 0.008880911339 | FH15: -0.01771763933 | FI15: 0.002116029778 | FJ15: -0.01011295289 | FK15: -0.005577447301 | FL15: -0.03274391268 | FM15: 0.01766567102 | FN15: -0.06932164431 | FO15: 0.05844235268 | FP15: -0.002614972457 | FQ15: -0.01306108833 | FR15: 0.03486478261 | FS15: -0.04847791987 | FT15: -0.0374109364 | FU15: 0.02264867168 | FV15: -0.09509772335 | FW15: 0.09125183918 | FX15: 0.02163179488 | FY15: -0.0365271883 | FZ15: 0.04319739974 | GA15: -0.05574231666 | GB15: 0.02353184424 | GC15: -0.03761238699 | GD15: -0.01040206333 | GE15: -0.005286751052 | GF15: 0.008204043001 | GG15: -0.0235608785 | GH15: 0.04094157074 | GI15: -0.0537091805 | GJ15: 0.067165062 | GK15: -0.07563921242 | GL15: -0.0288478602 | GM15: 0.0136325032 | GN15: 0.0507336362 | GO15: -0.06189227103 | GP15: 0.0006161287125 | GQ15: -0.01614746218 | GR15: -0.06598483162 | GS15: 0.05428932766 | GT15: 0.03501812317 | GU15: -0.04856100166 | GV15: 0.01193026452 | GW15: -0.027210236 | GX15: -0.02364221057 | GY15: 0.008192424267 | GZ15: -0.008622043009 | HA15: -0.007074627501 | HB15: -0.07097952631 | HC15: 0.06195388212 | HD15: -0.01512763263 | HE15: -0.0004882749146 | HF15: -0.09388382325 | HG15: 0.08982703017 | HH15: 0.07957235318 | HI15: -0.08551380451 | HJ15: -0.02342885844 | HK15: 0.008249773334 | HL15: -0.0145055419 | HM15: -0.001122093273 | HN15: -0.03270498157 | HO15: 0.01824228214 | HP15: 0.01355247534 | HQ15: -0.02872749191 | HR15: -0.08516539501 | HS15: 0.08034548863 | HT15: -0.05453422011 | HU15: 0.04099579892 | HV15: -0.02071875671 | HW15: 0.005195526778 | HX15: -0.08023495702 | HY15: 0.07171644998 | HZ15: 0.009566064336 | IA15: -0.02474828376 | IB15: 0.05074843222 | IC15: -0.06211804659 | ID15: -0.04211544572 | IE15: 0.02764081776 | IF15: -0.08067565926 | IG15: 0.07292462045 | IH15: 0.01344131782 | II15: -0.02829115886 | IJ15: 0.08238413913 | IK15: -0.08772905751 | IL15: -0.06061936032 | IM15: 0.04810799695 | IN15: 0.1189754483 | IO15: -0.1168771184 | IP15: 0.08299627283 | IQ15: -0.0894789784 | IR15: 0.003619180805 | IS15: -0.01902886651 | IT15: -0.05611979415 | IU15: 0.04322354046 | IV15: 0.02063025399 | IW15: -0.02631046011 | IX15: -0.005680206123 | IY15: 0 | IZ15: 0 | JA15: 0.02036471137 | JB15: 0.004211804715 | JC15: 0.01290633939 | JD15: 0.005989461294 | JE15: 0.003731129193 | JF15: 0.02295800743 | JG15: 0.006218709844 | JH15: 0.01222488566 | JI15: 0.02045091321 | JJ15: 0.004158658626 | JK15: 0.0187490818 | JL15: 0.004486987392 | JM15: 0.006660664654 | JN15: 0.01080931393 | JO15: 0.003935348345 | JP15: 0.02178983238 | JQ15: 0.003277149457 | JR15: 0.02565478788 | JS15: 0.01271877479 | JT15: 0.006038292279 | JU15: 0.005991579988 | JV15: 0.01293115424 | JW15: 0.005531638989 | JX15: 0.01438766079 | JY15: 0.00405898756 | JZ15: 0.02092726759 | KA15: 0.03043751211 | KB15: 0.00271795659 | KC15: 0.02531871236 | KD15: 0.003411106105 | KE15: 0.002636162749 | KF15: 0.03132128159 | KG15: 0.006585193743 | KH15: 0.01104093635 | KI15: 0.009325472744 | KJ15: 0.007217370033 | KK15: 0.002705614496 | KL15: 0.03087102323 | KM15: 0.02686163834 | KN15: 0.003159757504 | KO15: 0.008157383424 | KP15: 0.008125286397 | KQ15: 0.001848247805 | KR15: 0.04171785493 | KS15: 0.006429409346 | KT15: 0.01152723257 | KU15: 0.004201460699 | KV15: 0.02026294588 | KW15: 0.003627407287 | KX15: 0.02340084036 | KY15: 0.002584390403 | KZ15: 0.0319827318 | LA15: 0.00978988566 | LB15: 0.007056345777 | LC15: 0.005676436704 | LD15: 0.01393334329 | LE15: 0.01212759337 | LF15: 0.006234857424 | LG15: 0.0184294911 | LH15: 0.004564904234 | LI15: 0.03000822235 | LJ15: 0.002794399707 | LK15: 0.00471866903 | LL15: 0.0177962225 | LM15: 0.01129708069 | LN15: 0.006523455213 | LO15: 0.01130607468 | LP15: 0.006512324557 | LQ15: 0.026332943 | LR15: 0.003249102123 | LS15: 0.01358292688 | LT15: 0.005783082362 | LU15: 0.006804989055 | LV15: 0.01044760153 | LW15: 0.00264869332 | LX15: 0.03063594478 | LY15: 0.02258080137 | LZ15: 0.003797573091 | MA15: 0.02802435234 | MB15: 0.002997965521 | MC15: 0.005345343758 | MD15: 0.01511711739 | ME15: 0.012832949 | MF15: 0.005999714336 | MG15: 0.01678926471 | MH15: 0.004946739666 | MI15: 0.03102322588 | MJ15: 0.002704965817 | MK15: 0.003988162925 | ML15: 0.02138509606 | MM15: 0.03538634445 | MN15: 0.00227764221 | MO15: 0.002180480665 | MP15: 0.03636654399 | MQ15: 0.00413792189 | MR15: 0.02082470415 | MS15: 0.0119331409 | MT15: 0.006289507693 | MU15: 0.006215484334 | MV15: 0.01211016514 | MW15: 0.003737791889 | MX15: 0.02282123059 | MY15: 0.009530598402 | MZ15: 0.007142937066 | NA15: 0.004635073069 | NB15: 0.01817247002 | NC15: 0.009557790845 | ND15: 0.007134067405 | NE15: 0.006982447108 | NF15: 0.009927654538 | NG15: 0.003643477666 | NH15: 0.02337882484 | NI15: 0.01237838574 | NJ15: 0.006125842966 | NK15: 0.02245911454 | NL15: 0.003840497784 | NM15: 0.003248912596 | NN15: 0.02642658926 | NO15: 0.007795864537 | NP15: 0.008506589598 | NQ15: 0.00406413035 | NR15: 0.02088343626 | NS15: 0.01104249768 | NT15: 0.006594470931 | NU15: 0.007605842652 | NV15: 0.008728610481 | NW15: 0.008290547057 | NX15: 0.007995975031 | NY15: 0.003183792145 | NZ15: 0.02672845299 | OA15: 0.003863116752 | OB15: 0.02232647065 | OC15: 0.002708052426 | OD15: 0.03060754485 | OE15: 0.02026948382 | OF15: 0.004232112396 | OG15: 0.008947720122 | OH15: 0.00741319146 | OI15: 0.01579417075 | OJ15: 0.005181652374 | OK15: 0.002245538213 | OL15: 0.03608652526 | OM15: 0.02799252848 | ON15: 0.0030263317 | OO15: 0.004529629769 | OP15: 0.0185377481 | OQ15: 0.002094031994 | OR15: 0.03778367088 | OS15: 0.005844600719 | OT15: 0.0133953722 | OU15: 0.01154836374 | OV15: 0.006410775241 | OW15: 0.01855222692 | OX15: 0.004584407332 | OY15: 0.01952668641 | OZ15: 0.004363004027 | PA15: 0.006484684295 | PB15: 0.01136991854 | PC15: 0.007092105005 | PD15: 0.00963429144 | PE15: 0.007886486857 | PF15: 0.008404634523 | PG15: 0.005762644996 | PH15: 0.01362377425 | PI15: 0.003532721014 | PJ15: 0.02408561499 | PK15: 0.008762345969 | PL15: 0.007567867383 | PM15: 0.01803645225 | PN15: 0.004654135869 | PO15: 0.005406457897 | PP15: 0.01490223432 | PQ15: 0.002549759096 | PR15: 0.0325033579 | PS15: 0.01464134003 | PT15: 0.005472027657 | PU15: 0.02017430433 | PV15: 0.004223368902 | PW15: 0.01512882486 | PX15: 0.005391631119 | PY15: 0.007854622684 | PZ15: 0.008439045528 | QA15: 0.01119625828 | QB15: 0.006539695655 | QC15: 0.01959553914 | QD15: 0.004339288717 | QE15: 0.02632355079 | QF15: 0.003255911528 | QG15: 0.006079455695 | QH15: 0.01258900737 | QI15: 0.02210783355 | QJ15: 0.003893287963 | QK15: 0.009249470374 | QL15: 0.007248878851 | QM15: 0.003689754162 | QN15: 0.02302009704 | QO15: 0.01807579397 | QP15: 0.004648942155 | QQ15: 0.0121522737 | QR15: 0.006218178574 | QS15: 0.006532339073 | QT15: 0.01119327733 | QU15: 0.008052989296 | QV15: 0.008229732554 | QW15: 0.003457546774 | QX15: 0.02498654808 | QY15: 0.00735267366 | QZ15: 0.00902898249 | RA15: 0.002588089956 | RB15: 0.03213780277 | RC15: 0.02950681876 | RD15: 0.002872091592 | RE15: 0.006551655912 | RF15: 0.01120799106 | RG15: 0.007416761968 | RH15: 0.008948637478 | RI15: 0.005765721073 | RJ15: 0.01377171207 | RK15: 0.01256847508 | RL15: 0.006089537839 | RM15: 0.002884697033 | RN15: 0.02970517771 | RO15: 0.00429182674 | RP15: 0.01960945216 | RQ15: 0.006802415801 | RR15: 0.01042438043 | RS15: 0.003070260379 | RT15: 0.02749127446 | RU15: 0.01154570433 | RV15: 0.006433168501 | RW15: 0.02211162968 | RX15: 0.003881734285 | RY15: 0.005071507298 | RZ15: 0.01618304078 | SA15: 0.003053114943 | SB15: 0.02780124787 | SC15: 0.01253995603 | SD15: 0.006126236572 | SE15: 0.03022822265 | SF15: 0.002793453503 | SG15: 0.003959156737 | SH15: 0.02143418826 | SI15: 0.03961624625 | SJ15: 0.00196766062 | SK15: 0.0303852743 | SL15: 0.002733139689 | SM15: 0.01001994633 | SN15: 0.006963950627 | SO15: 0.004202229292 | SP15: 0.01223425273 | SQ15: 0.008392505877 | SR15: 0
B16: Seed | C16: 12121212 | E16: 1.5 | F16: 0.0348876053 | G16: -0.05039886616 | H16: 0.01609932889 | I16: -0.03379337139 | J16: -0.09309923721 | K16: 0.08489118659 | L16: -0.04287476621 | M16: 0.02622135684 | N16: 0.05029887496 | O16: -0.06461429174 | P16: 0.05745103256 | Q16: -0.07118035442 | R16: 0.02310476877 | S16: -0.04034816379 | T16: -0.09827765057 | U16: 0.09150512724 | V16: -0.07955116894 | W16: 0.06719837935 | X16: 0.007997253418 | Y16: -0.0261854776 | Z16: -0.009961346212 | AA16: -0.008547607622 | AB16: -0.01606451108 | AC16: -0.002452364986 | AD16: 0.004929808019 | AE16: -0.02329977001 | AF16: 0.04594296491 | AG16: -0.06047396691 | AH16: 0.05322266684 | AI16: -0.06579637762 | AJ16: -0.09810532179 | AK16: 0.09150672093 | AL16: -0.03694722332 | AM16: 0.01929088765 | AN16: -0.0006534069273 | AO16: -0.01771983544 | AP16: -0.0762704093 | AQ16: 0.06536129776 | AR16: 0.04187614639 | AS16: -0.05670412123 | AT16: -0.002703219825 | AU16: -0.01578760738 | AV16: -0.0676407392 | AW16: 0.05569816599 | AX16: 0.004878943544 | AY16: -0.02324995949 | AZ16: -0.0477772858 | BA16: 0.03146598328 | BB16: -0.09768636649 | BC16: 0.08941138937 | BD16: -0.0988872816 | BE16: 0.09313860568 | BF16: -0.04706825346 | BG16: 0.02938319768 | BH16: -0.03725343408 | BI16: 0.01964992008 | BJ16: 0.007395363506 | BK16: -0.02550678539 | BL16: 0.01639935742 | BM16: -0.03404925084 | BN16: 0.1025926727 | BO16: -0.1062143157 | BP16: -0.04245217401 | BQ16: 0.02562846908 | BR16: 0.02102201896 | BS16: -0.03805474764 | BT16: 0.02585503621 | BU16: -0.04266454245 | BV16: 0.1208669664 | BW16: -0.1200649967 | BX16: 0.03468355463 | BY16: -0.05102378657 | BZ16: 0.001805646066 | CA16: -0.02028014136 | CB16: -0.09685119595 | CC16: 0.08758333783 | CD16: 0.07767197076 | CE16: -0.08714833918 | CF16: 0.08831890335 | CG16: -0.09596623301 | CH16: -0.03539582311 | CI16: 0.01762820681 | CJ16: 0.001026201013 | CK16: -0.01944407355 | CL16: 0.03431728219 | CM16: -0.05043380594 | CN16: 0.07078018056 | CO16: -0.08034078183 | CP16: -0.07354753517 | CQ16: 0.06077638013 | CR16: 0.115565733 | CS16: -0.1159332733 | CT16: -0.1093921102 | CU16: 0.1060624043 | CV16: -0.03424285208 | CW16: 0.01718466048 | CX16: -0.004621147911 | CY16: -0.01386644401 | CZ16: -0.06209432619 | DA16: 0.0463780204 | DB16: -0.05739948474 | DC16: 0.04218217022 | DD16: -0.009125783492 | DE16: -0.009389622308 | DF16: -0.1076481624 | DG16: 0.1026969977 | DH16: 0.01636360767 | DI16: -0.03386199375 | DJ16: -0.04435849227 | DK16: 0.02722604441 | DL16: -0.05002995167 | DM16: 0.03388764411 | DN16: -0.004277830209 | DO16: -0.01426655387 | DP16: 0.04842084527 | DQ16: -0.06209160835 | DR16: -0.04266721764 | DS16: 0.02656378022 | DT16: 0.02041680239 | DU16: -0.03816218417 | DV16: -0.0578038715 | DW16: 0.04230002996 | DX16: 0.003990224437 | DY16: -0.02223225109 | DZ16: -0.003482317229 | EA16: -0.01508126956 | EB16: 0.02066032192 | EC16: -0.03804813131 | ED16: -0.1172445878 | EE16: 0.1165085521 | EF16: -0.06059103953 | EG16: 0.04667964892 | EH16: -0.08326836638 | EI16: 0.07302547922 | EJ16: 0.01218738655 | EK16: -0.02971937562 | EL16: 0.05312033525 | EM16: -0.0677955151 | EN16: 0.02250522837 | EO16: -0.03979793095 | EP16: -0.1412301417 | EQ16: 0.1521805451 | ER16: 0.1213505253 | ES16: -0.1206531442 | ET16: -0.0436199997 | EU16: 0.02653083482 | EV16: -0.1049993157 | EW16: 0.1014463176 | EX16: -0.03899485888 | EY16: 0.02169553367 | EZ16: 0.04331990164 | FA16: -0.05902946403 | FB16: 0.05796539546 | FC16: -0.07031910088 | FD16: -0.02445647277 | FE16: 0.005936329422 | FF16: -0.007041644484 | FG16: -0.01148586713 | FH16: -0.07787567197 | FI16: 0.06495974195 | FJ16: 0.02035733071 | FK16: -0.03783028785 | FL16: -0.05574565312 | FM16: 0.03970343618 | FN16: -0.09250557211 | FO16: 0.08353238851 | FP16: 0.01481877147 | FQ16: -0.03277418517 | FR16: 0.02953163687 | FS16: -0.04616967527 | FT16: -0.04284418273 | FU16: 0.02564566159 | FV16: -0.09215222266 | FW16: 0.08528776552 | FX16: 0.018850012 | FY16: -0.03657479924 | FZ16: -0.03068575537 | GA16: 0.01240612387 | GB16: 0.01674722257 | GC16: -0.03399962516 | GD16: -0.01548021801 | GE16: -0.003011421173 | GF16: -0.005178160749 | GG16: -0.01330156668 | GH16: 0.03883301678 | GI16: -0.05429771573 | GJ16: 0.08869502775 | GK16: -0.09517955778 | GL16: -0.01895073627 | GM16: 0.0005456089771 | GN16: 0.0171045267 | GO16: -0.03428872616 | GP16: -0.04466651775 | GQ16: 0.02723102741 | GR16: -0.08200291198 | GS16: 0.0703566432 | GT16: 0.03742897435 | GU16: -0.05325130332 | GV16: -0.007195419876 | GW16: -0.01131516724 | GX16: -0.02672554753 | GY16: 0.008533787189 | GZ16: 0.001535891165 | HA16: -0.01979501918 | HB16: -0.05574295988 | HC16: 0.04145155344 | HD16: -0.03117019923 | HE16: 0.01325870005 | HF16: -0.1004005585 | HG16: 0.09588089269 | HH16: 0.06676445162 | HI16: -0.07705245832 | HJ16: -0.002856035949 | HK16: -0.01571700389 | HL16: -0.0002184486288 | HM16: -0.01822786197 | HN16: -0.03698403781 | HO16: 0.02000696886 | HP16: 0.04924362773 | HQ16: -0.0640212346 | HR16: -0.05164191697 | HS16: 0.0374524115 | HT16: -0.1013923616 | HU16: 0.09306656042 | HV16: -0.0357729564 | HW16: 0.01805298768 | HX16: -0.003096374708 | HY16: -0.01548256216 | HZ16: -0.00042032893 | IA16: -0.01790612744 | IB16: 0.01581307935 | IC16: -0.03319134635 | ID16: -0.01887280618 | IE16: 0.0004524057894 | IF16: -0.07852580504 | IG16: 0.0678321771 | IH16: 0.006695455512 | II16: -0.02464103797 | IJ16: 0.08296934334 | IK16: -0.09009557064 | IL16: -0.06763493188 | IM16: 0.05339337282 | IN16: 0.1288261345 | IO16: -0.1254184025 | IP16: 0.07895966836 | IQ16: -0.08810231043 | IR16: -0.0132453053 | IS16: -0.005305557976 | IT16: -0.06811761258 | IU16: 0.05411574489 | IV16: 0.02135991589 | IW16: -0.02810346406 | IX16: -0.006743548167 | IY16: 0 | IZ16: 0 | JA16: 0.0175393142 | JB16: 0.004290046902 | JC16: 0.01279855011 | JD16: 0.005399616599 | JE16: 0.002444599955 | JF16: 0.03015650044 | JG16: 0.004758330687 | JH16: 0.01535259741 | JI16: 0.02142797286 | JJ16: 0.003538912303 | JK16: 0.02323264569 | JL16: 0.003243099848 | JM16: 0.0145662023 | JN16: 0.004927966128 | JO16: 0.002291775635 | JP16: 0.03182536733 | JQ16: 0.002906379798 | JR16: 0.02569215132 | JS16: 0.01075418864 | JT16: 0.006009220487 | JU16: 0.007569731131 | JV16: 0.007724767661 | JW16: 0.006937270122 | JX16: 0.008432553499 | JY16: 0.009980193482 | JZ16: 0.006259479396 | KA16: 0.02032886502 | KB16: 0.003741203702 | KC16: 0.02216572056 | KD16: 0.003483454891 | KE16: 0.002296669885 | KF16: 0.03182576945 | KG16: 0.005166822439 | KH16: 0.01360386226 | KI16: 0.008654247263 | KJ16: 0.006775579022 | KK16: 0.003033266365 | KL16: 0.02522860851 | KM16: 0.01930270239 | KN16: 0.003936798416 | KO16: 0.008402116549 | KP16: 0.006964716192 | KQ16: 0.003398892978 | KR16: 0.02279035249 | KS16: 0.00996735907 | KT16: 0.006263896012 | KU16: 0.004447171975 | KV16: 0.0166759512 | KW16: 0.002308622204 | KX16: 0.03129706355 | KY16: 0.002274564457 | KZ16: 0.03223753584 | LA16: 0.004490753709 | LB16: 0.01615041096 | LC16: 0.00514480793 | LD16: 0.01369445535 | LE16: 0.01060231638 | LF16: 0.006067097996 | LG16: 0.01287425501 | LH16: 0.005380311437 | LI16: 0.03462303946 | LJ16: 0.002079740664 | LK16: 0.004786252267 | LL16: 0.01520299662 | LM16: 0.01404067109 | LN16: 0.005087680634 | LO16: 0.01526016532 | LP16: 0.004772198237 | LQ16: 0.03923411254 | LR16: 0.001765919794 | LS16: 0.01748782699 | LT16: 0.004253506463 | LU16: 0.009191887281 | LV16: 0.006533345209 | LW16: 0.002332677432 | LX16: 0.03083579926 | LY16: 0.0283349071 | LZ16: 0.002635765942 | MA16: 0.03102140131 | MB16: 0.002358502907 | MC16: 0.005279943432 | MD16: 0.01318432523 | ME16: 0.0089952133 | MF16: 0.006611415223 | MG16: 0.01739540705 | MH16: 0.004287994733 | MI16: 0.02659593165 | MJ16: 0.002876774691 | MK16: 0.003143492589 | ML16: 0.02407171618 | MM16: 0.03789647536 | MN16: 0.001852702492 | MO16: 0.002001775605 | MP16: 0.03549854175 | MQ16: 0.005365754662 | MR16: 0.01307240711 | MS16: 0.008173191369 | MT16: 0.007158342598 | MU16: 0.003660515473 | MV16: 0.02043864068 | MW16: 0.003899872428 | MX16: 0.01937992005 | MY16: 0.00766096088 | MZ16: 0.007632029149 | NA16: 0.002044094385 | NB16: 0.03464936332 | NC16: 0.01286523443 | ND16: 0.005394431938 | NE16: 0.004661704131 | NF16: 0.01560610586 | NG16: 0.004311781484 | NH16: 0.01728699835 | NI16: 0.008213682892 | NJ16: 0.007117551022 | NK16: 0.0209540978 | NL16: 0.003660649155 | NM16: 0.004772021487 | NN16: 0.01543899962 | NO16: 0.01388795943 | NP16: 0.005080073944 | NQ16: 0.003878576946 | NR16: 0.01940965909 | NS16: 0.009743112442 | NT16: 0.006354868707 | NU16: 0.00830832028 | NV16: 0.007035250686 | NW16: 0.01394940565 | NX16: 0.005088149488 | NY16: 0.00182456515 | NZ16: 0.0381343728 | OA16: 0.003735307069 | OB16: 0.0205147493 | OC16: 0.002770062563 | OD16: 0.02716247809 | OE16: 0.01181146671 | OF16: 0.00571729799 | OG16: 0.02213989967 | OH16: 0.003391903923 | OI16: 0.01441492288 | OJ16: 0.004965779226 | OK16: 0.001397846094 | OL16: 0.04713533169 | OM16: 0.03935612683 | ON16: 0.001754004949 | OO16: 0.004709525862 | OP16: 0.01543068665 | OQ16: 0.002110561906 | OR16: 0.03433378466 | OS16: 0.005021537834 | OT16: 0.01421061613 | OU16: 0.01966699887 | OV16: 0.003814829284 | OW16: 0.02336243264 | OX16: 0.0032802389 | OY16: 0.006157849082 | OZ16: 0.01023416465 | PA16: 0.007893611537 | PB16: 0.007406225454 | PC16: 0.002970389954 | PD16: 0.02512728568 | PE16: 0.0138729532 | PF16: 0.005103612855 | PG16: 0.003988339781 | PH16: 0.01875447187 | PI16: 0.002462902532 | PJ16: 0.02981364083 | PK16: 0.01247543263 | PL16: 0.005477258554 | PM16: 0.01618786598 | PN16: 0.004546664583 | PO16: 0.004760345397 | PP16: 0.01520733474 | PQ16: 0.002473875023 | PR16: 0.03025656748 | PS16: 0.01349261802 | PT16: 0.005193735481 | PU16: 0.005640156004 | PV16: 0.01186665975 | PW16: 0.01296203031 | PX16: 0.005384049656 | PY16: 0.006995319142 | PZ16: 0.008364879538 | QA16: 0.008107942533 | QB16: 0.007216355094 | QC16: 0.01853484273 | QD16: 0.00406763947 | QE16: 0.03111630714 | QF16: 0.002381754137 | QG16: 0.006657948217 | QH16: 0.008873947601 | QI16: 0.01305218731 | QJ16: 0.005362311677 | QK16: 0.004641915585 | QL16: 0.0156073632 | QM16: 0.002815606419 | QN16: 0.02648906231 | QO16: 0.01818056681 | QP16: 0.004126044264 | QQ16: 0.007876193607 | QR16: 0.007424345899 | QS16: 0.00596358815 | QT16: 0.01088956987 | QU16: 0.0091238212 | QV16: 0.006578524215 | QW16: 0.003988485669 | QX16: 0.0191955667 | QY16: 0.005601908374 | QZ16: 0.01208178659 | RA16: 0.002232525835 | RB16: 0.03292948519 | RC16: 0.02558266022 | RD16: 0.003002442536 | RE16: 0.008383631519 | RF16: 0.0069717327 | RG16: 0.008708761895 | RH16: 0.006726763427 | RI16: 0.005164170309 | RJ16: 0.01378454792 | RK16: 0.02116170692 | RL16: 0.003567113141 | RM16: 0.004217702631 | RN16: 0.0181864806 | RO16: 0.002205494722 | RP16: 0.03221935697 | RQ16: 0.005252199111 | RR16: 0.01329150834 | RS16: 0.008354645938 | RT16: 0.006995085225 | RU16: 0.008683414976 | RV16: 0.006757634807 | RW16: 0.01272632201 | RX16: 0.005445333871 | RY16: 0.006665330687 | RZ16: 0.008850430046 | SA16: 0.002945358575 | SB16: 0.02585207475 | SC16: 0.01042571164 | SD16: 0.006141797071 | SE16: 0.02967157009 | SF16: 0.002538924877 | SG16: 0.003399155533 | SH16: 0.02220879405 | SI16: 0.04124241481 | SJ16: 0.001661310857 | SK16: 0.02865982624 | SL16: 0.002603943281 | SM16: 0.007222160337 | SN16: 0.008093096333 | SO16: 0.003377411919 | SP16: 0.01193404787 | SQ16: 0.007927492283 | SR16: 0
E17: 1.75 | F17: 0.03166448633 | G17: -0.0498864877 | H17: 0.007533501149 | I17: -0.02822887314 | J17: -0.1424140121 | K17: 0.1484637371 | L17: -0.02106137914 | M17: 0.0001985337271 | N17: 0.0528373194 | O17: -0.06898211458 | P17: 0.06323302815 | Q17: -0.07819259343 | R17: -8.905211789e-05 | S17: -0.02089777363 | T17: -0.09957871958 | U17: 0.09115411623 | V17: -0.1022335755 | W17: 0.09255958359 | X17: -0.07378615216 | Y17: 0.05731206548 | Z17: -0.0306686979 | AA17: 0.01016458353 | AB17: -0.01043701535 | AC17: -0.01075037674 | AD17: -0.003958883743 | AE17: -0.017207115 | AF17: 0.05349310865 | AG17: -0.06919588096 | AH17: 0.05038968024 | AI17: -0.06553750528 | AJ17: -0.08366749311 | AK17: 0.07148231449 | AL17: -0.03074572078 | AM17: 0.01006262343 | AN17: 0.006093796775 | AO17: -0.02684330466 | AP17: -0.07242096947 | AQ17: 0.05832834915 | AR17: 0.037718026 | AS17: -0.05533494716 | AT17: -0.03755611238 | AU17: 0.01728703786 | AV17: -0.05606932777 | AW17: 0.0395377955 | AX17: -0.04164105717 | AY17: 0.02170858054 | AZ17: -0.06317443512 | BA17: 0.04617288738 | BB17: -0.1334682874 | BC17: 0.1341685809 | BD17: -0.08497271948 | BE17: 0.07362129083 | BF17: -0.05630633869 | BG17: 0.03674174132 | BH17: -0.03200766327 | BI17: 0.0114140618 | BJ17: -0.006956688662 | BK17: -0.01418878436 | BL17: 0.05603873822 | BM17: -0.07206914064 | BN17: 0.09443912242 | BO17: -0.1013420943 | BP17: -0.02117372785 | BQ17: 0.0002750891816 | BR17: -0.01151007582 | BS17: -0.009694767612 | BT17: 0.01481488799 | BU17: -0.03493891742 | BV17: 0.117811784 | BW17: -0.1188735743 | BX17: 0.05833449855 | BY17: -0.07413463323 | BZ17: 0.03515670567 | CA17: -0.05442373567 | CB17: -0.1395202433 | CC17: 0.1412133707 | CD17: 0.1302820105 | CE17: -0.1293244614 | CF17: 0.09038059431 | CG17: -0.09922595142 | CH17: -0.015832781 | CI17: -0.005318862457 | CJ17: 0.03329793293 | CK17: -0.05245286235 | CL17: -0.01772155947 | CM17: -0.00350430594 | CN17: 0.09667077617 | CO17: -0.1026170115 | CP17: -0.07542631635 | CQ17: 0.06058107983 | CR17: 0.0806367988 | CS17: -0.09030280776 | CT17: -0.1163314864 | CU17: 0.1135006069 | CV17: -0.108466423 | CW17: 0.1030069784 | CX17: 0.02558188323 | CY17: -0.04529884039 | CZ17: -0.05625929658 | DA17: 0.03735238962 | DB17: -0.06041902631 | DC17: 0.04303167234 | DD17: -0.03966754701 | DE17: 0.01912669927 | DF17: -0.1049902978 | DG17: 0.09748499268 | DH17: 0.0384701904 | DI17: -0.05642258623 | DJ17: -0.03214036835 | DK17: 0.01153276915 | DL17: -0.03874006138 | DM17: 0.0188793525 | DN17: 0.01463623924 | DO17: -0.03538696153 | DP17: 0.05198504064 | DQ17: -0.06731317022 | DR17: -0.08420193537 | DS17: 0.07259721798 | DT17: 0.02429116157 | DU17: -0.04428275422 | DV17: -0.08111215509 | DW17: 0.06672422071 | DX17: -0.01810872449 | DY17: -0.003073026673 | DZ17: 0.01306810358 | EA17: -0.03396457721 | EB17: 0.01777694793 | EC17: -0.03786044777 | ED17: -0.1116740432 | EE17: 0.1075639847 | EF17: -0.05042261408 | EG17: 0.03245302219 | EH17: -0.05852698775 | EI17: 0.0414519647 | EJ17: 0.004182733913 | EK17: -0.02476417092 | EL17: 0.04510921516 | EM17: -0.0629266813 | EN17: 0.01898591793 | EO17: -0.0390132624 | EP17: -0.1536516859 | EQ17: 0.1699885473 | ER17: 0.1620821362 | ES17: -0.1505004145 | ET17: -0.05745135333 | EU17: 0.03911590899 | EV17: -0.09419838679 | EW17: 0.08565219942 | EX17: -0.05308253707 | EY17: 0.03444463124 | EZ17: 0.001848130946 | FA17: -0.02283470147 | FB17: 0.0992978504 | FC17: -0.1056025181 | FD17: -0.04089343544 | FE17: 0.02027342947 | FF17: 0.001842301679 | FG17: -0.02294477555 | FH17: -0.07764698159 | FI17: 0.0623391341 | FJ17: 0.02677803418 | FK17: -0.0462443181 | FL17: -0.06608883633 | FM17: 0.04878092589 | FN17: -0.1244526516 | FO17: 0.1226294527 | FP17: 0.01375422863 | FQ17: -0.03431153756 | FR17: 0.02239537283 | FS17: -0.04206370863 | FT17: -0.02595280309 | FU17: 0.005088726814 | FV17: -0.09380620539 | FW17: 0.08526015832 | FX17: 0.04906952286 | FY17: -0.06649300979 | FZ17: -0.05375115628 | GA17: 0.03425292291 | GB17: 0.01481870015 | GC17: -0.03472438136 | GD17: -0.0348888042 | GE17: 0.01432478714 | GF17: -0.008062918437 | GG17: -0.0131057601 | GH17: 0.06354115574 | GI17: -0.0778506134 | GJ17: 0.02243031749 | GK17: -0.04129047683 | GL17: 0.01500340917 | GM17: -0.03551244019 | GN17: -0.004122721779 | GO17: -0.01685579869 | GP17: -0.04565323922 | GQ17: 0.02565418161 | GR17: -0.08310471603 | GS17: 0.0693831691 | GT17: 0.086715733 | GU17: -0.09721761139 | GV17: -0.04047949432 | GW17: 0.02029684825 | GX17: -0.04943322515 | GY17: 0.0300362096 | GZ17: -0.01455623112 | HA17: -0.006666758176 | HB17: -0.03831003915 | HC17: 0.01912278181 | HD17: -0.03583326905 | HE17: 0.01550186554 | HF17: -0.1029228319 | HG17: 0.09720894882 | HH17: 0.07306004451 | HI17: -0.08409826722 | HJ17: 0.02023907372 | HK17: -0.04084779006 | HL17: 0.03386604168 | HM17: -0.05299257183 | HN17: -0.0288373439 | HO17: 0.008507169825 | HP17: 0.03013275393 | HQ17: -0.04922926686 | HR17: -0.1015791315 | HS17: 0.09646812695 | HT17: -0.1060085519 | HU17: 0.09692306406 | HV17: -0.05040966664 | HW17: 0.03117662833 | HX17: -0.006581665859 | HY17: -0.01465436512 | HZ17: -0.01922131092 | IA17: -0.001994052249 | IB17: -0.0244225535 | IC17: 0.003153886867 | ID17: -0.003946895323 | IE17: -0.01719315015 | IF17: -0.09756211442 | IG17: 0.08914352618 | IH17: 0.0170483272 | II17: -0.03686807388 | IJ17: 0.1014340806 | IK17: -0.1060745176 | IL17: -0.09190982424 | IM17: 0.07973936012 | IN17: 0.09044371294 | IO17: -0.09765669204 | IP17: 0.07211331577 | IQ17: -0.08432761256 | IR17: -0.005482919613 | IS17: -0.0156122166 | IT17: -0.1122558368 | IU17: 0.1056008172 | IV17: 0.02266745078 | IW17: -0.03028325243 | IX17: -0.007615801645 | IY17: 0 | IZ17: 0 | JA17: 0.01623756677 | JB17: 0.004077584151 | JC17: 0.0102522695 | JD17: 0.005548965766 | JE17: 0.001277989188 | JF17: 0.04520771579 | JG17: 0.00615561269 | JH17: 0.008432950477 | JI17: 0.02148914266 | JJ17: 0.003133679629 | JK17: 0.02406762865 | JL17: 0.002769485426 | JM17: 0.008372671085 | JN17: 0.006170263746 | JO17: 0.002100752205 | JP17: 0.03099299912 | JQ17: 0.002032242992 | JR17: 0.03134160237 | JS17: 0.00293721074 | JT17: 0.02259903043 | JU17: 0.005357399618 | JV17: 0.01090486657 | JW17: 0.007188696659 | JX17: 0.007155724766 | JY17: 0.007907510077 | JZ17: 0.006510853093 | KA17: 0.02165180049 | KB17: 0.003124621208 | KC17: 0.02088204569 | KD17: 0.003283882278 | KE17: 0.002576514061 | KF17: 0.02611372957 | KG17: 0.005351469522 | KH17: 0.01087957703 | KI17: 0.009895174317 | KJ17: 0.005661032565 | KK17: 0.002991554803 | KL17: 0.02285110302 | KM17: 0.01773904855 | KN17: 0.003779095976 | KO17: 0.004854221499 | KP17: 0.01267147519 | KQ17: 0.003740764581 | KR17: 0.01819041269 | KS17: 0.004580266224 | KT17: 0.01376816673 | KU17: 0.003391684024 | KV17: 0.019836139 | KW17: 0.001407513179 | KX17: 0.04166203545 | KY17: 0.002532889833 | KZ17: 0.02664426776 | LA17: 0.003728486886 | LB17: 0.01749689705 | LC17: 0.005255314898 | LD17: 0.01121477928 | LE17: 0.007565882439 | LF17: 0.006804276216 | LG17: 0.02228320238 | LH17: 0.003005748442 | LI17: 0.03180779132 | LJ17: 0.002054932069 | LK17: 0.006145573274 | LL17: 0.008451938809 | LM17: 0.007076451709 | LN17: 0.007267438726 | LO17: 0.01205829874 | LP17: 0.00503911083 | LQ17: 0.03760499879 | LR17: 0.00166186906 | LS17: 0.02285262828 | LT17: 0.002923522888 | LU17: 0.01710375481 | LV17: 0.003827270228 | LW17: 0.001317921559 | LX17: 0.04340938067 | LY17: 0.04069803507 | LZ17: 0.001473934739 | MA17: 0.03080113962 | MB17: 0.00211007098 | MC17: 0.006642753454 | MD17: 0.007750557407 | ME17: 0.01664271656 | MF17: 0.003933833332 | MG17: 0.006462199255 | MH17: 0.007960714866 | MI17: 0.03236131663 | MJ17: 0.002022580841 | MK17: 0.002873430741 | ML17: 0.02340985612 | MM17: 0.02838435008 | MN17: 0.002363679076 | MO17: 0.001712413796 | MP17: 0.03653568163 | MQ17: 0.001882132443 | MR17: 0.03393290825 | MS17: 0.01472887629 | MT17: 0.004349297435 | MU17: 0.003730920171 | MV17: 0.0176483584 | MW17: 0.003522496618 | MX17: 0.01905701185 | MY17: 0.004710447446 | MZ17: 0.0131277732 | NA17: 0.001964046343 | NB17: 0.03256326976 | NC17: 0.01792561065 | ND17: 0.003722481538 | NE17: 0.005245312479 | NF17: 0.0112442227 | NG17: 0.004773021942 | NH17: 0.01306642287 | NI17: 0.01201398783 | NJ17: 0.005006923182 | NK17: 0.02127774881 | NL17: 0.003205448245 | NM17: 0.002558544152 | NN17: 0.02639026319 | NO17: 0.01440873383 | NP17: 0.00441214534 | NQ17: 0.002664533817 | NR17: 0.02493356201 | NS17: 0.006425838382 | NT17: 0.008011540783 | NU17: 0.01162503736 | NV17: 0.005109886364 | NW17: 0.01279298939 | NX17: 0.004833206139 | NY17: 0.00181038989 | NZ17: 0.03506319932 | OA17: 0.004047077886 | OB17: 0.01643315023 | OC17: 0.00361562598 | OD17: 0.01866519113 | OE17: 0.009421166346 | OF17: 0.005833787324 | OG17: 0.01957231246 | OH17: 0.003403217838 | OI17: 0.01309285468 | OJ17: 0.0047544961 | OK17: 0.001138980775 | OL17: 0.05054659386 | OM17: 0.04858553754 | ON17: 0.001175527697 | OO17: 0.003669806328 | OP17: 0.01808577062 | OQ17: 0.002248608468 | OR17: 0.02962833839 | OS17: 0.003899431544 | OT17: 0.01692713637 | OU17: 0.00884210616 | OV17: 0.005999175466 | OW17: 0.03301291954 | OX17: 0.001949295162 | OY17: 0.004629113148 | OZ17: 0.01341220092 | PA17: 0.008840660306 | PB17: 0.005989606348 | PC17: 0.002789634088 | PD17: 0.02384591281 | PE17: 0.01502556202 | PF17: 0.004291702259 | PG17: 0.003259296511 | PH17: 0.02048302041 | PI17: 0.001557732428 | PJ17: 0.03879994293 | PK17: 0.01179521949 | PL17: 0.005084560387 | PM17: 0.01393851436 | PN17: 0.004552901913 | PO17: 0.005734341553 | PP17: 0.009645883107 | PQ17: 0.002259879061 | PR17: 0.02953109899 | PS17: 0.02055460218 | PT17: 0.003241406634 | PU17: 0.003863269167 | PV17: 0.01687958624 | PW17: 0.01205924428 | PX17: 0.005054602722 | PY17: 0.00504272494 | PZ17: 0.01193673722 | QA17: 0.007443777469 | QB17: 0.006912958068 | QC17: 0.02414405467 | QD17: 0.002782094213 | QE17: 0.01394718181 | QF17: 0.004603101189 | QG17: 0.01210505834 | QH17: 0.004997948858 | QI17: 0.007888425914 | QJ17: 0.006544303027 | QK17: 0.004327609408 | QL17: 0.01474680872 | QM17: 0.002595599229 | QN17: 0.02559307079 | QO17: 0.02989213055 | QP17: 0.002164112085 | QQ17: 0.004656403814 | QR17: 0.01341800957 | QS17: 0.0041035746 | QT17: 0.01583369929 | QU17: 0.006767815989 | QV17: 0.007598232961 | QW17: 0.004802341748 | QX17: 0.01312680154 | QY17: 0.004975082381 | QZ17: 0.01222869232 | RA17: 0.002014915858 | RB17: 0.03249480158 | RC17: 0.02650505976 | RD17: 0.002562018161 | RE17: 0.01340367954 | RF17: 0.004632113887 | RG17: 0.01678362666 | RH17: 0.00390432611 | RI17: 0.005500508992 | RJ17: 0.01049377214 | RK17: 0.01585764553 | RL17: 0.004115329658 | RM17: 0.002048868398 | RN17: 0.0323110528 | RO17: 0.001939589421 | RP17: 0.03242389253 | RQ17: 0.004047811618 | RR17: 0.01611656155 | RS17: 0.007607755242 | RT17: 0.006758113694 | RU17: 0.006322557522 | RV17: 0.008140196623 | RW17: 0.005862709768 | RX17: 0.009165977618 | RY17: 0.007908908417 | RZ17: 0.006512179251 | SA17: 0.002154721336 | SB17: 0.03049430505 | SC17: 0.01261226691 | SD17: 0.004902100904 | SE17: 0.0335427766 | SF17: 0.001938018392 | SG17: 0.002315361108 | SH17: 0.02816175505 | SI17: 0.03081679517 | SJ17: 0.00215215208 | SK17: 0.02627023914 | SL17: 0.002554340124 | SM17: 0.007731846739 | SN17: 0.006664185224 | SO17: 0.001797757965 | SP17: 0.01177124996 | SQ17: 0.007492877706 | SR17: 0
E18: 2 | F18: 0.02978803768 | G18: -0.05043061212 | H18: 0.03422135318 | I18: -0.05524932374 | J18: -0.1234403901 | K18: 0.1213520831 | L18: -0.01178396239 | M18: -0.01191859095 | N18: 0.04366290705 | O18: -0.06306282896 | P18: 0.07594548241 | Q18: -0.09053601678 | R18: -0.006249446505 | S18: -0.01736932955 | T18: -0.09982630879 | U18: 0.08967131596 | V18: -0.09808437481 | W18: 0.08558660546 | X18: -0.03852217442 | Y18: 0.0157795193 | Z18: -0.0684684966 | AA18: 0.04943168514 | AB18: -0.002773684011 | AC18: -0.02077398407 | AD18: -0.02121211301 | AE18: -0.002357603439 | AF18: 0.03256739898 | AG18: -0.05306110979 | AH18: 0.01264622076 | AI18: -0.03465084403 | AJ18: -0.03654746995 | AK18: 0.0145214293 | AL18: -0.05509114723 | AM18: 0.03379071501 | AN18: 0.02890017144 | AO18: -0.0504368937 | AP18: -0.05037328993 | AQ18: 0.03018237518 | AR18: 0.02024580731 | AS18: -0.04194987913 | AT18: -0.01297363921 | AU18: -0.01072116504 | AV18: -0.04013114102 | AW18: 0.01884469223 | AX18: -0.03766388775 | AY18: 0.01493104142 | AZ18: -0.05745771053 | BA18: 0.03726092345 | BB18: -0.1144873966 | BC18: 0.1076617801 | BD18: -0.07806497723 | BE18: 0.0630006556 | BF18: -0.04486832502 | BG18: 0.02199794545 | BH18: -0.02717432875 | BI18: 0.003822820181 | BJ18: 0.0133563204 | BK18: -0.03616246428 | BL18: 0.05289007342 | BM18: -0.07131638918 | BN18: 0.07709867251 | BO18: -0.08919535368 | BP18: 0.06205045872 | BQ18: -0.08110763223 | BR18: -0.02929903276 | BS18: 0.005593451124 | BT18: -0.01185704432 | BU18: -0.01184455977 | BV18: 0.1462373761 | BW18: -0.1399562886 | BX18: 0.08034067787 | BY18: -0.09427565199 | BZ18: 0.02824653 | CA18: -0.05032651863 | CB18: -0.1289716008 | CC18: 0.1260592601 | CD18: 0.1193736711 | CE18: -0.1220913854 | CF18: 0.04901191816 | CG18: -0.06698837119 | CH18: -0.04197148485 | CI18: 0.01938351255 | CJ18: 0.03922290121 | CK18: -0.05997654828 | CL18: -0.04789353085 | CM18: 0.02524188508 | CN18: 0.06832876724 | CO18: -0.08183167287 | CP18: -0.04903365918 | CQ18: 0.02791211153 | CR18: 0.05566616336 | CS18: -0.07176515293 | CT18: -0.08260530818 | CU18: 0.06855172126 | CV18: -0.09758582737 | CW18: 0.08726598457 | CX18: 0.05074220159 | CY18: -0.07001679674 | CZ18: -0.04281497389 | DA18: 0.02025826495 | DB18: -0.03591657182 | DC18: 0.0134066567 | DD18: -0.01203645172 | DE18: -0.011667194 | DF18: -0.06430563912 | DG18: 0.04576563332 | DH18: 0.01136916796 | DI18: -0.03404420243 | DJ18: -0.05114268872 | DK18: 0.02944395057 | DL18: -0.06754699767 | DM18: 0.04861376846 | DN18: 0.002698201004 | DO18: -0.02628207776 | DP18: 0.05484379431 | DQ18: -0.07168043556 | DR18: -0.09078852237 | DS18: 0.07874093797 | DT18: -0.008807282523 | DU18: -0.01488561254 | DV18: -0.09488600488 | DW18: 0.08136958718 | DX18: -0.02552304358 | DY18: 0.001940103157 | DZ18: -0.0007927821732 | EA18: -0.02290131095 | EB18: 0.008846748385 | EC18: -0.0318533704 | ED18: -0.0649361612 | EE18: 0.04724955959 | EF18: -0.04664555295 | EG18: 0.02569649678 | EH18: -0.04216589009 | EI18: 0.02055014063 | EJ18: -0.01302881479 | EK18: -0.01070132748 | EL18: 0.05387416288 | EM18: -0.07261878466 | EN18: 0.01456870922 | EO18: -0.03724593171 | EP18: -0.1042860884 | EQ18: 0.09910631215 | ER18: 0.139984942 | ES18: -0.1354436367 | ET18: -0.04600040509 | EU18: 0.02401723024 | EV18: -0.1079258894 | EW18: 0.101667152 | EX18: -0.07485065295 | EY18: 0.05693079294 | EZ18: 0.02353406818 | FA18: -0.04575150959 | FB18: 0.08194639629 | FC18: -0.09342915377 | FD18: -0.0503832467 | FE18: 0.02790987252 | FF18: 0.00662333712 | FG18: -0.03005177369 | FH18: -0.09662366768 | FI18: 0.08312876925 | FJ18: 0.003956503444 | FK18: -0.02723258455 | FL18: -0.04558208525 | FM18: 0.02352749377 | FN18: -0.1389041686 | FO18: 0.141544476 | FP18: 0.002167727461 | FQ18: -0.02562972268 | FR18: 0.01056529837 | FS18: -0.03341082886 | FT18: -0.00370772668 | FU18: -0.01996023926 | FV18: -0.071872616 | FW18: 0.05595722622 | FX18: 0.02831020129 | FY18: -0.05004824791 | FZ18: -0.05491212186 | GA18: 0.03309941826 | GB18: 0.008386025908 | GC18: -0.03112483982 | GD18: -0.03917500887 | GE18: 0.01634680105 | GF18: -0.009635683654 | GG18: -0.01404937729 | GH18: 0.07048537016 | GI18: -0.08539902339 | GJ18: 0.02946385177 | GK18: -0.0497897959 | GL18: 0.004536751776 | GM18: -0.02792570745 | GN18: 0.02249409377 | GO18: -0.04406941729 | GP18: -0.06738852524 | GQ18: 0.04720838369 | GR18: -0.08591609253 | GS18: 0.07067883803 | GT18: 0.1017350459 | GU18: -0.1104319325 | GV18: -0.107948156 | GW18: 0.09618230831 | GX18: -0.04338596808 | GY18: 0.02099286923 | GZ18: 0.02891080208 | HA18: -0.05032736132 | HB18: -0.06900674844 | HC18: 0.05185469836 | HD18: -0.04970878705 | HE18: 0.02798572743 | HF18: -0.09935261746 | HG18: 0.0908077853 | HH18: 0.05469555868 | HI18: -0.07088404876 | HJ18: -0.005700068705 | HK18: -0.01803560257 | HL18: 0.01969577938 | HM18: -0.04222531013 | HN18: -0.03638917721 | HO18: 0.01408404047 | HP18: 0.0378962207 | HQ18: -0.05840165171 | HR18: -0.1205160912 | HS18: 0.1204765371 | HT18: -0.1294835624 | HU18: 0.1261080782 | HV18: -0.1181712068 | HW18: 0.1097886892 | HX18: -0.02200474026 | HY18: -0.00141121274 | HZ18: -0.03224352194 | IA18: 0.008770542469 | IB18: -0.02203143483 | IC18: -0.001757303267 | ID18: -0.007595415964 | IE18: -0.01608432178 | IF18: -0.1027319789 | IG18: 0.09398068619 | IH18: -0.01214333536 | II18: -0.01156406474 | IJ18: 0.1284883586 | IK18: -0.1270479755 | IL18: -0.1149962106 | IM18: 0.107073981 | IN18: 0.06688731866 | IO18: -0.08058712613 | IP18: 0.05786908491 | IQ18: -0.07434899038 | IR18: -0.005035079389 | IS18: -0.01852627696 | IT18: -0.1299891172 | IU18: 0.1277859035 | IV18: 0.02306075471 | IW18: -0.03160875341 | IX18: -0.008547998693 | IY18: 0 | IZ18: 0 | JA18: 0.01529287584 | JB18: 0.003809303898 | JC18: 0.01637322048 | JD18: 0.003556190084 | JE18: 0.001457279445 | JF18: 0.03760591109 | JG18: 0.006724625016 | JH18: 0.006711039894 | JI18: 0.0186740114 | JJ18: 0.003184969978 | JK18: 0.02654087921 | JL18: 0.002192962091 | JM18: 0.007309057729 | JN18: 0.006184762697 | JO18: 0.001944686804 | JP18: 0.02988569656 | JQ18: 0.001988472056 | JR18: 0.02889030269 | JS18: 0.004524984361 | JT18: 0.01187917166 | JU18: 0.002953942644 | JV18: 0.02007979189 | JW18: 0.007703285097 | JX18: 0.005878468434 | JY18: 0.005840245011 | JZ18: 0.007751955134 | KA18: 0.01597017211 | KB18: 0.003668722171 | KC18: 0.01111562523 | KD18: 0.004788478254 | KE18: 0.004657356706 | KF18: 0.01157259056 | KG18: 0.003564193453 | KH18: 0.01626827923 | KI18: 0.01507651372 | KJ18: 0.003808961115 | KK18: 0.003812433527 | KL18: 0.01538897106 | KM18: 0.01296755129 | KN18: 0.004304877214 | KO18: 0.006605578743 | KP18: 0.0068328979 | KQ18: 0.004420167367 | KR18: 0.01262611673 | KS18: 0.004582007199 | KT18: 0.01167240801 | KU18: 0.003446535252 | KV18: 0.01711392648 | KW18: 0.001620770131 | KX18: 0.0342697521 | KY18: 0.002589871809 | KZ18: 0.02338638363 | LA18: 0.00412672286 | LB18: 0.01339452588 | LC18: 0.005345746735 | LD18: 0.008965470683 | LE18: 0.0112886678 | LF18: 0.00468365407 | LG18: 0.02092255871 | LH18: 0.002840017587 | LI18: 0.0268218975 | LJ18: 0.002231934456 | LK18: 0.0231548323 | LL18: 0.002485617849 | LM18: 0.005180572214 | LN18: 0.009396951736 | LO18: 0.00671724684 | LP18: 0.006718506642 | LQ18: 0.04367015189 | LR18: 0.001210857067 | LS18: 0.02761193446 | LT18: 0.002088567134 | LU18: 0.01491722932 | LV18: 0.003814989229 | LW18: 0.001367388649 | LX18: 0.0387529924 | LY18: 0.03712379635 | LZ18: 0.001480438411 | MA18: 0.01997749982 | MB18: 0.003015230779 | MC18: 0.004303527617 | MD18: 0.01275742063 | ME18: 0.01759203641 | MF18: 0.00332609345 | MG18: 0.003950597847 | MH18: 0.01418503419 | MI18: 0.02468477911 | MJ18: 0.002461547067 | MK18: 0.003886394465 | ML18: 0.01483573564 | MM18: 0.02159905779 | MN18: 0.0028225335 | MO18: 0.002436133494 | MP18: 0.02473911027 | MQ18: 0.002001229808 | MR18: 0.02929954679 | MS18: 0.02039914868 | MT18: 0.0028913632 | MU18: 0.004251200947 | MV18: 0.01297058707 | MW18: 0.004700534106 | MX18: 0.01130093414 | MY18: 0.006699170649 | MZ18: 0.006736431494 | NA18: 0.003130076009 | NB18: 0.01918642001 | NC18: 0.01080442312 | ND18: 0.004831261398 | NE18: 0.003770664176 | NF18: 0.01520902603 | NG18: 0.002991929152 | NH18: 0.01988047562 | NI18: 0.008691414778 | NJ18: 0.005416794491 | NK18: 0.02139865654 | NL18: 0.002825824547 | NM18: 0.002185714935 | NN18: 0.02722209746 | NO18: 0.007032553535 | NP18: 0.006418915079 | NQ18: 0.002072113588 | NR18: 0.02786266704 | NS18: 0.005478034475 | NT18: 0.008506675628 | NU18: 0.007937906972 | NV18: 0.005695346269 | NW18: 0.01018974039 | NX18: 0.004989258867 | NY18: 0.003102640054 | NZ18: 0.01954803465 | OA18: 0.004022225922 | OB18: 0.01429581749 | OC18: 0.004291405016 | OD18: 0.01304171359 | OE18: 0.006600112042 | OF18: 0.006834936319 | OG18: 0.02116236925 | OH18: 0.002789619503 | OI18: 0.01158411209 | OJ18: 0.004610059073 | OK18: 0.001837993489 | OL18: 0.03218488945 | OM18: 0.04214651037 | ON18: 0.001271844663 | OO18: 0.004059817165 | OP18: 0.01388660082 | OQ18: 0.001756387977 | OR18: 0.03280893472 | OS18: 0.002705655141 | OT18: 0.02190723252 | OU18: 0.01376886015 | OV18: 0.004074423423 | OW18: 0.02800322835 | OX18: 0.002111654082 | OY18: 0.00381188971 | OZ18: 0.01483519002 | PA18: 0.009647922326 | PB18: 0.005123382486 | PC18: 0.0020261409 | PD18: 0.02829135814 | PE18: 0.008998047656 | PF18: 0.005341142991 | PG18: 0.004084399188 | PH18: 0.01376725805 | PI18: 0.001224684194 | PJ18: 0.04252654968 | PK18: 0.00856214488 | PL18: 0.005469382669 | PM18: 0.01060852995 | PN18: 0.004876373348 | PO18: 0.007595193683 | PP18: 0.005950172939 | PQ18: 0.002818365245 | PR18: 0.02166998624 | PS18: 0.01493274523 | PT18: 0.003830234127 | PU18: 0.00357327613 | PV18: 0.01609981869 | PW18: 0.01007746797 | PX18: 0.005043032629 | PY18: 0.004482130741 | PZ18: 0.01201741127 | QA18: 0.006945388184 | QB18: 0.00649985728 | QC18: 0.0252103168 | QD18: 0.00234693404 | QE18: 0.01521387571 | QF18: 0.003844454011 | QG18: 0.00913944706 | QH18: 0.005286694558 | QI18: 0.01351543114 | QJ18: 0.00417467039 | QK18: 0.002998518304 | QL18: 0.01953800058 | QM18: 0.002330857199 | QN18: 0.02525746255 | QO18: 0.03282547963 | QP18: 0.001702902901 | QQ18: 0.001755903243 | QR18: 0.03147234557 | QS18: 0.004216176105 | QT18: 0.01314960112 | QU18: 0.01507910428 | QV18: 0.003814943165 | QW18: 0.002932011806 | QX18: 0.0206702505 | QY18: 0.003848923153 | QZ18: 0.01485367493 | RA18: 0.001956472955 | RB18: 0.03016264021 | RC18: 0.02136253333 | RD18: 0.002856980761 | RE18: 0.007369928063 | RF18: 0.006123508783 | RG18: 0.01283351623 | RH18: 0.00428770723 | RI18: 0.004668149177 | RJ18: 0.01146600426 | RK18: 0.01726874063 | RL18: 0.003400831163 | RM18: 0.00150812349 | RN18: 0.03739255127 | RO18: 0.001359464424 | RP18: 0.03876488878 | RQ18: 0.001550649883 | RR18: 0.03478805378 | RS18: 0.005771768273 | RT18: 0.007863863715 | RU18: 0.004960716916 | RV18: 0.01017116994 | RW18: 0.005769477083 | RX18: 0.007822743799 | RY18: 0.007162155218 | RZ18: 0.006304750773 | SA18: 0.001874311871 | SB18: 0.03093583725 | SC18: 0.006688426094 | SD18: 0.006746877177 | SE18: 0.03934493393 | SF18: 0.001397750911 | SG18: 0.001610836984 | SH18: 0.03412651267 | SI18: 0.02433351576 | SJ18: 0.002503095026 | SK18: 0.02213588276 | SL18: 0.002724268041 | SM18: 0.007444323224 | SN18: 0.006078812175 | SO18: 0.001351702928 | SP18: 0.01141199925 | SQ18: 0.007060072608 | SR18: 0
B19: Simple Regulatory Parameters | E19: 2.25 | F19: 0.02065816322 | G19: -0.04435957551 | H19: 0.06872526233 | I19: -0.08683886525 | J19: -0.1277742113 | K19: 0.1264806935 | L19: -0.01064610104 | M19: -0.01543600114 | N19: 0.006379334539 | O19: -0.03152445163 | P19: 0.1241999725 | Q19: -0.1290976638 | R19: 0.020811356 | S19: -0.04530494668 | T19: -0.07129800384 | U19: 0.05243430826 | V19: -0.08685993411 | W19: 0.06995843388 | X19: -0.04031949838 | Y19: 0.01536319621 | Z19: -0.05447022326 | AA19: 0.03131030263 | AB19: 0.001385699652 | AC19: -0.0270852064 | AD19: 0.00245080794 | AE19: -0.02829165283 | AF19: -0.007205478388 | AG19: -0.01862093067 | AH19: -0.0006874887513 | AI19: -0.02461959243 | AJ19: -0.03677228924 | AK19: 0.012385891 | AL19: -0.09483406085 | AM19: 0.07797148679 | AN19: 0.0196119136 | AO19: -0.04406480981 | AP19: -0.05387686877 | AQ19: 0.03188613674 | AR19: 0.02180858231 | AS19: -0.04547899476 | AT19: -0.03402459557 | AU19: 0.008615844815 | AV19: -0.00718809963 | AW19: -0.01911239975 | AX19: -0.04874556485 | AY19: 0.02458926687 | AZ19: -0.04566964958 | BA19: 0.02177284249 | BB19: -0.1160810128 | BC19: 0.1085742542 | BD19: -0.09974868634 | BE19: 0.08842483028 | BF19: -0.06094109835 | BG19: 0.03716121619 | BH19: -0.01771115801 | BI19: -0.008274610175 | BJ19: 0.02518449129 | BK19: -0.04925497218 | BL19: 0.02709106654 | BM19: -0.05060040518 | BN19: 0.05829709095 | BO19: -0.07561910288 | BP19: 0.04066312593 | BQ19: -0.06405492425 | BR19: -0.05925882454 | BS19: 0.03487517359 | BT19: -0.07376912836 | BU19: 0.05107659841 | BV19: 0.1368734353 | BW19: -0.1337167667 | BX19: 0.05815315451 | BY19: -0.07747564386 | BZ19: 0.06352947074 | CA19: -0.08338794042 | CB19: -0.1366218643 | CC19: 0.1359464835 | CD19: 0.09742355902 | CE19: -0.1065768963 | CF19: -0.02957411106 | CG19: 0.003201237885 | CH19: -0.06151590895 | CI19: 0.03855293506 | CJ19: 0.007651856033 | CK19: -0.03305332923 | CL19: -0.07933499748 | CM19: 0.05803250541 | CN19: 0.1112196417 | CO19: -0.1160209044 | CP19: -0.06862208907 | CQ19: 0.04804454104 | CR19: 0.06366686886 | CS19: -0.07999174829 | CT19: -0.06530274507 | CU19: 0.04552309556 | CV19: -0.1086063429 | CW19: 0.1000848367 | CX19: 0.07014959549 | CY19: -0.08819759856 | CZ19: -0.02325520837 | DA19: -0.002627050177 | DB19: 0.008811019764 | DC19: -0.03481115393 | DD19: -0.05370172797 | DE19: 0.02927569208 | DF19: -0.07266862036 | DG19: 0.05348693842 | DH19: 0.01241611852 | DI19: -0.03721566899 | DJ19: -0.08863616074 | DK19: 0.07042199406 | DL19: -0.07411731743 | DM19: 0.05417824668 | DN19: -0.040515616 | DO19: 0.01555711629 | DP19: 0.05601696511 | DQ19: -0.07439871968 | DR19: -0.08608314876 | DS19: 0.07099759723 | DT19: 0.06558368324 | DU19: -0.08517749771 | DV19: -0.1034419479 | DW19: 0.09047045564 | DX19: -0.01465049702 | DY19: -0.01139798488 | DZ19: 0.0106683057 | EA19: -0.03633428951 | EB19: 0.01067601659 | EC19: -0.03579730542 | ED19: -0.06872929224 | EE19: 0.04959282982 | EF19: -0.03069700812 | EG19: 0.005744176444 | EH19: -0.02873932761 | EI19: 0.003548963029 | EJ19: -0.04461657776 | EK19: 0.01886623624 | EL19: 0.04138624935 | EM19: -0.0636017256 | EN19: 0.025255302 | EO19: -0.04924138297 | EP19: -0.0730666749 | EQ19: 0.05689695079 | ER19: 0.09186524936 | ES19: -0.1011454837 | ET19: -0.07394680794 | EU19: 0.05333176058 | EV19: -0.07756317807 | EW19: 0.06107201566 | EX19: -0.06233999342 | EY19: 0.04031455291 | EZ19: 0.04682023048 | FA19: -0.06866262863 | FB19: 0.08062940881 | FC19: -0.09375869915 | FD19: -0.03376221724 | FE19: 0.008028210919 | FF19: -0.04673072356 | FG19: 0.0221746678 | FH19: -0.06456743058 | FI19: 0.04294724915 | FJ19: 0.003167396525 | FK19: -0.02874064665 | FL19: -0.07741838973 | FM19: 0.0573434583 | FN19: -0.160350765 | FO19: 0.1728980005 | FP19: 0.07123649723 | FQ19: -0.0896936008 | FR19: -0.0003900288082 | FS19: -0.02527295024 | FT19: -0.03197676959 | FU19: 0.00643351156 | FV19: -0.04096579132 | FW19: 0.01754792443 | FX19: 0.02606848964 | FY19: -0.0500909941 | FZ19: -0.1281598263 | GA19: 0.1191208852 | GB19: 0.001159774634 | GC19: -0.02658757076 | GD19: 0.004554792052 | GE19: -0.03030204558 | GF19: -0.006081781294 | GG19: -0.01986856601 | GH19: 0.06439451194 | GI19: -0.08197267989 | GJ19: 0.01137065283 | GK19: -0.03573186706 | GL19: -0.00189331083 | GM19: -0.02398219165 | GN19: -0.004481272316 | GO19: -0.02123079867 | GP19: -0.08768278821 | GQ19: 0.06877581336 | GR19: -0.05539789211 | GS19: 0.03278356579 | GT19: 0.07847661766 | GU19: -0.09335307914 | GV19: -0.04505169776 | GW19: 0.020631465 | GX19: -0.004448566801 | GY19: -0.02157476386 | GZ19: 0.05346182229 | HA19: -0.07383128443 | HB19: -0.07865280309 | HC19: 0.06141205858 | HD19: -0.0356993351 | HE19: 0.0105165948 | HF19: -0.0813523989 | HG19: 0.06603594009 | HH19: 0.03920618335 | HI19: -0.05973674909 | HJ19: 0.00104240914 | HK19: -0.02702705683 | HL19: 0.015143404 | HM19: -0.04015191073 | HN19: -0.008881826405 | HO19: -0.01726101701 | HP19: 0.01785079442 | HQ19: -0.04235646539 | HR19: -0.1151541552 | HS19: 0.1119779197 | HT19: -0.1136088916 | HU19: 0.1040191982 | HV19: -0.1294845789 | HW19: 0.1237667476 | HX19: 0.001091465367 | HY19: -0.02714874527 | HZ19: -0.0351353559 | IA19: 0.009434770686 | IB19: -0.01201519983 | IC19: -0.0140061209 | ID19: -0.003764495652 | IE19: -0.02217303631 | IF19: -0.1487371313 | IG19: 0.1567227343 | IH19: -0.01567066911 | II19: -0.01042308851 | IJ19: 0.1329322973 | IK19: -0.1306848307 | IL19: -0.1104209254 | IM19: 0.09985108904 | IN19: 0.03811065754 | IO19: -0.05859248451 | IP19: 0.05593661747 | IQ19: -0.07446302458 | IR19: -0.02238229607 | IS19: -0.003690325551 | IT19: -0.1226054112 | IU19: 0.1169382503 | IV19: 0.02321037983 | IW19: -0.03260379382 | IX19: -0.009393413988 | IY19: 0 | IZ19: 0 | JA19: 0.01263029227 | JB19: 0.003911355742 | JC19: 0.02413213022 | JD19: 0.002137752366 | JE19: 0.001276839479 | JF19: 0.03795226131 | JG19: 0.006517854028 | JH19: 0.006054556781 | JI19: 0.009213552407 | JJ19: 0.004739001786 | JK19: 0.03740651413 | JL19: 0.001257539304 | JM19: 0.01266694933 | JN19: 0.003856994058 | JO19: 0.002649102963 | JP19: 0.02023391466 | JQ19: 0.002137143849 | JR19: 0.0244272123 | JS19: 0.00415338682 | JT19: 0.01136327484 | JU19: 0.003371371027 | JV19: 0.01517921208 | JW19: 0.008018639871 | JX19: 0.005068157891 | JY19: 0.008273506571 | JZ19: 0.004976326754 | KA19: 0.006873734459 | KB19: 0.005765965135 | KC19: 0.007605265888 | KD19: 0.005261561409 | KE19: 0.004379490287 | KF19: 0.01065084403 | KG19: 0.001921305467 | KH19: 0.02634463269 | KI19: 0.01237993821 | KJ19: 0.003928478386 | KK19: 0.003400652024 | KL19: 0.01531700177 | KM19: 0.01290557275 | KN19: 0.003847077129 | KO19: 0.004563874936 | KP19: 0.009748720521 | KQ19: 0.006875583257 | KR19: 0.005722754627 | KS19: 0.003666100482 | KT19: 0.01357095476 | KU19: 0.003836246352 | KV19: 0.01289702067 | KW19: 0.001466922861 | KX19: 0.03366748091 | KY19: 0.00180168823 | KZ19: 0.0288459832 | LA19: 0.003069854038 | LB19: 0.01657926037 | LC19: 0.005846874794 | LD19: 0.006761000358 | LE19: 0.0137133843 | LF19: 0.003638740037 | LG19: 0.01416960321 | LH19: 0.00356756403 | LI19: 0.02163680307 | LJ19: 0.002493609343 | LK19: 0.01741722228 | LL19: 0.00293576575 | LM19: 0.003145193579 | LN19: 0.01603223981 | LO19: 0.002558833956 | LP19: 0.01990903217 | LQ19: 0.0404391106 | LR19: 0.001193378352 | LS19: 0.02160236094 | LT19: 0.002430112566 | LU19: 0.02288884419 | LV19: 0.002240316786 | LW19: 0.001155454027 | LX19: 0.04021730297 | LY19: 0.03099926313 | LZ19: 0.001650736687 | MA19: 0.004880675635 | MB19: 0.008453074795 | MC19: 0.003044583802 | MD19: 0.01691228078 | ME19: 0.009518050416 | MF19: 0.004631059737 | MG19: 0.00236842815 | MH19: 0.02157349116 | MI19: 0.03430048809 | MJ19: 0.001467997467 | MK19: 0.002751066441 | ML19: 0.01918349988 | MM19: 0.02292172179 | MN19: 0.002347086023 | MO19: 0.002883922797 | MP19: 0.01858015044 | MQ19: 0.001609040208 | MR19: 0.03163607262 | MS19: 0.02447295481 | MT19: 0.002098936629 | MU19: 0.005371981914 | MV19: 0.007379392794 | MW19: 0.009795423373 | MX19: 0.004510243521 | MY19: 0.003409349439 | MZ19: 0.01469235597 | NA19: 0.002598583639 | NB19: 0.02048579551 | NC19: 0.01065807709 | ND19: 0.004350506022 | NE19: 0.002086591615 | NF19: 0.02453813628 | NG19: 0.002546406213 | NH19: 0.02065121667 | NI19: 0.004141264727 | NJ19: 0.01140967742 | NK19: 0.02109119832 | NL19: 0.002536413976 | NM19: 0.002159718888 | NN19: 0.02467587071 | NO19: 0.02338039079 | NP19: 0.002186404953 | NQ19: 0.001717942441 | NR19: 0.02933547501 | NS19: 0.006128070965 | NT19: 0.006442709551 | NU19: 0.01023984798 | NV19: 0.004408330005 | NW19: 0.0102416931 | NX19: 0.004443970371 | NY19: 0.002746894975 | NZ19: 0.01955398545 | OA19: 0.004798556405 | OB19: 0.009061567252 | OC19: 0.004942709194 | OD19: 0.008536280945 | OE19: 0.003896493995 | OF19: 0.01220150722 | OG19: 0.01759025641 | OH19: 0.002954858672 | OI19: 0.01373032839 | OJ19: 0.003639466959 | OK19: 0.002584123284 | OL19: 0.02130176756 | OM19: 0.02966923119 | ON19: 0.001769416632 | OO19: 0.00255248326 | OP19: 0.02044866345 | OQ19: 0.002427166213 | OR19: 0.02230080683 | OS19: 0.003008767475 | OT19: 0.01733381325 | OU19: 0.01889053813 | OV19: 0.002749488113 | OW19: 0.02698063921 | OX19: 0.001948790985 | OY19: 0.004581919189 | OZ19: 0.009608107295 | PA19: 0.003776582141 | PB19: 0.01299317229 | PC19: 0.002914344391 | PD19: 0.01796378356 | PE19: 0.008444976993 | PF19: 0.004942610505 | PG19: 0.002432041999 | PH19: 0.02140861106 | PI19: 0.0009051332615 | PJ19: 0.04905932524 | PK19: 0.0247330364 | PL19: 0.002057188798 | PM19: 0.007640543547 | PN19: 0.005209550344 | PO19: 0.004706785583 | PP19: 0.00922651627 | PQ19: 0.004113585929 | PR19: 0.01188605217 | PS19: 0.01392491372 | PT19: 0.0035943286 | PU19: 0.001271172522 | PV19: 0.03619115394 | PW19: 0.007964578923 | PX19: 0.005106567238 | PY19: 0.00877696288 | PZ19: 0.004827268897 | QA19: 0.006994362494 | QB19: 0.00565694562 | QC19: 0.02309583741 | QD19: 0.002284087845 | QE19: 0.01040791061 | QF19: 0.004448335042 | QG19: 0.007464001228 | QH19: 0.005312840281 | QI19: 0.007170041907 | QJ19: 0.005540423371 | QK19: 0.002113541768 | QL19: 0.02414422643 | QM19: 0.003326158573 | QN19: 0.01553174499 | QO19: 0.026465504 | QP19: 0.001959285052 | QQ19: 0.003871474252 | QR19: 0.01262390373 | QS19: 0.007173679892 | QT19: 0.00551140926 | QU19: 0.02047978554 | QV19: 0.002556610244 | QW19: 0.002390841896 | QX19: 0.02238217472 | QY19: 0.00445050663 | QZ19: 0.01020354552 | RA19: 0.0023035945 | RB19: 0.02348861004 | RC19: 0.01706859468 | RD19: 0.003123578476 | RE19: 0.007936494871 | RF19: 0.005072629982 | RG19: 0.01131068139 | RH19: 0.004163776332 | RI19: 0.006697843562 | RJ19: 0.005887354534 | RK19: 0.01195852506 | RL19: 0.004029357532 | RM19: 0.001483611698 | RN19: 0.03448193425 | RO19: 0.001512007133 | RP19: 0.03257751467 | RQ19: 0.001251975788 | RR19: 0.03730284898 | RS19: 0.007948233395 | RT19: 0.005063276184 | RU19: 0.004488337853 | RV19: 0.009944678938 | RW19: 0.006381710003 | RX19: 0.006189085459 | RY19: 0.007250219142 | RZ19: 0.005461330764 | SA19: 0.00101547571 | SB19: 0.0451887923 | SC19: 0.006032776923 | SD19: 0.00654032026 | SE19: 0.03949604704 | SF19: 0.001234940844 | SG19: 0.001572917778 | SH19: 0.03158013981 | SI19: 0.01680644946 | SJ19: 0.003175614007 | SK19: 0.02107197216 | SL19: 0.002534137055 | SM19: 0.005443929902 | SN19: 0.007258569349 | SO19: 0.001356374686 | SP19: 0.01102473685 | SQ19: 0.006645117028 | SR19: 0
B20: PD | C20: 0.001 | E20: 2.5 | F20: -0.002861188982 | G20: -0.02477612402 | H20: 0.08292155188 | I20: -0.09964974699 | J20: -0.07698700984 | K20: 0.05837430519 | L20: -0.00685185499 | M20: -0.02142837325 | N20: 0.00496544318 | O20: -0.03225179008 | P20: 0.1483982685 | Q20: -0.1465459567 | R20: 0.002050238884 | S20: -0.02975894572 | T20: -0.05386154895 | U20: 0.02985540642 | V20: -0.1028527143 | W20: 0.08848803573 | X20: -0.06721594209 | Y20: 0.04305112013 | Z20: -0.05052359564 | AA20: 0.02480794991 | AB20: 0.03541348115 | AC20: -0.06053457953 | AD20: -0.0005684222779 | AE20: -0.02746241637 | AF20: -0.01515001818 | AG20: -0.01307807827 | AH20: 0.02631247895 | AI20: -0.05092643565 | AJ20: -0.0582236489 | AK20: 0.03441574083 | AL20: -0.07703344584 | AM20: 0.05493075762 | AN20: -0.002628059776 | AO20: -0.0252326921 | AP20: -0.06209080979 | AQ20: 0.03937815383 | AR20: 0.03948952683 | AS20: -0.06286970191 | AT20: -0.07429354686 | AU20: 0.05105979964 | AV20: -0.02439112285 | AW20: -0.003129478645 | AX20: -0.02097376846 | AY20: -0.007076421917 | AZ20: -0.05766496625 | BA20: 0.03312590966 | BB20: -0.09447686357 | BC20: 0.079164801 | BD20: -0.09940555516 | BE20: 0.08659052085 | BF20: -0.04484486215 | BG20: 0.01761539726 | BH20: -0.006022870617 | BI20: -0.0221604127 | BJ20: 0.0341071365 | BK20: -0.05914687443 | BL20: 0.01991829144 | BM20: -0.04604683238 | BN20: 0.01419304779 | BO20: -0.03988999002 | BP20: 0.04381626635 | BQ20: -0.06860566165 | BR20: -0.05194907765 | BS20: 0.0249194632 | BT20: -0.05145498192 | BU20: 0.02448863502 | BV20: 0.1175912179 | BW20: -0.1205192702 | BX20: 0.04796460719 | BY20: -0.07043966839 | BZ20: 0.05962757158 | CA20: -0.0815541482 | CB20: -0.1278099768 | CC20: 0.1233079696 | CD20: 0.09035524893 | CE20: -0.1021722118 | CF20: -0.03987039504 | CG20: 0.01146634153 | CH20: -0.07325601126 | CI20: 0.04999793954 | CJ20: 0.03097854104 | CK20: -0.05653371942 | CL20: -0.06606883581 | CM20: 0.04103850288 | CN20: 0.1101232436 | CO20: -0.1158887578 | CP20: -0.1054034293 | CQ20: 0.09153072342 | CR20: 0.07096501885 | CS20: -0.08719658985 | CT20: -0.03977449044 | CU20: 0.01390591136 | CV20: -0.1066997291 | CW20: 0.09637611998 | CX20: 0.04081446203 | CY20: -0.06481095099 | CZ20: -0.02051280276 | DA20: -0.007608130417 | DB20: -0.021216727 | DC20: -0.006772510596 | DD20: -0.01341612252 | DE20: -0.01478070999 | DF20: -0.07351226532 | DG20: 0.05260568062 | DH20: 0.003891467324 | DI20: -0.03130593606 | DJ20: -0.0439182296 | DK20: 0.01728991069 | DL20: -0.03786386817 | DM20: 0.0110583139 | DN20: -0.006000389214 | DO20: -0.02220279699 | DP20: 0.04991752847 | DQ20: -0.07091502664 | DR20: -0.05754912358 | DS20: 0.0344722238 | DT20: 0.08182279551 | DU20: -0.0999113682 | DV20: -0.1183300035 | DW20: 0.1087467438 | DX20: -0.04081104416 | DY20: 0.01330370283 | DZ20: 0.00247395823 | EA20: -0.03050029503 | EB20: 0.00672553662 | EC20: -0.03412884059 | ED20: -0.05768899813 | EE20: 0.03448818356 | EF20: -0.02461772302 | EG20: -0.00300234413 | EH20: 0.002196081853 | EI20: -0.0306735987 | EJ20: -0.08232397356 | EK20: 0.05808881346 | EL20: 0.01380479039 | EM20: -0.04064809802 | EN20: 0.0296782594 | EO20: -0.05511586101 | EP20: -0.1046873081 | EQ20: 0.09650983481 | ER20: 0.04576320877 | ES20: -0.0662013506 | ET20: -0.09753170841 | EU20: 0.08005310132 | EV20: -0.0455543861 | EW20: 0.02082907755 | EX20: -0.07329799175 | EY20: 0.05108249844 | EZ20: 0.02202550898 | FA20: -0.04834983046 | FB20: 0.09274939521 | FC20: -0.1041837862 | FD20: -0.05300219469 | FE20: 0.02632761882 | FF20: -0.009648518897 | FG20: -0.01856223646 | FH20: -0.06114023792 | FI20: 0.03700404417 | FJ20: 0.02242153954 | FK20: -0.04871624917 | FL20: -0.06531141817 | FM20: 0.04137439108 | FN20: -0.1461695249 | FO20: 0.1523003511 | FP20: 0.05379599362 | FQ20: -0.07642754009 | FR20: 0.01111594658 | FS20: -0.03818645867 | FT20: -0.06191598717 | FU20: 0.03680196017 | FV20: -0.07768050599 | FW20: 0.05883932231 | FX20: 0.01884958377 | FY20: -0.04542886777 | FZ20: -0.1370175478 | GA20: 0.1305079164 | GB20: 0.003551523572 | GC20: -0.0308956475 | GD20: -0.02445569221 | GE20: -0.003608865911 | GF20: 0.002768796223 | GG20: -0.03054735264 | GH20: 0.04022953331 | GI20: -0.06328730564 | GJ20: 0.005436750111 | GK20: -0.03233654653 | GL20: 0.00807081437 | GM20: -0.03564366451 | GN20: 0.01887263583 | GO20: -0.04493310594 | GP20: -0.09207387049 | GQ20: 0.07244977196 | GR20: -0.0677742127 | GS20: 0.04502206475 | GT20: 0.07005729775 | GU20: -0.08787725571 | GV20: -0.02989169541 | GW20: 0.002235544815 | GX20: 0.007543202905 | GY20: -0.03535949786 | GZ20: 0.02901973973 | HA20: -0.0542621932 | HB20: -0.08360290035 | HC20: 0.06575359065 | HD20: -0.03944240884 | HE20: 0.01235428954 | HF20: -0.07324510918 | HG20: 0.05411029162 | HH20: 0.05655313803 | HI20: -0.07576980642 | HJ20: -0.05346146611 | HK20: 0.02755958798 | HL20: 0.01120936936 | HM20: -0.03848456289 | HN20: -0.02192770918 | HO20: -0.005965568271 | HP20: 0.01608245582 | HQ20: -0.04270807403 | HR20: -0.1377997809 | HS20: 0.1439563672 | HT20: -0.09350102231 | HU20: 0.0769175245 | HV20: -0.1203163924 | HW20: 0.1107977153 | HX20: -0.01786236605 | HY20: -0.01026053911 | HZ20: -0.06439632737 | IA20: 0.03884133978 | IB20: 0.02257277527 | IC20: -0.04863747393 | ID20: -0.01400612363 | IE20: -0.01419380193 | IF20: -0.1273644804 | IG20: 0.1257440766 | IH20: -0.0004003331241 | II20: -0.02728385974 | IJ20: 0.1173384369 | IK20: -0.1201049707 | IL20: -0.1226785613 | IM20: 0.1151724026 | IN20: 0.05421238091 | IO20: -0.07359623554 | IP20: 0.05885844396 | IQ20: -0.07839093412 | IR20: 0.02669021024 | IS20: -0.05258110041 | IT20: -0.08776637747 | IU20: 0.07042104112 | IV20: 0.02315856932 | IW20: -0.03344561907 | IX20: -0.01028704975 | IY20: 0 | IZ20: 0 | JA20: 0.007015404448 | JB20: 0.004963099413 | JC20: 0.02681598608 | JD20: 0.00166385861 | JE20: 0.002270247497 | JF20: 0.02105152773 | JG20: 0.006583402123 | JH20: 0.005229909081 | JI20: 0.008509462834 | JJ20: 0.004418777049 | JK20: 0.04219195923 | JL20: 0.0009522981089 | JM20: 0.007824882035 | JN20: 0.004592746706 | JO20: 0.003180510546 | JP20: 0.01435440171 | JQ20: 0.001595363286 | JR20: 0.02812316993 | JS20: 0.002612179982 | JT20: 0.01745316644 | JU20: 0.003343664548 | JV20: 0.01316910166 | JW20: 0.01565961084 | JX20: 0.002880570293 | JY20: 0.007276997441 | JZ20: 0.004759592548 | KA20: 0.005772570415 | KB20: 0.005964575732 | KC20: 0.01352241195 | KD20: 0.003323484809 | KE20: 0.002980652606 | KF20: 0.01542531032 | KG20: 0.00226875316 | KH20: 0.02024287546 | KI20: 0.007041546364 | KJ20: 0.004927860165 | KK20: 0.00281533314 | KL20: 0.01659063951 | KM20: 0.01661679336 | KN20: 0.002783318141 | KO20: 0.002358956294 | KP20: 0.01933385392 | KQ20: 0.004993025611 | KR20: 0.006985446022 | KS20: 0.00526731059 | KT20: 0.006559940686 | KU20: 0.003005438075 | KV20: 0.01512241778 | KW20: 0.001782604314 | KX20: 0.02593378392 | KY20: 0.001669234123 | KZ20: 0.02767757431 | LA20: 0.003643173407 | LB20: 0.01148006619 | LC20: 0.006670778796 | LD20: 0.005170279026 | LE20: 0.01535284041 | LF20: 0.002940201826 | LG20: 0.0120208575 | LH20: 0.003577370895 | LI20: 0.01067639191 | LJ20: 0.003928917744 | LK20: 0.01763284661 | LL20: 0.002560048464 | LM20: 0.003272866905 | LN20: 0.01319528845 | LO20: 0.003297214543 | LP20: 0.01309411657 | LQ20: 0.03495750388 | LR20: 0.001277455975 | LS20: 0.01860700629 | LT20: 0.002493092033 | LU20: 0.02134583372 | LV20: 0.002128732598 | LW20: 0.001171525168 | LX20: 0.0362999753 | LY20: 0.02856164976 | LZ20: 0.001609607647 | MA20: 0.003930095685 | MB20: 0.01003607632 | MC20: 0.00239421584 | MD20: 0.01908449608 | ME20: 0.01461814872 | MF20: 0.003056344168 | MG20: 0.002656139204 | MH20: 0.0169805412 | MI20: 0.03320379085 | MJ20: 0.001351837622 | MK20: 0.001543404071 | ML20: 0.0288376878 | MM20: 0.02400821959 | MN20: 0.001968292608 | MO20: 0.003935866534 | MP20: 0.01060896333 | MQ20: 0.001517843007 | MR20: 0.02997553788 | MS20: 0.01692792943 | MT20: 0.002705329798 | MU20: 0.005305528019 | MV20: 0.006504741955 | MW20: 0.005247286255 | MX20: 0.00659171271 | MY20: 0.005932791894 | MZ20: 0.005806306884 | NA20: 0.002385449923 | NB20: 0.01969687494 | NC20: 0.008257259841 | ND20: 0.004483929682 | NE20: 0.003694818063 | NF20: 0.0114036318 | NG20: 0.004052794201 | NH20: 0.009940258719 | NI20: 0.006673165343 | NJ20: 0.005166848904 | NK20: 0.01906561306 | NL20: 0.002476072397 | NM20: 0.003010606568 | NN20: 0.01543857428 | NO20: 0.02655796385 | NP20: 0.001658123943 | NQ20: 0.001311898302 | NR20: 0.03288054579 | NS20: 0.003873984575 | NT20: 0.010467546 | NU20: 0.007924384539 | NV20: 0.004540246437 | NW20: 0.008922787614 | NX20: 0.004292507543 | NY20: 0.003004367118 | NZ20: 0.01544232213 | OA20: 0.004975388525 | OB20: 0.006999625631 | OC20: 0.007859130508 | OD20: 0.004528067557 | OE20: 0.002105933699 | OF20: 0.02098448537 | OG20: 0.01058521697 | OH20: 0.003883641128 | OI20: 0.01431280207 | OJ20: 0.003121531547 | OK20: 0.001557766615 | OL20: 0.03000693829 | OM20: 0.01809004935 | ON20: 0.002651017507 | OO20: 0.00171122952 | OP20: 0.02614238452 | OQ20: 0.003604169409 | OR20: 0.01223473846 | OS20: 0.002392777182 | OT20: 0.01933918431 | OU20: 0.01251569783 | OV20: 0.003454947823 | OW20: 0.02912386991 | OX20: 0.001567969728 | OY20: 0.003221642744 | OZ20: 0.01352596727 | PA20: 0.006297432333 | PB20: 0.005470557901 | PC20: 0.002854977784 | PD20: 0.01603312459 | PE20: 0.01260869815 | PF20: 0.003435903201 | PG20: 0.002685633743 | PH20: 0.01705941822 | PI20: 0.0009560532746 | PJ20: 0.0431082898 | PK20: 0.01997639752 | PL20: 0.002288343761 | PM20: 0.009953792666 | PN20: 0.00403278767 | PO20: 0.002822576784 | PP20: 0.01598566897 | PQ20: 0.002248051605 | PR20: 0.02116072823 | PS20: 0.01176989164 | PT20: 0.003611035576 | PU20: 0.001055115635 | PV20: 0.03799074714 | PW20: 0.008177430456 | PX20: 0.004512514853 | PY20: 0.004987993113 | PZ20: 0.006932249911 | QA20: 0.007993621687 | QB20: 0.004536935966 | QC20: 0.01679056994 | QD20: 0.00276632536 | QE20: 0.008620140386 | QF20: 0.004412989212 | QG20: 0.009238700745 | QH20: 0.004193469353 | QI20: 0.01177530498 | QJ20: 0.003638297087 | QK20: 0.001841391612 | QL20: 0.02435688588 | QM20: 0.002591091268 | QN20: 0.01791600564 | QO20: 0.02379505839 | QP20: 0.001949949671 | QQ20: 0.004583297628 | QR20: 0.007868397641 | QS20: 0.009114801134 | QT20: 0.004211856393 | QU20: 0.01415816114 | QV20: 0.003161536393 | QW20: 0.002068705365 | QX20: 0.02278441387 | QY20: 0.003955920844 | QZ20: 0.01024459418 | RA20: 0.002394589618 | RB20: 0.02005020448 | RC20: 0.02062386093 | RD20: 0.002309837727 | RE20: 0.003199586172 | RF20: 0.01381527201 | RG20: 0.009975731246 | RH20: 0.004014395923 | RI20: 0.005189155062 | RJ20: 0.00667686359 | RK20: 0.01112008378 | RL20: 0.00376348751 | RM20: 0.001046036327 | RN20: 0.04114886242 | RO20: 0.001806190501 | RP20: 0.02540605338 | RQ20: 0.001280594423 | RR20: 0.0333621778 | RS20: 0.00553110084 | RT20: 0.006236620062 | RU20: 0.002721773624 | RV20: 0.01646457885 | RW20: 0.01264421301 | RX20: 0.003439987648 | RY20: 0.005877748493 | RZ20: 0.005860353221 | SA20: 0.001177630318 | SB20: 0.03687204914 | SC20: 0.007296574108 | SD20: 0.004772836568 | SE20: 0.03489814303 | SF20: 0.001283876512 | SG20: 0.001244710816 | SH20: 0.03438949068 | SI20: 0.02007417823 | SJ20: 0.002382585699 | SK20: 0.02116521859 | SL20: 0.002225581162 | SM20: 0.01361111503 | SN20: 0.003242016165 | SO20: 0.00195292334 | SP20: 0.01058124047 | SQ20: 0.006233999964 | SR20: 0
B21: LGD | C21: 0.6 | E21: 2.75 | F21: 0.007467783526 | G21: -0.03621378852 | H21: 0.009956563497 | I21: -0.03867701947 | J21: -0.08234405999 | K21: 0.06350025655 | L21: -0.04229614101 | M21: 0.01355305305 | N21: 0.007115454074 | O21: -0.03609850771 | P21: 0.08811939522 | Q21: -0.1028618268 | R21: -0.01854047739 | S21: -0.01165917411 | T21: -0.06645015113 | U21: 0.04281525152 | V21: -0.1043276715 | W21: 0.08932168909 | X21: -0.09258872688 | Y21: 0.07145221804 | Z21: -0.06346840248 | AA21: 0.03759600872 | AB21: 0.03024741061 | AC21: -0.05756335822 | AD21: -0.003805311185 | AE21: -0.02623015231 | AF21: -0.04143674893 | AG21: 0.01124472434 | AH21: 0.02106990814 | AI21: -0.04803261237 | AJ21: -0.05485013605 | AK21: 0.02864656327 | AL21: -0.04104468571 | AM21: 0.01234358406 | AN21: -0.04613141879 | AO21: 0.01652487128 | AP21: -0.05744627515 | AQ21: 0.03207745219 | AR21: 0.02081037799 | AS21: -0.04818330449 | AT21: -0.09365524486 | AU21: 0.07259976542 | AV21: -0.0119685983 | AW21: -0.01834034863 | AX21: -0.01171702829 | AY21: -0.01848197837 | AZ21: -0.06373124876 | BA21: 0.03826775538 | BB21: -0.04811563891 | BC21: 0.02139358344 | BD21: -0.05911361637 | BE21: 0.03475426775 | BF21: -0.03244188463 | BG21: 0.002606809835 | BH21: 0.002310243866 | BI21: -0.03224082408 | BJ21: 0.03439486124 | BK21: -0.06101760882 | BL21: -0.01105039554 | BM21: -0.01897972455 | BN21: 0.01607299623 | BO21: -0.04330564802 | BP21: 0.0659710251 | BQ21: -0.08905829008 | BR21: -0.04838137213 | BS21: 0.01920958007 | BT21: -0.06048679766 | BU21: 0.03248222281 | BV21: 0.1245710745 | BW21: -0.1256816872 | BX21: 0.01062420522 | BY21: -0.03919000198 | BZ21: 0.03956034727 | CA21: -0.06571443514 | CB21: -0.1482135815 | CC21: 0.1527122908 | CD21: 0.1258877691 | CE21: -0.1286059885 | CF21: 0.008955621241 | CG21: -0.03767868181 | CH21: -0.06469045614 | CI21: 0.03842026128 | CJ21: -0.002332832196 | CK21: -0.02746005115 | CL21: -0.06359298147 | CM21: 0.03648651443 | CN21: 0.08639773325 | CO21: -0.09909647144 | CP21: -0.08662228438 | CQ21: 0.06653590175 | CR21: 0.05339030076 | CS21: -0.07441371044 | CT21: -0.03899936443 | CU21: 0.01103580448 | CV21: -0.1213318187 | CW21: 0.1156165321 | CX21: 0.008932606767 | CY21: -0.03788323795 | CZ21: -0.01339459396 | DA21: -0.01677597395 | DB21: 0.003445518061 | DC21: -0.03361274107 | DD21: -0.005828431712 | DE21: -0.02420186078 | DF21: -0.06962103915 | DG21: 0.04622942192 | DH21: 0.02495127831 | DI21: -0.05237939897 | DJ21: -0.01529604005 | DK21: -0.01486278124 | DL21: -0.05476018767 | DM21: 0.02786262306 | DN21: -0.001959653591 | DO21: -0.02812359471 | DP21: 0.006296197896 | DQ21: -0.0347994834 | DR21: -0.0400737566 | DS21: 0.01238113764 | DT21: 0.1062042594 | DU21: -0.1198132143 | DV21: -0.1235851117 | DW21: 0.1152986174 | DX21: -0.04341598042 | DY21: 0.01413126825 | DZ21: 0.05297447499 | EA21: -0.07860322869 | EB21: 0.02045130664 | EC21: -0.04862949714 | ED21: -0.06206942498 | EE21: 0.03780326745 | EF21: -0.01284416385 | EG21: -0.01740363319 | EH21: 0.004773597488 | EI21: -0.03515996898 | EJ21: -0.09038241406 | EK21: 0.0659502433 | EL21: 0.02450377932 | EM21: -0.05215248884 | EN21: 0.02966304381 | EO21: -0.05676553529 | EP21: -0.08480171885 | EQ21: 0.06872461973 | ER21: 0.02899312595 | ES21: -0.05383147431 | ET21: -0.09386714994 | EU21: 0.07422651424 | EV21: -0.05491113009 | EW21: 0.02978272412 | EX21: -0.06469610476 | EY21: 0.03929180409 | EZ21: 0.04093609573 | FA21: -0.06685889852 | FB21: 0.1018666873 | FC21: -0.1116818585 | FD21: -0.02504456619 | FE21: -0.005032066139 | FF21: -0.03444758997 | FG21: 0.004866329125 | FH21: -0.05280968582 | FI21: 0.02567063616 | FJ21: 0.05870661816 | FK21: -0.08201810835 | FL21: -0.05740063637 | FM21: 0.03054157337 | FN21: -0.1549522475 | FO21: 0.1664008474 | FP21: 0.08640657274 | FQ21: -0.1044215073 | FR21: -0.01859481065 | FS21: -0.01162478547 | FT21: -0.05627415763 | FU21: 0.02866335026 | FV21: -0.05487126866 | FW21: 0.02957473113 | FX21: 0.005851829671 | FY21: -0.03518088088 | FZ21: -0.1372465027 | GA21: 0.1308262418 | GB21: 0.004002441343 | GC21: -0.03317682772 | GD21: 0.0216235146 | GE21: -0.05037735002 | GF21: -0.0109155025 | GG21: -0.01919589866 | GH21: 0.06370353779 | GI21: -0.08421703616 | GJ21: 0.0002679046679 | GK21: -0.02944293402 | GL21: 0.02754047796 | GM21: -0.0554757704 | GN21: -0.01163652621 | GO21: -0.01839589698 | GP21: -0.1160380956 | GQ21: 0.1014827199 | GR21: -0.07323880727 | GS21: 0.04976357406 | GT21: 0.09191960777 | GU21: -0.1059648313 | GV21: -0.0201008073 | GW21: -0.009945830687 | GX21: 0.01211774326 | GY21: -0.04157185757 | GZ21: 0.006025493807 | HA21: -0.03512760562 | HB21: -0.07236904919 | HC21: 0.05029120524 | HD21: -0.04063931345 | HE21: 0.01168238567 | HF21: -0.06221396006 | HG21: 0.03885816625 | HH21: 0.06531214726 | HI21: -0.08405626932 | HJ21: -0.03015446804 | HK21: 0.0004860100948 | HL21: 0.02388659021 | HM21: -0.05196424704 | HN21: -0.01319030414 | HO21: -0.01702394735 | HP21: -0.01090307456 | HQ21: -0.01914495003 | HR21: -0.1450926558 | HS21: 0.1554495539 | HT21: -0.07038787111 | HU21: 0.04701563849 | HV21: -0.1119790474 | HW21: 0.09901797511 | HX21: -0.03119587025 | HY21: 0.001606737083 | HZ21: -0.05645523522 | IA21: 0.02825333091 | IB21: 0.03715476383 | IC21: -0.06326652496 | ID21: -0.03780750853 | IE21: 0.008207408478 | IF21: -0.1063954306 | IG21: 0.09602790313 | IH21: -0.002504002089 | II21: -0.02718299682 | IJ21: 0.1582187771 | IK21: -0.1477833434 | IL21: -0.09217960592 | IM21: 0.07422779607 | IN21: 0.01323125144 | IO21: -0.04061134382 | IP21: 0.08756765555 | IQ21: -0.1021922672 | IR21: 0.005668333946 | IS21: -0.03500747804 | IT21: -0.1057472509 | IU21: 0.09228100029 | IV21: 0.0232298442 | IW21: -0.03417938079 | IX21: -0.01094953659 | IY21: 0 | IZ21: 0 | JA21: 0.008723188253 | JB21: 0.003902025466 | JC21: 0.009296401918 | JD21: 0.003753400213 | JE21: 0.001943412486 | JF21: 0.02162853931 | JG21: 0.003546197149 | JH21: 0.0101247423 | JI21: 0.008642040037 | JJ21: 0.003909137435 | JK21: 0.02729879818 | JL21: 0.001464644767 | JM21: 0.005175844211 | JN21: 0.005786927352 | JO21: 0.002450880614 | JP21: 0.01686438672 | JQ21: 0.001436528554 | JR21: 0.02757570947 | JS21: 0.001683110419 | JT21: 0.02346002825 | JU21: 0.002562653206 | JV21: 0.0156622952 | JW21: 0.01396977239 | JX21: 0.00280178728 | JY21: 0.006579064352 | JZ21: 0.004573591935 | KA21: 0.003594232011 | KB21: 0.009593090018 | KC21: 0.01185601791 | KD21: 0.003243215876 | KE21: 0.002920132166 | KF21: 0.01360106661 | KG21: 0.003616384207 | KH21: 0.009846178444 | KI21: 0.003340319462 | KJ21: 0.01080920892 | KK21: 0.002806780276 | KL21: 0.014391266 | KM21: 0.01179624315 | KN21: 0.003235654983 | KO21: 0.001658575975 | KP21: 0.02372433037 | KQ21: 0.005757863207 | KR21: 0.005192610715 | KS21: 0.00578148132 | KT21: 0.005180739186 | KU21: 0.002552566662 | KV21: 0.01581701131 | KW21: 0.003239047628 | KX21: 0.01193056653 | KY21: 0.002736621897 | KZ21: 0.01500778786 | LA21: 0.004142236529 | LB21: 0.007603612969 | LC21: 0.007535308149 | LD21: 0.004155485776 | LE21: 0.01492500966 | LF21: 0.002658943521 | LG21: 0.005844564774 | LH21: 0.005139247169 | LI21: 0.01070513345 | LJ21: 0.00349067595 | LK21: 0.0221976046 | LL21: 0.001767641519 | LM21: 0.00322574698 | LN21: 0.01142754875 | LO21: 0.002680342579 | LP21: 0.01448449242 | LQ21: 0.03569431764 | LR21: 0.001098664137 | LS21: 0.009450172585 | LT21: 0.003723236344 | LU21: 0.01611471997 | LV21: 0.002477925355 | LW21: 0.0008550906881 | LX21: 0.0421757784 | LY21: 0.03599757761 | LZ21: 0.001061407389 | MA21: 0.009065865758 | MB21: 0.00381287584 | MC21: 0.002516144773 | MD21: 0.01585213634 | ME21: 0.006739898142 | MF21: 0.004484470974 | MG21: 0.00255786685 | MH21: 0.01540675743 | MI21: 0.02690226647 | MJ21: 0.001540234377 | MK21: 0.001829060829 | ML21: 0.0223277065 | MM21: 0.01930002297 | MN21: 0.002179174745 | MO21: 0.003734414796 | MP21: 0.009544971775 | MQ21: 0.001157709055 | MR21: 0.03363191512 | MS21: 0.009060565084 | MT21: 0.003800605729 | MU21: 0.005625907209 | MV21: 0.005325687116 | MW21: 0.007796783527 | MX21: 0.004065988728 | MY21: 0.006364642362 | MZ21: 0.004724765182 | NA21: 0.002338183675 | NB21: 0.01765073551 | NC21: 0.01274997175 | ND21: 0.003032842787 | NE21: 0.005454931593 | NF21: 0.005493397574 | NG21: 0.002924151484 | NH21: 0.01342051017 | NI21: 0.00678131197 | NJ21: 0.00443716979 | NK21: 0.008453349658 | NL21: 0.003990264754 | NM21: 0.003671894001 | NN21: 0.009854827752 | NO21: 0.03146408857 | NP21: 0.001179396819 | NQ21: 0.001126565801 | NR21: 0.03355869329 | NS21: 0.003484666396 | NT21: 0.01025791633 | NU21: 0.01920425034 | NV21: 0.00205059284 | NW21: 0.01171354214 | NX21: 0.003213382745 | NY21: 0.002617117266 | NZ21: 0.01571003085 | OA21: 0.005676457406 | OB21: 0.005271862081 | OC21: 0.008102665639 | OD21: 0.003967568635 | OE21: 0.00173532908 | OF21: 0.02219281815 | OG21: 0.01264690417 | OH21: 0.003043437659 | OI21: 0.01383518154 | OJ21: 0.002836011656 | OK21: 0.0018766874 | OL21: 0.02283181014 | OM21: 0.01368088663 | ON21: 0.002966018621 | OO21: 0.001653755091 | OP21: 0.02409900176 | OQ21: 0.002917410223 | OR21: 0.0138627462 | OS21: 0.002515932077 | OT21: 0.01605286933 | OU21: 0.01643158117 | OV21: 0.002436003406 | OW21: 0.03046506268 | OX21: 0.001305783289 | OY21: 0.004661312739 | OZ21: 0.006448153992 | PA21: 0.004012556714 | PB21: 0.008124023511 | PC21: 0.003012865737 | PD21: 0.01291565363 | PE21: 0.02052447263 | PF21: 0.001952477513 | PG21: 0.002808729279 | PH21: 0.01403752371 | PI21: 0.0007989576139 | PJ21: 0.045328515 | PK21: 0.02690430237 | PL21: 0.001434752953 | PM21: 0.005171302236 | PN21: 0.005790167061 | PO21: 0.00285732677 | PP21: 0.01360493298 | PQ21: 0.002919188769 | PR21: 0.01381484144 | PS21: 0.00835100315 | PT21: 0.003966256358 | PU21: 0.0009617750002 | PV21: 0.03713500238 | PW21: 0.007925053619 | PX21: 0.004094195909 | PY21: 0.01198352407 | PZ21: 0.003127773633 | QA21: 0.00585741821 | QB21: 0.005121337692 | QC21: 0.02167535887 | QD21: 0.001892304646 | QE21: 0.00706491834 | QF21: 0.004344715307 | QG21: 0.01334631399 | QH21: 0.002892348311 | QI21: 0.005789060765 | QJ21: 0.005187951144 | QK21: 0.001235857545 | QL21: 0.03037662763 | QM21: 0.002216942152 | QN21: 0.0184647184 | QO21: 0.02817405987 | QP21: 0.001405960857 | QQ21: 0.005047089605 | QR21: 0.005950700218 | QS21: 0.009794162984 | QT21: 0.003586632883 | QU21: 0.008391001324 | QV21: 0.003969600454 | QW21: 0.002245400095 | QX21: 0.01858624195 | QY21: 0.003639446827 | QZ21: 0.009693891799 | RA21: 0.002611429017 | RB21: 0.01595299424 | RC21: 0.02204585242 | RD21: 0.001896626657 | RE21: 0.004295721424 | RF21: 0.007115152194 | RG21: 0.0125047537 | RH21: 0.003052258656 | RI21: 0.005644612691 | RJ21: 0.005304352399 | RK21: 0.005858603926 | RL21: 0.005125552639 | RM21: 0.0008834061272 | RN21: 0.04280622247 | RO21: 0.002311846551 | RP21: 0.01783181624 | RQ21: 0.001300842808 | RR21: 0.02980894973 | RS21: 0.004225091067 | RT21: 0.007373277072 | RU21: 0.002849450837 | RV21: 0.01351049767 | RW21: 0.01556066805 | RX21: 0.002570431346 | RY21: 0.003805143231 | RZ21: 0.008893538037 | SA21: 0.001398064369 | SB21: 0.02912027892 | SC21: 0.006720991383 | SD21: 0.004504382003 | SE21: 0.04344402759 | SF21: 0.0008589032887 | SG21: 0.00169264308 | SH21: 0.02409929699 | SI21: 0.01005062523 | SJ21: 0.003641044057 | SK21: 0.02717172197 | SL21: 0.001477727543 | SM21: 0.008308740572 | SN21: 0.003977152188 | SO21: 0.001409973441 | SP21: 0.01019648013 | SQ21: 0.005854172411 | SR21: 0
B22: Weight | C22: 0.008 | E22: 3 | F22: 0.004642221164 | G22: -0.03525748042 | H22: 0.04645814302 | I22: -0.0722909545 | J22: -0.07334827252 | K22: 0.05082782888 | L22: -0.04737011267 | M22: 0.01736834547 | N22: 0.02557688637 | O22: -0.05436600412 | P22: 0.1016246743 | Q22: -0.1135232508 | R22: -0.01330585979 | S22: -0.01856879775 | T22: -0.06220184181 | U22: 0.03616794893 | V22: -0.1334276229 | W22: 0.128520076 | X22: -0.06143589883 | Y22: 0.03328728825 | Z22: -0.06776127479 | AA22: 0.04101958845 | AB22: -0.005002711937 | AC22: -0.02657458189 | AD22: 0.008506311644 | AE22: -0.03975760643 | AF22: -0.04507313163 | AG22: 0.01330386382 | AH22: 0.08953622183 | AI22: -0.1050732355 | AJ22: -0.04651868036 | AK22: 0.01743145002 | AL22: -0.02278113842 | AM22: -0.00889311602 | AN22: -0.0583894949 | AO22: 0.02798247169 | AP22: -0.04128821897 | AQ22: 0.01180119359 | AR22: -0.004734354079 | AS22: -0.02655031647 | AT22: -0.0945322754 | AU22: 0.07260443484 | AV22: -0.008120386682 | AW22: -0.02413089545 | AX22: -0.01369795765 | AY22: -0.01824742328 | AZ22: -0.05778578662 | BA22: 0.02979871046 | BB22: -0.05649895494 | BC22: 0.02941285031 | BD22: -0.05676952152 | BE22: 0.03030803953 | BF22: -0.04258355214 | BG22: 0.01152393052 | BH22: 0.01090705344 | BI22: -0.04213292134 | BJ22: 0.02460933092 | BK22: -0.05378772293 | BL22: -0.004491159628 | BM22: -0.02695366177 | BN22: 0.03937054315 | BO22: -0.06464808036 | BP22: 0.05935374553 | BQ22: -0.08453047945 | BR22: -0.01883452537 | BS22: -0.01309296562 | BT22: -0.04858122879 | BU22: 0.01787227474 | BV22: 0.1320373184 | BW22: -0.1306834118 | BX22: 0.0239685603 | BY22: -0.05272324233 | BZ22: 0.01534227287 | CA22: -0.04553735024 | CB22: -0.1337487126 | CC22: 0.1320848089 | CD22: 0.1003792788 | CE22: -0.1106058305 | CF22: 0.04563053066 | CG22: -0.07140711104 | CH22: -0.05635461693 | CI22: 0.02737803623 | CJ22: 0.01742388286 | CK22: -0.04758743017 | CL22: -0.03309408173 | CM22: 0.001680757667 | CN22: 0.08471353674 | CO22: -0.09852086712 | CP22: -0.1022197212 | CQ22: 0.08530048897 | CR22: 0.04404781954 | CS22: -0.06803496168 | CT22: -0.04215745934 | CU22: 0.01281575796 | CV22: -0.0917368879 | CW22: 0.07481566445 | CX22: 0.0393912832 | CY22: -0.06661278516 | CZ22: -0.01650878131 | DA22: -0.01540815077 | DB22: -0.01259372389 | DC22: -0.01937825143 | DD22: 0.030566998 | DE22: -0.05989556665 | DF22: -0.06777070426 | DG22: 0.04249177575 | DH22: 0.04227394601 | DI22: -0.0689270344 | DJ22: -0.03402370948 | DK22: 0.002860681304 | DL22: -0.05508045913 | DM22: 0.02656157163 | DN22: -0.004881168797 | DO22: -0.02698015318 | DP22: -0.02476951971 | DQ22: -0.007559513084 | DR22: -0.004522888978 | DS22: -0.02800229556 | DT22: 0.1607212197 | DU22: -0.1587586144 | DV22: -0.08917240083 | DW22: 0.06921429931 | DX22: -0.05762106668 | DY22: 0.02783621938 | DZ22: 0.04331540225 | EA22: -0.07140800187 | EB22: 0.04093316429 | EC22: -0.06823629296 | ED22: -0.09831016653 | EE22: 0.08164854801 | EF22: -0.0353660332 | EG22: 0.004756574734 | EH22: -0.004005950932 | EI22: -0.02813042665 | EJ22: -0.08818951509 | EK22: 0.06219321088 | EL22: -0.02148254328 | EM22: -0.01054153895 | EN22: 0.02461821921 | EO22: -0.05374818678 | EP22: -0.047514521 | EQ22: 0.02050477346 | ER22: -0.01285350262 | ES22: -0.01877577577 | ET22: -0.1136207152 | EU22: 0.09868917772 | EV22: -0.04586643379 | EW22: 0.01749028984 | EX22: -0.07804180527 | EY22: 0.05358652622 | EZ22: 0.0286915601 | FA22: -0.05748958924 | FB22: 0.06411945079 | FC22: -0.08379112649 | FD22: -0.02825697286 | FE22: -0.00350668308 | FF22: -0.02794212011 | FG22: -0.003696416855 | FH22: -0.03496118647 | FI22: 0.004198713838 | FJ22: 0.0532499909 | FK22: -0.07855776607 | FL22: -0.0444881245 | FM22: 0.01444112704 | FN22: -0.172560429 | FO22: 0.1965955063 | FP22: 0.09944242457 | FQ22: -0.1150886927 | FR22: 0.01256981485 | FS22: -0.04304207173 | FT22: -0.05873257443 | FU22: 0.02978089692 | FV22: -0.05654057842 | FW22: 0.0298658632 | FX22: -0.01570168469 | FY22: -0.01621220466 | FZ22: -0.1085021215 | GA22: 0.092017513 | GB22: -0.007179928 | GC22: -0.02436055449 | GD22: 0.01296600881 | GE22: -0.0439036059 | GF22: -0.03159228747 | GG22: -0.000175778561 | GH22: 0.0350986538 | GI22: -0.06170482292 | GJ22: -0.01934314267 | GK22: -0.01272219242 | GL22: 0.006344154616 | GM22: -0.0374788948 | GN22: 0.007952902106 | GO22: -0.03844940605 | GP22: -0.1104736503 | GQ22: 0.09368756446 | GR22: -0.05426483436 | GS22: 0.02601278255 | GT22: 0.05957656886 | GU22: -0.08148883804 | GV22: -0.02438345753 | GW22: -0.007299706261 | GX22: 0.02930854107 | GY22: -0.05904057565 | GZ22: -0.01685142652 | HA22: -0.01509100942 | HB22: -0.09141888915 | HC22: 0.07286170351 | HD22: -0.05585482372 | HE22: 0.02668356919 | HF22: -0.03491008935 | HG22: 0.00512064024 | HH22: 0.05865464541 | HI22: -0.07981781623 | HJ22: -0.00725314911 | HK22: -0.0247212435 | HL22: 0.003714396289 | HM22: -0.03490247731 | HN22: 0.00700633979 | HO22: -0.03899493815 | HP22: 0.04747284372 | HQ22: -0.07372746364 | HR22: -0.1171246557 | HS22: 0.1138292886 | HT22: -0.0677004188 | HU22: 0.04228478988 | HV22: -0.1077925507 | HW22: 0.09284658274 | HX22: -0.05571826777 | HY22: 0.02648928494 | HZ22: -0.03991865685 | IA22: 0.008736903143 | IB22: 0.02694518675 | IC22: -0.05571236384 | ID22: -0.04355068119 | IE22: 0.01255586389 | IF22: -0.07295263432 | IG22: 0.05114091989 | IH22: -0.03101760992 | II22: -0.001025921731 | IJ22: 0.1267791232 | IK22: -0.1266085279 | IL22: -0.09989739055 | IM22: 0.08315252981 | IN22: 0.0453186731 | IO22: -0.06916256422 | IP22: 0.1257937954 | IQ22: -0.130515336 | IR22: 0.006583808648 | IS22: -0.03751346809 | IT22: -0.1412685259 | IU22: 0.141551671 | IV22: 0.02257715683 | IW22: -0.03421638781 | IX22: -0.01163923098 | IY22: 0 | IZ22: 0 | JA22: 0.007714660452 | JB22: 0.00370930827 | JC22: 0.01715462029 | JD22: 0.002073845596 | JE22: 0.002041190643 | JF22: 0.01814107849 | JG22: 0.003052119936 | JH22: 0.01058758773 | JI22: 0.01244066887 | JJ22: 0.002732350702 | JK22: 0.02960848516 | JL22: 0.001164053768 | JM22: 0.00532902834 | JN22: 0.004881273142 | JO22: 0.002418475606 | JP22: 0.01483160517 | JQ22: 0.0009141729003 | JR22: 0.03568013204 | JS22: 0.0024472596 | JT22: 0.01418129495 | JU22: 0.002220930292 | JV22: 0.01592686458 | JW22: 0.006126347103 | JX22: 0.004275646896 | JY22: 0.008586980308 | JZ22: 0.003448464571 | KA22: 0.003166104585 | KB22: 0.009670029488 | KC22: 0.02687951253 | KD22: 0.001300187089 | KE22: 0.003093828227 | KF22: 0.0106018336 | KG22: 0.004551886614 | KH22: 0.00573810877 | KI22: 0.002565713917 | KJ22: 0.01298373065 | KK22: 0.00336440114 | KL22: 0.009330801127 | KM22: 0.006154129571 | KN22: 0.004277355346 | KO22: 0.001501541636 | KP22: 0.02305715535 | KQ22: 0.005813102241 | KR22: 0.004451454503 | KS22: 0.005294206941 | KT22: 0.004907430527 | KU22: 0.002589961505 | KV22: 0.01339374722 | KW22: 0.002642525438 | KX22: 0.01330663915 | KY22: 0.002631373138 | KZ22: 0.01350872845 | LA22: 0.003295027534 | LB22: 0.009268208886 | LC22: 0.009128948658 | LD22: 0.003318980503 | LE22: 0.01222224287 | LF22: 0.002757298044 | LG22: 0.006179421548 | LH22: 0.004249052614 | LI22: 0.015554592 | LJ22: 0.002329135328 | LK22: 0.02006580733 | LL22: 0.001731056899 | LM22: 0.00485975755 | LN22: 0.005348036902 | LO22: 0.002993871416 | LP22: 0.01070134994 | LQ22: 0.0364741508 | LR22: 0.0009435637991 | LS22: 0.01207758867 | LT22: 0.002803897846 | LU22: 0.01013020109 | LV22: 0.003142690867 | LW22: 0.0009108274711 | LX22: 0.03648487181 | LY22: 0.02932733665 | LZ22: 0.001208747819 | MA22: 0.01696778649 | MB22: 0.002101619557 | MC22: 0.002648496841 | MD22: 0.01284727912 | ME22: 0.01060012531 | MF22: 0.003041575351 | MG22: 0.003842339988 | MH22: 0.007046108971 | MI22: 0.02579078958 | MJ22: 0.001420857988 | MK22: 0.001351005635 | ML22: 0.02592329427 | MM22: 0.01661048887 | MN22: 0.002211701974 | MO22: 0.003317671249 | MP22: 0.009559839409 | MQ22: 0.001561615714 | MR22: 0.02355634125 | MS22: 0.01555927407 | MT22: 0.00226015061 | MU22: 0.005051562697 | MV22: 0.005145133425 | MW22: 0.005392895458 | MX22: 0.004816048286 | MY22: 0.01356718842 | MZ22: 0.002506348772 | NA22: 0.002220611594 | NB22: 0.01625921141 | NC22: 0.01621003627 | ND22: 0.002181933432 | NE22: 0.003784547244 | NF22: 0.007312477169 | NG22: 0.002701881665 | NH22: 0.01266296193 | NI22: 0.006138913781 | NJ22: 0.004247200809 | NK22: 0.004404769606 | NL22: 0.005868183437 | NM22: 0.006176115528 | NN22: 0.004176413149 | NO22: 0.04294955215 | NP22: 0.0007014418724 | NQ22: 0.001619429774 | NR22: 0.022291831 | NS22: 0.002596622818 | NT22: 0.01295071414 | NU22: 0.0164451454 | NV22: 0.002101591343 | NW22: 0.0159073543 | NX22: 0.002204942082 | NY22: 0.001424977799 | NZ22: 0.02509886724 | OA22: 0.00370276713 | OB22: 0.007740475813 | OC22: 0.006230210297 | OD22: 0.004167629966 | OE22: 0.001642299687 | OF22: 0.02070681768 | OG22: 0.004650813765 | OH22: 0.005581528372 | OI22: 0.01222424941 | OJ22: 0.002759013061 | OK22: 0.003045108469 | OL22: 0.01129563751 | OM22: 0.005369503806 | ON22: 0.004864505676 | OO22: 0.00116260054 | OP22: 0.02894579571 | OQ22: 0.003126209792 | OR22: 0.01061511671 | OS22: 0.001903444699 | OT22: 0.01876385544 | OU22: 0.01314380762 | OV22: 0.002601953851 | OW22: 0.02114166706 | OX22: 0.001749706599 | OY22: 0.004158975049 | OZ22: 0.006282929495 | PA22: 0.004180544995 | PB22: 0.006262839854 | PC22: 0.00372722671 | PD22: 0.007614538509 | PE22: 0.01868788246 | PF22: 0.001888994291 | PG22: 0.003195887496 | PH22: 0.009926767082 | PI22: 0.0006203462427 | PJ22: 0.05104818562 | PK22: 0.02911584146 | PL22: 0.001141016329 | PM22: 0.009504317662 | PN22: 0.003270851712 | PO22: 0.002552050161 | PP22: 0.01338972581 | PQ22: 0.002640806285 | PR22: 0.01340890698 | PS22: 0.005119999225 | PT22: 0.005076596448 | PU22: 0.001242454777 | PV22: 0.02743966493 | PW22: 0.005905773572 | PX22: 0.00443460482 | PY22: 0.009593758594 | PZ22: 0.003225957039 | QA22: 0.003937746321 | QB22: 0.006646867194 | QC22: 0.01459021139 | QD22: 0.002437108675 | QE22: 0.004818857882 | QF22: 0.005381314075 | QG22: 0.008098872559 | QH22: 0.003577935673 | QI22: 0.0084620479 | QJ22: 0.003522150817 | QK22: 0.001210828551 | QL22: 0.02781667966 | QM22: 0.002736696683 | QN22: 0.0125390726 | QO22: 0.02011610978 | QP22: 0.001809382774 | QQ22: 0.004432928235 | QR22: 0.005893884606 | QS22: 0.0132830913 | QT22: 0.002539854443 | QU22: 0.00502280416 | QV22: 0.005172436805 | QW22: 0.001568641676 | QX22: 0.02311523384 | QY22: 0.002669292864 | QZ22: 0.01269050293 | RA22: 0.003730326382 | RB22: 0.007822663736 | RC22: 0.01990798522 | RD22: 0.001854258704 | RE22: 0.005898502777 | RF22: 0.004408280213 | RG22: 0.007505203643 | RH22: 0.003730788388 | RI22: 0.008248361107 | RJ22: 0.003491214228 | RK22: 0.01738368935 | RL22: 0.002029628723 | RM22: 0.00111200408 | RN22: 0.03236368133 | RO22: 0.002222988396 | RP22: 0.01621248427 | RQ22: 0.001254113067 | RR22: 0.02762682773 | RS22: 0.002675007149 | RT22: 0.01264664319 | RU22: 0.003439511235 | RV22: 0.008639036425 | RW22: 0.01274956319 | RX22: 0.002675254517 | RY22: 0.003244264757 | RZ22: 0.009501168226 | SA22: 0.002053337736 | SB22: 0.0182117589 | SC22: 0.003974934293 | SD22: 0.006551924391 | SE22: 0.03528711129 | SF22: 0.0009899609295 | SG22: 0.001394321425 | SH22: 0.02543839169 | SI22: 0.01689738453 | SJ22: 0.002174152508 | SK22: 0.03506467319 | SL22: 0.0009454113117 | SM22: 0.008152974545 | SN22: 0.003575931808 | SO22: 0.0008377396506 | SP22: 0.009672856105 | SQ22: 0.005479775467 | SR22: 0
E23: 3.25 | F23: 0.005101039137 | G23: -0.03709130474 | H23: 0.0454822612 | I23: -0.07249495081 | J23: -0.04673589154 | K23: 0.0172764935 | L23: -0.05206687235 | M23: 0.02110532015 | N23: 0.003169783492 | O23: -0.03547383178 | P23: 0.1318847824 | Q23: -0.1349273285 | R23: -0.01183375154 | S23: -0.02151888672 | T23: -0.05961153316 | U23: 0.03171316098 | V23: -0.1242734608 | W23: 0.1159457814 | X23: -0.0768145344 | Y23: 0.0499412122 | Z23: -0.06622455388 | AA23: 0.03793053365 | AB23: -0.009240483488 | AC23: -0.02399401604 | AD23: -0.008731080071 | AE23: -0.02462575916 | AF23: -0.01744914991 | AG23: -0.01601610732 | AH23: 0.0429860382 | AI23: -0.06901283824 | AJ23: -0.02971661609 | AK23: -0.002768889386 | AL23: -0.01504175498 | AM23: -0.01844936169 | AN23: -0.05302717213 | AO23: 0.02078722266 | AP23: -0.0408182368 | AQ23: 0.009732215701 | AR23: -0.0009064816043 | AS23: -0.0315536229 | AT23: -0.08703373597 | AU23: 0.06250043788 | AV23: 0.01468047719 | AW23: -0.04857381104 | AX23: -0.03544662842 | AY23: 0.002681445228 | AZ23: -0.05606929596 | BA23: 0.02641885792 | BB23: -0.0754912417 | BC23: 0.05095434252 | BD23: -0.08522493068 | BE23: 0.06419863556 | BF23: -0.05172286326 | BG23: 0.01988993038 | BH23: -0.005383435631 | BI23: -0.02793625433 | BJ23: 0.03247474647 | BK23: -0.06196311562 | BL23: 0.02521509478 | BM23: -0.05554237687 | BN23: 0.05728989067 | BO23: -0.08021048196 | BP23: 0.04516533839 | BQ23: -0.07342294856 | BR23: -0.0359926246 | BS23: 0.002873966529 | BT23: -0.03180083411 | BU23: -0.001353417583 | BV23: 0.09551697849 | BW23: -0.1054569641 | BX23: 0.007343342869 | BY23: -0.03917019201 | BZ23: 0.01533638247 | CA23: -0.04688582718 | CB23: -0.1257706132 | CC23: 0.1209831353 | CD23: 0.1120452947 | CE23: -0.119001141 | CF23: 0.03303112747 | CG23: -0.06178171501 | CH23: -0.04063551278 | CI23: 0.008545153044 | CJ23: 0.01857212117 | CK23: -0.04996752493 | CL23: -0.01636721659 | CM23: -0.01708634629 | CN23: 0.07313089174 | CO23: -0.09043636 | CP23: -0.07595129108 | CQ23: 0.0511744416 | CR23: 0.05968483453 | CS23: -0.08149306088 | CT23: -0.07111626347 | CU23: 0.04538042253 | CV23: -0.09165120118 | CW23: 0.07387830288 | CX23: 0.03700479643 | CY23: -0.06567873756 | CZ23: -0.02848029284 | DA23: -0.004741093825 | DB23: -0.04047399217 | DC23: 0.00818101823 | DD23: 0.02914934191 | DE23: -0.05985024535 | DF23: -0.04363920053 | DG23: 0.01291264017 | DH23: 0.0376151273 | DI23: -0.06603911385 | DJ23: 0.01529925007 | DK23: -0.0482645576 | DL23: -0.08178428268 | DM23: 0.05671359535 | DN23: -0.006321586755 | DO23: -0.02706808628 | DP23: -0.01627080291 | DQ23: -0.0171400667 | DR23: 0.01197600904 | DS23: -0.04632707382 | DT23: 0.1735720325 | DU23: -0.1659820384 | DV23: -0.1006976334 | DW23: 0.08336131814 | DX23: -0.0458889118 | DY23: 0.01362740403 | DZ23: 0.01088404783 | EA23: -0.04329549221 | EB23: 0.04422574929 | EC23: -0.07213664307 | ED23: -0.07192980631 | EE23: 0.04713780151 | EF23: -0.07116022194 | EG23: 0.04411233466 | EH23: -0.01884390469 | EI23: -0.01453036438 | EJ23: -0.06970683931 | EK23: 0.03975316504 | EL23: -0.0477366977 | EM23: 0.01463401099 | EN23: 0.02528082199 | EO23: -0.05560299977 | EP23: -0.03623311957 | EQ23: 0.005595672794 | ER23: -0.004818600166 | ES23: -0.02748104 | ET23: -0.06865733742 | EU23: 0.04147649305 | EV23: -0.03882431132 | EW23: 0.007859398705 | EX23: -0.07101872321 | EY23: 0.04398924887 | EZ23: 0.003416275835 | FA23: -0.03587499784 | FB23: 0.01545036183 | FC23: -0.04511937366 | FD23: -0.02865104872 | FE23: -0.004634819022 | FF23: -0.0389175259 | FG23: 0.006300914297 | FH23: -0.0513938951 | FI23: 0.02085526351 | FJ23: 0.07445418121 | FK23: -0.0967110162 | FL23: -0.03587004456 | FM23: 0.003520084182 | FN23: -0.1792632232 | FO23: 0.2113880952 | FP23: 0.08687480055 | FQ23: -0.1057172394 | FR23: 0.0215757332 | FS23: -0.05257374041 | FT23: -0.05943620132 | FU23: 0.02919394507 | FV23: -0.04843684843 | FW23: 0.01888547954 | FX23: -0.04194163788 | FY23: 0.008747974687 | FZ23: -0.1049556344 | GA23: 0.08693033064 | GB23: 0.03373627722 | GC23: -0.06279900266 | GD23: -0.007325232103 | GE23: -0.02597848292 | GF23: -0.05176691775 | GG23: 0.01955431955 | GH23: 0.00511648326 | GI23: -0.03680088365 | GJ23: -0.02874063913 | GK23: -0.005131963362 | GL23: 0.01623428107 | GM23: -0.04806592951 | GN23: 0.00803542722 | GO23: -0.03992460312 | GP23: -0.1007051765 | GQ23: 0.08059011189 | GR23: -0.04568857352 | GS23: 0.01480501977 | GT23: 0.09201201761 | GU23: -0.107187157 | GV23: -0.02441145928 | GW23: -0.008820681313 | GX23: 0.04048767013 | GY23: -0.0701925926 | GZ23: 0.008789936889 | HA23: -0.04077725045 | HB23: -0.07526015692 | HC23: 0.05136495587 | HD23: -0.0849185075 | HE23: 0.05918589224 | HF23: -0.03157398347 | HG23: -0.0002393974938 | HH23: 0.1136700337 | HI23: -0.1214311718 | HJ23: 0.007557103406 | HK23: -0.04070250945 | HL23: -0.0004248261212 | HM23: -0.03244233177 | HN23: 0.04135677023 | HO23: -0.07258162776 | HP23: 0.114215541 | HQ23: -0.1271832795 | HR23: -0.1090266286 | HS23: 0.1019761093 | HT23: -0.1001450723 | HU23: 0.0818075929 | HV23: -0.1015858946 | HW23: 0.08415410763 | HX23: -0.05294253479 | HY23: 0.0219693647 | HZ23: -0.03830809491 | IA23: 0.005524745404 | IB23: 0.005709453026 | IC23: -0.03788090972 | ID23: -0.03806087438 | IE23: 0.005235254929 | IF23: -0.06072483537 | IG23: 0.03462090468 | IH23: -0.04174998958 | II23: 0.008429291869 | IJ23: 0.1337892628 | IK23: -0.1309299072 | IL23: -0.1121667526 | IM23: 0.09906149167 | IN23: 0.03778817935 | IO23: -0.06406820074 | IP23: 0.1066020864 | IQ23: -0.1167649348 | IR23: -0.02974079043 | IS23: -0.003795569848 | IT23: -0.1224546014 | IU23: 0.1149397292 | IV23: 0.02257888996 | IW23: -0.03474063716 | IX23: -0.01216174721 | IY23: 0 | IZ23: 0 | JA23: 0.007462019924 | JB23: 0.003357829981 | JC23: 0.01639128257 | JD23: 0.001899443091 | JE23: 0.002862605225 | JF23: 0.01015430669 | JG23: 0.002624251761 | JH23: 0.01100095266 | JI23: 0.007034972697 | JJ23: 0.003449809463 | JK23: 0.03549696502 | JL23: 0.0008149937131 | JM23: 0.005157713448 | JN23: 0.004367674878 | JO23: 0.002324430339 | JP23: 0.01334660225 | JQ23: 0.000923852118 | JR23: 0.03197246727 | JS23: 0.001778055769 | JT23: 0.01737726424 | JU23: 0.002093736569 | JV23: 0.01472141338 | JW23: 0.005394146544 | JX23: 0.004187284382 | JY23: 0.005441924004 | JZ23: 0.004142538485 | KA23: 0.004682664082 | KB23: 0.004799290911 | KC23: 0.01583930743 | KD23: 0.002004567332 | KE23: 0.003800265117 | KF23: 0.006035550952 | KG23: 0.004880354794 | KH23: 0.004603058677 | KI23: 0.002583742058 | KJ23: 0.01093061363 | KK23: 0.003156004332 | KL23: 0.008486084819 | KM23: 0.006234661408 | KN23: 0.003684396432 | KO23: 0.001526540071 | KP23: 0.02015441211 | KQ23: 0.009580264841 | KR23: 0.002777781099 | KS23: 0.003451379876 | KT23: 0.006926989323 | KU23: 0.002460030059 | KV23: 0.01217590408 | KW23: 0.001814222677 | KX23: 0.0176012918 | KY23: 0.001567682916 | KZ23: 0.0205299246 | LA23: 0.002638938333 | LB23: 0.01073220065 | LC23: 0.005767239224 | LD23: 0.003916348322 | LE23: 0.01351500718 | LF23: 0.002239164512 | LG23: 0.011909723 | LH23: 0.002480965805 | LI23: 0.01900223438 | LJ23: 0.001689173311 | LK23: 0.01632120329 | LL23: 0.001872545056 | LM23: 0.003420009798 | LN23: 0.006969560428 | LO23: 0.003669099595 | LP23: 0.006186258561 | LQ23: 0.02745516597 | LR23: 0.001177088322 | LS23: 0.007957847389 | LT23: 0.00324355119 | LU23: 0.009725301327 | LV23: 0.002855577598 | LW23: 0.0009072308897 | LX23: 0.03308634778 | LY23: 0.03110997553 | LZ23: 0.0009861824877 | MA23: 0.01363803644 | MB23: 0.002245611504 | MC23: 0.003165580912 | MD23: 0.00822359662 | ME23: 0.01044080124 | MF23: 0.002715340126 | MG23: 0.004770432332 | MH23: 0.004711901617 | MI23: 0.02250506198 | MJ23: 0.001452762397 | MK23: 0.001801549075 | ML23: 0.01764996102 | MM23: 0.01953181426 | MN23: 0.001657023515 | MO23: 0.00194026196 | MP23: 0.01636876359 | MQ23: 0.00142752186 | MR23: 0.02267033262 | MS23: 0.01451671054 | MT23: 0.002111733287 | MU23: 0.00388047291 | MV23: 0.005831972877 | MW23: 0.003174073007 | MX23: 0.008143077625 | MY23: 0.01277967999 | MZ23: 0.002315605849 | NA23: 0.003012161778 | NB23: 0.009189353417 | NC23: 0.01465166942 | ND23: 0.00209983067 | NE23: 0.009717090457 | NF23: 0.002791854245 | NG23: 0.001649828742 | NH23: 0.01887480158 | NI23: 0.00567405212 | NJ23: 0.003974344252 | NK23: 0.004778338339 | NL23: 0.004707560139 | NM23: 0.008982241671 | NN23: 0.002881865499 | NO23: 0.04471502199 | NP23: 0.0005965825165 | NQ23: 0.001256326658 | NR23: 0.02476725614 | NS23: 0.00290266941 | NT23: 0.009347404953 | NU23: 0.008740782697 | NV23: 0.003029291752 | NW23: 0.01611343747 | NX23: 0.00190995216 | NY23: 0.001916050238 | NZ23: 0.01675736249 | OA23: 0.001938944438 | OB23: 0.01608835876 | OC23: 0.004572056697 | OD23: 0.004923483963 | OE23: 0.001983074886 | OF23: 0.01512444116 | OG23: 0.002816060904 | OH23: 0.009569990045 | OI23: 0.01192425688 | OJ23: 0.002478546781 | OK23: 0.00340629161 | OL23: 0.007571395362 | OM23: 0.005824121527 | ON23: 0.003946642689 | OO23: 0.00201568352 | OP23: 0.01550551057 | OQ23: 0.003262263569 | OR23: 0.008071959787 | OS23: 0.001943189243 | OT23: 0.01606114152 | OU23: 0.007089478102 | OV23: 0.003426741479 | OW23: 0.009750504914 | OX23: 0.002939614639 | OY23: 0.003869286397 | OZ23: 0.005842756583 | PA23: 0.003257208898 | PB23: 0.007727341276 | PC23: 0.002653069852 | PD23: 0.0109456591 | PE23: 0.02279767322 | PF23: 0.001328265699 | PG23: 0.003427025271 | PH23: 0.007112432633 | PI23: 0.000535308994 | PJ23: 0.05307706599 | PK23: 0.02554417188 | PL23: 0.001172952284 | PM23: 0.01110497234 | PN23: 0.002602780776 | PO23: 0.002330936551 | PP23: 0.01278954282 | PQ23: 0.002784003975 | PR23: 0.01051009233 | PS23: 0.00309782739 | PT23: 0.008268445379 | PU23: 0.001185111119 | PV23: 0.02555645092 | PW23: 0.01379396207 | PX23: 0.002209733248 | PY23: 0.005576115894 | PZ23: 0.00404845148 | QA23: 0.002637052355 | QB23: 0.010657989 | QC23: 0.007465434992 | QD23: 0.00337414467 | QE23: 0.003863431171 | QF23: 0.005792491349 | QG23: 0.009923848376 | QH23: 0.002800935428 | QI23: 0.00811088394 | QJ23: 0.003203146825 | QK23: 0.001256195491 | QL23: 0.02415447556 | QM23: 0.002912237367 | QN23: 0.009607804212 | QO23: 0.02668013454 | QP23: 0.00114996285 | QQ23: 0.004157659139 | QR23: 0.005433487876 | QS23: 0.01528685796 | QT23: 0.001968194036 | QU23: 0.008277724235 | QV23: 0.003158149636 | QW23: 0.001820629279 | QX23: 0.01769208832 | QY23: 0.001574789536 | QZ23: 0.01942148608 | RA23: 0.003683133945 | RB23: 0.006307646695 | RC23: 0.03146924452 | RD23: 0.0009566995958 | RE23: 0.008005115002 | RF23: 0.003162065881 | RG23: 0.006287269551 | RH23: 0.003629727312 | RI23: 0.01547903697 | RJ23: 0.001896911269 | RK23: 0.03158986937 | RL23: 0.0008919634747 | RM23: 0.001122057883 | RN23: 0.02888343567 | RO23: 0.001265984919 | RP23: 0.02442368999 | RQ23: 0.001241005402 | RR23: 0.02494256102 | RS23: 0.002587283787 | RT23: 0.01119201376 | RU23: 0.003290413097 | RV23: 0.007555711604 | RW23: 0.007596554917 | RX23: 0.003313910217 | RY23: 0.003303988885 | RZ23: 0.007491698274 | SA23: 0.002283603625 | SB23: 0.01398957455 | SC23: 0.003107667489 | SD23: 0.008197976918 | SE23: 0.0359180916 | SF23: 0.0008533493282 | SG23: 0.001076556119 | SH23: 0.02823894337 | SI23: 0.01468993541 | SJ23: 0.002165901154 | SK23: 0.02990635083 | SL23: 0.001014507441 | SM23: 0.003798714838 | SN23: 0.00592865631 | SO23: 0.0009446730419 | SP23: 0.009285763149 | SQ23: 0.005128601603 | SR23: 0
E24: 3.5 | F24: 0.01505825545 | G24: -0.047208496 | H24: 0.03529768511 | I24: -0.06474574598 | J24: -0.06399451314 | K24: 0.03679161733 | L24: -0.04923723837 | M24: 0.01674305638 | N24: 0.01917571534 | O24: -0.05111002223 | P24: 0.124833062 | Q24: -0.129474751 | R24: -0.003821606978 | S24: -0.03051842174 | T24: -0.06122256953 | U24: 0.03250369835 | V24: -0.1252349847 | W24: 0.1178581441 | X24: -0.05197719267 | Y24: 0.02010292223 | Z24: -0.04874546292 | AA24: 0.016712412 | AB24: 0.007002197488 | AC24: -0.04058005619 | AD24: -0.02537446486 | AE24: -0.009326323141 | AF24: -0.01195830261 | AG24: -0.02261872972 | AH24: 0.057128665 | AI24: -0.08118370497 | AJ24: -0.01110861251 | AK24: -0.02394193047 | AL24: 0.01614770679 | AM24: -0.05051636949 | AN24: -0.02498242825 | AO24: -0.009743323675 | AP24: -0.0348531128 | AQ24: 0.001731414755 | AR24: -0.00832248276 | AS24: -0.02590341433 | AT24: -0.1094190877 | AU24: 0.09039217847 | AV24: -0.01912385127 | AW24: -0.01552578089 | AX24: -0.05766161091 | AY24: 0.02560282877 | AZ24: -0.04245937567 | BA24: 0.009794832125 | BB24: -0.1258195241 | BC24: 0.1172688137 | BD24: -0.08133822209 | BE24: 0.05846948135 | BF24: -0.09817839095 | BG24: 0.0725868811 | BH24: -0.02705643977 | BI24: -0.007578890756 | BJ24: 0.02327689175 | BK24: -0.05488970969 | BL24: 0.002903931612 | BM24: -0.03650338911 | BN24: 0.03775919509 | BO24: -0.06520828781 | BP24: 0.104082147 | BQ24: -0.1211996599 | BR24: -0.04984548273 | BS24: 0.01626456561 | BT24: -0.02577956687 | BU24: -0.008855815141 | BV24: 0.08780097177 | BW24: -0.1001136536 | BX24: -0.02216931307 | BY24: -0.01275753714 | BZ24: 0.01910468808 | CA24: -0.05139466824 | CB24: -0.1328207578 | CC24: 0.1321715322 | CD24: 0.1367968286 | CE24: -0.1353100369 | CF24: 0.0307067366 | CG24: -0.06074405824 | CH24: -0.02082333932 | CI24: -0.01380380191 | CJ24: 0.02735729283 | CK24: -0.05889391511 | CL24: -0.04011353595 | CM24: 0.006248012756 | CN24: 0.0576827921 | CO24: -0.07926408593 | CP24: -0.08761966555 | CQ24: 0.06499978173 | CR24: 0.08487273189 | CS24: -0.1010976479 | CT24: -0.03607395108 | CU24: 0.003200740282 | CV24: -0.03875803883 | CW24: 0.007028434068 | CX24: 0.0154825509 | CY24: -0.04781148293 | CZ24: -0.05135612689 | DA24: 0.01826219945 | DB24: -0.0108782471 | DC24: -0.02396256793 | DD24: 0.05169715106 | DE24: -0.08035402298 | DF24: -0.04487024095 | DG24: 0.01303755791 | DH24: 0.05517470924 | DI24: -0.08154875898 | DJ24: -0.00413743494 | DK24: -0.0306450828 | DL24: -0.06829371592 | DM24: 0.03957030576 | DN24: -0.01157679893 | DO24: -0.02316184798 | DP24: -0.05104051149 | DQ24: 0.01566155219 | DR24: 0.00745530596 | DS24: -0.04301187309 | DT24: 0.1425641643 | DU24: -0.1440752468 | DV24: -0.08877841865 | DW24: 0.0673165785 | DX24: -0.06285997316 | DY24: 0.03110266283 | DZ24: -0.01047307045 | EA24: -0.02415235331 | EB24: 0.01944632574 | EC24: -0.05150183449 | ED24: -0.06988085721 | EE24: 0.04362280209 | EF24: -0.08582036493 | EG24: 0.06109500156 | EH24: -0.0587762889 | EI24: 0.02755459366 | EJ24: -0.02311850995 | EK24: -0.01155292028 | EL24: -0.04628737624 | EM24: 0.01190000864 | EN24: -0.003061656505 | EO24: -0.03096631285 | EP24: -0.008410882133 | EQ24: -0.02722284193 | ER24: -0.004618659569 | ES24: -0.02886902306 | ET24: -0.08483507159 | EU24: 0.06030833764 | EV24: -0.02751291442 | EW24: -0.006211083932 | EX24: -0.09471359739 | EY24: 0.07239972492 | EZ24: -0.003957171423 | FA24: -0.03019584138 | FB24: -0.02308000833 | FC24: -0.01210401643 | FD24: -0.027912437 | FE24: -0.006692906469 | FF24: 0.01350475853 | FG24: -0.04756447986 | FH24: -0.0756960584 | FI24: 0.04806013269 | FJ24: 0.08484610056 | FK24: -0.1051533074 | FL24: -0.02231964651 | FM24: -0.01221680868 | FN24: -0.1563931149 | FO24: 0.1758553136 | FP24: 0.08864039365 | FQ24: -0.1072114845 | FR24: 0.03254329673 | FS24: -0.06329920849 | FT24: -0.06178009095 | FU24: 0.03073522276 | FV24: -0.07913414075 | FW24: 0.05501147782 | FX24: -0.06375744061 | FY24: 0.03084344598 | FZ24: -0.09346343151 | GA24: 0.07167826386 | GB24: 0.03906739581 | GC24: -0.06828208583 | GD24: 0.003538714698 | GE24: -0.03766856818 | GF24: -0.02465217717 | GG24: -0.01005378681 | GH24: 0.009628979249 | GI24: -0.04199055496 | GJ24: -0.04253791466 | GK24: 0.007301546785 | GL24: 0.01870039322 | GM24: -0.05142682102 | GN24: 0.02078262054 | GO24: -0.05249812881 | GP24: -0.1076284843 | GQ24: 0.0893355893 | GR24: -0.03682016499 | GS24: 0.003632489382 | GT24: 0.06032170522 | GU24: -0.0833133834 | GV24: -0.03571756275 | GW24: 0.001749087349 | GX24: 0.03834640824 | GY24: -0.06919411076 | GZ24: -0.02133914904 | HA24: -0.01351598713 | HB24: -0.06302839698 | HC24: 0.03528467062 | HD24: -0.0782410953 | HE24: 0.05036406017 | HF24: -0.03689230114 | HG24: 0.00445971015 | HH24: 0.06363443835 | HI24: -0.08477963842 | HJ24: -0.002705300454 | HK24: -0.03197847746 | HL24: -0.003828705363 | HM24: -0.03045032353 | HN24: 0.04480856752 | HO24: -0.07651236839 | HP24: 0.1037309421 | HQ24: -0.1191411721 | HR24: -0.1471823559 | HS24: 0.161387742 | HT24: -0.07553247906 | HU24: 0.04985155832 | HV24: -0.1068120203 | HW24: 0.09090561298 | HX24: -0.03837998461 | HY24: 0.004758181664 | HZ24: -0.0459613361 | IA24: 0.01242721721 | IB24: 0.03786746718 | IC24: -0.06749208843 | ID24: -0.05927559592 | IE24: 0.02696622706 | IF24: -0.06133689346 | IG24: 0.03424712879 | IH24: -0.02815630767 | II24: -0.006684084935 | IJ24: 0.1461918953 | IK24: -0.138148546 | IL24: -0.1181291792 | IM24: 0.1074700056 | IN24: 0.09095043548 | IO24: -0.105869356 | IP24: 0.1302777535 | IQ24: -0.1328618953 | IR24: -0.03991566148 | IS24: 0.005304817196 | IT24: -0.1007900526 | IU24: 0.08492776055 | IV24: 0.02217480307 | IW24: -0.03484830867 | IX24: -0.0126735056 | IY24: 0 | IZ24: 0 | JA24: 0.009264813992 | JB24: 0.002626793309 | JC24: 0.01364543011 | JD24: 0.001966129425 | JE24: 0.001990152329 | JF24: 0.01396877635 | JG24: 0.002538657182 | JH24: 0.009629471802 | JI24: 0.01015599578 | JJ24: 0.002460251954 | JK24: 0.03302444035 | JL24: 0.0007839473244 | JM24: 0.00560661552 | JN24: 0.00349617025 | JO24: 0.002081817592 | JP24: 0.01304070045 | JQ24: 0.0008248527413 | JR24: 0.0315147912 | JS24: 0.002424879927 | JT24: 0.01035668016 | JU24: 0.00255971145 | JV24: 0.009622839142 | JW24: 0.007521163211 | JX24: 0.002939571581 | JY24: 0.003824431716 | JZ24: 0.005080258411 | KA24: 0.004847302905 | KB24: 0.004013889093 | KC24: 0.01837052088 | KD24: 0.001517831437 | KE24: 0.004921245153 | KF24: 0.003921685091 | KG24: 0.009500614515 | KH24: 0.00248480479 | KI24: 0.003850785145 | KJ24: 0.005042572589 | KK24: 0.00324332507 | KL24: 0.006380356569 | KM24: 0.005172206946 | KN24: 0.003789183288 | KO24: 0.001010243754 | KP24: 0.0255700658 | KQ24: 0.004268820685 | KR24: 0.004549498529 | KS24: 0.002206878163 | KT24: 0.01154707829 | KU24: 0.002846864953 | KV24: 0.008125600218 | KW24: 0.0008190145861 | KX24: 0.03138723671 | KY24: 0.001514246573 | KZ24: 0.01866072677 | LA24: 0.001180421042 | LB24: 0.02171629256 | LC24: 0.003713559735 | LD24: 0.005241451522 | LE24: 0.01104365318 | LF24: 0.002310247831 | LG24: 0.006634135768 | LH24: 0.003152389911 | LI24: 0.01417819859 | LJ24: 0.001951507794 | LK24: 0.0285331185 | LL24: 0.0008669811867 | LM24: 0.002512886702 | LN24: 0.009525907403 | LO24: 0.003797404687 | LP24: 0.005123138185 | LQ24: 0.0250092258 | LR24: 0.001148467797 | LS24: 0.004045734604 | LT24: 0.004778827503 | LU24: 0.01014062266 | LV24: 0.002448576996 | LW24: 0.000753921328 | LX24: 0.03461277666 | LY24: 0.03561387443 | LZ24: 0.0007327945718 | MA24: 0.01265176658 | MB24: 0.002098135387 | MC24: 0.004142746317 | MD24: 0.004690737632 | ME24: 0.01192681397 | MF24: 0.002162640231 | MG24: 0.002963101097 | MH24: 0.007357927692 | MI24: 0.01849045598 | MJ24: 0.001563256537 | MK24: 0.00137708143 | ML24: 0.02007414303 | MM24: 0.02437543844 | MN24: 0.001132666852 | MO24: 0.003175780276 | MP24: 0.006698376948 | MQ24: 0.003032659424 | MR24: 0.007526841848 | MS24: 0.009356648372 | MT24: 0.002600242298 | MU24: 0.00245015411 | MV24: 0.009958274674 | MW24: 0.004941497718 | MX24: 0.00392026523 | MY24: 0.01719492562 | MZ24: 0.001537261507 | NA24: 0.00273267172 | NB24: 0.008827454819 | NC24: 0.01794760728 | ND24: 0.001509378944 | NE24: 0.005574912623 | NF24: 0.00348848384 | NG24: 0.001857190203 | NH24: 0.01457019485 | NI24: 0.004880355425 | NJ24: 0.003975763637 | NK24: 0.002463112575 | NL24: 0.009395391357 | NM24: 0.007619233873 | NN24: 0.002820232509 | NO24: 0.03686215486 | NP24: 0.0006659082309 | NQ24: 0.001353519835 | NR24: 0.02057558984 | NS24: 0.002027088272 | NT24: 0.01273746074 | NU24: 0.004977333548 | NV24: 0.003907233932 | NW24: 0.01021456661 | NX24: 0.002444197802 | NY24: 0.001810783601 | NZ24: 0.01544731594 | OA24: 0.001414712394 | OB24: 0.01922899358 | OC24: 0.002166818323 | OD24: 0.0119695177 | OE24: 0.003978791484 | OF24: 0.004882432151 | OG24: 0.00266794308 | OH24: 0.008581243995 | OI24: 0.005683679539 | OJ24: 0.003469072507 | OK24: 0.005164039596 | OL24: 0.003702781575 | OM24: 0.005526969546 | ON24: 0.003597965307 | OO24: 0.001435871159 | OP24: 0.01905872828 | OQ24: 0.003684074067 | OR24: 0.005371394175 | OS24: 0.001240652504 | OT24: 0.02167578453 | OU24: 0.00559298434 | OV24: 0.003515829469 | OW24: 0.003981483515 | OX24: 0.004834741425 | OY24: 0.00365847547 | OZ24: 0.005325236882 | PA24: 0.008928575581 | PB24: 0.002611081763 | PC24: 0.001652220674 | PD24: 0.01640773045 | PE24: 0.02436967436 | PF24: 0.001070577209 | PG24: 0.004035051865 | PH24: 0.004825041738 | PI24: 0.0005889659483 | PJ24: 0.04406768126 | PK24: 0.02519091002 | PL24: 0.001040855023 | PM24: 0.01304927111 | PN24: 0.002012694134 | PO24: 0.002062991447 | PP24: 0.01265793212 | PQ24: 0.001566391816 | PR24: 0.01791227752 | PS24: 0.001997804824 | PT24: 0.01268135592 | PU24: 0.001263378744 | PV24: 0.02151963171 | PW24: 0.01446134517 | PX24: 0.001857535445 | PY24: 0.006771528029 | PZ24: 0.003089876021 | QA24: 0.003873137505 | QB24: 0.005014707263 | QC24: 0.008089703071 | QD24: 0.002869683632 | QE24: 0.002843062054 | QF24: 0.007585954283 | QG24: 0.0100531172 | QH24: 0.002447262184 | QI24: 0.01050379386 | QJ24: 0.002403908898 | QK24: 0.001034973753 | QL24: 0.02534137796 | QM24: 0.003135257511 | QN24: 0.006791824594 | QO24: 0.01906162155 | QP24: 0.001469337622 | QQ24: 0.00319533683 | QR24: 0.00638418162 | QS24: 0.01430529483 | QT24: 0.001830691896 | QU24: 0.004105276764 | QV24: 0.004714796548 | QW24: 0.00202155468 | QX24: 0.01364261326 | QY24: 0.001588149684 | QZ24: 0.01690639183 | RA24: 0.003131370477 | RB24: 0.00697086801 | RC24: 0.01977862852 | RD24: 0.001437073383 | RE24: 0.005720199362 | RF24: 0.003408675837 | RG24: 0.005605900901 | RH24: 0.003500310408 | RI24: 0.01570396266 | RJ24: 0.00163133167 | RK24: 0.02845710383 | RL24: 0.0008897528878 | RM24: 0.0006447606696 | RN24: 0.04093632438 | RO24: 0.001656445705 | RP24: 0.01679546608 | RQ24: 0.001046532949 | RR24: 0.02568119342 | RS24: 0.003052380322 | RT24: 0.007035469096 | RU24: 0.00268268154 | RV24: 0.00869535286 | RW24: 0.01420163297 | RX24: 0.00188116612 | RY24: 0.002149146952 | RZ24: 0.01184217181 | SA24: 0.002077940896 | SB24: 0.01341804801 | SC24: 0.003642944858 | SD24: 0.005326078188 | SE24: 0.03764733987 | SF24: 0.0007098974255 | SG24: 0.0009012798174 | SH24: 0.02926638561 | SI24: 0.02569089479 | SJ24: 0.001060104328 | SK24: 0.03420288777 | SL24: 0.0007535639721 | SM24: 0.002973144136 | SN24: 0.007153782727 | SO24: 0.001137574443 | SP24: 0.008822557753 | SQ24: 0.004785978417 | SR24: 0
E25: 3.75 | F25: 0.03225625684 | G25: -0.06299149445 | H25: 0.01192495434 | I25: -0.04524179891 | J25: -0.06619234461 | K25: 0.03869440068 | L25: -0.02755552142 | M25: -0.007808105152 | N25: 0.01864030347 | O25: -0.0514928187 | P25: 0.1513860222 | Q25: -0.1460422967 | R25: 0.01448459682 | S25: -0.04860680992 | T25: -0.06867358392 | U25: 0.04072088203 | V25: -0.109378378 | W25: 0.09602610796 | X25: -0.03832603772 | Y25: 0.003926414437 | Z25: -0.06358735657 | AA25: 0.03284552342 | AB25: 0.02050755492 | AC25: -0.05379998759 | AD25: -0.02357375272 | AE25: -0.01221756473 | AF25: -0.01608833306 | AG25: -0.01967324757 | AH25: 0.0325806704 | AI25: -0.06187514589 | AJ25: -0.03225638067 | AK25: -0.002449231172 | AL25: 0.03067786838 | AM25: -0.06493949035 | AN25: -0.04409756758 | AO25: 0.008977520018 | AP25: -0.02444192625 | AQ25: -0.01082956839 | AR25: -0.02122748055 | AS25: -0.01472461919 | AT25: -0.1148821582 | AU25: 0.09793224002 | AV25: -0.01152162038 | AW25: -0.02454545234 | AX25: -0.09882404391 | AY25: 0.07351532332 | AZ25: -0.02674737935 | BA25: -0.008482718373 | BB25: -0.134927193 | BC25: 0.1316149738 | BD25: -0.07341578504 | BE25: 0.04778923945 | BF25: -0.0917946949 | BG25: 0.0645337479 | BH25: -0.04289773381 | BI25: 0.007876300372 | BJ25: 0.01339908894 | BK25: -0.04695668736 | BL25: 0.05200668355 | BM25: -0.08021596856 | BN25: 0.06159688745 | BO25: -0.08472692194 | BP25: 0.0928706435 | BQ25: -0.1123810989 | BR25: -0.06515498192 | BS25: 0.03215058345 | BT25: 0.00405087567 | BU25: -0.03940787701 | BV25: 0.07279183649 | BW25: -0.08945696215 | BX25: 0.004486063525 | BY25: -0.03877496265 | BZ25: 0.05103538654 | CA25: -0.07969714376 | CB25: -0.1219745031 | CC25: 0.1171237852 | CD25: 0.1161755775 | CE25: -0.1208028631 | CF25: 0.03856219613 | CG25: -0.06809960993 | CH25: -0.01226485551 | CI25: -0.02367891718 | CJ25: 0.02698899251 | CK25: -0.05935158498 | CL25: -0.05386008922 | CM25: 0.02016444348 | CN25: 0.07476089744 | CO25: -0.09234247259 | CP25: -0.08875763299 | CQ25: 0.0660923149 | CR25: 0.101235041 | CS25: -0.1127742108 | CT25: -0.02956772619 | CU25: -0.00514577865 | CV25: -0.05136246841 | CW25: 0.02096288063 | CX25: 0.001685394948 | CY25: -0.0362522181 | CZ25: -0.04932772325 | DA25: 0.01508569597 | DB25: 0.02705365583 | DC25: -0.06150405877 | DD25: 0.1053197819 | DE25: -0.1232312348 | DF25: -0.06534386821 | DG25: 0.03610523342 | DH25: 0.03353802063 | DI25: -0.06406656593 | DJ25: -0.002875749919 | DK25: -0.03292247539 | DL25: -0.09361458407 | DM25: 0.07016872704 | DN25: -0.01985042126 | DO25: -0.01595164821 | DP25: -0.01975090171 | DQ25: -0.01614567315 | DR25: 0.008978774719 | DS25: -0.04552113984 | DT25: 0.1635498417 | DU25: -0.1564405009 | DV25: -0.07892557702 | DW25: 0.05421834714 | DX25: -0.08905752777 | DY25: 0.06091699662 | DZ25: -0.03441321595 | EA25: -0.001256765591 | EB25: 0.01677951952 | EC25: -0.04999062232 | ED25: -0.05877973408 | EE25: 0.02922181143 | EF25: -0.09660558038 | EG25: 0.07444627823 | EH25: -0.06426289676 | EI25: 0.03299761797 | EJ25: -0.004096236284 | EK25: -0.03159596895 | EL25: -0.004861546588 | EM25: -0.03052379632 | EN25: 0.02739731754 | EO25: -0.05940263747 | EP25: 0.0167675905 | EQ25: -0.05495379661 | ER25: -0.02127606861 | ES25: -0.0147804563 | ET25: -0.08449183968 | EU25: 0.0594174217 | EV25: 0.01926951554 | EW25: -0.05649484414 | EX25: -0.1046221817 | EY25: 0.08516569697 | EZ25: -0.0456750692 | FA25: 0.009900979159 | FB25: -0.01702441372 | FC25: -0.01867702556 | FD25: -0.01022816294 | FE25: -0.02553604558 | FF25: 0.01764372563 | FG25: -0.05235327983 | FH25: -0.07661999075 | FI25: 0.04853721874 | FJ25: 0.08958852525 | FK25: -0.1086861837 | FL25: 0.009313872089 | FM25: -0.04522271136 | FN25: -0.1602393715 | FO25: 0.1855892512 | FP25: 0.09212252009 | FQ25: -0.1096905738 | FR25: -0.01739860674 | FS25: -0.01839507698 | FT25: -0.0778844529 | FU25: 0.04877335693 | FV25: -0.06408168459 | FW25: 0.03559673203 | FX25: -0.07235044924 | FY25: 0.03960495835 | FZ25: -0.1044192768 | GA25: 0.08591406082 | GB25: 0.06671612114 | GC25: -0.09149631497 | GD25: 0.02040716705 | GE25: -0.05426988631 | GF25: -0.002897182266 | GG25: -0.0326306219 | GH25: -0.009017514574 | GI25: -0.0261376801 | GJ25: -0.04343671815 | GK25: 0.007213634768 | GL25: 0.04131470937 | GM25: -0.07216524149 | GN25: 0.03303443051 | GO25: -0.06393884833 | GP25: -0.06623329865 | GQ25: 0.03686124954 | GR25: -0.01723851979 | GS25: -0.01860038468 | GT25: 0.05119699893 | GU25: -0.0765591021 | GV25: -0.03838805241 | GW25: 0.003551364297 | GX25: 0.008143114357 | GY25: -0.0427852064 | GZ25: -0.01084441134 | HA25: -0.02468440966 | HB25: -0.05841796338 | HC25: 0.02881751852 | HD25: -0.06624403405 | HE25: 0.0354767629 | HF25: -0.01721884024 | HG25: -0.01862351492 | HH25: 0.05752660906 | HI25: -0.08045804234 | HJ25: -0.01502057181 | HK25: -0.02081616027 | HL25: 0.006044118871 | HM25: -0.04071872104 | HN25: 0.04133963718 | HO25: -0.0740276535 | HP25: 0.03635887833 | HQ25: -0.06614609396 | HR25: -0.1247179624 | HS25: 0.1272788051 | HT25: -0.04481429605 | HU25: 0.0122293748 | HV25: -0.1422948144 | HW25: 0.1424301223 | HX25: -0.03832073356 | HY25: 0.003645639279 | HZ25: -0.03013893267 | IA25: -0.005359924213 | IB25: 0.03744023188 | IC25: -0.06779147584 | ID25: -0.04462292383 | IE25: 0.009992794493 | IF25: -0.06498305128 | IG25: 0.03795151836 | IH25: -0.03528472813 | II25: -0.0005216844781 | IJ25: 0.1337050364 | IK25: -0.1292368788 | IL25: -0.1237566609 | IM25: 0.1162276747 | IN25: 0.05013983954 | IO25: -0.07513476251 | IP25: 0.1050176094 | IQ25: -0.1148742263 | IR25: -0.02146398084 | IS25: -0.01439801376 | IT25: -0.1061351468 | IU25: 0.09238896687 | IV25: 0.02219549861 | IW25: -0.03515056316 | IX25: -0.01295506455 | IY25: 0 | IZ25: 0 | JA25: 0.01251013095 | JB25: 0.001848716065 | JC25: 0.00820606844 | JD25: 0.002503360652 | JE25: 0.001753063658 | JF25: 0.01387306249 | JG25: 0.003426490258 | JH25: 0.004915078908 | JI25: 0.009627683331 | JJ25: 0.002246427494 | JK25: 0.03772946733 | JL25: 0.0005870361693 | JM25: 0.008747935407 | JN25: 0.002361144139 | JO25: 0.001682942931 | JP25: 0.01430206119 | JQ25: 0.0009102931642 | JR25: 0.0260099756 | JS25: 0.002826815079 | JT25: 0.006512806746 | JU25: 0.001830451401 | JV25: 0.01263487653 | JW25: 0.01002297365 | JX25: 0.002159276513 | JY25: 0.003682218863 | JZ25: 0.004531171539 | KA25: 0.004220391928 | KB25: 0.003952810719 | KC25: 0.01257880811 | KD25: 0.00188351531 | KE25: 0.003149148095 | KF25: 0.005428456721 | KG25: 0.01217599187 | KH25: 0.001789789061 | KI25: 0.002553896826 | KJ25: 0.007582107355 | KK25: 0.003624749322 | KL25: 0.004648467193 | KM25: 0.003842507038 | KN25: 0.004327209286 | KO25: 0.0008456990031 | KP25: 0.0264134968 | KQ25: 0.004589585956 | KR25: 0.003617961249 | KS25: 0.001055575371 | KT25: 0.02124452468 | KU25: 0.003476793633 | KV25: 0.004854178753 | KW25: 0.0006617166323 | KX25: 0.03354400857 | KY25: 0.001558070093 | KZ25: 0.01579840665 | LA25: 0.001170502534 | LB25: 0.01934315796 | LC25: 0.002608120271 | LD25: 0.007348983177 | LE25: 0.008518137351 | LF25: 0.002429711839 | LG25: 0.01669122417 | LH25: 0.001398138063 | LI25: 0.01872143532 | LJ25: 0.001303246034 | LK25: 0.02534197529 | LL25: 0.000874185574 | LM25: 0.001783407777 | LN25: 0.01248776028 | LO25: 0.006539154734 | LP25: 0.002773280353 | LQ25: 0.02109136516 | LR25: 0.001212383187 | LS25: 0.006631282414 | LT25: 0.00280446225 | LU25: 0.01648560414 | LV25: 0.001409601393 | LW25: 0.0007721533729 | LX25: 0.03047627685 | LY25: 0.03027554474 | LZ25: 0.0007836051185 | MA25: 0.01384507527 | MB25: 0.001698861245 | MC25: 0.004527230932 | MD25: 0.003675205321 | ME25: 0.01139507032 | MF25: 0.001965048042 | MG25: 0.002157058522 | MH25: 0.009950338207 | MI25: 0.02150820817 | MJ25: 0.001160964452 | MK25: 0.001225290541 | ML25: 0.0196731009 | MM25: 0.02711268771 | MN25: 0.000869614595 | MO25: 0.003304642854 | MP25: 0.005163411021 | MQ25: 0.002251470027 | MR25: 0.01011936444 | MS25: 0.006038391102 | MT25: 0.002932664893 | MU25: 0.002331877258 | MV25: 0.008875185902 | MW25: 0.01140875931 | MX25: 0.001895252865 | MY25: 0.02797741245 | MZ25: 0.000760160484 | NA25: 0.001777836506 | NB25: 0.01332494524 | NC25: 0.01278147566 | ND25: 0.001815916641 | NE25: 0.005385598586 | NF25: 0.003111874163 | NG25: 0.001139206575 | NH25: 0.02053606247 | NI25: 0.003940066688 | NJ25: 0.004230970212 | NK25: 0.00394721965 | NL25: 0.004215962688 | NM25: 0.007582372971 | NN25: 0.002491194444 | NO25: 0.0403045035 | NP25: 0.0005305607028 | NQ25: 0.001426866647 | NR25: 0.01715942528 | NS25: 0.001219733705 | NT25: 0.01857750492 | NU25: 0.003030194944 | NV25: 0.005550192442 | NW25: 0.009233762163 | NX25: 0.002305328254 | NY25: 0.00198409166 | NZ25: 0.01186774993 | OA25: 0.001090144699 | OB25: 0.02144160444 | OC25: 0.001810001158 | OD25: 0.01266707439 | OE25: 0.005264914703 | OF25: 0.003186587123 | OG25: 0.005190694542 | OH25: 0.003248409597 | OI25: 0.01148151124 | OJ25: 0.001963358274 | OK25: 0.009231236835 | OL25: 0.002117149743 | OM25: 0.003839112527 | ON25: 0.004322779499 | OO25: 0.001307986117 | OP25: 0.01826005038 | OQ25: 0.00976088523 | OR25: 0.002062351299 | OS25: 0.0009720416975 | OT25: 0.02371086624 | OU25: 0.002484518733 | OV25: 0.007777600284 | OW25: 0.004148702025 | OX25: 0.004025296863 | OY25: 0.004700287005 | OZ25: 0.003553700028 | PA25: 0.009416711442 | PB25: 0.002213462454 | PC25: 0.00148004626 | PD25: 0.01595675114 | PE25: 0.02464716284 | PF25: 0.0009189240995 | PG25: 0.007653311861 | PH25: 0.002504194412 | PI25: 0.0005126565445 | PJ25: 0.04497016601 | PK25: 0.0251836003 | PL25: 0.0009064387547 | PM25: 0.004120409593 | PN25: 0.004046069517 | PO25: 0.001450582626 | PP25: 0.01600674073 | PQ25: 0.001815460302 | PR25: 0.01321729735 | PS25: 0.001585118602 | PT25: 0.01406582423 | PU25: 0.0009748067827 | PV25: 0.02386929214 | PW25: 0.0198051584 | PX25: 0.001175741427 | PY25: 0.0100017219 | PZ25: 0.002142004862 | QA25: 0.005383454396 | QB25: 0.003128146136 | QC25: 0.004806467877 | QD25: 0.00351527492 | QE25: 0.002583604435 | QF25: 0.007208699288 | QG25: 0.01442777227 | QH25: 0.001589878991 | QI25: 0.01267486747 | QJ25: 0.001819777052 | QK25: 0.001751878337 | QL25: 0.01348499109 | QM25: 0.004132488297 | QN25: 0.004030932071 | QO25: 0.01651981689 | QP25: 0.001481483605 | QQ25: 0.002823715534 | QR25: 0.00643341 | QS25: 0.007405466723 | QT25: 0.002613271366 | QU25: 0.004647195946 | QV25: 0.003608871587 | QW25: 0.001996250069 | QX25: 0.0117821626 | QY25: 0.001751567783 | QZ25: 0.01319190032 | RA25: 0.00413397575 | RB25: 0.004029230474 | RC25: 0.01785977225 | RD25: 0.001392829354 | RE25: 0.004303785183 | RF25: 0.003871372789 | RG25: 0.006961117042 | RH25: 0.0027099156 | RI25: 0.0144330494 | RJ25: 0.001542788974 | RK25: 0.01337864094 | RL25: 0.001754403424 | RM25: 0.0007463512659 | RN25: 0.03262605747 | RO25: 0.002522109263 | RP25: 0.00827051314 | RQ25: 0.0006104066629 | RR25: 0.03583353602 | RS25: 0.00282708036 | RT25: 0.00645336767 | RU25: 0.003270919652 | RV25: 0.00514295499 | RW25: 0.01360755954 | RX25: 0.001707481185 | RY25: 0.002530553144 | RZ25: 0.007797037255 | SA25: 0.001788496927 | SB25: 0.01371579702 | SC25: 0.00298353691 | SD25: 0.005626660204 | SE25: 0.03398646719 | SF25: 0.0007067801659 | SG25: 0.0007552338267 | SH25: 0.03028657352 | SI25: 0.01629602011 | SJ25: 0.001515602037 | SK25: 0.02791344362 | SL25: 0.000845787145 | SM25: 0.003826014736 | SN25: 0.00435321735 | SO25: 0.0009517684469 | SP25: 0.008458769132 | SQ25: 0.004470130508 | SR25: 0
E26: 4 | F26: 0.04380412198 | G26: -0.07311264303 | H26: 0.007044443466 | I26: -0.04159657267 | J26: -0.0817886234 | K26: 0.05813457743 | L26: 0.002641847481 | M26: -0.03949649976 | N26: -0.003998209288 | O26: -0.03175698653 | P26: 0.1623944926 | Q26: -0.1512800672 | R26: 0.03477025527 | S26: -0.06729919036 | T26: -0.05739861221 | U26: 0.02645716994 | V26: -0.1113959439 | W26: 0.09953815791 | X26: -0.05057560876 | Y26: 0.01677032857 | Z26: -0.07478088858 | AA26: 0.04569721565 | AB26: 0.02666743808 | AC26: -0.059859549 | AD26: -0.03423844294 | AE26: -0.002136264912 | AF26: -0.02396809328 | AG26: -0.01279022166 | AH26: 0.05288196197 | AI26: -0.07862917344 | AJ26: -0.06692374603 | AK26: 0.03643136787 | AL26: 0.03193178009 | AM26: -0.06659670083 | AN26: -0.06234736389 | AO26: 0.0280310758 | AP26: -0.03890260861 | AQ26: 0.004333796592 | AR26: -0.02721917184 | AS26: -0.009757666913 | AT26: -0.07070471645 | AU26: 0.04147835407 | AV26: -0.009562859566 | AW26: -0.02740475829 | AX26: -0.09768519009 | AY26: 0.07221081706 | AZ26: 0.007980932411 | BA26: -0.04519762604 | BB26: -0.1274778828 | BC26: 0.1221759945 | BD26: -0.0453237761 | BE26: 0.01273815688 | BF26: -0.08663952892 | BG26: 0.05814923851 | BH26: 0.009296450167 | BI26: -0.04519062695 | BJ26: 0.02808672408 | BK26: -0.06051251985 | BL26: 0.07005412762 | BM26: -0.09492643977 | BN26: 0.06845009779 | BO26: -0.09004653635 | BP26: 0.08755870817 | BQ26: -0.1079478103 | BR26: -0.07348930854 | BS26: 0.04109117415 | BT26: 0.01080027059 | BU26: -0.04653144791 | BV26: 0.06557020807 | BW26: -0.08426914593 | BX26: 0.03406999622 | BY26: -0.06542869979 | BZ26: 0.05835878354 | CA26: -0.08593029047 | CB26: -0.1113834107 | CC26: 0.10253626 | CD26: 0.1253469324 | CE26: -0.1260021875 | CF26: 0.02280438791 | CG26: -0.05524121785 | CH26: 0.0002053145231 | CI26: -0.0369876413 | CJ26: 0.03728727079 | CK26: -0.06878250325 | CL26: -0.0293504099 | CM26: -0.006946149417 | CN26: 0.05270992176 | CO26: -0.07602522496 | CP26: -0.05144957537 | CQ26: 0.01945474101 | CR26: 0.1099890823 | CS26: -0.1182559967 | CT26: -0.02652239338 | CU26: -0.009368249386 | CV26: -0.06144393078 | CW26: 0.03265463237 | CX26: -0.01749515685 | CY26: -0.01910906983 | CZ26: -0.05699949223 | DA26: 0.02282835798 | DB26: 0.0119552761 | DC26: -0.04801927637 | DD26: 0.1213488519 | DE26: -0.1341295543 | DF26: -0.07251258736 | DG26: 0.04435277467 | DH26: 0.03469354876 | DI26: -0.0655192274 | DJ26: -0.01209203947 | DK26: -0.0246043818 | DL26: -0.1024132174 | DM26: 0.08173483344 | DN26: -0.04086086134 | DO26: 0.004936935886 | DP26: -0.009931335431 | DQ26: -0.02618631691 | DR26: 0.04069462006 | DS26: -0.07655134863 | DT26: 0.1164307789 | DU26: -0.1238759448 | DV26: -0.04886060176 | DW26: 0.01668914787 | DX26: -0.0556153209 | DY26: 0.021636746 | DZ26: -0.05677542076 | EA26: 0.02159854229 | EB26: 0.03644017616 | EC26: -0.06766113832 | ED26: -0.06627113081 | EE26: 0.03780992301 | EF26: -0.07937655035 | EG26: 0.05247603285 | EH26: -0.04823424689 | EI26: 0.01405567069 | EJ26: -0.04641345654 | EK26: 0.01089498925 | EL26: 0.009329301777 | EM26: -0.04458268627 | EN26: 0.03187137328 | EO26: -0.06380192611 | EP26: 0.03603640947 | EQ26: -0.07485379157 | ER26: -0.0148488895 | ES26: -0.02146131218 | ET26: -0.07708605287 | EU26: 0.04987912138 | EV26: 0.01709913638 | EW26: -0.05500023181 | EX26: -0.1388365085 | EY26: 0.133874521 | EZ26: -0.1023302778 | FA26: 0.07224485334 | FB26: -0.01406576352 | FC26: -0.02215520493 | FD26: 0.03149375254 | FE26: -0.06543422111 | FF26: 0.04391161968 | FG26: -0.07659077439 | FH26: -0.07824105948 | FI26: 0.05016879418 | FJ26: 0.1200565835 | FK26: -0.1302460222 | FL26: 0.01445045929 | FM26: -0.05089361408 | FN26: -0.1611832999 | FO26: 0.1912467735 | FP26: 0.09776438797 | FQ26: -0.1133863058 | FR26: -0.02302539253 | FS26: -0.01374871248 | FT26: -0.07362928993 | FU26: 0.04331470118 | FV26: -0.06899842283 | FW26: 0.04114511543 | FX26: -0.07828492981 | FY26: 0.04593529178 | FZ26: -0.1036001689 | GA26: 0.0851914575 | GB26: 0.06721224328 | GC26: -0.09190910637 | GD26: 0.01472914546 | GE26: -0.04973341542 | GF26: -0.006650901497 | GG26: -0.02979917344 | GH26: -0.04313419711 | GI26: 0.005596279946 | GJ26: -0.05284130177 | GK26: 0.01611425888 | GL26: 0.0214836296 | GM26: -0.05532172184 | GN26: 0.04548579942 | GO26: -0.07483831927 | GP26: -0.07204355513 | GQ26: 0.04341623967 | GR26: 0.01652703553 | GS26: -0.05365237369 | GT26: 0.09377111419 | GU26: -0.1086481827 | GV26: -0.07751864042 | GW26: 0.04697167166 | GX26: 0.01364849131 | GY26: -0.04855614042 | GZ26: -0.01078416931 | HA26: -0.02555017241 | HB26: -0.06519935408 | HC26: 0.03651642132 | HD26: -0.0666382033 | HE26: 0.03539907241 | HF26: -0.01104314814 | HG26: -0.02617834979 | HH26: 0.02062979122 | HI26: -0.05157014815 | HJ26: -0.02426077173 | HK26: -0.01228313245 | HL26: -0.02731371443 | HM26: -0.009455194893 | HN26: 0.01258767583 | HO26: -0.04834223396 | HP26: 0.009463001309 | HQ26: -0.04357957905 | HR26: -0.112491254 | HS26: 0.1095704339 | HT26: -0.0439148369 | HU26: 0.01040368921 | HV26: -0.1653083163 | HW26: 0.181667029 | HX26: -0.02920463444 | HY26: -0.006937885692 | HZ26: -0.07773462069 | IA26: 0.04641113397 | IB26: 0.006061420821 | IC26: -0.04091272375 | ID26: -0.008637804836 | IE26: -0.02804227833 | IF26: -0.04568765126 | IG26: 0.0135653229 | IH26: -0.04769877768 | II26: 0.01155622943 | IJ26: 0.088411777 | IK26: -0.09880071325 | IL26: -0.1154539831 | IM26: 0.105296728 | IN26: 0.05553010486 | IO26: -0.07957191797 | IP26: 0.04907299008 | IQ26: -0.07377019611 | IR26: -0.02261055795 | IS26: -0.01409167573 | IT26: -0.1320470501 | IU26: 0.1311933897 | IV26: 0.02193706589 | IW26: -0.03520935315 | IX26: -0.01327228726 | IY26: 0 | IZ26: 0 | JA26: 0.01442507896 | JB26: 0.001417344801 | JC26: 0.006819746579 | JD26: 0.002453973228 | JE26: 0.00123065591 | JF26: 0.01738995464 | JG26: 0.005908878826 | JH26: 0.002549521053 | JI26: 0.004964981299 | JJ26: 0.002938979688 | JK26: 0.03896063591 | JL26: 0.0004997715894 | JM26: 0.01255603217 | JN26: 0.001562202542 | JO26: 0.00185195838 | JP26: 0.01083611025 | JQ26: 0.0007932752433 | JR26: 0.02595607937 | JS26: 0.002088419564 | JT26: 0.008831967358 | JU26: 0.001378842638 | JV26: 0.01481674742 | JW26: 0.01087961332 | JX26: 0.001774401138 | JY26: 0.002807392364 | JZ26: 0.00514601556 | KA26: 0.003397762225 | KB26: 0.004196540668 | KC26: 0.01630322352 | KD26: 0.001294856811 | KE26: 0.001572159686 | KF26: 0.01289970529 | KG26: 0.01196877058 | KH26: 0.001580895408 | KI26: 0.001699842042 | KJ26: 0.01116174087 | KK26: 0.002577288346 | KL26: 0.006258931815 | KM26: 0.003197425046 | KN26: 0.004446293642 | KO26: 0.001475274199 | KP26: 0.01394389309 | KQ26: 0.004462867636 | KR26: 0.003186382338 | KS26: 0.000963491521 | KT26: 0.02030223476 | KU26: 0.007013499898 | KV26: 0.00229932157 | KW26: 0.0006457796695 | KX26: 0.03063969682 | KY26: 0.002294106173 | KZ26: 0.007997737921 | LA26: 0.001139782136 | LB26: 0.01739298792 | LC26: 0.00728567175 | LD26: 0.002299611323 | LE26: 0.01117325413 | LF26: 0.00175446543 | LG26: 0.0198560301 | LH26: 0.001003876613 | LI26: 0.01952416702 | LJ26: 0.001081117251 | LK26: 0.02347761109 | LL26: 0.0008317115044 | LM26: 0.001408536996 | LN26: 0.01386378814 | LO26: 0.007596802168 | LP26: 0.002244847842 | LQ26: 0.01892833704 | LR26: 0.001183066524 | LS26: 0.01241115324 | LT26: 0.00161257249 | LU26: 0.01743634139 | LV26: 0.001152514834 | LW26: 0.0007934101105 | LX26: 0.02657636671 | LY26: 0.03129574273 | LZ26: 0.0006573867549 | MA26: 0.010080374 | MB26: 0.001923214013 | MC26: 0.005404776403 | MD26: 0.00266913561 | ME26: 0.0130767859 | MF26: 0.001523598831 | MG26: 0.003073079618 | MH26: 0.004691946838 | MI26: 0.01626762955 | MJ26: 0.001350963172 | MK26: 0.00205626978 | ML26: 0.009387354393 | MM26: 0.02811830595 | MN26: 0.0007243997352 | MO26: 0.003239257311 | MP26: 0.004479490243 | MQ26: 0.001726482722 | MR26: 0.0121183239 | MS26: 0.00383817204 | MT26: 0.003722900882 | MU26: 0.001864906354 | MV26: 0.01008533325 | MW26: 0.007835765108 | MX26: 0.002185799767 | MY26: 0.03046856653 | MZ26: 0.0005975951622 | NA26: 0.001431516441 | NB26: 0.01453859154 | NC26: 0.01254016211 | ND26: 0.001610090326 | NE26: 0.004252689849 | NF26: 0.00335750714 | NG26: 0.0008993474469 | NH26: 0.02227269025 | NI26: 0.00248698379 | NJ26: 0.006383717314 | NK26: 0.004431573123 | NL26: 0.00325964642 | NM26: 0.01378174374 | NN26: 0.001339386027 | NO26: 0.02945105001 | NP26: 0.0006747382713 | NQ26: 0.002153190859 | NR26: 0.008815171613 | NS26: 0.001910633016 | NT26: 0.009838796675 | NU26: 0.001872221681 | NV26: 0.009830892583 | NW26: 0.01290152767 | NX26: 0.00155267504 | NY26: 0.001589649623 | NZ26: 0.01318491916 | OA26: 0.001279294972 | OB26: 0.0162192395 | OC26: 0.002177414672 | OD26: 0.008270322743 | OE26: 0.002249607398 | OF26: 0.007616398828 | OG26: 0.007292468529 | OH26: 0.00232493702 | OI26: 0.01195627282 | OJ26: 0.001657964369 | OK26: 0.01281799103 | OL26: 0.001377189699 | OM26: 0.004035525423 | ON26: 0.003561503363 | OO26: 0.001327746393 | OP26: 0.01568195583 | OQ26: 0.008899995501 | OR26: 0.0019313691 | OS26: 0.0005672475251 | OT26: 0.03306004395 | OU26: 0.0009004202086 | OV26: 0.02030927664 | OW26: 0.004095986607 | OX26: 0.00351534316 | OY26: 0.0118781456 | OZ26: 0.00161242097 | PA26: 0.01444731952 | PB26: 0.001338523461 | PC26: 0.001303031972 | PD26: 0.0157418872 | PE26: 0.03020120481 | PF26: 0.0006249287854 | PG26: 0.008352001871 | PH26: 0.002076655306 | PI26: 0.0004570927486 | PJ26: 0.04492998045 | PK26: 0.0255890982 | PL26: 0.0007722892463 | PM26: 0.003458365028 | PN26: 0.004120738488 | PO26: 0.001405280889 | PP26: 0.01432382106 | PQ26: 0.001518075922 | PR26: 0.01387494823 | PS26: 0.001302104654 | PT26: 0.01486600378 | PU26: 0.000884192269 | PV26: 0.02298784271 | PW26: 0.01926806318 | PX26: 0.00105072623 | PY26: 0.008409660182 | PZ26: 0.002119945134 | QA26: 0.004718564196 | QB26: 0.003047574641 | QC26: 0.002386552912 | QD26: 0.006520131203 | QE26: 0.002006237163 | QF26: 0.008696230913 | QG26: 0.009807117913 | QH26: 0.001920498602 | QI26: 0.01477300681 | QJ26: 0.0013775403 | QK26: 0.00144271477 | QL26: 0.01434482869 | QM26: 0.00878163165 | QN26: 0.001977724804 | QO26: 0.02476291648 | QP26: 0.0008236841054 | QQ26: 0.001318421923 | QR26: 0.01508042387 | QS26: 0.008186080045 | QT26: 0.002164927198 | QU26: 0.00436003142 | QV26: 0.003298622422 | QW26: 0.001618881373 | QX26: 0.01291730228 | QY26: 0.001579783613 | QZ26: 0.01268613025 | RA26: 0.004338549821 | RB26: 0.003260131457 | RC26: 0.009630464447 | RD26: 0.002051879009 | RE26: 0.003379181305 | RF26: 0.004237242799 | RG26: 0.00319179441 | RH26: 0.004472055709 | RI26: 0.007966604395 | RJ26: 0.002173216342 | RK26: 0.007320130071 | RL26: 0.002367413999 | RM26: 0.0007816210942 | RN26: 0.02803169039 | RO26: 0.002353121036 | RP26: 0.007514752125 | RQ26: 0.0004417168275 | RR26: 0.04294799519 | RS26: 0.003081414664 | RT26: 0.004692689673 | RU26: 0.001313797081 | RV26: 0.01496445236 | RW26: 0.006616365749 | RX26: 0.002484640599 | RY26: 0.004542468499 | RZ26: 0.003148763736 | SA26: 0.002279137163 | SB26: 0.008168873054 | SC26: 0.00219836923 | SD26: 0.007753205012 | SE26: 0.02365410535 | SF26: 0.0009477954799 | SG26: 0.0007513723813 | SH26: 0.02714748912 | SI26: 0.01685110663 | SJ26: 0.00127526592 | SK26: 0.01551517264 | SL26: 0.001402012623 | SM26: 0.003485402262 | SN26: 0.004093970681 | SO26: 0.000611982499 | SP26: 0.008049514067 | SQ26: 0.004158232656 | SR26: 0
E27: 4.25 | F27: 0.06678021291 | G27: -0.09154638931 | H27: 0.0242152484 | I27: -0.05705360922 | J27: -0.09817614776 | K27: 0.08033694488 | L27: 0.003149675255 | M27: -0.04054012786 | N27: 0.003778738687 | O27: -0.03940876281 | P27: 0.1644339922 | Q27: -0.1504550539 | R27: 0.03667878238 | S27: -0.0691814989 | T27: -0.03646295873 | U27: 0.00139758733 | V27: -0.1114418355 | W27: 0.1006678814 | X27: -0.0513275794 | Y27: 0.01714232138 | Z27: -0.05480976897 | AA27: 0.02167707247 | AB27: 0.05322634533 | AC27: -0.08267172687 | AD27: -0.004853624513 | AE27: -0.03218539094 | AF27: -0.02501479467 | AG27: -0.01235595925 | AH27: 0.05640880924 | AI27: -0.08137854638 | AJ27: -0.06421893749 | AK27: 0.03291055092 | AL27: 0.04094399579 | AM27: -0.07489437745 | AN27: -0.06688869369 | AO27: 0.03277946658 | AP27: -0.0390937564 | AQ27: 0.003973410866 | AR27: -0.04426849083 | AS27: 0.00657339047 | AT27: -0.06718367875 | AU27: 0.03696889078 | AV27: -0.02626573367 | AW27: -0.01054713358 | AX27: -0.1076881729 | AY27: 0.08555968003 | AZ27: 0.02433665952 | BA27: -0.06153304811 | BB27: -0.1262266232 | BC27: 0.1220863276 | BD27: -0.03524019572 | BE27: 0.0003300822769 | BF27: -0.09949624288 | BG27: 0.07436608763 | BH27: 0.008946986003 | BI27: -0.04535613261 | BJ27: 0.03593108735 | BK27: -0.0674947 | BL27: 0.04200571182 | BM27: -0.07218880767 | BN27: 0.05786525889 | BO27: -0.08186795483 | BP27: 0.05549807188 | BQ27: -0.08268671433 | BR27: -0.06785824036 | BS27: 0.03441215954 | BT27: 0.009365722314 | BU27: -0.04567393886 | BV27: 0.03919020381 | BW27: -0.06480916555 | BX27: 0.002245875418 | BY27: -0.03793147149 | BZ27: 0.06265362512 | CA27: -0.08927731679 | CB27: -0.0764190445 | CC27: 0.05391394475 | CD27: 0.08937122217 | CE27: -0.1010787863 | CF27: -0.01352063746 | CG27: -0.02336193512 | CH27: -0.002809289714 | CI27: -0.03457430773 | CJ27: 0.05644131279 | CK27: -0.0848581756 | CL27: -0.0283127502 | CM27: -0.008635216732 | CN27: 0.05342640525 | CO27: -0.07659657396 | CP27: -0.04637963501 | CQ27: 0.01296895069 | CR27: 0.1349208783 | CS27: -0.133670105 | CT27: -0.03937731835 | CU27: 0.004393676676 | CV27: -0.08418187408 | CW27: 0.06177673965 | CX27: -0.04873116669 | CY27: 0.01118428782 | CZ27: -0.005637442848 | DA27: -0.03167666271 | DB27: -0.02401366693 | DC27: -0.01314261789 | DD27: 0.0871570601 | DE27: -0.1079801907 | DF27: -0.03964627915 | DG27: 0.004866142556 | DH27: 0.04696764899 | DI27: -0.0758532539 | DJ27: 0.01130226755 | DK27: -0.04793136611 | DL27: -0.0803983621 | DM27: 0.05362248923 | DN27: -0.02346536204 | DO27: -0.01372821567 | DP27: -0.01108257296 | DQ27: -0.02569324548 | DR27: 0.04738249662 | DS27: -0.08276228342 | DT27: 0.07192359163 | DU27: -0.09162533613 | DV27: -0.07515464007 | DW27: 0.04873605521 | DX27: -0.05777416557 | DY27: 0.02364443883 | DZ27: -0.08667161056 | EA27: 0.05512008896 | EB27: 0.03749511238 | EC27: -0.06876998108 | ED27: -0.04398018548 | EE27: 0.01042186398 | EF27: -0.1248089748 | EG27: 0.1136491503 | EH27: -0.06715693891 | EI27: 0.03540646108 | EJ27: -0.0536544115 | EK27: 0.01826754111 | EL27: 0.01825327477 | EM27: -0.05315962544 | EN27: -0.02110162945 | EO27: -0.01625599991 | EP27: 0.0265090715 | EQ27: -0.06574630051 | ER27: 0.02472584315 | ES27: -0.05638606917 | ET27: -0.08605369804 | EU27: 0.06126080685 | EV27: 0.02544997543 | EW27: -0.06360358526 | EX27: -0.1225122487 | EY27: 0.1120179725 | EZ27: -0.1060290351 | FA27: 0.07718386004 | FB27: -0.02286273841 | FC27: -0.01471492237 | FD27: 0.03270352727 | FE27: -0.06678378764 | FF27: 0.07156463468 | FG27: -0.09989713423 | FH27: -0.06915693428 | FI27: 0.03894254799 | FJ27: 0.112126416 | FK27: -0.1235322993 | FL27: 0.01192328589 | FM27: -0.04893945593 | FN27: -0.1552808587 | FO27: 0.1851300501 | FP27: 0.07868599756 | FQ27: -0.09876761428 | FR27: -0.03547330645 | FS27: -0.001991816179 | FT27: -0.07201323623 | FU27: 0.04120988423 | FV27: -0.06927262988 | FW27: 0.04127262575 | FX27: -0.1011672184 | FY27: 0.07326164165 | FZ27: -0.09043921828 | GA27: 0.06810247634 | GB27: 0.05563285267 | GC27: -0.08261628135 | GD27: 0.0294676099 | GE27: -0.06337125003 | GF27: -0.04432087783 | GG27: 0.007736920207 | GH27: -0.03186162398 | GI27: -0.005995639607 | GJ27: -0.03850538158 | GK27: 0.0009477548598 | GL27: 0.002150928556 | GM27: -0.0382597785 | GN27: 0.02113013131 | GO27: -0.05449023547 | GP27: -0.05864928782 | GQ27: 0.02692445589 | GR27: 0.001727186953 | GS27: -0.0395218322 | GT27: 0.0936484518 | GU27: -0.1079200745 | GV27: -0.08093742697 | GW27: 0.05098612077 | GX27: 0.02980526618 | GY27: -0.06339896296 | GZ27: 0.006068761395 | HA27: -0.04181482423 | HB27: -0.03452188563 | HC27: -0.0006086309204 | HD27: -0.06635418701 | HE27: 0.0347811983 | HF27: 0.01043123646 | HG27: -0.0492273322 | HH27: 0.04230252833 | HI27: -0.06920396506 | HJ27: -0.03602632141 | HK27: -0.0006562514858 | HL27: -0.06673159358 | HM27: 0.03120687974 | HN27: 0.003209042898 | HO27: -0.03997336573 | HP27: 0.01508315278 | HQ27: -0.0489584308 | HR27: -0.1242463283 | HS27: 0.1296771099 | HT27: -0.06396713897 | HU27: 0.03377396621 | HV27: -0.1555154496 | HW27: 0.1695247212 | HX27: -0.01591787305 | HY27: -0.02141888538 | HZ27: -0.05632982063 | IA27: 0.02167367373 | IB27: 0.02198468973 | IC27: -0.05545736751 | ID27: 0.02147956916 | IE27: -0.0574116237 | IF27: -0.08551299203 | IG27: 0.06383538514 | IH27: -0.04807237124 | II27: 0.01144512664 | IJ27: 0.08045381618 | IK27: -0.09297347768 | IL27: -0.08102594258 | IM27: 0.05823134272 | IN27: 0.06207942045 | IO27: -0.08449983986 | IP27: 0.0481345559 | IQ27: -0.07313778731 | IR27: -0.02277833793 | IS27: -0.01452845254 | IT27: -0.1309433641 | IU27: 0.131589306 | IV27: 0.02076852109 | IW27: -0.03443653196 | IX27: -0.01366801087 | IY27: 0 | IZ27: 0 | JA27: 0.01853958827 | JB27: 0.0009445521392 | JC27: 0.009940192706 | JD27: 0.001690152746 | JE27: 0.0008536777138 | JF27: 0.02127845349 | JG27: 0.005684317048 | JH27: 0.002291127781 | JI27: 0.005811406671 | JJ27: 0.002340460943 | JK27: 0.03826857163 | JL27: 0.0004500430269 | JM27: 0.01245819924 | JN27: 0.001364537635 | JO27: 0.00247456288 | JP27: 0.005330342898 | JQ27: 0.0007059908405 | JR27: 0.02538591058 | JS27: 0.001875333715 | JT27: 0.008511249961 | JU27: 0.001760068482 | JV27: 0.009427405273 | JW27: 0.01580130175 | JX27: 0.00108795201 | JY27: 0.00458184161 | JZ27: 0.002684705298 | KA27: 0.003082291128 | KB27: 0.0039485671 | KC27: 0.01644425462 | KD27: 0.001111184006 | KE27: 0.001487797713 | KF27: 0.01169690381 | KG27: 0.01331989989 | KH27: 0.001237738038 | KI27: 0.001419884969 | KJ27: 0.01167042086 | KK27: 0.002354407198 | KL27: 0.005850736273 | KM27: 0.002136624301 | KN27: 0.006376009894 | KO27: 0.00141261318 | KP27: 0.01251680981 | KQ27: 0.003008543925 | KR27: 0.004092251365 | KS27: 0.0007436644715 | KT27: 0.02233360216 | KU27: 0.009964721383 | KV27: 0.001560091208 | KW27: 0.0005835896103 | KX27: 0.02971307715 | KY27: 0.002532715139 | KZ27: 0.005114674958 | LA27: 0.0008370551762 | LB27: 0.02007216179 | LC27: 0.006855547165 | LD27: 0.002093790868 | LE27: 0.01230714249 | LF27: 0.001404994933 | LG27: 0.01353439827 | LH27: 0.001295885941 | LI27: 0.01673850099 | LJ27: 0.001102317056 | LK27: 0.01626025844 | LL27: 0.001087686463 | LM27: 0.001396153405 | LN27: 0.01200027365 | LO27: 0.006940144421 | LP27: 0.002081459154 | LQ27: 0.01296558147 | LR27: 0.001472452577 | LS27: 0.005501722457 | LT27: 0.002406672463 | LU27: 0.01770589415 | LV27: 0.0009786977931 | LW27: 0.001206403913 | LX27: 0.01594021739 | LY27: 0.02310364764 | LZ27: 0.0008177301638 | MA27: 0.003858898193 | MB27: 0.003182755482 | MC27: 0.004772410477 | MD27: 0.002565018461 | ME27: 0.0164508213 | MF27: 0.001050087783 | MG27: 0.00289197228 | MH27: 0.004250176587 | MI27: 0.01584171983 | MJ27: 0.001202820554 | MK27: 0.002054369648 | ML27: 0.007668104292 | MM27: 0.03230604016 | MN27: 0.0005350489408 | MO27: 0.00234184893 | MP27: 0.005935642532 | MQ27: 0.001061613473 | MR27: 0.01752873707 | MS27: 0.001966953556 | MT27: 0.00730754903 | MU27: 0.004510917036 | MV27: 0.002710979251 | MW27: 0.003142724442 | MX27: 0.00388776193 | MY27: 0.02265632069 | MZ27: 0.0007406250389 | NA27: 0.002330006383 | NB27: 0.006031094767 | NC27: 0.01453685794 | ND27: 0.001217914194 | NE27: 0.007331384462 | NF27: 0.001996200819 | NG27: 0.001129220706 | NH27: 0.01588133466 | NI27: 0.003176366065 | NJ27: 0.00384314574 | NK27: 0.004049148501 | NL27: 0.003042053459 | NM27: 0.01462066957 | NN27: 0.001086348815 | NO27: 0.01957870457 | NP27: 0.0009433933575 | NQ27: 0.001232317617 | NR27: 0.01489412888 | NS27: 0.001668393428 | NT27: 0.009824872105 | NU27: 0.00101998354 | NV27: 0.01618389459 | NW27: 0.01262312231 | NX27: 0.001374275356 | NY27: 0.002148143783 | NZ27: 0.007153516616 | OA27: 0.0005937349553 | OB27: 0.02800851506 | OC27: 0.00141327049 | OD27: 0.0122011523 | OE27: 0.001797378677 | OF27: 0.00873857799 | OG27: 0.008735695764 | OH27: 0.001813636845 | OI27: 0.00332591665 | OJ27: 0.00365673132 | OK27: 0.01040361356 | OL27: 0.001448477442 | OM27: 0.01004334811 | ON27: 0.001710608159 | OO27: 0.001030112002 | OP27: 0.01742450321 | OQ27: 0.01018964449 | OR27: 0.001504000769 | OS27: 0.0006108324505 | OT27: 0.02767896836 | OU27: 0.0007612946295 | OV27: 0.02064143607 | OW27: 0.003213790513 | OX27: 0.003769199801 | OY27: 0.01165507885 | OZ27: 0.001422481977 | PA27: 0.01950618453 | PB27: 0.0008320983879 | PC27: 0.001365116536 | PD27: 0.01291554758 | PE27: 0.0277008772 | PF27: 0.0006031360603 | PG27: 0.007456848736 | PH27: 0.001959417326 | PI27: 0.0004307086235 | PJ27: 0.04244979416 | PK27: 0.02094491277 | PL27: 0.0008461725886 | PM27: 0.002521513094 | PN27: 0.004850931858 | PO27: 0.001299775288 | PP27: 0.0133736173 | PQ27: 0.00136239262 | PR27: 0.01338629296 | PS27: 0.0008166692576 | PT27: 0.01984903068 | PU27: 0.000961008605 | PV27: 0.01880672502 | PW27: 0.01628748819 | PX27: 0.001088935121 | PY27: 0.01100132678 | PZ27: 0.001510173369 | QA27: 0.002134538633 | QB27: 0.006611077692 | QC27: 0.00270139413 | QD27: 0.004478891711 | QE27: 0.002380705242 | QF27: 0.005239463289 | QG27: 0.005482540352 | QH27: 0.002391779451 | QI27: 0.009316906805 | QJ27: 0.001770296521 | QK27: 0.001642407207 | QL27: 0.01048753363 | QM27: 0.005396931878 | QN27: 0.002335477542 | QO27: 0.02396777592 | QP27: 0.0007412492169 | QQ27: 0.001119254996 | QR27: 0.0153487094 | QS27: 0.01106954344 | QT27: 0.001509435512 | QU27: 0.006274059732 | QV27: 0.002236934358 | QW27: 0.002567580815 | QX27: 0.004986898548 | QY27: 0.00143317715 | QZ27: 0.01207483052 | RA27: 0.007155410139 | RB27: 0.001949055799 | RC27: 0.01359436408 | RD27: 0.00136400845 | RE27: 0.002495156959 | RF27: 0.004982151572 | RG27: 0.001423776213 | RH27: 0.01135271129 | RI27: 0.005696311088 | RJ27: 0.002315694572 | RK27: 0.008095236331 | RL27: 0.001958732427 | RM27: 0.0005978467986 | RN27: 0.03124664216 | RO27: 0.001494402497 | RP27: 0.01187133952 | RQ27: 0.0004298183344 | RR27: 0.03929705111 | RS27: 0.003681097087 | RT27: 0.00330540991 | RU27: 0.001712344967 | RV27: 0.009426718627 | RW27: 0.009489553158 | RX27: 0.001739549396 | RY27: 0.0093875037 | RZ27: 0.00167930013 | SA27: 0.001039084089 | SB27: 0.01794464501 | SC27: 0.001991008672 | SD27: 0.007360246271 | SE27: 0.02130206499 | SF27: 0.0009239009496 | SG27: 0.001117629424 | SH27: 0.01681246087 | SI27: 0.01758988764 | SJ27: 0.001056174109 | SK27: 0.01477260803 | SL27: 0.001275111355 | SM27: 0.003219069948 | SN27: 0.00378305705 | SO27: 0.0005519479059 | SP27: 0.007482242482 | SQ27: 0.003847707422 | SR27: 0
E28: 4.5 | F28: 0.05952356858 | G28: -0.08549696478 | H28: 0.03524005869 | I28: -0.06644599488 | J28: -0.1033119717 | K28: 0.08844940613 | L28: -0.03676392792 | M28: 7.562174103e-05 | N28: 0.03287957805 | O28: -0.06508795036 | P28: 0.134212785 | Q28: -0.1298956155 | R28: 0.005689603985 | S28: -0.04184766802 | T28: -0.02614969346 | U28: -0.01065217243 | V28: -0.1029827754 | W28: 0.08972587632 | X28: -0.05663590684 | Y28: 0.02302639922 | Z28: -0.08342122148 | AA28: 0.05630533577 | AB28: 0.0608863841 | AC28: -0.0886255732 | AD28: -0.01855716802 | AE28: -0.01908484195 | AF28: -0.01669483076 | AG28: -0.02088725911 | AH28: 0.017409413 | AI28: -0.05008542856 | AJ28: -0.04029621102 | AK28: 0.004888881329 | AL28: 0.05328205813 | AM28: -0.08546097947 | AN28: -0.09516772749 | AO28: 0.06614454684 | AP28: -0.05180793018 | AQ28: 0.01830744151 | AR28: -0.03203245476 | AS28: -0.005978872146 | AT28: -0.05319997599 | AU28: 0.02012138802 | AV28: -0.007582466482 | AW28: -0.03043274763 | AX28: -0.1002589761 | AY28: 0.0768097493 | AZ28: 0.02322275741 | BA28: -0.06061243431 | BB28: -0.1246453956 | BC28: 0.1218187023 | BD28: -0.04214572152 | BE28: 0.008085528836 | BF28: -0.07676642047 | BG28: 0.04662460459 | BH28: 0.03666031112 | BI28: -0.07071537887 | BJ28: 0.08467354222 | BK28: -0.1061805216 | BL28: 0.01907369187 | BM28: -0.05287001403 | BN28: 0.05165168494 | BO28: -0.07689007796 | BP28: 0.07461703036 | BQ28: -0.0972093201 | BR28: -0.05174298548 | BS28: 0.0161755724 | BT28: 0.02227097855 | BU28: -0.05777912471 | BV28: 0.04060158273 | BW28: -0.06585690313 | BX28: -0.03051437238 | BY28: -0.007602689616 | BZ28: 0.004831183409 | CA28: -0.04049015329 | CB28: -0.08620036948 | CC28: 0.06773115954 | CD28: 0.06541549195 | CE28: -0.08381207263 | CF28: -0.0133941463 | CG28: -0.023843621 | CH28: 0.001360771799 | CI28: -0.03901568204 | CJ28: 0.03137572164 | CK28: -0.0638919726 | CL28: -0.02005067069 | CM28: -0.01756184352 | CN28: 0.04727735816 | CO28: -0.07183906888 | CP28: -0.05277836779 | CQ28: 0.02032325105 | CR28: 0.1625797214 | CS28: -0.148951853 | CT28: -0.0350338037 | CU28: -0.0008693018554 | CV28: -0.09876202066 | CW28: 0.08231336611 | CX28: -0.03630713783 | CY28: -0.00169169657 | CZ28: 0.003495241134 | DA28: -0.0409492402 | DB28: -0.03388726065 | DC28: -0.003275033458 | DD28: 0.07411568465 | DE28: -0.09736048276 | DF28: -0.04812652757 | DG28: 0.01439003174 | DH28: 0.03853141647 | DI28: -0.06887944226 | DJ28: 0.01178930975 | DK28: -0.04864530434 | DL28: -0.07680845349 | DM28: 0.04932980117 | DN28: -0.05737936291 | DO28: 0.02194739836 | DP28: -0.01543725476 | DQ28: -0.02199244656 | DR28: 0.03358256311 | DS28: -0.07009056445 | DT28: 0.07589968673 | DU28: -0.09402205706 | DV28: -0.08231594167 | DW28: 0.05827154578 | DX28: -0.09518285442 | DY28: 0.06827741206 | DZ28: -0.07929697572 | EA28: 0.04674912672 | EB28: 0.0303954088 | EC28: -0.06280464675 | ED28: -0.05006485379 | EE28: 0.01739650704 | EF28: -0.09635708877 | EG28: 0.07559766035 | EH28: -0.05330766945 | EI28: 0.01917082087 | EJ28: -0.06076175582 | EK28: 0.02597737627 | EL28: 0.008935311709 | EM28: -0.0449503341 | EN28: -0.01526471943 | EO28: -0.02218733526 | EP28: 0.02744656664 | EQ28: -0.06676723725 | ER28: 0.02056902181 | ES28: -0.05307442261 | ET28: -0.09019391466 | EU28: 0.06713255689 | EV28: 0.01593426836 | EW28: -0.05446412154 | EX28: -0.1170544044 | EY28: 0.1058864588 | EZ28: -0.08494255036 | FA28: 0.05260507409 | FB28: -0.01969701517 | FC28: -0.01798442537 | FD28: 0.02750881044 | FE28: -0.06223747152 | FF28: 0.04726044296 | FG28: -0.07926575925 | FH28: -0.07140105402 | FI28: 0.04172750673 | FJ28: 0.06036856477 | FK28: -0.08475840168 | FL28: 0.03077713223 | FM28: -0.06675900132 | FN28: -0.1300973832 | FO28: 0.1447423491 | FP28: 0.05948675539 | FQ28: -0.08381085814 | FR28: -0.01593126489 | FS28: -0.02161084448 | FT28: -0.06428292371 | FU28: 0.03202858289 | FV28: -0.08058262776 | FW28: 0.05594266336 | FX28: -0.08154831592 | FY28: 0.05007325071 | FZ28: -0.08308658581 | GA28: 0.05890352855 | GB28: 0.02015352183 | GC28: -0.05337854848 | GD28: 0.02877579906 | GE28: -0.06284560054 | GF28: -0.1037221259 | GG28: 0.0755403224 | GH28: -0.06378066279 | GI28: 0.02580741285 | GJ28: -0.04130773772 | GK28: 0.003455214881 | GL28: -0.03730213555 | GM28: -0.0005779038519 | GN28: -0.005387228953 | GO28: -0.03122633122 | GP28: -0.06888838104 | GQ28: 0.03928840222 | GR28: 0.01423446826 | GS28: -0.0521553457 | GT28: 0.08642403534 | GU28: -0.1019926015 | GV28: -0.06348669648 | GW28: 0.03041239666 | GX28: 0.03900250996 | GY28: -0.07138141232 | GZ28: 0.03991623027 | HA28: -0.07172413477 | HB28: -0.02499924732 | HC28: -0.01185119078 | HD28: -0.06224060176 | HE28: 0.02985523296 | HF28: 0.02610563767 | HG28: -0.06507583396 | HH28: 0.03727962392 | HI28: -0.06525759142 | HJ28: -0.005871374543 | HK28: -0.03174770601 | HL28: -0.05253961989 | HM28: 0.01572755811 | HN28: -0.01076173723 | HO28: -0.02680386759 | HP28: -0.003617115218 | HQ28: -0.03271239884 | HR28: -0.1154151355 | HS28: 0.1175676687 | HT28: -0.03153710395 | HU28: -0.004604470304 | HV28: -0.1300259181 | HW28: 0.1318313221 | HX28: -0.0384977293 | HY28: 0.002025618876 | HZ28: -0.04665684304 | IA28: 0.0107315656 | IB28: -0.001515262723 | IC28: -0.03483804634 | ID28: 0.02740956418 | IE28: -0.06297655642 | IF28: -0.08788628139 | IG28: 0.06754365163 | IH28: -0.05813412909 | II28: 0.02199992949 | IJ28: 0.06782163675 | IK28: -0.08384652442 | IL28: -0.09187394887 | IM28: 0.07345760753 | IN28: 0.06253475759 | IO28: -0.08451781116 | IP28: 0.05264155012 | IQ28: -0.07640070573 | IR28: -0.03830609371 | IS28: 0.0008032981402 | IT28: -0.137561923 | IU28: 0.1447658997 | IV28: 0.02031224135 | IW28: -0.03411118296 | IX28: -0.01379894161 | IY28: 0 | IZ28: 0 | JA28: 0.01647137134 | JB28: 0.0009249612563 | JC28: 0.01168496295 | JD28: 0.001283834789 | JE28: 0.0007013030873 | JF28: 0.02217280709 | JG28: 0.002247612414 | JH28: 0.004753866213 | JI28: 0.01121969971 | JJ28: 0.001315605926 | JK28: 0.03119301139 | JL28: 0.0004949200672 | JM28: 0.005860411842 | JN28: 0.002035177901 | JO28: 0.002775124686 | JP28: 0.003802196541 | JQ28: 0.0007046914821 | JR28: 0.02242440612 | JS28: 0.001536094536 | JT28: 0.009277585987 | JU28: 0.0009571835704 | JV28: 0.01583704061 | JW28: 0.01673998949 | JX28: 0.0008790882146 | JY28: 0.003235023933 | JZ28: 0.003200536615 | KA28: 0.003359967471 | KB28: 0.003085688619 | KC28: 0.008170448259 | KD28: 0.001737390448 | KE28: 0.002097522151 | KF28: 0.005702585166 | KG28: 0.01524113657 | KH28: 0.0009255074442 | KI28: 0.0007927762869 | KJ28: 0.01777640121 | KK28: 0.001681628382 | KL28: 0.008347454434 | KM28: 0.00246771729 | KN28: 0.004186526377 | KO28: 0.001638076083 | KP28: 0.008704992898 | KQ28: 0.004050208163 | KR28: 0.002547436882 | KS28: 0.0007336890374 | KT28: 0.01987856909 | KU28: 0.009316289227 | KV28: 0.001427264938 | KW28: 0.0005267063676 | KX28: 0.02875007207 | KY28: 0.002023441301 | KZ28: 0.006332661317 | LA28: 0.001070971731 | LB28: 0.01392891723 | LC28: 0.01196490222 | LD28: 0.001189900003 | LE28: 0.02142856432 | LF28: 0.0006727932117 | LG28: 0.008498486438 | LH28: 0.001648279694 | LI28: 0.01491978139 | LJ28: 0.001068702224 | LK28: 0.01944637258 | LL28: 0.000768285108 | LM28: 0.001683692879 | LN28: 0.007927251744 | LO28: 0.009128688574 | LP28: 0.001503829746 | LQ28: 0.01274174772 | LR28: 0.001297500338 | LS28: 0.002543301349 | LT28: 0.004048519308 | LU28: 0.0056912126 | LV28: 0.00208961247 | LW28: 0.0009143711696 | LX28: 0.01808913098 | LY28: 0.01763270063 | LZ28: 0.0009510034921 | MA28: 0.003594284663 | MB28: 0.002906834287 | MC28: 0.005007176095 | MD28: 0.002150597788 | ME28: 0.01092328165 | MF28: 0.001344379855 | MG28: 0.003138433092 | MH28: 0.003301167456 | MI28: 0.01405757841 | MJ28: 0.001166604555 | MK28: 0.001651126836 | ML28: 0.008744781169 | MM28: 0.03678428477 | MN28: 0.0004060769789 | MO28: 0.002325467915 | MP28: 0.004654095654 | MQ28: 0.0007503810401 | MR28: 0.02096336111 | MS28: 0.002267882555 | MT28: 0.004575277271 | MU28: 0.005427891304 | MV28: 0.002071022443 | MW28: 0.002378709368 | MX28: 0.00442745381 | MY28: 0.01934755468 | MZ28: 0.0007665150812 | NA28: 0.001803414989 | NB28: 0.007575312225 | NC28: 0.01233370699 | ND28: 0.001229218712 | NE28: 0.007062696148 | NF28: 0.001785653062 | NG28: 0.001070199601 | NH28: 0.0144621258 | NI28: 0.001515020352 | NJ28: 0.009064909204 | NK28: 0.003447258066 | NL28: 0.003017471274 | NM28: 0.01135826179 | NN28: 0.001203103761 | NO28: 0.01969919094 | NP28: 0.0008070091116 | NQ28: 0.0009749499533 | NR28: 0.01622459101 | NS28: 0.0007925907504 | NT28: 0.01819680024 | NU28: 0.001025733067 | NV28: 0.0139534612 | NW28: 0.0107300568 | NX28: 0.001371202672 | NY28: 0.001738069304 | NZ28: 0.008167904427 | OA28: 0.0007783750736 | OB28: 0.01963965994 | OC28: 0.001634761745 | OD28: 0.008517631078 | OE28: 0.001423360191 | OF28: 0.009859239191 | OG28: 0.006500158021 | OH28: 0.00191667279 | OI28: 0.003459422127 | OJ28: 0.003005611728 | OK28: 0.01014882439 | OL28: 0.001276456768 | OM28: 0.008793223888 | ON28: 0.001641949956 | OO28: 0.0008572521548 | OP28: 0.01797114322 | OQ28: 0.007879689439 | OR28: 0.001599659627 | OS28: 0.0005796822464 | OT28: 0.0256097425 | OU28: 0.0009334243032 | OV28: 0.01510769943 | OW28: 0.003161021525 | OX28: 0.003272909382 | OY28: 0.01016109298 | OZ28: 0.001385449916 | PA28: 0.01405424434 | PB28: 0.001026275952 | PC28: 0.001175616894 | PD28: 0.01296367331 | PE28: 0.01663792456 | PF28: 0.000936258181 | PG28: 0.01080529651 | PH28: 0.001276645276 | PI28: 0.0004937704031 | PJ28: 0.03326844425 | PK28: 0.01646411526 | PL28: 0.0009510226135 | PM28: 0.003412681813 | PN28: 0.003040839613 | PO28: 0.001334890858 | PP28: 0.01105196406 | PQ28: 0.001003694483 | PR28: 0.01576555595 | PS28: 0.0009875450606 | PT28: 0.01460866364 | PU28: 0.0009625170949 | PV28: 0.01634915816 | PW28: 0.008711326641 | PX28: 0.001632584659 | PY28: 0.01041082314 | PZ28: 0.001370180768 | QA28: 0.0006971155882 | QB28: 0.01962835833 | QC28: 0.001347096427 | QD28: 0.009825738501 | QE28: 0.00205663493 | QF28: 0.005420001917 | QG28: 0.002223987812 | QH28: 0.004682364165 | QI28: 0.004238037389 | QJ28: 0.002507541029 | QK28: 0.001229023416 | QL28: 0.01248291289 | QM28: 0.007544649838 | QN28: 0.001670634286 | QO28: 0.02177359578 | QP28: 0.0007150324382 | QQ28: 0.001354302781 | QR28: 0.01073340519 | QS28: 0.01242656201 | QT28: 0.001176023063 | QU28: 0.01260666113 | QV28: 0.001168960998 | QW28: 0.002840001976 | QX28: 0.003709747437 | QY28: 0.001385370798 | QZ28: 0.01062358528 | RA28: 0.009884520192 | RB28: 0.001315893666 | RC28: 0.01208697205 | RD28: 0.001311585309 | RE28: 0.004195836224 | RF28: 0.002481704206 | RG28: 0.00165857083 | RH28: 0.007838945755 | RI28: 0.003793647861 | RJ28: 0.002738954711 | RK28: 0.00439618147 | RL28: 0.00243466845 | RM28: 0.0005923325732 | RN28: 0.02791217084 | RO28: 0.002492105186 | RP28: 0.004307217466 | RQ28: 0.0004941770232 | RR28: 0.03072361245 | RS28: 0.002172491959 | RT28: 0.005138220974 | RU28: 0.001854843504 | RV28: 0.006854209176 | RW28: 0.004592067809 | RX28: 0.002334463954 | RY28: 0.01014153101 | RZ28: 0.001366919229 | SA28: 0.0008896452767 | SB28: 0.01805217217 | SC28: 0.001493973893 | SD28: 0.009075263369 | SE28: 0.01810696451 | SF28: 0.0009504612857 | SG28: 0.0008346809659 | SH28: 0.0192178442 | SI28: 0.01706489264 | SJ28: 0.0009399779592 | SK28: 0.01511488905 | SL28: 0.001077719915 | SM28: 0.002180655593 | SN28: 0.004897295085 | SO28: 0.0004546415775 | SP28: 0.007059919602 | SQ28: 0.003564631424 | SR28: 0
E29: 4.75 | F29: 0.07919960418 | G29: -0.09986174233 | H29: -0.008704225112 | I29: -0.02825667946 | J29: -0.1128577375 | K29: 0.1038409049 | L29: -0.03320551082 | M29: -0.003868238318 | N29: 0.02260565423 | O29: -0.05621131568 | P29: 0.1281085104 | Q29: -0.1243257404 | R29: 0.01808719128 | S29: -0.05304703735 | T29: -0.04035509238 | U29: 0.005394927574 | V29: -0.1018836404 | W29: 0.08954364141 | X29: -0.03879009985 | Y29: 0.002736585601 | Z29: -0.09354688269 | AA29: 0.07004473072 | AB29: 0.05812582243 | AC29: -0.0858616667 | AD29: -0.01192303488 | AE29: -0.02581559967 | AF29: -0.04582913439 | AG29: 0.008223962006 | AH29: 0.01383495971 | AI29: -0.04711681034 | AJ29: -0.06087270385 | AK29: 0.02882965642 | AL29: 0.04509530028 | AM29: -0.07802475055 | AN29: -0.1090991067 | AO29: 0.08463401787 | AP29: -0.04408763409 | AQ29: 0.009312172193 | AR29: -0.03615937138 | AS29: -0.002021357855 | AT29: -0.07739194297 | AU29: 0.049880693 | AV29: -0.03182953839 | AW29: -0.005143408988 | AX29: -0.06171381813 | AY29: 0.02946243509 | AZ29: 0.03105779977 | BA29: -0.06782842913 | BB29: -0.127687101 | BC29: 0.1291423286 | BD29: -0.01299082582 | BE29: -0.02541895439 | BF29: -0.09932727944 | BG29: 0.07561898076 | BH29: 0.03341092734 | BI29: -0.0676468923 | BJ29: 0.07072155874 | BK29: -0.09466989238 | BL29: 0.0205054711 | BM29: -0.05407068965 | BN29: 0.06180563185 | BO29: -0.08410943526 | BP29: 0.07549981736 | BQ29: -0.09709005667 | BR29: -0.08124211935 | BS29: 0.05029019183 | BT29: 0.02832719251 | BU29: -0.06312046808 | BV29: 0.0287688085 | BW29: -0.05678356486 | BX29: -0.02931374175 | BY29: -0.008915509989 | BZ29: -0.007634083329 | CA29: -0.0293322927 | CB29: -0.08654829916 | CC29: 0.06906472239 | CD29: 0.08950091938 | CE29: -0.09971803207 | CF29: 0.008658401786 | CG29: -0.043829792 | CH29: -0.006395604196 | CI29: -0.03149967 | CJ29: 0.06196315484 | CK29: -0.08865808411 | CL29: -0.005654931181 | CM29: -0.03221923316 | CN29: 0.03785903827 | CO29: -0.0644730271 | CP29: -0.01886433567 | CQ29: -0.01889711862 | CR29: 0.1450492246 | CS29: -0.1360098973 | CT29: -0.005134782557 | CU29: -0.03356535499 | CV29: -0.07276555252 | CW29: 0.04772028998 | CX29: -0.03929232956 | CY29: 0.00118602168 | CZ29: 0.01329889918 | DA29: -0.0503679328 | DB29: -0.06364370979 | DC29: 0.02913187795 | DD29: 0.09289565105 | DE29: -0.1104654867 | DF29: -0.04700675095 | DG29: 0.01304902857 | DH29: 0.04896552434 | DI29: -0.07702969846 | DJ29: 0.004413600335 | DK29: -0.04172123205 | DL29: -0.04404661549 | DM29: 0.009673510199 | DN29: -0.07219284167 | DO29: 0.03885619491 | DP29: -0.006331341386 | DQ29: -0.03059220972 | DR29: -0.000394950726 | DS29: -0.03761341869 | DT29: 0.08420914909 | DU29: -0.09912369431 | DV29: -0.08884954885 | DW29: 0.0677147187 | DX29: -0.085347686 | DY29: 0.05680325816 | DZ29: -0.06519529895 | EA29: 0.03083407372 | EB29: 0.01782213901 | EC29: -0.05196098053 | ED29: -0.0506123292 | EE29: 0.01806688721 | EF29: -0.07653358738 | EG29: 0.05027461346 | EH29: -0.0463040822 | EI29: 0.01117275932 | EJ29: -0.0332339469 | EK29: -0.004026232631 | EL29: -0.01407691573 | EM29: -0.02354957116 | EN29: 0.0007276195272 | EO29: -0.03717479457 | EP29: 0.04187339603 | EQ29: -0.08043477148 | ER29: 0.02185233852 | ES29: -0.05410227492 | ET29: -0.0892615499 | EU29: 0.06673320913 | EV29: 0.02916155207 | EW29: -0.06720092614 | EX29: -0.1145258052 | EY29: 0.1041373309 | EZ29: -0.06311184646 | FA29: 0.02799016612 | FB29: -0.02122802106 | FC29: -0.01674178288 | FD29: 0.01244805177 | FE29: -0.04860475761 | FF29: 0.03388774629 | FG29: -0.06748623771 | FH29: -0.07805620652 | FI29: 0.05041000019 | FJ29: 0.004618005721 | FK29: -0.03946251421 | FL29: 0.01465282428 | FM29: -0.05172505787 | FN29: -0.1203468532 | FO29: 0.1311356697 | FP29: 0.07539586499 | FQ29: -0.09511121712 | FR29: -0.02867716464 | FS29: -0.009312166134 | FT29: -0.05904244507 | FU29: 0.02600476461 | FV29: -0.09134608789 | FW29: 0.07103710047 | FX29: -0.06610567725 | FY29: 0.03239735005 | FZ29: -0.07873736244 | GA29: 0.05380758954 | GB29: 0.03133946332 | GC29: -0.06267497786 | GD29: 0.01225609282 | GE29: -0.04807934393 | GF29: -0.1210935661 | GG29: 0.09898478533 | GH29: -0.04595554662 | GI29: 0.007539695305 | GJ29: -0.04456883476 | GK29: 0.006699973897 | GL29: -0.04000818559 | GM29: 0.002048495953 | GN29: 0.005009041304 | GO29: -0.04069230782 | GP29: -0.09201463495 | GQ29: 0.06938018438 | GR29: 0.01893126476 | GS29: -0.05667222853 | GT29: 0.09911347435 | GU29: -0.1097982645 | GV29: -0.05402775189 | GW29: 0.01960624858 | GX29: 0.01890901325 | GY29: -0.05378368894 | GZ29: 0.01597581903 | HA29: -0.05091453278 | HB29: -0.02470575664 | HC29: -0.01234986641 | HD29: -0.07913926538 | HE29: 0.05063055271 | HF29: 0.007865377006 | HG29: -0.04688914347 | HH29: 0.01863322582 | HI29: -0.05034069478 | HJ29: 0.006927349659 | HK29: -0.04425200744 | HL29: -0.04728145941 | HM29: 0.01012253599 | HN29: -0.01592184867 | HO29: -0.02187240789 | HP29: 0.03530724019 | HQ29: -0.06626654118 | HR29: -0.09359860368 | HS29: 0.0850381841 | HT29: -0.02555726974 | HU29: -0.01148592822 | HV29: -0.124494235 | HW29: 0.1258706194 | HX29: -0.009392839558 | HY29: -0.02864379679 | HZ29: -0.04865199631 | IA29: 0.01289072344 | IB29: 0.03392110838 | IC29: -0.06578658852 | ID29: 0.03396330849 | IE29: -0.06870300638 | IF29: -0.0802875425 | IG29: 0.05795166383 | IH29: -0.06267380251 | II29: 0.02707124239 | IJ29: 0.04853871466 | IK29: -0.06991518921 | IL29: -0.09943135636 | IM29: 0.08523025541 | IN29: 0.06756690042 | IO29: -0.08765081852 | IP29: 0.04692758708 | IQ29: -0.07176173137 | IR29: -0.01559606875 | IS29: -0.02215297211 | IT29: -0.1254892402 | IU29: 0.1284604942 | IV29: 0.01960264811 | IW29: -0.03350465548 | IX29: -0.01390200736 | IY29: 0 | IZ29: 0 | JA29: 0.01965124396 | JB29: 0.0006498962557 | JC29: 0.00367685686 | JD29: 0.002432631311 | JE29: 0.0005392211977 | JF29: 0.02438529974 | JG29: 0.002196152832 | JH29: 0.004079788584 | JI29: 0.008778485273 | JJ29: 0.001387916625 | JK29: 0.02904756169 | JL29: 0.0004655110921 | JM29: 0.007910403838 | JN29: 0.001475586667 | JO29: 0.001898312939 | JP29: 0.005471982052 | JQ29: 0.0006304401636 | JR29: 0.02163852742 | JS29: 0.001959425195 | JT29: 0.004961264727 | JU29: 0.00071680317 | JV29: 0.01789242115 | JW29: 0.01560257544 | JX29: 0.0008124245067 | JY29: 0.003432190793 | JZ29: 0.002559463841 | KA29: 0.001700913989 | KB29: 0.0060154926 | KC29: 0.007093470441 | KD29: 0.001657950124 | KE29: 0.001269770671 | KF29: 0.009974232767 | KG29: 0.01309916787 | KH29: 0.0009288888439 | KI29: 0.0005679165439 | KJ29: 0.0206952967 | KK29: 0.001761063322 | KL29: 0.006224558176 | KM29: 0.002067194187 | KN29: 0.004245734056 | KO29: 0.0009392356548 | KP29: 0.01401853152 | KQ29: 0.002259251526 | KR29: 0.003969208046 | KS29: 0.001249759002 | KT29: 0.01009580141 | KU29: 0.01040230087 | KV29: 0.001115281273 | KW29: 0.000447335581 | KX29: 0.02924617755 | KY29: 0.003354901284 | KZ29: 0.00258074632 | LA29: 0.0006551916296 | LB29: 0.01896333908 | LC29: 0.01085438079 | LD29: 0.001119009188 | LE29: 0.0180224525 | LF29: 0.0007041864759 | LG29: 0.008375000724 | LH29: 0.001446529639 | LI29: 0.01630953581 | LJ29: 0.0008366828672 | LK29: 0.01894044556 | LL29: 0.000678075069 | LM29: 0.0008785375416 | LN29: 0.01409720392 | LO29: 0.009877700031 | LP29: 0.001217139194 | LQ29: 0.009962542743 | LR29: 0.001372726731 | LS29: 0.002379858276 | LT29: 0.003660242132 | LU29: 0.003762245436 | LV29: 0.002378943427 | LW29: 0.0008031806838 | LX29: 0.01770414318 | LY29: 0.02163031972 | LZ29: 0.0006513137468 | MA29: 0.006098956625 | MB29: 0.001770173588 | MC29: 0.0038636931 | MD29: 0.00227467457 | ME29: 0.01633979893 | MF29: 0.0007756696671 | MG29: 0.003925742186 | MH29: 0.002241179943 | MI29: 0.01170894628 | MJ29: 0.00118674659 | MK29: 0.002961738242 | ML29: 0.002959687869 | MM29: 0.03230219046 | MN29: 0.0004079343521 | MO29: 0.003969945404 | MP29: 0.002179974852 | MQ29: 0.001019604027 | MR29: 0.0136034776 | MS29: 0.001939575371 | MT29: 0.004663372331 | MU29: 0.006990483164 | MV29: 0.001554926227 | MW29: 0.001205270252 | MX29: 0.01003229519 | MY29: 0.02228251131 | MZ29: 0.0005571976467 | NA29: 0.0016615732 | NB29: 0.006942478336 | NC29: 0.01384271046 | ND29: 0.0009452263152 | NE29: 0.005283450694 | NF29: 0.001846718783 | NG29: 0.001762509042 | NH29: 0.006293977981 | NI29: 0.001030157262 | NJ29: 0.01190051877 | NK29: 0.003869035376 | NL29: 0.002317705619 | NM29: 0.004397746233 | NN29: 0.00200683092 | NO29: 0.02061367145 | NP29: 0.0006572258339 | NQ29: 0.0007732381433 | NR29: 0.01744478217 | NS29: 0.0008194396715 | NT29: 0.01534848605 | NU29: 0.00117089728 | NV29: 0.0103593189 | NW29: 0.007859482329 | NX29: 0.001507166122 | NY29: 0.001547485963 | NZ29: 0.007906503045 | OA29: 0.0009535117365 | OB29: 0.01409421102 | OC29: 0.001684920129 | OD29: 0.006582011842 | OE29: 0.002194869564 | OF29: 0.004065913114 | OG29: 0.00327818853 | OH29: 0.002683677744 | OI29: 0.004575304684 | OJ29: 0.002024829787 | OK29: 0.01248017966 | OL29: 0.0008908263571 | OM29: 0.008633759204 | ON29: 0.00144564382 | OO29: 0.0007680418948 | OP29: 0.01725621578 | OQ29: 0.01003799614 | OR29: 0.001128233154 | OS29: 0.0005272576764 | OT29: 0.02444224874 | OU29: 0.001217335952 | OV29: 0.009812950945 | OW29: 0.002817754556 | OX29: 0.003097798273 | OY29: 0.006827019428 | OZ29: 0.001609850082 | PA29: 0.01094598665 | PB29: 0.0011223212 | PC29: 0.0009283784142 | PD29: 0.01412022135 | PE29: 0.005322720801 | PF29: 0.001932900462 | PG29: 0.007250597556 | PH29: 0.001514130144 | PI29: 0.0004889196621 | PJ29: 0.02962913573 | PK29: 0.01892047436 | PL29: 0.0006993164506 | PM29: 0.00241148667 | PN29: 0.003629265087 | PO29: 0.001314666855 | PP29: 0.009431518096 | PQ29: 0.0007424895028 | PR29: 0.01808307398 | PS29: 0.001151289114 | PT29: 0.01065965359 | PU29: 0.0009174150152 | PV29: 0.01477296195 | PW29: 0.01045641372 | PX29: 0.001227356839 | PY29: 0.006790140515 | PZ29: 0.001626648738 | QA29: 0.0004843620881 | QB29: 0.02345234815 | QC29: 0.00169664013 | QD29: 0.005884032139 | QE29: 0.001744203754 | QF29: 0.005722705915 | QG29: 0.001911672106 | QH29: 0.004829069806 | QI29: 0.005397846066 | QJ29: 0.001885427819 | QK29: 0.0007345493143 | QL29: 0.01776474934 | QM29: 0.008072566177 | QN29: 0.001375666541 | QO29: 0.02347707172 | QP29: 0.0005623898779 | QQ29: 0.001447734867 | QR29: 0.008202243222 | QS29: 0.008068291244 | QT29: 0.001454607992 | QU29: 0.00750476965 | QV29: 0.00153834302 | QW29: 0.002619500458 | QX29: 0.003401070343 | QY29: 0.0009110259271 | QZ29: 0.01416259362 | RA29: 0.005946601699 | RB29: 0.001665454816 | RC29: 0.00801530731 | RD29: 0.001555758017 | RE29: 0.005766389062 | RF29: 0.001755283451 | RG29: 0.001652546943 | RH29: 0.006380244252 | RI29: 0.00315214164 | RJ29: 0.002779826376 | RK29: 0.01121869804 | RL29: 0.001147866541 | RM29: 0.0007162149444 | RN29: 0.02077294461 | RO29: 0.002573303017 | RP29: 0.003464374895 | RQ29: 0.0004645662227 | RR29: 0.02861762088 | RS29: 0.003622998959 | RT29: 0.002413157231 | RU29: 0.001608349594 | RV29: 0.006912064953 | RW29: 0.01095239613 | RX29: 0.001158115439 | RY29: 0.01096050357 | RZ29: 0.001097536639 | SA29: 0.0008930919279 | SB29: 0.01556911631 | SC29: 0.001227383934 | SD29: 0.00963640847 | SE29: 0.01376071232 | SF29: 0.001073521196 | SG29: 0.0006541553617 | SH29: 0.02080984511 | SI29: 0.0174163835 | SJ29: 0.0007886384945 | SK29: 0.01345118451 | SL29: 0.001038192876 | SM29: 0.003174016438 | SN29: 0.002763485522 | SO29: 0.0004590604464 | SP29: 0.006600904656 | SQ29: 0.00329041506 | SR29: 0
E30: 5 | F30: 0.04781634129 | G30: -0.07504691607 | H30: -0.03100483869 | I30: -0.007433941194 | J30: -0.1109166579 | K30: 0.1031332532 | L30: -0.04291568487 | M30: 0.006756237634 | N30: 0.06351536444 | O30: -0.0892827221 | P30: 0.1344125082 | Q30: -0.1262424005 | R30: 0.0006742067898 | S30: -0.03719684637 | T30: -0.02533625588 | U30: -0.01165067101 | V30: -0.1063315482 | W30: 0.09795499495 | X30: -0.03300073961 | Y30: -0.003573480735 | Z30: -0.09189214853 | AA30: 0.06905962895 | AB30: 0.03569168741 | AC30: -0.06699159983 | AD30: -0.02186505066 | AE30: -0.01589411502 | AF30: -0.06177622001 | AG30: 0.02539032269 | AH30: 0.01576873703 | AI30: -0.04853964809 | AJ30: -0.06395563916 | AK30: 0.03296140454 | AL30: 0.04617846267 | AM30: -0.07838119217 | AN30: -0.08481132898 | AO30: 0.05545828547 | AP30: -0.04517435751 | AQ30: 0.01074553392 | AR30: -0.007036019054 | AS30: -0.0300888026 | AT30: -0.06787882775 | AU30: 0.03858090416 | AV30: -0.03207330569 | AW30: -0.004802242802 | AX30: -0.07503311278 | AY30: 0.0461654609 | AZ30: 0.01423451587 | BA30: -0.05172470294 | BB30: -0.1118570396 | BC30: 0.1072595905 | BD30: 0.00500851316 | BE30: -0.04477941362 | BF30: -0.08524824601 | BG30: 0.05868656403 | BH30: 0.04202362214 | BI30: -0.07466908115 | BJ30: 0.08056763087 | BK30: -0.1011062731 | BL30: -0.005050125607 | BM30: -0.03150128632 | BN30: 0.01913266601 | BO30: -0.05064186529 | BP30: 0.03698921371 | BQ30: -0.06648763795 | BR30: -0.06646515602 | BS30: 0.0334460677 | BT30: 0.007832231675 | BU30: -0.04431921429 | BV30: 0.01861836971 | BW30: -0.048772676 | BX30: -0.03453959173 | BY30: -0.003746852303 | BZ30: -0.01804463155 | CA30: -0.01964620926 | CB30: -0.08083599182 | CC30: 0.06204562388 | CD30: 0.1136465275 | CE30: -0.114097882 | CF30: 0.02514865764 | CG30: -0.05782250503 | CH30: 0.004195522977 | CI30: -0.04178544702 | CJ30: 0.04232458764 | CK30: -0.07222917132 | CL30: 0.01918667379 | CM30: -0.05595612846 | CN30: 0.01583595028 | CO30: -0.04715210641 | CP30: -0.02147172478 | CQ30: -0.01595056626 | CR30: 0.1295501436 | CS30: -0.1243809293 | CT30: 0.03379671029 | CU30: -0.07236014347 | CV30: -0.06575478338 | CW30: 0.03910516872 | CX30: -0.03355750556 | CY30: -0.004475965565 | CZ30: 0.01317459955 | DA30: -0.0500625956 | DB30: -0.06540501644 | DC30: 0.0315458791 | DD30: 0.1067563751 | DE30: -0.1188832422 | DF30: -0.03595088171 | DG30: 0.0003573215824 | DH30: 0.02933905825 | DI30: -0.06067744163 | DJ30: 0.006163878886 | DK30: -0.04325629467 | DL30: -0.04605412954 | DM30: 0.01221737428 | DN30: -0.07569233332 | DO30: 0.04351773957 | DP30: 0.02804710937 | DQ30: -0.0607873863 | DR30: -0.02045388108 | DS30: -0.01725132598 | DT30: 0.09640244261 | DU30: -0.1063267329 | DV30: -0.09146022574 | DW30: 0.0724708544 | DX30: -0.07485383966 | DY30: 0.04470513747 | DZ30: -0.04076912185 | EA30: 0.004081365084 | EB30: 0.00560547707 | EC30: -0.04110640048 | ED30: -0.02411612906 | EE30: -0.01289984923 | EF30: -0.1075475732 | EG30: 0.09345330801 | EH30: -0.04033118382 | EI30: 0.00459325306 | EJ30: -0.06549292361 | EK30: 0.03166119555 | EL30: -0.008067585769 | EM30: -0.02921196886 | EN30: -0.02133750192 | EO30: -0.0165286224 | EP30: 0.01518783327 | EQ30: -0.05417494066 | ER30: -0.01491428438 | ES30: -0.02238799039 | ET30: -0.08405455871 | EU30: 0.06085720221 | EV30: 0.03427323057 | EW30: -0.07161344258 | EX30: -0.09237516495 | EY30: 0.07432304235 | EZ30: -0.02605391752 | FA30: -0.01156918542 | FB30: -0.05505243522 | FC30: 0.01558816975 | FD30: -0.002071011448 | FE30: -0.03500551482 | FF30: -0.00112026266 | FG30: -0.03577111815 | FH30: -0.09178281978 | FI30: 0.06907246925 | FJ30: 0.005732941321 | FK30: -0.04029452975 | FL30: 0.02068867092 | FM30: -0.05712742935 | FN30: -0.09868850198 | FO30: 0.09763111844 | FP30: 0.07110184375 | FQ30: -0.09103007925 | FR30: -0.04191763389 | FS30: 0.004123891845 | FT30: -0.06487770285 | FU30: 0.03332827232 | FV30: -0.08877310537 | FW30: 0.06871042609 | FX30: -0.06076472544 | FY30: 0.02667101904 | FZ30: -0.07548181015 | GA30: 0.05032232115 | GB30: 0.0634755694 | GC30: -0.08771304515 | GD30: -0.003299491812 | GE30: -0.03366845703 | GF30: -0.1023205905 | GG30: 0.07655517719 | GH30: -0.06489989015 | GI30: 0.02734525086 | GJ30: -0.03492472654 | GK30: -0.003002396263 | GL30: -0.02493457821 | GM30: -0.0129594173 | GN30: 0.02358166605 | GO30: -0.05664811034 | GP30: -0.09002217376 | GQ30: 0.06789482186 | GR30: 0.009493962258 | GS30: -0.04737169453 | GT30: 0.1218600775 | GU30: -0.1233255578 | GV30: -0.08829430205 | GW30: 0.06124170297 | GX30: 0.03652152554 | GY30: -0.06871440513 | GZ30: 0.01150144377 | HA30: -0.04676693237 | HB30: -0.02766208488 | HC30: -0.008939902324 | HD30: -0.08923278912 | HE30: 0.06431258859 | HF30: 0.006216999271 | HG30: -0.04507143883 | HH30: 0.02888308775 | HI30: -0.05825084895 | HJ30: 0.004949815659 | HK30: -0.04223468165 | HL30: -0.0444864218 | HM30: 0.007331909481 | HN30: -0.01560118064 | HO30: -0.02214336568 | HP30: 0.0161445092 | HQ30: -0.04989759231 | HR30: -0.1034813207 | HS30: 0.1023545124 | HT30: -0.04894387327 | HU30: 0.01556341957 | HV30: -0.1165947823 | HW30: 0.1162150468 | HX30: 0.01436761824 | HY30: -0.05193688411 | HZ30: -0.04455715953 | IA30: 0.008549257044 | IB30: 0.04225499905 | IC30: -0.072253056 | ID30: 0.03055416056 | IE30: -0.06528545018 | IF30: -0.09893140541 | IG30: 0.08520017976 | IH30: -0.05770858937 | II30: 0.02192375352 | IJ30: 0.03439381387 | IK30: -0.05936291149 | IL30: -0.1141259863 | IM30: 0.1088777647 | IN30: 0.07949386822 | IO30: -0.0952840854 | IP30: 0.01238587631 | IQ30: -0.04464846358 | IR30: -0.01729880978 | IS30: -0.0204372544 | IT30: -0.1306016515 | IU30: 0.1400808187 | IV30: 0.01908603096 | IW30: -0.03299626541 | IX30: -0.01391023445 | IY30: 0 | IZ30: 0 | JA30: 0.01308293988 | JB30: 0.0008619807836 | JC30: 0.002084741298 | JD30: 0.003500453619 | JE30: 0.0004838503211 | JF30: 0.02343104545 | JG30: 0.001619937933 | JH30: 0.005401847915 | JI30: 0.01601974787 | JJ30: 0.0006725468601 | JK30: 0.02928243921 | JL30: 0.0003984434031 | JM30: 0.004264085608 | JN30: 0.001826733237 | JO30: 0.002356655024 | JP30: 0.003185776414 | JQ30: 0.0005161185998 | JR30: 0.02246235141 | JS30: 0.001997393328 | JT30: 0.003817482029 | JU30: 0.0006442842283 | JV30: 0.01705691051 | JW30: 0.01081478726 | JX30: 0.001001388719 | JY30: 0.002542172317 | JZ30: 0.002899343862 | KA30: 0.001107030318 | KB30: 0.00888771639 | KC30: 0.00708781143 | KD30: 0.001442251375 | KE30: 0.001061281754 | KF30: 0.01030403468 | KG30: 0.01277654279 | KH30: 0.0008116732972 | KI30: 0.000725268782 | KJ30: 0.01451251435 | KK30: 0.001545706682 | KL30: 0.00614812347 | KM30: 0.003531806468 | KN30: 0.002126239048 | KO30: 0.0009846888697 | KP30: 0.01135527152 | KQ30: 0.002037466113 | KR30: 0.003713408223 | KS30: 0.0008621974807 | KT30: 0.01277411055 | KU30: 0.006800805485 | KV30: 0.001351684222 | KW30: 0.0004776588889 | KX30: 0.02420295719 | KY30: 0.005074902018 | KZ30: 0.001558400339 | LA30: 0.0007198652882 | LB30: 0.01511642672 | LC30: 0.01199929896 | LD30: 0.0008679382361 | LE30: 0.01920970637 | LF30: 0.0005574797697 | LG30: 0.003692778067 | LH30: 0.002062626194 | LI30: 0.007717099851 | LJ30: 0.001381707291 | LK30: 0.01105751482 | LL30: 0.0010110331 | LM30: 0.001011466046 | LN30: 0.01039470037 | LO30: 0.005603133553 | LP30: 0.001573342635 | LQ30: 0.007620890713 | LR30: 0.001435389837 | LS30: 0.001932820966 | LT30: 0.003802613426 | LU30: 0.002764833148 | LV30: 0.002669025846 | LW30: 0.000777112561 | LX30: 0.01574480428 | LY30: 0.02539775814 | LZ30: 0.0004634553629 | MA30: 0.008842508237 | MB30: 0.001196340088 | MC30: 0.004922816373 | MD30: 0.001658608082 | ME30: 0.01205560042 | MF30: 0.0009077300968 | MG30: 0.007727203058 | MH30: 0.001241513748 | MI30: 0.007100384976 | MJ30: 0.001483905368 | MK30: 0.002564174545 | ML30: 0.002895724481 | MM30: 0.02837283922 | MN30: 0.000407222422 | MO30: 0.01046029489 | MP30: 0.0009055347526 | MQ30: 0.001025266291 | MR30: 0.01145334541 | MS30: 0.001973757455 | MT30: 0.003740748291 | MU30: 0.006602527497 | MV30: 0.00139808898 | MW30: 0.001032147505 | MX30: 0.01003923309 | MY30: 0.02410882095 | MZ30: 0.000435559877 | NA30: 0.001875642794 | NB30: 0.00420480606 | NC30: 0.009626404272 | ND30: 0.00113101201 | NE30: 0.005291035676 | NF30: 0.001608486725 | NG30: 0.001517855754 | NH30: 0.006423459871 | NI30: 0.0008519277159 | NJ30: 0.01227880272 | NK30: 0.009384720076 | NL30: 0.001128584004 | NM30: 0.002622074906 | NN30: 0.002813655398 | NO30: 0.02217191626 | NP30: 0.0005161543845 | NQ30: 0.0006488414806 | NR30: 0.01769504666 | NS30: 0.0008650183731 | NT30: 0.01250092862 | NU30: 0.001694280021 | NV30: 0.004901460916 | NW30: 0.005186575742 | NX30: 0.001682346141 | NY30: 0.002420128211 | NZ30: 0.003098441032 | OA30: 0.0005072126282 | OB30: 0.0216202232 | OC30: 0.001709919098 | OD30: 0.00499721953 | OE30: 0.001030412641 | OF30: 0.01006080527 | OG30: 0.003451134606 | OH30: 0.002166816196 | OI30: 0.002571729984 | OJ30: 0.002858940066 | OK30: 0.006979142069 | OL30: 0.001286539724 | OM30: 0.002962944679 | ON30: 0.0025132361 | OO30: 0.0007347624891 | OP30: 0.01552248686 | OQ30: 0.01054943729 | OR30: 0.000918143332 | OS30: 0.0006392433064 | OT30: 0.01804153448 | OU30: 0.002320171333 | OV30: 0.003191563858 | OW30: 0.001264119083 | OX30: 0.007054032804 | OY30: 0.003948928172 | OZ30: 0.001913731603 | PA30: 0.004034557503 | PB30: 0.001882819688 | PC30: 0.0006454333208 | PD30: 0.01705931254 | PE30: 0.005210420413 | PF30: 0.001711235445 | PG30: 0.00800818087 | PH30: 0.001212929348 | PI30: 0.0005784396363 | PJ30: 0.022401764 | PK30: 0.01743894656 | PL30: 0.0006534269949 | PM30: 0.001654031533 | PN30: 0.004909416375 | PO30: 0.001042630814 | PP30: 0.01037266445 | PQ30: 0.0006782752326 | PR30: 0.01699158532 | PS30: 0.001129083924 | PT30: 0.009127295582 | PU30: 0.0008551898371 | PV30: 0.01355173221 | PW30: 0.01601230343 | PX30: 0.0006904167385 | PY30: 0.003841104692 | PZ30: 0.001969084605 | QA30: 0.0005474013861 | QB30: 0.01845909877 | QC30: 0.001042187056 | QD30: 0.009253423773 | QE30: 0.001917026448 | QF30: 0.003866893552 | QG30: 0.002377348219 | QH30: 0.003094340691 | QI30: 0.008549371946 | QJ30: 0.001224530293 | QK30: 0.0006643581013 | QL30: 0.01683901066 | QM30: 0.005913992618 | QN30: 0.001477221346 | QO30: 0.0269342626 | QP30: 0.0004123765859 | QQ30: 0.0006837211834 | QR30: 0.01559441522 | QS30: 0.01097002465 | QT30: 0.000969281081 | QU30: 0.006289531127 | QV30: 0.001495714371 | QW30: 0.00224064114 | QX30: 0.003384440105 | QY30: 0.0006731050563 | QZ30: 0.01616888417 | RA30: 0.005300972878 | RB30: 0.001549003044 | RC30: 0.00954110611 | RD30: 0.001186252867 | RE30: 0.005063921507 | RF30: 0.00164311325 | RG30: 0.001567894606 | RH30: 0.005509538544 | RI30: 0.002918203479 | RJ30: 0.002526727373 | RK30: 0.007158106931 | RL30: 0.001402796756 | RM30: 0.0005380376756 | RN30: 0.02328536681 | RO30: 0.001430373112 | RP30: 0.0070494028 | RQ30: 0.000448501478 | RR30: 0.02587824969 | RS30: 0.006825704875 | RT30: 0.001345891401 | RU30: 0.001565596316 | RV30: 0.005737267111 | RW30: 0.01204258251 | RX30: 0.0009073292321 | RY30: 0.00985371282 | RZ30: 0.001034513011 | SA30: 0.0005762786863 | SB30: 0.02007631485 | SC30: 0.001199040105 | SD30: 0.008239227123 | SE30: 0.01057199474 | SF30: 0.00116054016 | SG30: 0.0004632820208 | SH30: 0.02450566819 | SI30: 0.01900883815 | SJ30: 0.0006100854424 | SK30: 0.006454981456 | SL30: 0.001562635534 | SM30: 0.00281070717 | SN30: 0.002623032386 | SO30: 0.0003793551881 | SP30: 0.006191559084 | SQ30: 0.003029670174 | SR30: 0
E31: 5.25 | F31: 0.0267422145 | G31: -0.05758663813 | H31: -0.03017444397 | I31: -0.007965636739 | J31: -0.09198987228 | K31: 0.07737824145 | L31: -0.01955152018 | M31: -0.01792321879 | N31: 0.05133351979 | O31: -0.07875209032 | P31: 0.1196377212 | Q31: -0.1151987145 | R31: 0.00600654096 | S31: -0.04174168049 | T31: -0.02075700588 | U31: -0.01649238366 | V31: -0.1053343409 | W31: 0.09876558665 | X31: -0.04707218104 | Y31: 0.0125718314 | Z31: -0.08728231131 | AA31: 0.06436184209 | AB31: -0.01335422359 | AC31: -0.02373509892 | AD31: -0.0230900914 | AE31: -0.01440891879 | AF31: -0.06291706678 | AG31: 0.02721121971 | AH31: 0.0205891536 | AI31: -0.05209400244 | AJ31: -0.05607262685 | AK31: 0.0240603634 | AL31: 0.05032846544 | AM31: -0.08106833812 | AN31: -0.07658608518 | AO31: 0.04647856143 | AP31: -0.01312022792 | AQ31: -0.02483213367 | AR31: -0.02146812737 | AS31: -0.01614063669 | AT31: -0.04404424073 | AU31: 0.01023925997 | AV31: -0.005300866373 | AW31: -0.03265142255 | AX31: -0.0618375496 | AY31: 0.03076413093 | AZ31: 0.01021061287 | BA31: -0.04748599088 | BB31: -0.1071277019 | BC31: 0.1025234989 | BD31: -0.001358973639 | BE31: -0.03768990386 | BF31: -0.06876576492 | BG31: 0.0390775071 | BH31: 0.03114831336 | BI31: -0.06463788075 | BJ31: 0.1152579953 | BK31: -0.1242576564 | BL31: -0.02085586517 | BM31: -0.01677980652 | BN31: 0.02550807595 | BO31: -0.05529440999 | BP31: 0.02303232349 | BQ31: -0.05462108001 | BR31: -0.05521139472 | BS31: 0.02106938682 | BT31: 0.02648349243 | BU31: -0.06074942176 | BV31: -0.004162093641 | BW31: -0.03052922237 | BX31: -0.004655467712 | BY31: -0.03191605077 | BZ31: -0.01999988385 | CA31: -0.01757050479 | CB31: -0.07018470845 | CC31: 0.04822515924 | CD31: 0.1537990527 | CE31: -0.136176353 | CF31: 0.04097576861 | CG31: -0.07034533942 | CH31: -0.01043004924 | CI31: -0.02713995938 | CJ31: 0.03305578533 | CK31: -0.06398802063 | CL31: -0.003519269232 | CM31: -0.03392064437 | CN31: 0.02644448399 | CO31: -0.05499559297 | CP31: -0.03567605152 | CQ31: 0.0004695328427 | CR31: 0.1169845128 | CS31: -0.1146095818 | CT31: 0.02443470855 | CU31: -0.06275865017 | CV31: -0.07265093266 | CW31: 0.04915718711 | CX31: -0.04813750242 | CY31: 0.01067046444 | CZ31: 0.03473633134 | DA31: -0.06925949783 | DB31: -0.05543904862 | DC31: 0.02080191691 | DD31: 0.09333456404 | DE31: -0.1077332061 | DF31: -0.03765678251 | DG31: 0.002657917554 | DH31: 0.01673747022 | DI31: -0.04973392857 | DJ31: 0.01340997228 | DK31: -0.04968241353 | DL31: -0.02516557737 | DM31: -0.01154600507 | DN31: -0.05078265587 | DO31: 0.01562065528 | DP31: 0.03746612903 | DQ31: -0.06810659198 | DR31: 0.0003347867386 | DS31: -0.03799144663 | DT31: 0.1356935052 | DU31: -0.1298453302 | DV31: -0.07762402697 | DW31: 0.05490600855 | DX31: -0.07382980319 | DY31: 0.04434522189 | DZ31: -0.02396899181 | EA31: -0.013380672 | EB31: 0.01202675926 | EC31: -0.0463973497 | ED31: 0.0006347517157 | EE31: -0.03994207435 | EF31: -0.08759786733 | EG31: 0.06743005338 | EH31: -0.02845338615 | EI31: -0.008254415686 | EJ31: -0.04509631349 | EK31: 0.009279618091 | EL31: -0.03139411623 | EM31: -0.006345958125 | EN31: 0.009901620412 | EO31: -0.04508038231 | EP31: 0.01956945534 | EQ31: -0.05805850396 | ER31: -0.01587933332 | ES31: -0.02128764938 | ET31: -0.07963041839 | EU31: 0.05616813315 | EV31: 0.03245381351 | EW31: -0.06928003299 | EX31: -0.09137643074 | EY31: 0.07451175611 | EZ31: -0.04096491587 | FA31: 0.004340619626 | FB31: -0.05906890879 | FC31: 0.020058272 | FD31: -0.001934578556 | FE31: -0.03485003248 | FF31: 0.03650280653 | FG31: -0.06894558562 | FH31: -0.06019266458 | FI31: 0.02975343586 | FJ31: 0.01003308228 | FK31: -0.04359920141 | FL31: 0.01175053246 | FM31: -0.04838591064 | FN31: -0.09090415229 | FO31: 0.08709549448 | FP31: 0.06132864716 | FQ31: -0.08284037079 | FR31: -0.05828806577 | FS31: 0.02169049509 | FT31: -0.07915751368 | FU31: 0.05172052108 | FV31: -0.1069719372 | FW31: 0.09628956463 | FX31: -0.0475034713 | FY31: 0.01219562201 | FZ31: -0.04502475716 | GA31: 0.01240878198 | GB31: 0.03685653903 | GC31: -0.06604511692 | GD31: 0.005986955382 | GE31: -0.04193351795 | GF31: -0.08621890645 | GG31: 0.05784196444 | GH31: -0.070416743 | GI31: 0.03388926204 | GJ31: -0.03177262083 | GK31: -0.005890099502 | GL31: -0.02395987855 | GM31: -0.01366652924 | GN31: 0.03452726317 | GO31: -0.06529106801 | GP31: -0.08946098233 | GQ31: 0.06857035129 | GR31: -0.009007715014 | GS31: -0.02872371892 | GT31: 0.09693230682 | GU31: -0.1051771399 | GV31: -0.0499001003 | GW31: 0.01581055063 | GX31: 0.05581676334 | GY31: -0.08389888632 | GZ31: 0.01187027772 | HA31: -0.04673018833 | HB31: -0.04310773876 | HC31: 0.009331207272 | HD31: -0.1036819213 | HE31: 0.08507493096 | HF31: 0.00187361192 | HG31: -0.04031881259 | HH31: 0.004204068173 | HI31: -0.03802420145 | HJ31: -0.02064061682 | HK31: -0.01685813325 | HL31: -0.05291454145 | HM31: 0.01673878854 | HN31: -0.01444400774 | HO31: -0.02303783624 | HP31: 0.05769558294 | HQ31: -0.08312848661 | HR31: -0.07696121036 | HS31: 0.06283793929 | HT31: -0.04624772239 | HU31: 0.01280638096 | HV31: -0.10210244 | HW31: 0.09621836522 | HX31: 0.01087277818 | HY31: -0.04819505549 | HZ31: -0.05459696141 | IA31: 0.02020632063 | IB31: 0.04513051856 | IC31: -0.07387807323 | ID31: 0.03427607984 | IE31: -0.0679746582 | IF31: -0.08342096559 | IG31: 0.06474036228 | IH31: -0.08295697219 | II31: 0.05144685904 | IJ31: 0.05089922136 | IK31: -0.07046419441 | IL31: -0.1125589915 | IM31: 0.1091766888 | IN31: 0.1178872765 | IO31: -0.119593137 | IP31: 0.03138281939 | IQ31: -0.05911006578 | IR31: -0.008828138768 | IS31: -0.02842388804 | IT31: -0.1334148607 | IU31: 0.1489785703 | IV31: 0.01844421654 | IW31: -0.03227131903 | IX31: -0.01382710249 | IY31: 0 | IZ31: 0 | JA31: 0.008581645085 | JB31: 0.001044178604 | JC31: 0.001885702704 | JD31: 0.003141112722 | JE31: 0.0005501261385 | JF31: 0.0176567807 | JG31: 0.002400650087 | JH31: 0.002492301771 | JI31: 0.01298897015 | JJ31: 0.0006923132891 | JK31: 0.02523064723 | JL31: 0.000390643299 | JM31: 0.00486533753 | JN31: 0.001459971775 | JO31: 0.002335146452 | JP31: 0.002575956589 | JQ31: 0.0004473376936 | JR31: 0.02148988275 | JS31: 0.00130142896 | JT31: 0.006041987926 | JU31: 0.0005953937714 | JV31: 0.01532394386 | JW31: 0.002770181945 | JX31: 0.002181490692 | JY31: 0.002213812045 | JZ31: 0.002703209527 | KA31: 0.0009373672491 | KB31: 0.00866570156 | KC31: 0.007478875664 | KD31: 0.001170148318 | KE31: 0.001077197316 | KF31: 0.008100995953 | KG31: 0.01280884139 | KH31: 0.0006639205896 | KI31: 0.0007203932866 | KJ31: 0.01211885043 | KK31: 0.002785279754 | KL31: 0.002127694552 | KM31: 0.002297415756 | KN31: 0.002596981071 | KO31: 0.001388898507 | KP31: 0.005623937708 | KQ31: 0.003343712192 | KR31: 0.001783957004 | KS31: 0.0009578670953 | KT31: 0.009302464614 | KU31: 0.005618803491 | KV31: 0.001289979324 | KW31: 0.000435961464 | KX31: 0.02216338667 | KY31: 0.003669077531 | KZ31: 0.001595372601 | LA31: 0.0008354122886 | LB31: 0.010792412 | LC31: 0.009371318903 | LD31: 0.0009058097821 | LE31: 0.02444570006 | LF31: 0.0003495924781 | LG31: 0.002329861187 | LH31: 0.002558912716 | LI31: 0.008360459195 | LJ31: 0.001094660539 | LK31: 0.007916747658 | LL31: 0.001110045945 | LM31: 0.001096543486 | LN31: 0.007564944455 | LO31: 0.008535276166 | LP31: 0.0009790968349 | LQ31: 0.003434461795 | LR31: 0.001870742189 | LS31: 0.003394829488 | LT31: 0.00181351198 | LU31: 0.002376057462 | LV31: 0.002512648147 | LW31: 0.0008128409638 | LX31: 0.01243188075 | LY31: 0.03135314015 | LZ31: 0.0003080204732 | MA31: 0.01113262394 | MB31: 0.0008103358088 | MC31: 0.002965304828 | MD31: 0.002019202129 | ME31: 0.009713181562 | MF31: 0.0009175684012 | MG31: 0.003486832475 | MH31: 0.0017342012 | MI31: 0.00852828496 | MJ31: 0.001101456559 | MK31: 0.001667924843 | ML31: 0.003872978875 | MM31: 0.02475513154 | MN31: 0.0003936499674 | MO31: 0.008168087176 | MP31: 0.0009403410946 | MQ31: 0.0007754639932 | MR31: 0.01259892149 | MS31: 0.001272190288 | MT31: 0.005701219424 | MU31: 0.01001437389 | MV31: 0.000827467539 | MW31: 0.001091389153 | MX31: 0.007517007721 | MY31: 0.02051651912 | MZ31: 0.0004322344424 | NA31: 0.001596536676 | NB31: 0.00426518753 | NC31: 0.006788565797 | ND31: 0.001229802532 | NE31: 0.006192201964 | NF31: 0.001231144177 | NG31: 0.002111631821 | NH31: 0.00288916376 | NI31: 0.001202860854 | NJ31: 0.006588406984 | NK31: 0.01050361615 | NL31: 0.0008461729725 | NM31: 0.003848829287 | NN31: 0.001584818676 | NO31: 0.02810821142 | NP31: 0.0003285513682 | NQ31: 0.0007067477492 | NR31: 0.01362924194 | NS31: 0.0007583946483 | NT31: 0.01173650713 | NU31: 0.002169897743 | NV31: 0.00276848096 | NW31: 0.005944298514 | NX31: 0.001320355824 | NY31: 0.003902589881 | NZ31: 0.001518427944 | OA31: 0.000592189893 | OB31: 0.01587383758 | OC31: 0.001960180608 | OD31: 0.003119951062 | OE31: 0.001357756101 | OF31: 0.005451947907 | OG31: 0.001834819282 | OH31: 0.003262654623 | OI31: 0.005563424967 | OJ31: 0.00135822162 | OK31: 0.007296122383 | OL31: 0.001034140022 | OM31: 0.002612718937 | ON31: 0.002306928516 | OO31: 0.0006813527896 | OP31: 0.01385544358 | OQ31: 0.009605294425 | OR31: 0.0008271392204 | OS31: 0.0005557272749 | OT31: 0.01714304089 | OU31: 0.001484882291 | OV31: 0.004566766276 | OW31: 0.00101303768 | OX31: 0.007383729524 | OY31: 0.003619560531 | OZ31: 0.001698751195 | PA31: 0.0103309667 | PB31: 0.0008325074147 | PC31: 0.0009901842755 | PD31: 0.009121324911 | PE31: 0.005586985944 | PF31: 0.001402319709 | PG31: 0.005894792346 | PH31: 0.001265483365 | PI31: 0.0005600984526 | PJ31: 0.01939833498 | PK31: 0.01478032586 | PL31: 0.0006432820903 | PM31: 0.001029298824 | PN31: 0.00767626128 | PO31: 0.0006872241788 | PP31: 0.01305832964 | PQ31: 0.0004369294132 | PR31: 0.0210461229 | PS31: 0.001289498254 | PT31: 0.005974562586 | PU31: 0.001359848473 | PV31: 0.006012765734 | PW31: 0.01039436366 | PX31: 0.0008809914225 | PY31: 0.004861827346 | PZ31: 0.00145389346 | QA31: 0.0006063787454 | QB31: 0.01415543247 | QC31: 0.0008092254407 | QD31: 0.009862559675 | QE31: 0.001819339782 | QF31: 0.003297752805 | QG31: 0.002170348183 | QH31: 0.002750167631 | QI31: 0.009976904089 | QJ31: 0.0008941815732 | QK31: 0.0005737803186 | QL31: 0.01607820508 | QM31: 0.003065458032 | QN31: 0.001948270032 | QO31: 0.02116131702 | QP31: 0.0004483594867 | QQ31: 0.001225486516 | QR31: 0.006622440579 | QS31: 0.01379247006 | QT31: 0.000631382974 | QU31: 0.00591625344 | QV31: 0.001310980995 | QW31: 0.001417314784 | QX31: 0.005461193869 | QY31: 0.0004582821269 | QZ31: 0.01903620372 | RA31: 0.004124622 | RB31: 0.00150597275 | RC31: 0.004542293129 | RD31: 0.001583677027 | RE31: 0.002341385567 | RF31: 0.002554289083 | RG31: 0.001150216558 | RH31: 0.00678880207 | RI31: 0.002701011412 | RJ31: 0.002216453313 | RK31: 0.01412919756 | RL31: 0.000640012033 | RM31: 0.0007154207324 | RN31: 0.01505082558 | RO31: 0.001324595663 | RP31: 0.006084024577 | RQ31: 0.0004691755907 | RR31: 0.02103336233 | RS31: 0.005737478678 | RT31: 0.001270632681 | RU31: 0.001110601854 | RV31: 0.007410263229 | RW31: 0.01187725027 | RX31: 0.0007577063813 | RY31: 0.009931886284 | RZ31: 0.0008483480785 | SA31: 0.00063671646 | SB31: 0.01539178334 | SC31: 0.0006419558496 | SD31: 0.01300928314 | SE31: 0.01291113392 | SF31: 0.0008084886373 | SG31: 0.0004044685357 | SH31: 0.02335579068 | SI31: 0.02491692746 | SJ31: 0.0003695644924 | SK31: 0.009413347754 | SL31: 0.001012189336 | SM31: 0.003078356085 | SN31: 0.001961485115 | SO31: 0.0003165757289 | SP31: 0.00568584593 | SQ31: 0.002739937448 | SR31: 0
E32: 5.5 | F32: 0.02733689914 | G32: -0.05739282808 | H32: -0.05601979518 | I32: 0.01805757689 | J32: -0.08810251702 | K32: 0.0736573517 | L32: 0.003992877137 | M32: -0.04127558948 | N32: 0.02526473432 | O32: -0.0567251785 | P32: 0.09460881378 | Q32: -0.09784430834 | R32: -0.005687098705 | S32: -0.03057140874 | T32: -0.02282255904 | U32: -0.01371484581 | V32: -0.1125705399 | W32: 0.1129279371 | X32: -0.0452923413 | Y32: 0.0111663086 | Z32: -0.07786526821 | AA32: 0.05344357209 | AB32: -0.00873048496 | AC32: -0.02752739928 | AD32: -0.04462412358 | AE32: 0.008389953127 | AF32: -0.05205147848 | AG32: 0.01614013282 | AH32: 0.01883784482 | AI32: -0.05007061231 | AJ32: -0.07451699742 | AK32: 0.04781500377 | AL32: 0.02885578965 | AM32: -0.06189176034 | AN32: -0.07847990032 | AO32: 0.05000360037 | AP32: -0.01019150373 | AQ32: -0.02750317191 | AR32: -0.04704148599 | AS32: 0.009790545655 | AT32: -0.03473553839 | AU32: -7.091235852e-05 | AV32: -0.03402799082 | AW32: -0.001942029797 | AX32: -0.0712218685 | AY32: 0.04332129219 | AZ32: 0.03902222067 | BA32: -0.07346214482 | BB32: -0.110792892 | BC32: 0.1112207896 | BD32: -0.0112200894 | BE32: -0.02654075718 | BF32: -0.04723248348 | BG32: 0.01402463686 | BH32: 0.04253508075 | BI32: -0.07354670182 | BJ32: 0.09782268351 | BK32: -0.1101100661 | BL32: 0.01087128438 | BM32: -0.04485122904 | BN32: -0.005441257404 | BO32: -0.02958167753 | BP32: 0.02971111687 | BQ32: -0.05938515308 | BR32: -0.05962655901 | BS32: 0.02693135019 | BT32: 0.01047124415 | BU32: -0.04577799152 | BV32: -0.00381157217 | BW32: -0.03037633187 | BX32: -0.02920942652 | BY32: -0.00826728284 | BZ32: -0.002862713344 | CA32: -0.0329332067 | CB32: -0.09077651656 | CC32: 0.07945502242 | CD32: 0.1269956112 | CE32: -0.1178913573 | CF32: 0.05034252952 | CG32: -0.07690337469 | CH32: -0.01930893349 | CI32: -0.01774058624 | CJ32: 0.01563083755 | CK32: -0.04870942353 | CL32: -0.01016077165 | CM32: -0.0269131508 | CN32: 0.00556856631 | CO32: -0.03811233849 | CP32: -0.03634869051 | CQ32: 0.001799806416 | CR32: 0.1118050011 | CS32: -0.1094104968 | CT32: 0.01483093755 | CU32: -0.05269734286 | CV32: -0.06022783386 | CW32: 0.03367958694 | CX32: -0.03352701931 | CY32: -0.003709388698 | CZ32: 0.03333628143 | DA32: -0.06719549638 | DB32: -0.06454165174 | DC32: 0.0320243616 | DD32: 0.1279330621 | DE32: -0.1291058285 | DF32: 0.007877181498 | DG32: -0.04673506817 | DH32: 0.01744806704 | DI32: -0.04974462385 | DJ32: -0.007106860679 | DK32: -0.02973732664 | DL32: -0.01939757292 | DM32: -0.0175196727 | DN32: -0.04167420085 | DO32: 0.006161592208 | DP32: 0.03799813093 | DQ32: -0.06771814643 | DR32: 0.007807368636 | DS32: -0.04475898644 | DT32: 0.1023284261 | DU32: -0.1065451302 | DV32: -0.09237114755 | DW32: 0.07697604977 | DX32: -0.07500449745 | DY32: 0.04695514816 | DZ32: -0.04464476918 | EA32: 0.009141118878 | EB32: 0.01379454205 | EC32: -0.0473689147 | ED32: -0.02979695076 | EE32: -0.005661149554 | EF32: -0.07890397151 | EG32: 0.05715184663 | EH32: -0.03768132936 | EI32: 0.002481138169 | EJ32: -0.05571435378 | EK32: 0.02179237753 | EL32: -0.02588894743 | EM32: -0.01133824825 | EN32: 0.0352343829 | EO32: -0.06631217478 | EP32: 0.001747274676 | EQ32: -0.03966000733 | ER32: -0.01750290444 | ES32: -0.01940768887 | ET32: -0.08021799856 | EU32: 0.05837898243 | EV32: 0.03426184891 | EW32: -0.07011298453 | EX32: -0.08772744635 | EY32: 0.07118259997 | EZ32: -0.05072980496 | FA32: 0.01551567313 | FB32: -0.0680527738 | FC32: 0.03000226271 | FD32: -0.009115668864 | FE32: -0.02759531231 | FF32: 0.04278082884 | FG32: -0.07337919188 | FH32: -0.06305178703 | FI32: 0.03421334126 | FJ32: 0.005618439264 | FK32: -0.0393771963 | FL32: 0.01653544751 | FM32: -0.05224520672 | FN32: -0.08320399931 | FO32: 0.07676751351 | FP32: 0.06378435349 | FQ32: -0.0834996547 | FR32: -0.04171379336 | FS32: 0.004851681842 | FT32: -0.07965937526 | FU32: 0.05367075194 | FV32: -0.08868330021 | FW32: 0.07214113438 | FX32: -0.04383902609 | FY32: 0.008731568335 | FZ32: -0.04042242603 | GA32: 0.007430552584 | GB32: 0.02348534091 | GC32: -0.05449165109 | GD32: -0.004851742742 | GE32: -0.03146161317 | GF32: -0.08261139631 | GG32: 0.05478276057 | GH32: -0.06061014604 | GI32: 0.02419041681 | GJ32: -0.02024706433 | GK32: -0.01685412623 | GL32: -0.02080559686 | GM32: -0.01631228891 | GN32: 0.0268651619 | GO32: -0.05820770145 | GP32: -0.09705697946 | GQ32: 0.08091351118 | GR32: -0.006883429594 | GS32: -0.03039696736 | GT32: 0.08573278193 | GU32: -0.09607860272 | GV32: -0.04617057565 | GW32: 0.01217588177 | GX32: 0.03142210647 | GY32: -0.06289177516 | GZ32: -0.003976069108 | HA32: -0.03200663449 | HB32: -0.04095144784 | HC32: 0.00738346557 | HD32: -0.1114651315 | HE32: 0.09833326741 | HF32: -0.002510042263 | HG32: -0.03531662314 | HH32: -0.02092113083 | HI32: -0.01637371008 | HJ32: -0.0346977976 | HK32: -0.001946411012 | HL32: -0.04798541948 | HM32: 0.0120651009 | HN32: -0.006058421151 | HO32: -0.03078436369 | HP32: 0.04818765705 | HQ32: -0.07467448902 | HR32: -0.07364644253 | HS32: 0.05933794648 | HT32: -0.04459904014 | HU32: 0.01149430784 | HV32: -0.1227294239 | HW32: 0.1325782977 | HX32: -0.009125095432 | HY32: -0.02806629206 | HZ32: -0.07045735259 | IA32: 0.03950633648 | IB32: 0.01374520604 | IC32: -0.04710050505 | ID32: 0.03464606702 | IE32: -0.06748072312 | IF32: -0.06730754575 | IG32: 0.04384121298 | IH32: -0.06625701514 | II32: 0.03309863953 | IJ32: 0.04670636902 | IK32: -0.06668666958 | IL32: -0.114144146 | IM32: 0.1148147679 | IN32: 0.1052017077 | IO32: -0.109339129 | IP32: 0.04007731154 | IQ32: -0.06494492441 | IR32: 0.001603991907 | IS32: -0.03786909901 | IT32: -0.1234337341 | IU32: 0.1363716936 | IV32: 0.01771148431 | IW32: -0.03133894703 | IX32: -0.01362746272 | IY32: 0 | IZ32: 0 | JA32: 0.008134798617 | JB32: 0.0009015983677 | JC32: 0.0009283777991 | JD32: 0.006545139207 | JE32: 0.0004974761867 | JF32: 0.01607004876 | JG32: 0.004135687127 | JH32: 0.001285610916 | JI32: 0.007779811882 | JJ32: 0.0009144999334 | JK32: 0.01965928599 | JL32: 0.0004238670844 | JM32: 0.002998859977 | JN32: 0.00164621109 | JO32: 0.001977827019 | JP32: 0.002463728105 | JQ32: 0.0003429118556 | JR32: 0.02279757195 | JS32: 0.001174277545 | JT32: 0.005364582138 | JU32: 0.000598054337 | JV32: 0.01260718541 | JW32: 0.002782719328 | JX32: 0.001768549395 | JY32: 0.001191997797 | JZ32: 0.004888959083 | KA32: 0.001011410415 | KB32: 0.006216657997 | KC32: 0.00667880848 | KD32: 0.001056196868 | KE32: 0.0006372617965 | KF32: 0.01164294402 | KG32: 0.008395002813 | KH32: 0.0008203001693 | KI32: 0.000591223714 | KJ32: 0.01201787692 | KK32: 0.002684888484 | KL32: 0.001769562595 | KM32: 0.001129331906 | KN32: 0.005128897414 | KO32: 0.001493846447 | KP32: 0.003445590823 | KQ32: 0.001518581422 | KR32: 0.003289446003 | KS32: 0.000679357716 | KT32: 0.01087311723 | KU32: 0.01013663462 | KV32: 0.000650344129 | KW32: 0.0003511032438 | KX32: 0.02250511708 | KY32: 0.002618213002 | KZ32: 0.001810333729 | LA32: 0.001124547394 | LB32: 0.005854248117 | LC32: 0.01073842976 | LD32: 0.0006492820591 | LE32: 0.02020986049 | LF32: 0.0003543529906 | LG32: 0.005314040945 | LH32: 0.001185940506 | LI32: 0.003017078726 | LJ32: 0.001684927037 | LK32: 0.008541530644 | LL32: 0.0008644123899 | LM32: 0.0008600369538 | LN32: 0.008065323209 | LO32: 0.005245509245 | LP32: 0.001161591591 | LQ32: 0.003140844819 | LR32: 0.001653763108 | LS32: 0.001699749386 | LT32: 0.002814520945 | LU32: 0.003215361451 | LV32: 0.00155776569 | LW32: 0.0004753619254 | LX32: 0.01706325943 | LY32: 0.02520753357 | LZ32: 0.0003205644493 | MA32: 0.01207593956 | MB32: 0.0006089676786 | MC32: 0.002151750679 | MD32: 0.002234677751 | ME32: 0.006129409596 | MF32: 0.001088345669 | MG32: 0.002686908228 | MH32: 0.001794436334 | MI32: 0.004405621617 | MJ32: 0.00138189381 | MK32: 0.001439132541 | ML32: 0.003759987759 | MM32: 0.02260519952 | MN32: 0.0003577435402 | MO32: 0.005992377114 | MP32: 0.0009973022849 | MQ32: 0.0008492584192 | MR32: 0.009221377255 | MS32: 0.001536373143 | MT32: 0.003148781443 | MU32: 0.009162564896 | MV32: 0.0007359839099 | MW32: 0.0007767098998 | MX32: 0.008937817264 | MY32: 0.02536813018 | MZ32: 0.0002825745744 | NA32: 0.004801115141 | NB32: 0.001137057801 | NC32: 0.006440722846 | ND32: 0.001063792227 | NE32: 0.002895895725 | NF32: 0.001678771944 | NG32: 0.002147164292 | NH32: 0.002246633456 | NI32: 0.001274032871 | NJ32: 0.00450721408 | NK32: 0.009961195736 | NL32: 0.0007282916705 | NM32: 0.004789155359 | NN32: 0.001188396439 | NO32: 0.02098174834 | NP32: 0.0003723009669 | NQ32: 0.0004628946717 | NR32: 0.01663858162 | NS32: 0.0006313369645 | NT32: 0.01149564042 | NU32: 0.001191445657 | NV32: 0.005017642803 | NW32: 0.005814830112 | NX32: 0.001121144373 | NY32: 0.001676420743 | NZ32: 0.00300077751 | OA32: 0.0005865746534 | OB32: 0.0132424574 | OC32: 0.00139563961 | OD32: 0.003876708076 | OE32: 0.0009344670605 | OF32: 0.007184955437 | OG32: 0.001838533833 | OH32: 0.002610667422 | OI32: 0.009487732487 | OJ32: 0.000749226278 | OK32: 0.003750988441 | OL32: 0.001333791611 | OM32: 0.002247543759 | ON32: 0.002146641546 | OO32: 0.0005724931362 | OP32: 0.01345268051 | OQ32: 0.009321125729 | OR32: 0.0006943615202 | OS32: 0.0005007041021 | OT32: 0.01564609405 | OU32: 0.001041034487 | OV32: 0.006109680548 | OW32: 0.0007234217281 | OX32: 0.008591407425 | OY32: 0.002756564721 | OZ32: 0.001765712652 | PA32: 0.01078052936 | PB32: 0.0006513883418 | PC32: 0.0008008451531 | PD32: 0.009312815785 | PE32: 0.004414165454 | PF32: 0.001342436898 | PG32: 0.006284380154 | PH32: 0.0010071536 | PI32: 0.0005422430325 | PJ32: 0.01660285686 | PK32: 0.01437868553 | PL32: 0.0005393748034 | PM32: 0.00127288944 | PN32: 0.004282810693 | PO32: 0.0005784202528 | PP32: 0.01264610405 | PQ32: 0.0004925401797 | PR32: 0.01581030252 | PS32: 0.00121321688 | PT32: 0.004947481873 | PU32: 0.001310800869 | PV32: 0.004724602241 | PW32: 0.007474980408 | PX32: 0.0009593360597 | PY32: 0.003061244343 | PZ32: 0.001612232533 | QA32: 0.0005480594677 | QB32: 0.01283660449 | QC32: 0.0008424927557 | QD32: 0.007595768383 | QE32: 0.002103743251 | QF32: 0.002283071381 | QG32: 0.002075713921 | QH32: 0.002313206716 | QI32: 0.008053984359 | QJ32: 0.0008861543324 | QK32: 0.0004291416453 | QL32: 0.01731311608 | QM32: 0.002911848139 | QN32: 0.001652962425 | QO32: 0.01813871507 | QP32: 0.0004358500108 | QQ32: 0.001151453742 | QR32: 0.005537534155 | QS32: 0.008834643724 | QT32: 0.0008034937316 | QU32: 0.003128112549 | QV32: 0.001591815752 | QW32: 0.001295115228 | QX32: 0.00471653567 | QY32: 0.0003479604236 | QZ32: 0.02029732965 | RA32: 0.003243530235 | RB32: 0.001473871462 | RC32: 0.002069966756 | RD32: 0.002309769232 | RE32: 0.001495154312 | RF32: 0.00328908924 | RG32: 0.001105917287 | RH32: 0.00551855606 | RI32: 0.002971562233 | RJ32: 0.00163801074 | RK32: 0.01170678401 | RL32: 0.0006353394349 | RM32: 0.0006480322982 | RN32: 0.01361696258 | RO32: 0.001192669023 | RP32: 0.00542077235 | RQ32: 0.0003027913915 | RR32: 0.02616391486 | RS32: 0.002755927925 | RT32: 0.00174617743 | RU32: 0.0006896552667 | RV32: 0.01021956947 | RW32: 0.005806378259 | RX32: 0.001127850919 | RY32: 0.009386946907 | RZ32: 0.0007317729565 | SA32: 0.000734325912 | SB32: 0.01096218591 | SC32: 0.0007500634167 | SD32: 0.009121853983 | SE32: 0.01145302157 | SF32: 0.0007435745752 | SG32: 0.000335973697 | SH32: 0.02312080874 | SI32: 0.02147397602 | SJ32: 0.0003580929543 | SK32: 0.01031738436 | SL32: 0.0007703373793 | SM32: 0.003726442381 | SN32: 0.001389632207 | SO32: 0.0003003878109 | SP32: 0.005191628141 | SQ32: 0.002468971216 | SR32: 0
E33: 5.75 | F33: -0.0004032942027 | G33: -0.03363501015 | H33: -0.05631691408 | I33: 0.01924619916 | J33: -0.07321222708 | K33: 0.05419895814 | L33: -0.005884164301 | M33: -0.03076495359 | N33: 0.001775347196 | O33: -0.03597719978 | P33: 0.05981472993 | Q33: -0.07389650364 | R33: 0.00711553559 | S33: -0.04155586255 | T33: -0.04849678452 | U33: 0.0167331958 | V33: -0.09057612063 | W33: 0.0816804964 | X33: -0.03901635525 | Y33: 0.004819805652 | Z33: -0.05750332414 | AA33: 0.02869700749 | AB33: -0.01322389154 | AC33: -0.02279266237 | AD33: -0.04260824745 | AE33: 0.007024927367 | AF33: -0.04969051687 | AG33: 0.01445948648 | AH33: 0.01050296235 | AI33: -0.04251675182 | AJ33: -0.05949955226 | AK33: 0.03026711349 | AL33: 0.05400176101 | AM33: -0.08195736499 | AN33: -0.07875263522 | AO33: 0.05186421977 | AP33: -0.01115299781 | AQ33: -0.0257985164 | AR33: -0.04893784369 | AS33: 0.01254978656 | AT33: -0.0283645894 | AU33: -0.00667562509 | AV33: -0.05326626957 | AW33: 0.02040106962 | AX33: -0.07649553133 | AY33: 0.05146471846 | AZ33: 0.03639441576 | BA33: -0.07002773157 | BB33: -0.118010748 | BC33: 0.1267820345 | BD33: -0.003487458628 | BE33: -0.03421895224 | BF33: -0.03314552222 | BG33: -0.001466908394 | BH33: 0.0479365561 | BI33: -0.0768930009 | BJ33: 0.08588600563 | BK33: -0.0998028894 | BL33: -0.02693420387 | BM33: -0.01004304353 | BN33: -0.02414759434 | BO33: -0.01296455095 | BP33: 0.02016571585 | BQ33: -0.05080748301 | BR33: -0.03848537143 | BS33: 0.003781406859 | BT33: 0.02911801782 | BU33: -0.06151991565 | BV33: 0.01659431168 | BW33: -0.04572393401 | BX33: -0.03519635784 | BY33: -0.001732058312 | BZ33: -0.006527304539 | CA33: -0.02896398988 | CB33: -0.07917453711 | CC33: 0.0643790897 | CD33: 0.1069715459 | CE33: -0.1036421328 | CF33: 0.06778419448 | CG33: -0.0889990471 | CH33: -0.02430227219 | CI33: -0.01196900955 | CJ33: 0.02794558316 | CK33: -0.05821544371 | CL33: -0.03282189164 | CM33: -0.003170028209 | CN33: -0.004770504181 | CO33: -0.02915862884 | CP33: -0.02018872836 | CQ33: -0.01594114001 | CR33: 0.09497555681 | CS33: -0.09701229536 | CT33: -0.0007882021934 | CU33: -0.03630163783 | CV33: -0.02196035133 | CW33: -0.01358706272 | CX33: -0.009866408948 | CY33: -0.02623719014 | CZ33: 0.002784684055 | DA33: -0.03847459564 | DB33: -0.06707944457 | DC33: 0.03616009675 | DD33: 0.1120340798 | DE33: -0.1161277841 | DF33: -0.005586172156 | DG33: -0.03184930663 | DH33: 0.02564617533 | DI33: -0.0557079473 | DJ33: -0.01587364408 | DK33: -0.02052212776 | DL33: -0.03092996748 | DM33: -0.003806321947 | DN33: -0.01949421649 | DO33: -0.01686526531 | DP33: 0.05719841031 | DQ33: -0.08190192367 | DR33: 0.01207566535 | DS33: -0.04809219929 | DT33: 0.09918695669 | DU33: -0.1025506296 | DV33: -0.09910441969 | DW33: 0.08918296052 | DX33: -0.05088030389 | DY33: 0.01886764765 | DZ33: -0.06357582656 | EA33: 0.03134101875 | EB33: -0.0123194574 | EC33: -0.02357853728 | ED33: -0.02714241811 | EE33: -0.007999038064 | EF33: -0.1003118625 | EG33: 0.08938119232 | EH33: -0.02809437575 | EI33: -0.007444709588 | EJ33: -0.05636104549 | EK33: 0.02350287182 | EL33: -0.0103090986 | EM33: -0.0257917442 | EN33: 0.04878849586 | EO33: -0.07637504432 | EP33: -0.008253568068 | EQ33: -0.02867491331 | ER33: -0.0177337825 | ES33: -0.01858943252 | ET33: -0.06543848273 | EU33: 0.0402104086 | EV33: 0.003087385337 | EW33: -0.03964218718 | EX33: -0.09865424178 | EY33: 0.08940724686 | EZ33: -0.03311257621 | FA33: -0.002710598401 | FB33: -0.07587545266 | FC33: 0.03937774614 | FD33: -0.03474504532 | FE33: -0.00179243289 | FF33: 0.03854338432 | FG33: -0.06875301909 | FH33: -0.06242396697 | FI33: 0.03461265326 | FJ33: -0.00361195726 | FK33: -0.03087389948 | FL33: 0.02568044864 | FM33: -0.05972702443 | FN33: -0.0769821394 | FO33: 0.06890497883 | FP33: 0.0615003133 | FQ33: -0.08052298685 | FR33: -0.05070642456 | FS33: 0.01509490025 | FT33: -0.09678687096 | FU33: 0.0781037384 | FV33: -0.07715271164 | FW33: 0.05784589042 | FX33: -0.05778029392 | FY33: 0.02543476371 | FZ33: -0.0555918586 | GA33: 0.02722469772 | GB33: 0.03437628413 | GC33: -0.06240097441 | GD33: -0.004126309358 | GE33: -0.03148314023 | GF33: -0.07750623124 | GG33: 0.0500161953 | GH33: -0.03971853999 | GI33: 0.003218968572 | GJ33: -0.06305159011 | GK33: 0.02806028465 | GL33: -0.02414178271 | GM33: -0.0123960355 | GN33: 0.02826532514 | GO33: -0.05848644033 | GP33: -0.07807784062 | GQ33: 0.05677932148 | GR33: 0.0003446426363 | GS33: -0.03691438987 | GT33: 0.07664634149 | GU33: -0.0883689538 | GV33: -0.06187066244 | GW33: 0.03161063696 | GX33: 0.04541203767 | GY33: -0.07340695615 | GZ33: 0.004798389036 | HA33: -0.03925311512 | HB33: -0.04112141426 | HC33: 0.00840846564 | HD33: -0.1083294663 | HE33: 0.09682958162 | HF33: 0.00762508313 | HG33: -0.04488615114 | HH33: -0.01485808555 | HI33: -0.02099827684 | HJ33: -0.03115128761 | HK33: -0.004949239291 | HL33: -0.05368917482 | HM33: 0.01913202948 | HN33: -0.004081034102 | HO33: -0.03203088234 | HP33: 0.04576114644 | HQ33: -0.07164916457 | HR33: -0.06510850175 | HS33: 0.04808305308 | HT33: -0.02214330276 | HU33: -0.01374104132 | HV33: -0.1067197799 | HW33: 0.1099680431 | HX33: -0.02953239951 | HY33: -0.006441062018 | HZ33: -0.07991826913 | IA33: 0.05238676297 | IB33: -0.008309350753 | IC33: -0.02713399401 | ID33: 0.03911258075 | IE33: -0.07027985346 | IF33: -0.08354020879 | IG33: 0.06822417053 | IH33: -0.04736699819 | II33: 0.01283649006 | IJ33: 0.04322090259 | IK33: -0.06327845117 | IL33: -0.1092949246 | IM33: 0.1106179828 | IN33: 0.09359633992 | IO33: -0.09980790826 | IP33: 0.04789999584 | IQ33: -0.06969457242 | IR33: -0.004470648344 | IS33: -0.03146136475 | IT33: -0.1082337498 | IU33: 0.1147359376 | IV33: 0.01710909002 | IW33: -0.03045741499 | IX33: -0.01334832497 | IY33: 0 | IZ33: 0 | JA33: 0.003094144451 | JB33: 0.001332632797 | JC33: 0.0007849539663 | JD33: 0.006270496914 | JE33: 0.0005501127749 | JF33: 0.01197954122 | JG33: 0.002683077661 | JH33: 0.00142955646 | JI33: 0.003416877605 | JJ33: 0.001259009218 | JK33: 0.01289679899 | JL33: 0.0005427163918 | JM33: 0.004289122687 | JN33: 0.001101616219 | JO33: 0.0009366784145 | JP33: 0.005860032963 | JQ33: 0.0003996092705 | JR33: 0.01646826612 | JS33: 0.001170278603 | JT33: 0.003914147312 | JU33: 0.0007646591355 | JV33: 0.007814154268 | JW33: 0.00222093616 | JX33: 0.001742563516 | JY33: 0.001074538209 | JZ33: 0.004274323102 | KA33: 0.0009113532174 | KB33: 0.005488654347 | KC33: 0.004842411469 | KD33: 0.001076861413 | KE33: 0.0007319738591 | KF33: 0.008070609122 | KG33: 0.01194733183 | KH33: 0.0004653370086 | KI33: 0.0004940553004 | KJ33: 0.01159819436 | KK33: 0.00234205543 | KL33: 0.00161643522 | KM33: 0.0009272242012 | KN33: 0.005176731577 | KO33: 0.001516698586 | KP33: 0.002628655403 | KQ33: 0.0008402887681 | KR33: 0.00645912885 | KS33: 0.0005158627436 | KT33: 0.01153294141 | KU33: 0.009071418248 | KV33: 0.0005864329513 | KW33: 0.0002697944479 | KX33: 0.02383497154 | KY33: 0.002855264928 | KZ33: 0.001313831452 | LA33: 0.001348627131 | LB33: 0.00300947447 | LC33: 0.01095666544 | LD33: 0.0005119232523 | LE33: 0.01715517723 | LF33: 0.0003446120331 | LG33: 0.001571425847 | LH33: 0.002409859772 | LI33: 0.001684419245 | LJ33: 0.002235730019 | LK33: 0.006420687104 | LL33: 0.0008883986579 | LM33: 0.001185251417 | LN33: 0.003744539393 | LO33: 0.007882920418 | LP33: 0.0007006745938 | LQ33: 0.005837348185 | LR33: 0.0009988179531 | LS33: 0.001283029143 | LT33: 0.002988748265 | LU33: 0.002638764519 | LV33: 0.001494396894 | LW33: 0.0004901276662 | LX33: 0.01364232332 | LY33: 0.02059920531 | LZ33: 0.0003255557679 | MA33: 0.01419849956 | MB33: 0.000410495917 | MC33: 0.001677918055 | MD33: 0.002293507071 | ME33: 0.007691419614 | MF33: 0.0007527923962 | MG33: 0.001359320745 | MH33: 0.002878929865 | MI33: 0.002761681579 | MJ33: 0.001487233652 | MK33: 0.001860564418 | ML33: 0.002072098577 | MM33: 0.01863982828 | MN33: 0.0003597911311 | MO33: 0.003063218341 | MP33: 0.001249179629 | MQ33: 0.001779367796 | MR33: 0.002200395417 | MS33: 0.002420841512 | MT33: 0.001598883188 | MU33: 0.003581738663 | MV33: 0.001185557545 | MW33: 0.0006230263633 | MX33: 0.009033145516 | MY33: 0.02142609943 | MZ33: 0.0002759008819 | NA33: 0.002703875941 | NB33: 0.001392035913 | NC33: 0.007315843507 | ND33: 0.0007956315147 | NE33: 0.002075662907 | NF33: 0.001844981026 | NG33: 0.00142377432 | NH33: 0.002831699454 | NI33: 0.001893488045 | NJ33: 0.002023955295 | NK33: 0.01246945978 | NL33: 0.000465812527 | NM33: 0.005099290508 | NN33: 0.0009454523248 | NO33: 0.01932770155 | NP33: 0.0003307690179 | NQ33: 0.0003483019914 | NR33: 0.0176936887 | NS33: 0.0008869265009 | NT33: 0.006208665819 | NU33: 0.0006705646649 | NV33: 0.008246016526 | NW33: 0.002272988416 | NX33: 0.001708576051 | NY33: 0.001563325139 | NZ33: 0.002540251334 | OA33: 0.0003419677519 | OB33: 0.01772606709 | OC33: 0.001526873043 | OD33: 0.002576890651 | OE33: 0.000784187111 | OF33: 0.006965764856 | OG33: 0.002393418624 | OH33: 0.001616707847 | OI33: 0.01109581788 | OJ33: 0.0005170655068 | OK33: 0.002523613307 | OL33: 0.001505106631 | OM33: 0.001979808169 | ON33: 0.0019373318 | OO33: 0.0006447203189 | OP33: 0.009694707305 | OQ33: 0.003631180684 | OR33: 0.001152909665 | OS33: 0.0003507183323 | OT33: 0.01773032273 | OU33: 0.001349711412 | OV33: 0.002913547604 | OW33: 0.0005220956011 | OX33: 0.009558703538 | OY33: 0.001297149166 | OZ33: 0.002984049915 | PA33: 0.009422422205 | PB33: 0.0006018898403 | PC33: 0.0006872238107 | PD33: 0.008780392265 | PE33: 0.002846039399 | PF33: 0.001425736021 | PG33: 0.007321441573 | PH33: 0.0007283621848 | PI33: 0.0005110456823 | PJ33: 0.01438156401 | PK33: 0.01317211546 | PL33: 0.0004778770271 | PM33: 0.0008904465664 | PN33: 0.005592440299 | PO33: 0.000361069242 | PP33: 0.01588405272 | PQ33: 0.0005093724054 | PR33: 0.0125752166 | PS33: 0.0007600160276 | PT33: 0.007281312374 | PU33: 0.0007976874084 | PV33: 0.007573673061 | PW33: 0.008741784673 | PX33: 0.0006875617636 | PY33: 0.002808256951 | PZ33: 0.00140458111 | QA33: 0.0005059294478 | QB33: 0.01129634541 | QC33: 0.001150811006 | QD33: 0.003652672965 | QE33: 0.0006780810371 | QF33: 0.007710154498 | QG33: 0.001684664049 | QH33: 0.002268530974 | QI33: 0.007743644995 | QJ33: 0.0007483373366 | QK33: 0.0005004331189 | QL33: 0.01240100748 | QM33: 0.003183192026 | QN33: 0.001230852389 | QO33: 0.01564600732 | QP33: 0.0004149799663 | QQ33: 0.0006954162261 | QR33: 0.008290054891 | QS33: 0.01054432066 | QT33: 0.0005479936971 | QU33: 0.003910649207 | QV33: 0.001163672543 | QW33: 0.001113025259 | QX33: 0.004500304727 | QY33: 0.0003048761687 | QZ33: 0.0189426573 | RA33: 0.004372350151 | RB33: 0.001018544711 | RC33: 0.002130096945 | RD33: 0.001822971182 | RE33: 0.001416060238 | RF33: 0.002748904025 | RG33: 0.0008323373886 | RH33: 0.006251848893 | RI33: 0.00281156138 | RJ33: 0.001385861623 | RK33: 0.01060134269 | RL33: 0.0005675413071 | RM33: 0.0006492025838 | RN33: 0.01098059367 | RO33: 0.001771205539 | RP33: 0.00219174805 | RQ33: 0.0003116772156 | RR33: 0.02108864122 | RS33: 0.001473584813 | RT33: 0.002644661489 | RU33: 0.0004833144821 | RV33: 0.01168354448 | RW33: 0.002519982405 | RX33: 0.001563651986 | RY33: 0.009515392481 | RZ33: 0.0005834396464 | SA33: 0.0004520637628 | SB33: 0.0142703635 | SC33: 0.0009614258134 | SD33: 0.005223560583 | SE33: 0.01018642939 | SF33: 0.0006748150202 | SG33: 0.0003009401994 | SH33: 0.02119479977 | SI33: 0.01841455249 | SJ33: 0.0003445857762 | SK33: 0.01095069383 | SL33: 0.0005904204413 | SM33: 0.002783258952 | SN33: 0.001405331143 | SO33: 0.0003052721521 | SP33: 0.004734429854 | SQ33: 0.002213875229 | SR33: 0
E34: 6 | F34: -0.004642148738 | G34: -0.02919278922 | H34: -0.05256195929 | I34: 0.01646965484 | J34: -0.08027364202 | K34: 0.06639595302 | L34: 0.004661830698 | M34: -0.04033123983 | N34: 0.004484700997 | O34: -0.03747767419 | P34: 0.06578068103 | Q34: -0.07641910096 | R34: -0.03145024053 | S34: -0.004626597475 | T34: -0.03081748628 | U34: -0.002993319155 | V34: -0.07900898456 | W34: 0.06668209342 | X34: -0.03312012819 | Y34: -0.0008728280891 | Z34: -0.04259283097 | AA34: 0.01148561364 | AB34: -0.01141779599 | AC34: -0.02364150214 | AD34: -0.03476359364 | AE34: -0.0003279465344 | AF34: -0.04419710053 | AG34: 0.009588478046 | AH34: 0.008943572398 | AI34: -0.04035921388 | AJ34: -0.06822703174 | AK34: 0.0426935082 | AL34: 0.0753760225 | AM34: -0.09720519242 | AN34: -0.05061508742 | AO34: 0.01922344973 | AP34: 0.02157409934 | AQ34: -0.05851847138 | AR34: -0.0812498178 | AS34: 0.04889025484 | AT34: -0.01900289076 | AU34: -0.01637960301 | AV34: -0.05052904229 | AW34: 0.0183999108 | AX34: -0.07968542076 | AY34: 0.0574855928 | AZ34: 0.04941384281 | BA34: -0.08005899299 | BB34: -0.09975859995 | BC34: 0.1007143981 | BD34: -0.008464507184 | BE34: -0.02796380481 | BF34: -0.02552499321 | BG34: -0.009159924397 | BH34: 0.04719345773 | BI34: -0.07489976201 | BJ34: 0.0530948061 | BK34: -0.07442282871 | BL34: -0.0399733089 | BM34: 0.003304859975 | BN34: -0.01977713649 | BO34: -0.01598658178 | BP34: 0.03049703602 | BQ34: -0.05810857006 | BR34: -0.05286923098 | BS34: 0.02116151599 | BT34: 0.03607827208 | BU34: -0.06632874941 | BV34: 0.01493991223 | BW34: -0.04356708011 | BX34: -0.05485418591 | BY34: 0.01918344668 | BZ34: -0.01269476561 | CA34: -0.0224997849 | CB34: -0.07898174419 | CC34: 0.06628046281 | CD34: 0.08102420084 | CE34: -0.08571637225 | CF34: 0.0769746888 | CG34: -0.09403515146 | CH34: -0.01686432852 | CI34: -0.01873275557 | CJ34: 0.03193470059 | CK34: -0.06039210102 | CL34: -0.04743577774 | CM34: 0.0134077026 | CN34: -0.004328101313 | CO34: -0.02873408046 | CP34: -0.03168409778 | CQ34: -0.001943950293 | CR34: 0.08042494632 | CS34: -0.0860298948 | CT34: 0.007431559268 | CU34: -0.04365857825 | CV34: -0.0006178066458 | CW34: -0.03760063923 | CX34: 0.000967528122 | CY34: -0.03558989319 | CZ34: 0.003897218164 | DA34: -0.03863270253 | DB34: -0.1019760522 | DC34: 0.08161003186 | DD34: 0.08972175395 | DE34: -0.09893145661 | DF34: 0.004325400097 | DG34: -0.04138011855 | DH34: 0.02730351249 | DI34: -0.05601620342 | DJ34: -0.005859431082 | DK34: -0.02945843058 | DL34: -0.02428372555 | DM34: -0.01045715751 | DN34: -0.01590873292 | DO34: -0.01973838498 | DP34: 0.01191071616 | DQ34: -0.04387287605 | DR34: -0.01283943607 | DS34: -0.02280702824 | DT34: 0.09565398216 | DU34: -0.09821354666 | DV34: -0.1398381302 | DW34: 0.1583774841 | DX34: -0.05119023453 | DY34: 0.02039872737 | DZ34: -0.07913715393 | EA34: 0.05130838236 | EB34: -0.01404108026 | EC34: -0.02120518812 | ED34: -0.03528428582 | EE34: 0.002413860085 | EF34: -0.07906638795 | EG34: 0.06147108676 | EH34: 0.003741395038 | EI34: -0.04027893358 | EJ34: -0.03399070246 | EK34: -0.0004591609991 | EL34: -0.005080641213 | EM34: -0.02990355464 | EN34: 0.03442027216 | EO34: -0.06338198544 | EP34: -0.01508757454 | EQ34: -0.02064330137 | ER34: -0.04669937386 | ES34: 0.009166227438 | ET34: -0.08644124253 | EU34: 0.07068739546 | EV34: 0.03623485894 | EW34: -0.06984617476 | EX34: -0.1050586199 | EY34: 0.1023467529 | EZ34: -0.05024176178 | FA34: 0.01683809194 | FB34: -0.07574276271 | FC34: 0.04071179068 | FD34: -0.02430566237 | FE34: -0.01138533188 | FF34: 0.03264402227 | FG34: -0.06261224578 | FH34: -0.05917086076 | FI34: 0.03190404639 | FJ34: 0.004578276646 | FK34: -0.03700574932 | FL34: 0.008292307128 | FM34: -0.04281231019 | FN34: -0.0808832041 | FO34: 0.07767433336 | FP34: 0.05840726425 | FQ34: -0.07683943082 | FR34: -0.06240970778 | FS34: 0.02894895947 | FT34: -0.09128819609 | FU34: 0.07312766813 | FV34: -0.0628786594 | FW34: 0.03997816503 | FX34: -0.0443617186 | FY34: 0.01123130671 | FZ34: -0.06950823042 | GA34: 0.04684614121 | GB34: 0.0382657796 | GC34: -0.06431871002 | GD34: 0.01691784611 | GE34: -0.04963822326 | GF34: -0.0782221647 | GG34: 0.05269086635 | GH34: -0.04727601449 | GI34: 0.01199706362 | GJ34: -0.09162180847 | GK34: 0.06208883545 | GL34: -0.03628917383 | GM34: 0.0006377504523 | GN34: 0.01111810207 | GO34: -0.04314585844 | GP34: -0.08578201138 | GQ34: 0.06950608833 | GR34: 0.01266111909 | GS34: -0.04794708976 | GT34: 0.02927872899 | GU34: -0.05379329023 | GV34: -0.05139267691 | GW34: 0.02036019231 | GX34: 0.0476088556 | GY34: -0.07383498499 | GZ34: 0.02090295544 | HA34: -0.05240719551 | HB34: -0.04166278772 | HC34: 0.01010692143 | HD34: -0.1102305867 | HE34: 0.1029884908 | HF34: 0.0168707552 | HG34: -0.05303936193 | HH34: -0.01189376967 | HI34: -0.02275024323 | HJ34: -0.03189349824 | HK34: -0.003286231931 | HL34: -0.06887907395 | HM34: 0.03748225789 | HN34: 0.02370938885 | HO34: -0.056965536 | HP34: 0.03735711691 | HQ34: -0.06382971072 | HR34: -0.0634377047 | HS34: 0.04732251756 | HT34: -0.003159453722 | HU34: -0.0337646097 | HV34: -0.09229049373 | HW34: 0.08996639244 | HX34: -0.009270679436 | HY34: -0.02643976493 | HZ34: -0.06206654891 | IA34: 0.0322653808 | IB34: -0.01071245638 | IC34: -0.02417320465 | ID34: 0.05790238298 | IE34: -0.08448560919 | IF34: -0.08034317925 | IG34: 0.06583109036 | IH34: -0.06618109013 | II34: 0.03537545421 | IJ34: 0.01279088935 | IK34: -0.04063635844 | IL34: -0.09882311596 | IM34: 0.09743669576 | IN34: 0.07379018738 | IO34: -0.08487073859 | IP34: 0.05815356885 | IQ34: -0.07573036727 | IR34: 0.004090089275 | IS34: -0.03863871697 | IT34: -0.08895763603 | IU34: 0.08642894823 | IV34: 0.01674442856 | IW34: -0.02972351956 | IX34: -0.01297909101 | IY34: 0 | IZ34: 0 | JA34: 0.002477707867 | JB34: 0.001284887089 | JC34: 0.0007194132915 | JD34: 0.005372643671 | JE34: 0.0003979885563 | JF34: 0.01312590176 | JG34: 0.003538958593 | JH34: 0.0009676805077 | JI34: 0.003511451401 | JJ34: 0.001039442756 | JK34: 0.01303035367 | JL34: 0.0004287394703 | JM34: 0.001212056977 | JN34: 0.00247876387 | JO34: 0.00123199202 | JP34: 0.002592359081 | JQ34: 0.0004076990798 | JR34: 0.01317033766 | JS34: 0.001161171683 | JT34: 0.002748079699 | JU34: 0.0009148840576 | JV34: 0.004598651625 | JW34: 0.002060009787 | JX34: 0.001485646236 | JY34: 0.00111344325 | JZ34: 0.002789660231 | KA34: 0.0008794816047 | KB34: 0.004304037715 | KC34: 0.004203887692 | KD34: 0.0009670060401 | KE34: 0.0005067919616 | KF34: 0.009445052613 | KG34: 0.0145204533 | KH34: 0.0002973035293 | KI34: 0.0007532695929 | KJ34: 0.00580029169 | KK34: 0.006165333638 | KL34: 0.0006269776746 | KM34: 0.0003907344206 | KN34: 0.01040737062 | KO34: 0.0016800466 | KP34: 0.001802125584 | KQ34: 0.0007548106272 | KR34: 0.005672400978 | KS34: 0.0004024605812 | KT34: 0.01174217565 | KU34: 0.01048868073 | KV34: 0.0003996115625 | KW34: 0.0002859950587 | KX34: 0.0184553528 | KY34: 0.002232048562 | KZ34: 0.001326588771 | LA34: 0.001413877852 | LB34: 0.002190204247 | LC34: 0.01014386809 | LD34: 0.000441843174 | LE34: 0.0110603125 | LF34: 0.0004460777506 | LG34: 0.0009763589485 | LH34: 0.003328229086 | LI34: 0.001645754318 | LJ34: 0.001821228022 | LK34: 0.007551012798 | LL34: 0.000632838073 | LM34: 0.0007142428517 | LN34: 0.006101261889 | LO34: 0.008417745667 | LP34: 0.0005276972712 | LQ34: 0.005135083715 | LR34: 0.0008931881667 | LS34: 0.0006819332946 | LT34: 0.005794079454 | LU34: 0.00199005884 | LV34: 0.001531097366 | LW34: 0.0004079122102 | LX34: 0.01310796681 | LY34: 0.01539758191 | LZ34: 0.0003600569819 | MA34: 0.0147687167 | MB34: 0.0003125703168 | MC34: 0.00177886358 | MD34: 0.001692193459 | ME34: 0.007774273582 | MF34: 0.0006010630397 | MG34: 0.0008128508529 | MH34: 0.004897140644 | MI34: 0.00249912552 | MJ34: 0.001300278241 | MK34: 0.001204781428 | ML34: 0.002668226977 | MM34: 0.01530452123 | MN34: 0.0003580502052 | MO34: 0.003969081018 | MP34: 0.0008911819439 | MQ34: 0.002767459112 | MR34: 0.00103622621 | MS34: 0.002965255307 | MT34: 0.001090293214 | MU34: 0.0034202188 | MV34: 0.001009677389 | MW34: 0.0002768368916 | MX34: 0.01548855799 | MY34: 0.01674826034 | MZ34: 0.0002895662257 | NA34: 0.003486712916 | NB34: 0.0009427628822 | NC34: 0.007055077529 | ND34: 0.0006638671086 | NE34: 0.002396505929 | NF34: 0.001276067192 | NG34: 0.001460733284 | NH34: 0.002114364022 | NI34: 0.001825037674 | NJ34: 0.001647452436 | NK34: 0.004664667525 | NL34: 0.0008865039983 | NM34: 0.001982295873 | NN34: 0.001518717823 | NO34: 0.01766950021 | NP34: 0.0002927365977 | NQ34: 0.000185392375 | NR34: 0.02741008815 | NS34: 0.000743067402 | NT34: 0.00598280534 | NU34: 0.0004066985457 | NV34: 0.01078289149 | NW34: 0.001919057964 | NX34: 0.001584488115 | NY34: 0.001098790609 | NZ34: 0.003189862086 | OA34: 0.0004072505065 | OB34: 0.01236109923 | OC34: 0.003396020393 | OD34: 0.0009689431084 | OE34: 0.001135605523 | OF34: 0.002779587123 | OG34: 0.002448126955 | OH34: 0.001261439626 | OI34: 0.008160268109 | OJ34: 0.0005625291306 | OK34: 0.001865750029 | OL34: 0.001608291965 | OM34: 0.0008274549086 | ON34: 0.0042384647 | OO34: 0.0003554449922 | OP34: 0.01379233732 | OQ34: 0.008442062678 | OR34: 0.0004898523442 | OS34: 0.0002650537259 | OT34: 0.01870884783 | OU34: 0.0007599837341 | OV34: 0.005429859769 | OW34: 0.0004345009594 | OX34: 0.009137303632 | OY34: 0.001459890485 | OZ34: 0.002061822071 | PA34: 0.007884427032 | PB34: 0.0005721311461 | PC34: 0.0006177934482 | PD34: 0.007769513166 | PE34: 0.003525983145 | PF34: 0.001051894668 | PG34: 0.004102750057 | PH34: 0.0009099426525 | PI34: 0.0003934345844 | PJ34: 0.01487736735 | PK34: 0.01188530576 | PL34: 0.0004252156867 | PM34: 0.0005746936618 | PN34: 0.007310605689 | PO34: 0.0003269933631 | PP34: 0.0141712972 | PQ34: 0.0005687834139 | PR34: 0.009023375917 | PS34: 0.0008759413852 | PT34: 0.004559159266 | PU34: 0.0004933222295 | PV34: 0.0100899319 | PW34: 0.008757452614 | PX34: 0.0005511308289 | PY34: 0.005442245118 | PZ34: 0.0007709935776 | QA34: 0.0004139239524 | QB34: 0.01099758306 | QC34: 0.0008159927031 | QD34: 0.004678076774 | QE34: 0.0003251793125 | QF34: 0.01245703194 | QG34: 0.001071131123 | QH34: 0.002914042791 | QI34: 0.004541579257 | QJ34: 0.0009024931619 | QK34: 0.0003596353206 | QL34: 0.01360888733 | QM34: 0.004781200652 | QN34: 0.0008028931115 | QO34: 0.00736181694 | QP34: 0.0006989694242 | QQ34: 0.0007395168197 | QR34: 0.005976821073 | QS34: 0.01020837692 | QT34: 0.0004513787775 | QU34: 0.006061108968 | QV34: 0.0007220350479 | QW34: 0.0009361765656 | QX34: 0.004384548899 | QY34: 0.0002475228821 | QZ34: 0.01880850591 | RA34: 0.005434932179 | RB34: 0.0007113998901 | RC34: 0.002033633602 | RD34: 0.001520997522 | RE34: 0.001198308533 | RF34: 0.002571589854 | RG34: 0.000499873941 | RH34: 0.008635776337 | RI34: 0.006496931438 | RJ34: 0.0006495544328 | RK34: 0.008616342686 | RL34: 0.0005570422831 | RM34: 0.000561842389 | RN34: 0.01016391032 | RO34: 0.002580557569 | RP34: 0.0011421832 | RQ34: 0.0003215960939 | RR34: 0.01678625124 | RS34: 0.002183617374 | RT34: 0.001380410841 | RU34: 0.0005790699705 | RV34: 0.007825626258 | RW34: 0.002099771026 | RX34: 0.001464987593 | RY34: 0.01180690069 | RZ34: 0.0003681148463 | SA34: 0.0003974649475 | SB34: 0.01303818193 | SC34: 0.0005293724023 | SD34: 0.008308602218 | SE34: 0.004801353203 | SF34: 0.0009603534875 | SG34: 0.0002900404157 | SH34: 0.01794634506 | SI34: 0.01427418251 | SJ34: 0.0003655621827 | SK34: 0.01184590837 | SL34: 0.0004346076162 | SM34: 0.00345017054 | SN34: 0.001009524994 | SO34: 0.0003401715344 | SP34: 0.004335166416 | SQ34: 0.001974832831 | SR34: 0
